Workbook

Sheet CAPA

Sheet RESUMO MODULO TOTAL
E1: Ministério da Integração e do Desenvolvimento Regional
E2: Companhia de Desenvolvimento dos Vales do São Francisco e do Parnaíba
B5: OBRA: | C5: =B64 -> CONTRATAÇÃO DE SERVIÇOS DE PAVIMENTAÇÃO ASFÁLTICA COM CONCRETO BETUMINOSO USINADO A QUENTE (CBUQ) EM VIAS DE DIVERSOS MUNICÍPIOS INSERIDOS NA ÁREA DE ATUAÇÃO DA 16ª SUPERINTENDÊNCIA REGIONAL DA CODEVASF, NO ESTADO DE MINAS GERAIS - REGIÃO TRIÂNGULO E ALTO DO SÃO FRANCISCO | I5: BDI Serviços (%): | L5: =BDI!C14 -> 0.2339
B6: DATA: | C6: 2025-10-01 | I6: BDI Diferenciado Serviços (%): | L6: =BDI!C65 -> 0.15
B7: PRAZO DE EXECUÇÃO: 12 MESES | G7: R$/m² | H7: =L61/H24 -> 186.1772532 | I7: BDI Fornecimentos (%): | L7: =L6 -> 0.15
B8: PLANILHA DE ORÇAMENTAÇÃO
B9: ITEM | C9: CÓDIGO | D9: FONTE | E9: DISCRIMINAÇÃO | F9: TIPO | G9: UNID. | H9: QUANT. | I9: VR.UNIT.S/BDI | J9: PR. UNIT.C/BDI | K9: C. TOT.S/BDI | L9: P. TOT.C/BDI | M9: =L61 -> 23458333.9
B10: 1 | E10: SERVIÇOS PRELIMINARES | K10: =SUM(K11:K12) -> 1938101.46 | L10: =SUM(L11:L12) -> 2391379.2 | M10: =L10/$L$61 -> 0.101941562
B11: 1.1 | C11: CPU.1 | D11: Codevasf | E11: Mobilização | F11: SERV | G11: kmxfrente | H11: =Mob!B65*Mob!H6 -> 3240 | I11: =Mob!B62 -> 299.0897333 | J11: =TRUNC(_xlfn.IFS(F11="SERV",I11*(1+$L$5),F11="SERV DIF",I11*(1+$L$6),F11="FORN",I11*(1+$L$7)),2) -> 369.04 | K11: =TRUNC(H11*I11,2) -> 969050.73 | L11: =TRUNC(H11*J11,2) -> 1195689.6 | M11: 0.05097078101 | N11: INCC | P11: TERRAPLENAGEM | Q11: =(SUMIF(N:N,"TERRAPLENAGEM",L:L)/$L$61) -> 0.0261310118 | R11: =(SUMIF(N:N,"TERRAPLENAGEM",L:L)) -> 612990
B12: 1.2 | C12: CPU.2 | D12: Codevasf | E12: Desmobilização | F12: SERV | G12: kmxfrente | H12: =Mob!B65*Mob!H6 -> 3240 | I12: =Mob!B62 -> 299.0897333 | J12: =TRUNC(_xlfn.IFS(F12="SERV",I12*(1+$L$5),F12="SERV DIF",I12*(1+$L$6),F12="FORN",I12*(1+$L$7)),2) -> 369.04 | K12: =TRUNC(H12*I12,2) -> 969050.73 | L12: =TRUNC(H12*J12,2) -> 1195689.6 | M12: 0.05097078101 | N12: INCC | P12: PAVIMENTAÇÃO | Q12: =SUMIF(N:N,"PAVIMENTAÇÃO",L:L)/$L$61 -> 0.666133478 | R12: =(SUMIF(N:N,"PAVIMENTAÇÃO",L:L)) -> 15626381.55
B13: 2 | E13: INSTALAÇÃO DE CANTEIRO | K13: =SUM(K14:K16) -> 1370398.86 | L13: =SUM(L14:L16) -> 1690933.77 | M13: 0.0720824325 | P13: CONSULTORIA | R13: =(SUMIF(N:N,"CONSULTORIA",M:M)) -> 0
B14: 2.1 | C14: Canteiro | D14: Codevasf | E14: Canteiro de Obras | F14: SERV | G14: und | H14: ='MC MODULO'!D10 -> 9 | I14: =' Canteiro'!F11 -> 17422.47 | J14: =TRUNC(_xlfn.IFS(F14="SERV",I14*(1+$L$5),F14="SERV DIF",I14*(1+$L$6),F14="FORN",I14*(1+$L$7)),2) -> 21497.58 | K14: =TRUNC(H14*I14,2) -> 156802.23 | L14: =TRUNC(H14*J14,2) -> 193478.22 | M14: 0.008247739197 | N14: INCC | P14: DRENAGEM | Q14: =SUMIF(N:N,"DRENAGEM",L:L)/$L$61 -> 0.05346671274 | R14: =(SUMIF(N:N,"DRENAGEM",L:L)) -> 1254240
B15: 2.2 | C15: 903808 | D15: SICRO | E15: Instalação da usina misturadora de solos com capacidade de 300 t/h | F15: SERV | G15: und | H15: ='MC MODULO'!D10 -> 9 | I15: =ROUND(IF(D15="CODEVASF",VLOOKUP(C15,'CPU CODEVASF'!E:I,5,FALSE),VLOOKUP(C15,'SINTÉTICO SICRO'!A:D,4,FALSE)),6) -> 126736.07 | J15: =TRUNC(_xlfn.IFS(F15="SERV",I15*(1+$L$5),F15="SERV DIF",I15*(1+$L$6),F15="FORN",I15*(1+$L$7)),2) -> 156379.63 | K15: 1140624.63 | L15: 1407416.67 | M15: =L15/$L$61 -> 0.05999644629 | N15: INCC
B16: 2.3 | C16: 103689 | D16: SINAPI | E16: Fornecimento e instalação de placa de obra com chapa galvanizada e estrutura de madeira. af_03/2022_ps | F16: SERV | G16: m² | H16: ='MC MODULO'!H25 -> 144 | I16: =VLOOKUP(C16,'COMP Sint. Sinapi'!$A:$E,4,0) -> 506.75 | J16: =TRUNC(_xlfn.IFS(F16="SERV",I16*(1+$L$5),F16="SERV DIF",I16*(1+$L$6),F16="FORN",I16*(1+$L$7)),2) -> 625.27 | K16: 72972 | L16: 90038.88 | M16: 0.003838247012 | N16: INCC | P16: ADMINISTRAÇÃO LOCAL | R16: =(SUMIF(N:N,"ADMINISTRAÇÃO LOCAL",M:M)) -> 0
B17: 3 | E17: ADMINISTRAÇÃO LOCAL DA OBRA | K17: =SUM(K18:K18) -> 1076202.61 | L17: =SUM(L18:L18) -> 1327926.4 | M17: 0.05660787359 | P17: SINALIZAÇÃO VERTICAL | R17: =(SUMIF(N:N,"SINALIZAÇÃO VERTICAL",M:M)) -> 0
B18: 3.1 | C18: Adm Local | D18: Codevasf | E18: Administração Local da Obra | F18: SERV | G18: und | H18: 1 | I18: ='Adm Local'!J248 -> 1076202.614 | J18: =TRUNC(_xlfn.IFS(F18="SERV",I18*(1+$L$5),F18="SERV DIF",I18*(1+$L$6),F18="FORN",I18*(1+$L$7)),2) -> 1327926.4 | K18: =TRUNC(H18*I18,2) -> 1076202.61 | L18: =TRUNC(H18*J18,2) -> 1327926.4 | M18: 0.05660787359 | N18: INCC | P18: SINALIZAÇÃO HORIZONTAL | R18: =(SUMIF(N:N,"SINALIZAÇÃO HORIZONTAL",M:M)) -> 0
B19: 4 | E19: TERRAPLANAGEM | K19: =SUM(K20:K21) -> 497007 | L19: =SUM(L20:L21) -> 612990 | M19: 0.0261310118 | P19: CAP | R19: =(SUMIF(N:N,"CAP",M:M)) -> 0
B20: 4.1 | C20: 5502114 | D20: SICRO | E20: Escavação, carga e transporte de material de 1ª categoria - DMT de 1.000 a 1.200 m - caminho de serviço em leito natural - com escavadeira e caminhão basculante de 14 m³ | F20: SERV | G20: m³ | H20: ='MC MODULO'!H37 -> 44100 | I20: =ROUND(IF(D20="CODEVASF",VLOOKUP(C20,'CPU CODEVASF'!E:I,5,FALSE),VLOOKUP(C20,'SINTÉTICO SICRO'!A:D,4,FALSE)),6) -> 8.52 | J20: =TRUNC(_xlfn.IFS(F20="SERV",I20*(1+$L$5),F20="SERV DIF",I20*(1+$L$6),F20="FORN",I20*(1+$L$7)),2) -> 10.51 | K20: =TRUNC(H20*I20,2) -> 375732 | L20: =TRUNC(H20*J20,2) -> 463491 | M20: 0.01975805281 | N20: TERRAPLENAGEM | P20: IMPRIMAÇÃO | R20: =(SUMIF(N:N,"IMPRIMAÇÃO",M:M)) -> 0
B21: 4.2 | C21: 4413942 | D21: SICRO | E21: Espalhamento de material em bota-fora | F21: SERV | G21: m³ | H21: ='MC MODULO'!H44 -> 44100 | I21: =ROUND(IF(D21="CODEVASF",VLOOKUP(C21,'CPU CODEVASF'!E:I,5,FALSE),VLOOKUP(C21,'SINTÉTICO SICRO'!A:D,4,FALSE)),6) -> 2.75 | J21: =TRUNC(_xlfn.IFS(F21="SERV",I21*(1+$L$5),F21="SERV DIF",I21*(1+$L$6),F21="FORN",I21*(1+$L$7)),2) -> 3.39 | K21: 121275 | L21: 149499 | M21: 0.006372958993 | N21: TERRAPLENAGEM | P21: EMULSÃO ASFÁLTICA | R21: =(SUMIF(N:N,"EMULSÃO ASFÁLTICA",M:M)) -> 0
B22: 5 | E22: PAVIMENTAÇÃO | K22: =SUM(K23:K28) -> 5780703.6 | L22: =SUM(L23:L28) -> 7129647 | M22: 0.3039281063 | P22: OBRAS COMPLEMENTARES | R22: =(SUMIF(N:N,"OBRAS COMPLEMENTARES",M:M)) -> 0
B23: 5.1 | C23: 4011463 | D23: SICRO | E23: =VLOOKUP(C23,'SINTÉTICO SICRO'!$A$4:$D$1048576,2,0) -> Concreto asfáltico - faixa C-12,5 - areia e brita comerciais | F23: SERV | G23: t | H23: ='MC MODULO'!H51 -> 15120 | I23: =ROUND(IF(C23="CODEVASF",VLOOKUP(D23,'CPU CODEVASF'!E:I,5,FALSE),VLOOKUP(C23,'SINTÉTICO SICRO'!A:D,4,FALSE)),6) -> 209.18 | J23: =TRUNC(_xlfn.IFS(F23="SERV",I23*(1+$L$5),F23="SERV DIF",I23*(1+$L$6),F23="FORN",I23*(1+$L$7)),2) -> 258.1 | K23: =TRUNC(H23*I23,2) -> 3162801.6 | L23: =TRUNC(H23*J23,2) -> 3902472 | M23: 0.1663575946 | N23: PAVIMENTAÇÃO | P23: MOBILIZAÇÃO | R23: =(SUMIF(N:N,"MOBILIZAÇÃO",M:M)) -> 0
B24: 5.2 | C24: 4011352 | D24: SICRO | E24: =VLOOKUP(C24,'SINTÉTICO SICRO'!$A$4:$D$1048576,2,0) -> Imprimação com emulsão asfáltica | F24: SERV | G24: m² | H24: ='MC MODULO'!H57 -> 126000 | I24: =ROUND(IF(C24="CODEVASF",VLOOKUP(D24,'CPU CODEVASF'!E:I,5,FALSE),VLOOKUP(C24,'SINTÉTICO SICRO'!A:D,4,FALSE)),6) -> 0.68 | J24: =TRUNC(_xlfn.IFS(F24="SERV",I24*(1+$L$5),F24="SERV DIF",I24*(1+$L$6),F24="FORN",I24*(1+$L$7)),2) -> 0.83 | K24: 85680 | L24: 104580 | M24: 0.004458117121 | N24: PAVIMENTAÇÃO | P24: INCC | Q24: =(SUMIF(N:N,"INCC",L:L))/$L$61 -> 0.2542687974 | R24: =(SUMIF(N:N,"INCC",L:L)) -> 5964722.35
B25: 5.3 | C25: 4011353 | D25: SICRO | E25: =VLOOKUP(C25,'SINTÉTICO SICRO'!$A$4:$D$1048576,2,0) -> Pintura de ligação | F25: SERV | G25: m² | H25: ='MC MODULO'!H63 -> 126000 | I25: =ROUND(IF(C25="CODEVASF",VLOOKUP(D25,'CPU CODEVASF'!E:I,5,FALSE),VLOOKUP(C25,'SINTÉTICO SICRO'!A:D,4,FALSE)),6) -> 0.47 | J25: =TRUNC(_xlfn.IFS(F25="SERV",I25*(1+$L$5),F25="SERV DIF",I25*(1+$L$6),F25="FORN",I25*(1+$L$7)),2) -> 0.57 | K25: 59220 | L25: 71820 | M25: 0.003061598505 | N25: PAVIMENTAÇÃO
B26: 5.4 | C26: 4011227 | D26: SICRO | E26: =VLOOKUP(C26,'SINTÉTICO SICRO'!$A$4:$D$1048576,2,0) -> Sub-base de solo estabilizado granulometricamente sem mistura com material de jazida - 100% Proctor intermediário | F26: SERV | G26: m³ | H26: ='MC MODULO'!H68 -> 18900 | I26: =ROUND(IF(C26="CODEVASF",VLOOKUP(D26,'CPU CODEVASF'!E:I,5,FALSE),VLOOKUP(C26,'SINTÉTICO SICRO'!A:D,4,FALSE)),6) -> 15.26 | J26: =TRUNC(_xlfn.IFS(F26="SERV",I26*(1+$L$5),F26="SERV DIF",I26*(1+$L$6),F26="FORN",I26*(1+$L$7)),2) -> 18.82 | K26: 288414 | L26: 355698 | M26: 0.01516296944 | N26: PAVIMENTAÇÃO
B27: 5.5 | C27: 4011318 | D27: SICRO | E27: =VLOOKUP(C27,'SINTÉTICO SICRO'!$A$4:$D$1048576,2,0) -> Base ou sub-base estabilizada granulometricamente com mistura solo brita (70% - 30%) em usina com material de jazida e brita comercial - 100% Proctor modificado | F27: SERV | G27: m³ | H27: ='MC MODULO'!H74 -> 18900 | I27: =ROUND(IF(C27="CODEVASF",VLOOKUP(D27,'CPU CODEVASF'!E:I,5,FALSE),VLOOKUP(C27,'SINTÉTICO SICRO'!A:D,4,FALSE)),6) -> 103.52 | J27: =TRUNC(_xlfn.IFS(F27="SERV",I27*(1+$L$5),F27="SERV DIF",I27*(1+$L$6),F27="FORN",I27*(1+$L$7)),2) -> 127.73 | K27: 1956528 | L27: 2414097 | M27: 0.102909994 | N27: PAVIMENTAÇÃO
B28: 5.6 | C28: 4011209 | D28: SICRO | E28: =VLOOKUP(C28,'SINTÉTICO SICRO'!$A$4:$D$1048576,2,0) -> Regularização do subleito - 100% Proctor intermediário | F28: SERV | G28: m² | H28: ='MC MODULO'!H80 -> 126000 | I28: =ROUND(IF(C28="CODEVASF",VLOOKUP(D28,'CPU CODEVASF'!E:I,5,FALSE),VLOOKUP(C28,'SINTÉTICO SICRO'!A:D,4,FALSE)),6) -> 1.81 | J28: =TRUNC(_xlfn.IFS(F28="SERV",I28*(1+$L$5),F28="SERV DIF",I28*(1+$L$6),F28="FORN",I28*(1+$L$7)),2) -> 2.23 | K28: 228060 | L28: 280980 | M28: 0.01197783275 | N28: PAVIMENTAÇÃO
B29: 6 | E29: AQUISIÇÃO E TRANSPORTE DO MATERIAL BETUMINOSO | K29: =SUM(K30:K35) -> 4749012.07 | L29: =SUM(L30:L35) -> 5461349.32 | M29: 0.2328106226 | P29: OBRAS COMPLEMENTARES | R29: =(SUMIF(N:N,"OBRAS COMPLEMENTARES",M:M)) -> 0
B30: 6.1 | C30: CPU-13 | D30: CODEVASF | E30: AQUISIÇÃO DE CIMENTO ASFALTICO CAP 50/70 | F30: FORN | G30: t | H30: =' CONSUMO DE MAT. B TOTAL'!P13 -> 838.4 | I30: =ROUND(IF(D30="CODEVASF",VLOOKUP(C30,'CPU CODEVASF'!E:I,5,FALSE),VLOOKUP(D30,'SINTÉTICO SICRO'!A:D,4,FALSE)),6) -> 4430.94547 | J30: =TRUNC(_xlfn.IFS(F30="SERV",I30*(1+$L$5),F30="SERV DIF",I30*(1+$L$6),F30="FORN",I30*(1+$L$7)),2) -> 5095.58 | K30: =TRUNC(H30*I30,2) -> 3714904.68 | L30: =TRUNC(H30*J30,2) -> 4272134.27 | M30: 0.1821158437 | N30: PAVIMENTAÇÃO | P30: MOBILIZAÇÃO | R30: =(SUMIF(N:N,"MOBILIZAÇÃO",M:M)) -> 0
B31: 6.2 | C31: CPU-17 | D31: CODEVASF | E31: TRANSPORTE CAP 50/70 | F31: FORN | G31: t | H31: =' CONSUMO DE MAT. B TOTAL'!P13 -> 838.4 | I31: =ROUND(IF(D31="CODEVASF",VLOOKUP(C31,'CPU CODEVASF'!E:I,5,FALSE),VLOOKUP(D31,'SINTÉTICO SICRO'!A:D,4,FALSE)),6) -> 422.659542 | J31: =TRUNC(_xlfn.IFS(F31="SERV",I31*(1+$L$5),F31="SERV DIF",I31*(1+$L$6),F31="FORN",I31*(1+$L$7)),2) -> 486.05 | K31: 354357.76 | L31: 407504.32 | M31: 0.01737140931 | N31: PAVIMENTAÇÃO | P31: INCC | Q31: =(SUMIF(N:N,"INCC",L:L))/$L$61 -> 0.2542687974 | R31: =(SUMIF(N:N,"INCC",L:L)) -> 5964722.35
B32: 6.3 | C32: CPU-14 | D32: CODEVASF | E32: AQUISIÇÃO DE EAI | F32: FORN | G32: t | H32: =' CONSUMO DE MAT. B TOTAL'!P8 -> 163.8 | I32: =ROUND(IF(D32="CODEVASF",VLOOKUP(C32,'CPU CODEVASF'!E:I,5,FALSE),VLOOKUP(D32,'SINTÉTICO SICRO'!A:D,4,FALSE)),6) -> 2726.654786 | J32: =TRUNC(_xlfn.IFS(F32="SERV",I32*(1+$L$5),F32="SERV DIF",I32*(1+$L$6),F32="FORN",I32*(1+$L$7)),2) -> 3135.65 | K32: 446626.05 | L32: 513619.47 | M32: 0.021894968 | N32: PAVIMENTAÇÃO
B33: 6.4 | C33: CPU-18 | D33: CODEVASF | E33: TRANSPORTE DE EAI | F33: FORN | G33: t | H33: =' CONSUMO DE MAT. B TOTAL'!P8 -> 163.8 | I33: =ROUND(IF(D33="CODEVASF",VLOOKUP(C33,'CPU CODEVASF'!E:I,5,FALSE),VLOOKUP(D33,'SINTÉTICO SICRO'!A:D,4,FALSE)),6) -> 206.366984 | J33: =TRUNC(_xlfn.IFS(F33="SERV",I33*(1+$L$5),F33="SERV DIF",I33*(1+$L$6),F33="FORN",I33*(1+$L$7)),2) -> 237.32 | K33: 33802.91 | L33: 38873.01 | M33: 0.001657108734 | N33: PAVIMENTAÇÃO
B34: 6.5 | C34: CPU-15 | D34: CODEVASF | E34: AQUISIÇÃO DE EMULSÃO ASFÁLTICA RR-1C | F34: FORN | G34: t | H34: =' CONSUMO DE MAT. B TOTAL'!P11 -> 56.7 | I34: =ROUND(IF(D34="CODEVASF",VLOOKUP(C34,'CPU CODEVASF'!E:I,5,FALSE),VLOOKUP(D34,'SINTÉTICO SICRO'!A:D,4,FALSE)),6) -> 3308.98895 | J34: =TRUNC(_xlfn.IFS(F34="SERV",I34*(1+$L$5),F34="SERV DIF",I34*(1+$L$6),F34="FORN",I34*(1+$L$7)),2) -> 3805.33 | K34: 187619.67 | L34: 215762.21 | M34: 0.009197678357 | N34: PAVIMENTAÇÃO
B35: 6.6 | C35: CPU-19 | D35: CODEVASF | E35: TRANSPORTE RR-1C | F35: FORN | G35: t | H35: =' CONSUMO DE MAT. B TOTAL'!P11 -> 56.7 | I35: =ROUND(IF(D35="CODEVASF",VLOOKUP(C35,'CPU CODEVASF'!E:I,5,FALSE),VLOOKUP(D35,'SINTÉTICO SICRO'!A:D,4,FALSE)),6) -> 206.366984 | J35: =TRUNC(_xlfn.IFS(F35="SERV",I35*(1+$L$5),F35="SERV DIF",I35*(1+$L$6),F35="FORN",I35*(1+$L$7)),2) -> 237.32 | K35: 11701 | L35: 13456.04 | M35: 0.0005736144799 | N35: PAVIMENTAÇÃO
B36: 7 | E36: SINALIZAÇÃO | K36: =SUM(K37:K40) -> 188379 | L36: =SUM(L37:L40) -> 232398.18 | M36: 0.009906849352
B37: 7.1 | C37: 5213440 | D37: SICRO | E37: Placa de regulamentação em aço D = 0,60 m - película retrorrefletiva tipo I + SI - fornecimento e implantação | F37: SERV | G37: und | H37: ='MC MODULO'!H87 -> 54 | I37: =ROUND(IF(D37="CODEVASF",VLOOKUP(C37,'CPU CODEVASF'!E:I,5,FALSE),VLOOKUP(C37,'SINTÉTICO SICRO'!A:D,4,FALSE)),6) -> 279.08 | J37: =TRUNC(_xlfn.IFS(F37="SERV",I37*(1+$L$5),F37="SERV DIF",I37*(1+$L$6),F37="FORN",I37*(1+$L$7)),2) -> 344.35 | K37: =TRUNC(H37*I37,2) -> 15070.32 | L37: =TRUNC(H37*J37,2) -> 18594.9 | M37: 0.0007926777784 | N37: INCC
B38: 7.2 | C38: 5213464 | D38: SICRO | E38: Placa de advertência em aço, lado de 0,60 m - película retrorrefletiva tipo I + SI - fornecimento e implantação | F38: SERV | G38: und | H38: ='MC MODULO'!H92 -> 54 | I38: =ROUND(IF(D38="CODEVASF",VLOOKUP(C38,'CPU CODEVASF'!E:I,5,FALSE),VLOOKUP(C38,'SINTÉTICO SICRO'!A:D,4,FALSE)),6) -> 279.12 | J38: =TRUNC(_xlfn.IFS(F38="SERV",I38*(1+$L$5),F38="SERV DIF",I38*(1+$L$6),F38="FORN",I38*(1+$L$7)),2) -> 344.4 | K38: 15072.48 | L38: 18597.6 | M38: 0.0007927928761 | N38: INCC
B39: 7.3 | C39: 5213863 | D39: SICRO | E39: Suporte metálico galvanizado para placa de advertência ou regulamentação - lado ou diâmetro de 0,60 m - fornecimento e implantação | F39: SERV | G39: und | H39: ='MC MODULO'!H98 -> 108 | I39: =ROUND(IF(D39="CODEVASF",VLOOKUP(C39,'CPU CODEVASF'!E:I,5,FALSE),VLOOKUP(C39,'SINTÉTICO SICRO'!A:D,4,FALSE)),6) -> 471.65 | J39: =TRUNC(_xlfn.IFS(F39="SERV",I39*(1+$L$5),F39="SERV DIF",I39*(1+$L$6),F39="FORN",I39*(1+$L$7)),2) -> 581.96 | K39: 50938.2 | L39: 62851.68 | M39: 0.002679290024 | N39: INCC
B40: 7.4 | C40: 5213400 | D40: SICRO | E40: Pintura de faixa com tinta acrílica - espessura de 0,4 mm | F40: SERV | G40: m² | H40: ='MC MODULO'!H103+'MC MODULO'!H108 -> 5400 | I40: =ROUND(IF(D40="CODEVASF",VLOOKUP(C40,'CPU CODEVASF'!E:I,5,FALSE),VLOOKUP(C40,'SINTÉTICO SICRO'!A:D,4,FALSE)),6) -> 19.87 | J40: =TRUNC(_xlfn.IFS(F40="SERV",I40*(1+$L$5),F40="SERV DIF",I40*(1+$L$6),F40="FORN",I40*(1+$L$7)),2) -> 24.51 | K40: 107298 | L40: 132354 | M40: 0.005642088674 | N40: INCC
B41: 8 | E41: DRENAGEM | K41: =SUM(K42:K43) -> 1025539.2 | L41: =SUM(L42:L43) -> 1265212.8 | M41: 0.05393446975
B42: 8.1 | C42: 2003943 | D42: SICRO | E42: Meio-fio de concreto - MFC 03 moldado no local com extrusora e concreto usinado - areia e brita comerciais | F42: SERV | G42: m | H42: ='MC MODULO'!H115 -> 36000 | I42: =ROUND(IF(D42="CODEVASF",VLOOKUP(C42,'CPU CODEVASF'!E:I,5,FALSE),VLOOKUP(C42,'SINTÉTICO SICRO'!A:D,4,FALSE)),6) -> 28.24 | J42: =TRUNC(_xlfn.IFS(F42="SERV",I42*(1+$L$5),F42="SERV DIF",I42*(1+$L$6),F42="FORN",I42*(1+$L$7)),2) -> 34.84 | K42: =TRUNC(H42*I42,2) -> 1016640 | L42: =TRUNC(H42*J42,2) -> 1254240 | M42: 0.05346671274 | N42: DRENAGEM
B43: 8.2 | C43: 4915724 | D43: SICRO | E43: Caiação mecanizada com fixador de cal | F43: SERV | G43: m² | H43: ='MC MODULO'!H120 -> 4320 | I43: =ROUND(IF(D43="CODEVASF",VLOOKUP(C43,'CPU CODEVASF'!E:I,5,FALSE),VLOOKUP(C43,'SINTÉTICO SICRO'!A:D,4,FALSE)),6) -> 2.06 | J43: =TRUNC(_xlfn.IFS(F43="SERV",I43*(1+$L$5),F43="SERV DIF",I43*(1+$L$6),F43="FORN",I43*(1+$L$7)),2) -> 2.54 | K43: 8899.2 | L43: 10972.8 | M43: =L43/$L$61 -> 0.0004677570047 | N43: INCC
B44: 9 | E44: SERVIÇOS COMPLEMENTARES | K44: =SUM(K45:K45) -> 29534.61 | L44: =SUM(L45:L45) -> 36432 | M44: 0.001553051472
B45: 9.1 | C45: CPU-12 | D45: Codevasf | E45: Conserto de quebra no ramal na rua sem pavimento com fornecimento de material hidráulico | F45: SERV | G45: m | H45: ='MC MODULO'!H127 -> 1800 | I45: =ROUND(IF(D45="CODEVASF",VLOOKUP(C45,'CPU CODEVASF'!E:I,5,FALSE),VLOOKUP(C45,'SINTÉTICO SICRO'!A:D,4,FALSE)),6) -> 16.40812 | J45: =TRUNC(_xlfn.IFS(F45="SERV",I45*(1+$L$5),F45="SERV DIF",I45*(1+$L$6),F45="FORN",I45*(1+$L$7)),2) -> 20.24 | K45: =TRUNC(H45*I45,2) -> 29534.61 | L45: =TRUNC(H45*J45,2) -> 36432 | M45: 0.001553051472 | N45: INCC
B46: 10 | E46: PROJETO EXECUTIVO | K46: =SUM(K47:K47) -> 223020 | L46: =SUM(L47:L47) -> 274680 | M46: 0.01170927148
B47: 10.1 | C47: CPU.7 | D47: Codevasf | E47: Projeto Executivo | F47: SERV | G47: m² | H47: ='MC MODULO'!H134 -> 126000 | I47: ='Projeto Executivo'!G26 -> 1.77 | J47: =TRUNC(_xlfn.IFS(F47="SERV",I47*(1+$L$5),F47="SERV DIF",I47*(1+$L$6),F47="FORN",I47*(1+$L$7)),2) -> 2.18 | K47: =TRUNC(H47*I47,2) -> 223020 | L47: =TRUNC(H47*J47,2) -> 274680 | M47: 0.01170927148 | N47: INCC
B48: 11 | E48: MOMENTO DE TRANSPORTE | K48: =SUM(K49:K60) -> 2465900.84 | L48: =SUM(L49:L60) -> 3035385.23 | M48: 0.1293947491
B49: 11.1 | C49: 5914359 | D49: SICRO | E49: =VLOOKUP(C49,'SINTÉTICO SICRO'!$A$4:$D$1048576,2,0) -> Transporte com caminhão basculante de 10 m³ - rodovia em leito natural | F49: SERV | G49: tkm | H49: =SUMIF('MOMENTO DE TRANSPORTE - PRINC'!A:A,'RESUMO MODULO TOTAL'!C49,'MOMENTO DE TRANSPORTE - PRINC'!K:K)+SUMIF('MOMENTO DE TRANSPORTE - AUX'!A:A,'RESUMO MODULO TOTAL'!C49,'MOMENTO DE TRANSPORTE - AUX'!K:K) -> 275017.9068 | I49: =ROUND(IF(D49="CODEVASF",VLOOKUP(C49,'CPU CODEVASF'!E:I,5,FALSE),VLOOKUP(C49,'SINTÉTICO SICRO'!A:D,4,FALSE)),6) -> 1.26 | J49: =TRUNC(_xlfn.IFS(F49="SERV",I49*(1+$L$5),F49="SERV DIF",I49*(1+$L$6),F49="FORN",I49*(1+$L$7)),2) -> 1.55 | K49: =TRUNC(H49*I49,2) -> 346522.56 | L49: =TRUNC(H49*J49,2) -> 426277.75 | M49: 0.01817169761 | N49: PAVIMENTAÇÃO
B50: 11.2 | C50: 5914374 | D50: SICRO | E50: =VLOOKUP(C50,'SINTÉTICO SICRO'!$A$4:$D$1048576,2,0) -> Transporte com caminhão basculante de 10 m³ - rodovia em revestimento primário | F50: SERV | G50: tkm | H50: =SUMIF('MOMENTO DE TRANSPORTE - PRINC'!A:A,'RESUMO MODULO TOTAL'!C50,'MOMENTO DE TRANSPORTE - PRINC'!K:K)+SUMIF('MOMENTO DE TRANSPORTE - AUX'!A:A,'RESUMO MODULO TOTAL'!C50,'MOMENTO DE TRANSPORTE - AUX'!K:K) -> 275017.9068 | I50: =ROUND(IF(D50="CODEVASF",VLOOKUP(C50,'CPU CODEVASF'!E:I,5,FALSE),VLOOKUP(C50,'SINTÉTICO SICRO'!A:D,4,FALSE)),6) -> 1.01 | J50: =TRUNC(_xlfn.IFS(F50="SERV",I50*(1+$L$5),F50="SERV DIF",I50*(1+$L$6),F50="FORN",I50*(1+$L$7)),2) -> 1.24 | K50: 277768.08 | L50: 341022.2 | M50: 0.01453735809 | N50: PAVIMENTAÇÃO
B51: 11.3 | C51: 5914389 | D51: SICRO | E51: =VLOOKUP(C51,'SINTÉTICO SICRO'!$A$4:$D$1048576,2,0) -> Transporte com caminhão basculante de 10 m³ - rodovia pavimentada | F51: SERV | G51: tkm | H51: =SUMIF('MOMENTO DE TRANSPORTE - PRINC'!A:A,'RESUMO MODULO TOTAL'!C51,'MOMENTO DE TRANSPORTE - PRINC'!K:K)+SUMIF('MOMENTO DE TRANSPORTE - AUX'!A:A,'RESUMO MODULO TOTAL'!C51,'MOMENTO DE TRANSPORTE - AUX'!K:K) -> 2200143.254 | I51: =ROUND(IF(D51="CODEVASF",VLOOKUP(C51,'CPU CODEVASF'!E:I,5,FALSE),VLOOKUP(C51,'SINTÉTICO SICRO'!A:D,4,FALSE)),6) -> 0.82 | J51: =TRUNC(_xlfn.IFS(F51="SERV",I51*(1+$L$5),F51="SERV DIF",I51*(1+$L$6),F51="FORN",I51*(1+$L$7)),2) -> 1.01 | K51: 1804117.46 | L51: 2222144.68 | M51: 0.09472730201 | N51: PAVIMENTAÇÃO
B52: 11.4 | C52: 5914449 | D52: SICRO | E52: =VLOOKUP(C52,'SINTÉTICO SICRO'!$A$4:$D$1048576,2,0) -> Transporte com caminhão carroceria de 15 t - rodovia em leito natural | F52: SERV | G52: tkm | H52: =SUMIF('MOMENTO DE TRANSPORTE - PRINC'!A:A,'RESUMO MODULO TOTAL'!C52,'MOMENTO DE TRANSPORTE - PRINC'!K:K)+SUMIF('MOMENTO DE TRANSPORTE - AUX'!A:A,'RESUMO MODULO TOTAL'!C52,'MOMENTO DE TRANSPORTE - AUX'!K:K) -> 0 | I52: =ROUND(IF(D52="CODEVASF",VLOOKUP(C52,'CPU CODEVASF'!E:I,5,FALSE),VLOOKUP(C52,'SINTÉTICO SICRO'!A:D,4,FALSE)),6) -> 1.11 | J52: =TRUNC(_xlfn.IFS(F52="SERV",I52*(1+$L$5),F52="SERV DIF",I52*(1+$L$6),F52="FORN",I52*(1+$L$7)),2) -> 1.36 | K52: 0 | L52: 0 | M52: 0 | N52: PAVIMENTAÇÃO
B53: 11.5 | C53: 5914464 | D53: SICRO | E53: =VLOOKUP(C53,'SINTÉTICO SICRO'!$A$4:$D$1048576,2,0) -> Transporte com caminhão carroceria de 15 t - rodovia em revestimento primário | F53: SERV | G53: tkm | H53: =SUMIF('MOMENTO DE TRANSPORTE - PRINC'!A:A,'RESUMO MODULO TOTAL'!C53,'MOMENTO DE TRANSPORTE - PRINC'!K:K)+SUMIF('MOMENTO DE TRANSPORTE - AUX'!A:A,'RESUMO MODULO TOTAL'!C53,'MOMENTO DE TRANSPORTE - AUX'!K:K) -> 0 | I53: =ROUND(IF(D53="CODEVASF",VLOOKUP(C53,'CPU CODEVASF'!E:I,5,FALSE),VLOOKUP(C53,'SINTÉTICO SICRO'!A:D,4,FALSE)),6) -> 0.89 | J53: =TRUNC(_xlfn.IFS(F53="SERV",I53*(1+$L$5),F53="SERV DIF",I53*(1+$L$6),F53="FORN",I53*(1+$L$7)),2) -> 1.09 | K53: 0 | L53: 0 | M53: 0 | N53: PAVIMENTAÇÃO
B54: 11.6 | C54: 5914479 | D54: SICRO | E54: =VLOOKUP(C54,'SINTÉTICO SICRO'!$A$4:$D$1048576,2,0) -> Transporte com caminhão carroceria de 15 t - rodovia pavimentada | F54: SERV | G54: tkm | H54: =SUMIF('MOMENTO DE TRANSPORTE - PRINC'!A:A,'RESUMO MODULO TOTAL'!C54,'MOMENTO DE TRANSPORTE - PRINC'!K:K)+SUMIF('MOMENTO DE TRANSPORTE - AUX'!A:A,'RESUMO MODULO TOTAL'!C54,'MOMENTO DE TRANSPORTE - AUX'!K:K) -> 0 | I54: =ROUND(IF(D54="CODEVASF",VLOOKUP(C54,'CPU CODEVASF'!E:I,5,FALSE),VLOOKUP(C54,'SINTÉTICO SICRO'!A:D,4,FALSE)),6) -> 0.72 | J54: =TRUNC(_xlfn.IFS(F54="SERV",I54*(1+$L$5),F54="SERV DIF",I54*(1+$L$6),F54="FORN",I54*(1+$L$7)),2) -> 0.88 | K54: 0 | L54: 0 | M54: 0 | N54: PAVIMENTAÇÃO
B55: 11.7 | C55: 5914364 | D55: SICRO | E55: =VLOOKUP(C55,'SINTÉTICO SICRO'!$A$4:$D$1048576,2,0) -> Transporte de cimento ou cal hidratada a granel com caminhão silo de 30 m³ - rodovia em leito natural | F55: SERV | G55: tkm | H55: =SUMIF('MOMENTO DE TRANSPORTE - PRINC'!A:A,'RESUMO MODULO TOTAL'!C55,'MOMENTO DE TRANSPORTE - PRINC'!K:K)+SUMIF('MOMENTO DE TRANSPORTE - AUX'!A:A,'RESUMO MODULO TOTAL'!C55,'MOMENTO DE TRANSPORTE - AUX'!K:K) -> 0 | I55: =ROUND(IF(D55="CODEVASF",VLOOKUP(C55,'CPU CODEVASF'!E:I,5,FALSE),VLOOKUP(C55,'SINTÉTICO SICRO'!A:D,4,FALSE)),6) -> 0.98 | J55: =TRUNC(_xlfn.IFS(F55="SERV",I55*(1+$L$5),F55="SERV DIF",I55*(1+$L$6),F55="FORN",I55*(1+$L$7)),2) -> 1.2 | K55: =TRUNC(H55*I55,2) -> 0 | L55: =TRUNC(H55*J55,2) -> 0 | M55: 0 | N55: PAVIMENTAÇÃO
B56: 11.8 | C56: 5914365 | D56: SICRO | E56: =VLOOKUP(C56,'SINTÉTICO SICRO'!$A$4:$D$1048576,2,0) -> Transporte de cimento ou cal hidratada a granel com caminhão silo de 30 m³ - rodovia em revestimento primário | F56: SERV | G56: tkm | H56: =SUMIF('MOMENTO DE TRANSPORTE - PRINC'!A:A,'RESUMO MODULO TOTAL'!C56,'MOMENTO DE TRANSPORTE - PRINC'!K:K)+SUMIF('MOMENTO DE TRANSPORTE - AUX'!A:A,'RESUMO MODULO TOTAL'!C56,'MOMENTO DE TRANSPORTE - AUX'!K:K) -> 0 | I56: =ROUND(IF(D56="CODEVASF",VLOOKUP(C56,'CPU CODEVASF'!E:I,5,FALSE),VLOOKUP(C56,'SINTÉTICO SICRO'!A:D,4,FALSE)),6) -> 0.78 | J56: =TRUNC(_xlfn.IFS(F56="SERV",I56*(1+$L$5),F56="SERV DIF",I56*(1+$L$6),F56="FORN",I56*(1+$L$7)),2) -> 0.96 | K56: 0 | L56: 0 | M56: 0 | N56: PAVIMENTAÇÃO
B57: 11.9 | C57: 5914366 | D57: SICRO | E57: =VLOOKUP(C57,'SINTÉTICO SICRO'!$A$4:$D$1048576,2,0) -> Transporte de cimento ou cal hidratada a granel com caminhão silo de 30 m³ - rodovia pavimentada | F57: SERV | G57: tkm | H57: =SUMIF('MOMENTO DE TRANSPORTE - PRINC'!A:A,'RESUMO MODULO TOTAL'!C57,'MOMENTO DE TRANSPORTE - PRINC'!K:K)+SUMIF('MOMENTO DE TRANSPORTE - AUX'!A:A,'RESUMO MODULO TOTAL'!C57,'MOMENTO DE TRANSPORTE - AUX'!K:K) -> 0 | I57: =ROUND(IF(D57="CODEVASF",VLOOKUP(C57,'CPU CODEVASF'!E:I,5,FALSE),VLOOKUP(C57,'SINTÉTICO SICRO'!A:D,4,FALSE)),6) -> 0.68 | J57: =TRUNC(_xlfn.IFS(F57="SERV",I57*(1+$L$5),F57="SERV DIF",I57*(1+$L$6),F57="FORN",I57*(1+$L$7)),2) -> 0.83 | K57: 0 | L57: 0 | M57: 0 | N57: PAVIMENTAÇÃO
B58: 11.10 | C58: 5914539 | D58: SICRO | E58: =VLOOKUP(C58,'SINTÉTICO SICRO'!$A$4:$D$1048576,2,0) -> Transporte com caminhão betoneira - rodovia em leito natural | F58: SERV | G58: tkm | H58: =SUMIF('MOMENTO DE TRANSPORTE - PRINC'!A:A,'RESUMO MODULO TOTAL'!C58,'MOMENTO DE TRANSPORTE - PRINC'!K:K)+SUMIF('MOMENTO DE TRANSPORTE - AUX'!A:A,'RESUMO MODULO TOTAL'!C58,'MOMENTO DE TRANSPORTE - AUX'!K:K) -> 4354.56 | I58: =ROUND(IF(D58="CODEVASF",VLOOKUP(C58,'CPU CODEVASF'!E:I,5,FALSE),VLOOKUP(C58,'SINTÉTICO SICRO'!A:D,4,FALSE)),6) -> 1.23 | J58: =TRUNC(_xlfn.IFS(F58="SERV",I58*(1+$L$5),F58="SERV DIF",I58*(1+$L$6),F58="FORN",I58*(1+$L$7)),2) -> 1.51 | K58: 5356.1 | L58: 6575.38 | M58: 0.000280300384 | N58: PAVIMENTAÇÃO
B59: 11.11 | C59: 5914554 | D59: SICRO | E59: =VLOOKUP(C59,'SINTÉTICO SICRO'!$A$4:$D$1048576,2,0) -> Transporte com caminhão betoneira - rodovia em revestimento primário | F59: SERV | G59: tkm | H59: =SUMIF('MOMENTO DE TRANSPORTE - PRINC'!A:A,'RESUMO MODULO TOTAL'!C59,'MOMENTO DE TRANSPORTE - PRINC'!K:K)+SUMIF('MOMENTO DE TRANSPORTE - AUX'!A:A,'RESUMO MODULO TOTAL'!C59,'MOMENTO DE TRANSPORTE - AUX'!K:K) -> 4354.56 | I59: =ROUND(IF(D59="CODEVASF",VLOOKUP(C59,'CPU CODEVASF'!E:I,5,FALSE),VLOOKUP(C59,'SINTÉTICO SICRO'!A:D,4,FALSE)),6) -> 0.98 | J59: =TRUNC(_xlfn.IFS(F59="SERV",I59*(1+$L$5),F59="SERV DIF",I59*(1+$L$6),F59="FORN",I59*(1+$L$7)),2) -> 1.2 | K59: 4267.46 | L59: 5225.47 | M59: 0.0002227553765 | N59: PAVIMENTAÇÃO
B60: 11.12 | C60: 5914569 | D60: SICRO | E60: =VLOOKUP(C60,'SINTÉTICO SICRO'!$A$4:$D$1048576,2,0) -> Transporte com caminhão betoneira - rodovia pavimentada | F60: SERV | G60: tkm | H60: =SUMIF('MOMENTO DE TRANSPORTE - PRINC'!A:A,'RESUMO MODULO TOTAL'!C60,'MOMENTO DE TRANSPORTE - PRINC'!K:K)+SUMIF('MOMENTO DE TRANSPORTE - AUX'!A:A,'RESUMO MODULO TOTAL'!C60,'MOMENTO DE TRANSPORTE - AUX'!K:K) -> 34836.48 | I60: =ROUND(IF(D60="CODEVASF",VLOOKUP(C60,'CPU CODEVASF'!E:I,5,FALSE),VLOOKUP(C60,'SINTÉTICO SICRO'!A:D,4,FALSE)),6) -> 0.8 | J60: =TRUNC(_xlfn.IFS(F60="SERV",I60*(1+$L$5),F60="SERV DIF",I60*(1+$L$6),F60="FORN",I60*(1+$L$7)),2) -> 0.98 | K60: 27869.18 | L60: 34139.75 | M60: 0.001455335666 | N60: PAVIMENTAÇÃO
B61: TOTAL GERAL DA OBRA COM BDI | K61: =SUM(K10,K13,K17,K19,K22,K36,K41,K44,K46,K48) -> 14594787.18 | L61: =SUM(L10,L13,L17,L19,L22,L29,L36,L41,L44,L46,L48) -> 23458333.9
B64: CONTRATAÇÃO DE SERVIÇOS DE PAVIMENTAÇÃO ASFÁLTICA COM CONCRETO BETUMINOSO USINADO A QUENTE (CBUQ) EM VIAS DE DIVERSOS MUNICÍPIOS INSERIDOS NA ÁREA DE ATUAÇÃO DA 16ª SUPERINTENDÊNCIA REGIONAL DA CODEVASF, NO ESTADO DE MINAS GERAIS - REGIÃO TRIÂNGULO E ALTO DO SÃO FRANCISCO

Sheet CRONOGRAMA TOTAL
A2: ='RESUMO MODULO TOTAL'!B64 -> CONTRATAÇÃO DE SERVIÇOS DE PAVIMENTAÇÃO ASFÁLTICA COM CONCRETO BETUMINOSO USINADO A QUENTE (CBUQ) EM VIAS DE DIVERSOS MUNICÍPIOS INSERIDOS NA ÁREA DE ATUAÇÃO DA 16ª SUPERINTENDÊNCIA REGIONAL DA CODEVASF, NO ESTADO DE MINAS GERAIS - REGIÃO TRIÂNGULO E ALTO DO SÃO FRANCISCO
A3: Cronograma Físico e Financeiro
A4: Item | B4: Descrição | C4: Total Por Etapa | D4: 30 DIAS | E4: 60 DIAS | F4: 90 DIAS | G4: 120 DIAS | H4: 150 DIAS | I4: 180 DIAS | J4: 210 DIAS | K4: 240 DIAS | L4: 270 DIAS | M4: 300 DIAS | N4: 330 DIAS | O4: 360 DIAS
B5: ='RESUMO MODULO TOTAL'!E10 -> SERVIÇOS PRELIMINARES | C5: =SUM(D5:O5) -> 1 | G5: 0.5 | O5: 0.5
C6: ='RESUMO MODULO TOTAL'!L10 -> 2391379.2 | D6: =$C$6*D5 -> 0 | G6: =$C$6*G5 -> 1195689.6 | O6: =$C$6*O5 -> 1195689.6 | P6: =SUM(D6:O6) -> 2391379.2 | Q6: =IF(P6=C6,"OK","") -> OK
B7: ='RESUMO MODULO TOTAL'!E13 -> INSTALAÇÃO DE CANTEIRO | C7: =SUM(D7:O7) -> 1 | G7: 0.1 | H7: 0.5 | I7: 0.4
C8: ='RESUMO MODULO TOTAL'!L13 -> 1690933.77 | D8: =$C$8*D7 -> 0 | E8: =$C$8*E7 -> 0 | F8: 0 | G8: 169093.377 | H8: 845466.885 | I8: 676373.508 | J8: 0 | K8: 0 | L8: 0 | M8: 0 | N8: 0 | O8: 0 | P8: =SUM(D8:O8) -> 1690933.77 | Q8: =IF(P8=C8,"OK","") -> OK
B9: ='RESUMO MODULO TOTAL'!E17 -> ADMINISTRAÇÃO LOCAL DA OBRA | C9: =SUM(D9:O9) -> 1 | D9: =(D6+D8+D12+D14+D16+D18+D20+D22+D24+D26)/($O$33-$C$10) -> 0.004344158597 | E9: 0.004344158597 | F9: 0.01743946753 | G9: 0.08231068497 | H9: 0.05966762736 | I9: 0.153709062 | J9: 0.1154649055 | K9: 0.1085401572 | L9: 0.1085401572 | M9: 0.1085401572 | N9: 0.1371255504 | O9: =(O6+O8+O12+O14+O16+O18+O20+O22+O24+O26)/($O$33-$C$10) -> 0.09997391334
C10: ='RESUMO MODULO TOTAL'!L17 -> 1327926.4 | D10: =$C$10*D9 -> 5768.722887 | E10: =$C$10*E9 -> 5768.722887 | F10: =$C$10*F9 -> 23158.32933 | G10: 109302.5316 | H10: 79234.21759 | I10: 204114.3214 | J10: 153328.8962 | K10: 144133.3402 | L10: 144133.3402 | M10: 144133.3402 | N10: 182092.6385 | O10: 132757.9988 | P10: =SUM(D10:O10) -> 1327926.4 | Q10: =IF(P10=C10,"OK","") -> OK
B11: ='RESUMO MODULO TOTAL'!E19 -> TERRAPLANAGEM | C11: =SUM(D11:O11) -> 1 | G11: =1/4 -> 0.25 | H11: =1/4 -> 0.25 | I11: =1/4 -> 0.25 | J11: 0.25
C12: ='RESUMO MODULO TOTAL'!L19 -> 612990 | D12: =$C$14*D11 -> 0 | E12: =$C$12*E11 -> 0 | F12: 0 | G12: 153247.5 | H12: 153247.5 | I12: 153247.5 | J12: 153247.5 | K12: 0 | L12: 0 | M12: 0 | N12: 0 | O12: 0 | P12: =SUM(D12:O12) -> 612990 | Q12: =IF(P12=C12,"OK","") -> OK
B13: ='RESUMO MODULO TOTAL'!E22 -> PAVIMENTAÇÃO | C13: =SUM(D13:O13) -> 1 | I13: =1/6 -> 0.1666666667 | J13: =1/6 -> 0.1666666667 | K13: 0.1666666667 | L13: 0.1666666667 | M13: 0.1666666667 | N13: 0.1666666667
C14: ='RESUMO MODULO TOTAL'!L22 -> 7129647 | D14: =$C$14*D13 -> 0 | E14: =$C$14*E13 -> 0 | F14: 0 | G14: 0 | H14: 0 | I14: 1188274.5 | J14: 1188274.5 | K14: 1188274.5 | L14: 1188274.5 | M14: 1188274.5 | N14: 1188274.5 | O14: 0 | P14: =SUM(D14:O14) -> 7129647 | Q14: =IF(P14=C14,"OK","") -> OK
B15: ='RESUMO MODULO TOTAL'!E29 -> AQUISIÇÃO E TRANSPORTE DO MATERIAL BETUMINOSO | C15: =SUM(D15:O15) -> 1 | I15: =1/6 -> 0.1666666667 | J15: 0.1666666667 | K15: 0.1666666667 | L15: 0.1666666667 | M15: 0.1666666667 | N15: 0.1666666667
C16: ='RESUMO MODULO TOTAL'!L29 -> 5461349.32 | D16: =$C$16*D15 -> 0 | E16: =$C$16*E15 -> 0 | F16: 0 | G16: 0 | H16: 0 | I16: 910224.8867 | J16: 910224.8867 | K16: 910224.8867 | L16: 910224.8867 | M16: 910224.8867 | N16: 910224.8867 | O16: 0 | P16: =SUM(D16:O16) -> 5461349.32 | Q16: =IF(P16=C16,"OK","") -> OK
B17: ='RESUMO MODULO TOTAL'!E36 -> SINALIZAÇÃO | C17: =SUM(D17:O17) -> 1 | O17: 1
C18: ='RESUMO MODULO TOTAL'!L36 -> 232398.18 | D18: =$C$18*D17 -> 0 | E18: =$C$18*E17 -> 0 | F18: 0 | G18: 0 | H18: 0 | I18: 0 | J18: 0 | K18: 0 | L18: 0 | M18: 0 | N18: 0 | O18: 232398.18 | P18: =SUM(D18:O18) -> 232398.18 | Q18: =IF(P18=C18,"OK","") -> OK
B19: ='RESUMO MODULO TOTAL'!E41 -> DRENAGEM | C19: =SUM(D19:O19) -> 1 | N19: 0.5 | O19: 0.5
C20: ='RESUMO MODULO TOTAL'!L41 -> 1265212.8 | D20: =$C$20*D19 -> 0 | E20: =$C$20*E19 -> 0 | F20: 0 | G20: 0 | H20: 0 | I20: 0 | J20: 0 | K20: 0 | L20: 0 | M20: 0 | N20: 632606.4 | O20: 632606.4 | P20: =SUM(D20:O20) -> 1265212.8 | Q20: =IF(P20=C20,"OK","") -> OK
B21: ='RESUMO MODULO TOTAL'!E44 -> SERVIÇOS COMPLEMENTARES | C21: =SUM(D21:O21) -> 1 | H21: 0.5 | I21: 0.5
C22: ='RESUMO MODULO TOTAL'!L44 -> 36432 | D22: =$C$22*D21 -> 0 | E22: =$C$22*E21 -> 0 | F22: 0 | G22: 0 | H22: 18216 | I22: 18216 | J22: 0 | K22: 0 | L22: 0 | M22: 0 | N22: 0 | O22: 0 | P22: =SUM(D22:O22) -> 36432 | Q22: =IF(P22=C22,"OK","") -> OK
B23: ='RESUMO MODULO TOTAL'!E46 -> PROJETO EXECUTIVO | C23: =SUM(D23:O23) -> 1 | D23: 0.35 | E23: 0.35 | F23: 0.3
C24: ='RESUMO MODULO TOTAL'!L46 -> 274680 | D24: =$C$24*D23 -> 96138 | E24: =$C$24*E23 -> 96138 | F24: 82404 | G24: 0 | H24: 0 | I24: 0 | J24: 0 | K24: 0 | L24: 0 | M24: 0 | N24: 0 | O24: 0 | P24: =SUM(D24:O24) -> 274680 | Q24: =IF(P24=C24,"OK","") -> OK
B25: ='RESUMO MODULO TOTAL'!E48 -> MOMENTO DE TRANSPORTE | C25: =SUM(D25:O25) -> 1 | F25: 0.1 | G25: 0.1 | H25: 0.1 | I25: 0.15 | J25: 0.1 | K25: 0.1 | L25: 0.1 | M25: 0.1 | N25: 0.1 | O25: 0.05
C26: ='RESUMO MODULO TOTAL'!L48 -> 3035385.23 | D26: =$C$26*D25 -> 0 | E26: =$C$26*E25 -> 0 | F26: 303538.523 | G26: 303538.523 | H26: 303538.523 | I26: 455307.7845 | J26: 303538.523 | K26: 303538.523 | L26: 303538.523 | M26: 303538.523 | N26: 303538.523 | O26: 151769.2615 | P26: =SUM(D26:O26) -> 3035385.23 | Q26: =IF(P26=C26,"OK","") -> OK
A28: Porcentagem | D28: =SUM(D6+D8+D10+D12+D14+D16+D18+D20+D22+D24+D26)/$O$33 -> 0.004344158597 | E28: =SUM(E6+E8+E10+E12+E14+E16+E18+E20+E22+E24+E26)/$O$33 -> 0.004344158597 | F28: 0.01743946753 | G28: 0.08231068497 | H28: 0.05966762736 | I28: 0.153709062 | J28: 0.1154649055 | K28: 0.1085401572 | L28: 0.1085401572 | M28: 0.1085401572 | N28: 0.1371255504 | O28: =SUM(O6+O8+O10+O12+O14+O16+O18+O20+O22+O24+O26)/$O$33 -> 0.09997391334
A29: Custo | D29: =$O$33*D28 -> 101906.7229 | E29: =$O$33*E28 -> 101906.7229 | F29: =$O$33*F28 -> 409100.8523 | G29: 1930871.532 | H29: 1399703.126 | I29: 3605758.501 | J29: 2708614.306 | K29: 2546171.25 | L29: 2546171.25 | M29: 2546171.25 | N29: 3216736.948 | O29: 2345221.44
A30: Porcentagem Acumulado | D30: =D28 -> 0.004344158597 | E30: =D30+E28 -> 0.008688317194 | F30: =E30+F28 -> 0.02612778472 | G30: 0.1084384697 | H30: 0.1681060971 | I30: 0.3218151591 | J30: 0.4372800645 | K30: 0.5458202218 | L30: 0.654360379 | M30: 0.7629005362 | N30: 0.9000260867 | O30: =N30+O28 -> 1
A31: Custo Acumulado | D31: =D29 -> 101906.7229 | E31: =D31+E29 -> 203813.4458 | F31: 612914.2981 | G31: 2543785.83 | H31: 3943488.955 | I31: 7549247.456 | J31: 10257861.76 | K31: 12804033.01 | L31: 15350204.26 | M31: 17896375.51 | N31: 21113112.46 | O31: =(N31+O29) -> 23458333.9
D33: Total Geral | N33: R$ | O33: =(C6+C8+C10+C12+C14+C16+C18+C20+C22+C24+C26) -> 23458333.9
O36: =O31-O33 -> 0

Sheet CONSUMO DE MAT. B TOTAL
B3: CONSUMO DO MATERIAL BETUMINOSO TOTAL
B5: TRECHO | D5: QUANTIDADES | M5: MAT. BETUMINOSO
B6: Inicio (km) | C6: Fim (km) | D6: Extensão (m) | E6: Largura (m) | F6: Espess. (m) | G6: Área (m2) | H6: Volume (m3) | I6: Densidade (t/m3) | J6: Massa (t) | K6: Unid | L6: Quant. | M6: Tipo | N6: Consumo Taxa de Aplicação | O6: Unid. | P6: Quant.
B7: IMPRIMAÇÃO
F8: 1 | G8: ='MC MODULO'!H57 -> 126000 | M8: EAI | N8: 1,3 l/m2 | O8: t | P8: =ROUND((G8*1.3)/1000,2) -> 163.8
F9: 1 | H9: =G9*F9 -> 0 | M9: CM-30 | N9: 1,2 l/m2 | O9: t | P9: =ROUND((G9*1.2)/1000,2) -> 0
B10: PINTURA DE LIGAÇÃO
F11: 1 | G11: ='MC MODULO'!H63 -> 126000 | H11: =G11*F11 -> 126000 | M11: RR-1C | N11: 0,45 l/m2 | O11: t | P11: =ROUND((G11*0.45)/1000,2) -> 56.7
B12: CBUQ FAIXA "C"
H13: =G13*F13 -> 0 | J13: ='MC MODULO'!H51 -> 15120 | M13: CAP-50/70 | N13: 55,45 t/m3 | O13: t | P13: =ROUND((J13*55.45)/1000,2) -> 838.4
B14: CBUQ FAIXA "B"
H15: =G15*F15 -> 0 | M15: CAP-50/70 | N15: 56,60 t/m3 | O15: t | P15: =ROUND((J15*56.6)/1000,2) -> 0
H17: =G17*F17 -> 0

Sheet Mob
A4: =#REF! -> 
A5: MOBILIZAÇÃO/DESMOBILIZAÇÃO (MOB) | F5: Frentes de serviços | H5: ='MC MODULO'!G1 -> 9
F6: Distância da Capital ao Canteiro: | H6: 360 | I6: Fica a cargo de cada SR colocar a distancia adequada de acordo com o historico de mobilização
F8: Velocidade média de transporte (pavim.): | H8: 60
A10: Transporte dos equipamentos
A11: CODIGO | B11: EQUIPAMENTO | C11: VEÍCULO TRANSPORTADOR | D11: QTDE | E11: K | F11: FU | G11: CUSTO DO TRANSPORTE
G12: (R$/h) | H12: (R$)/km
A13: E9524 | B13: =VLOOKUP(A13,Equipamentos!$A:$K,2,FALSE) -> Motoniveladora - 93 kW | C13: =IFERROR(INDEX('Tabelas 2 e 3 mob'!A:K,MATCH(A13,'Tabelas 2 e 3 mob'!A:A,0),9),"ERRO") -> E9665 | D13: 1 | E13: 2 | F13: 1 | G13: =IF(C13="Veículo(s) da própria frota.",0,INDEX(Equipamentos!B:K,MATCH(C13,Equipamentos!A:A,0),9)) -> 422.6932 | H13: =((D13*E13*F13)/$H$8)*G13 -> 14.08977333
A14: E9526 | B14: =VLOOKUP(A14,Equipamentos!$A:$K,2,FALSE) -> Retroescavadeira de pneus - capacidade da caçamba da pá-carregadeira de 0,76 m³ e da retroescavadeira de 0,29 m³ - 58 kW | C14: =IFERROR(INDEX('Tabelas 2 e 3 mob'!A:K,MATCH(A14,'Tabelas 2 e 3 mob'!A:A,0),9),"ERRO") -> E9665 | D14: 1 | E14: 2 | F14: 1 | G14: =IF(C14="Veículo(s) da própria frota.",0,INDEX(Equipamentos!B:K,MATCH(C14,Equipamentos!A:A,0),9)) -> 422.6932 | H14: =((D14*E14*F14)/$H$8)*G14 -> 14.08977333
A15: E9577 | B15: =VLOOKUP(A15,Equipamentos!$A:$K,2,FALSE) -> Trator agrícola sobre pneus - 77 kW | C15: =IFERROR(INDEX('Tabelas 2 e 3 mob'!A:K,MATCH(A15,'Tabelas 2 e 3 mob'!A:A,0),9),"ERRO") -> E9665 | D15: 1 | E15: 2 | F15: 0.5 | G15: =IF(C15="Veículo(s) da própria frota.",0,INDEX(Equipamentos!B:K,MATCH(C15,Equipamentos!A:A,0),9)) -> 422.6932 | H15: 7.044886667
A16: E9518 | B16: =VLOOKUP(A16,Equipamentos!$A:$K,2,FALSE) -> Grade de 24 discos rebocável de D = 60 cm (24") | C16: =IFERROR(INDEX('Tabelas 2 e 3 mob'!A:K,MATCH(A16,'Tabelas 2 e 3 mob'!A:A,0),9),"ERRO") -> Veículo(s) da própria frota. | D16: 1 | E16: 2 | F16: 0 | G16: =IF(C16="Veículo(s) da própria frota.",0,INDEX(Equipamentos!B:K,MATCH(C16,Equipamentos!A:A,0),9)) -> 0 | H16: 0
A17: E9615 | B17: =VLOOKUP(A17,Equipamentos!$A:$K,2,FALSE) -> Usina misturadora de solos com capacidade de 300 t/h - 44 kW | C17: =IFERROR(INDEX('Tabelas 2 e 3 mob'!A:K,MATCH(A17,'Tabelas 2 e 3 mob'!A:A,0),9),"ERRO") -> E9018 | D17: 1 | E17: 2 | F17: 2 | G17: =IF(C17="Veículo(s) da própria frota.",0,INDEX(Equipamentos!B:K,MATCH(C17,Equipamentos!A:A,0),9)) -> 561.7483 | H17: 37.44988667
A18: E9530 | B18: =VLOOKUP(A18,Equipamentos!$A:$K,2,FALSE) -> Rolo compactador liso vibratório autopropelido por pneus de 11 t - 97 kW | C18: =IFERROR(INDEX('Tabelas 2 e 3 mob'!A:K,MATCH(A18,'Tabelas 2 e 3 mob'!A:A,0),9),"ERRO") -> E9666 | D18: 1 | E18: 2 | F18: 0.5 | G18: =IF(C18="Veículo(s) da própria frota.",0,INDEX(Equipamentos!B:K,MATCH(C18,Equipamentos!A:A,0),9)) -> 471.958 | H18: 7.865966667
A19: E9558 | B19: =VLOOKUP(A19,Equipamentos!$A:$K,2,FALSE) -> Tanque de estocagem de asfalto com capacidade de 30.000 l | C19: =IFERROR(INDEX('Tabelas 2 e 3 mob'!A:K,MATCH(A19,'Tabelas 2 e 3 mob'!A:A,0),9),"ERRO") -> E9665 | D19: 1 | E19: 2 | F19: 1 | G19: =IF(C19="Veículo(s) da própria frota.",0,INDEX(Equipamentos!B:K,MATCH(C19,Equipamentos!A:A,0),9)) -> 422.6932 | H19: 14.08977333
A20: E9758 | B20: =VLOOKUP(A20,Equipamentos!$A:$K,2,FALSE) -> Vibroacabadora de asfalto sobre pneus - 97 kW | C20: =IFERROR(INDEX('Tabelas 2 e 3 mob'!A:K,MATCH(A20,'Tabelas 2 e 3 mob'!A:A,0),9),"ERRO") -> E9018 | D20: 1 | E20: 2 | F20: 0.5 | G20: =IF(C20="Veículo(s) da própria frota.",0,INDEX(Equipamentos!B:K,MATCH(C20,Equipamentos!A:A,0),9)) -> 561.7483 | H20: 9.362471667
A21: E9685 | B21: =VLOOKUP(A21,Equipamentos!$A:$K,2,FALSE) -> Rolo compactador pé de carneiro vibratório autopropelido por pneus de 11,6 t - 82 kW | C21: =IFERROR(INDEX('Tabelas 2 e 3 mob'!A:K,MATCH(A21,'Tabelas 2 e 3 mob'!A:A,0),9),"ERRO") -> E9666 | D21: 1 | E21: 2 | F21: 0.5 | G21: =IF(C21="Veículo(s) da própria frota.",0,INDEX(Equipamentos!B:K,MATCH(C21,Equipamentos!A:A,0),9)) -> 471.958 | H21: 7.865966667
A22: E9605 | B22: =VLOOKUP(A22,Equipamentos!$A:$K,2,FALSE) -> Caminhão tanque com capacidade de 6.000 l - 136 kW | C22: =IFERROR(INDEX('Tabelas 2 e 3 mob'!A:K,MATCH(A22,'Tabelas 2 e 3 mob'!A:A,0),9),"ERRO") -> E9605 | D22: 1 | E22: 1 | F22: 1 | G22: =IF(C22="Veículo(s) da própria frota.",0,INDEX(Equipamentos!B:K,MATCH(C22,Equipamentos!A:A,0),9)) -> 277.0816 | H22: 4.618026667
A23: E9579 | B23: =VLOOKUP(A23,Equipamentos!$A:$K,2,FALSE) -> Caminhão basculante com capacidade de 10 m³ - 210 kW | C23: =IFERROR(INDEX('Tabelas 2 e 3 mob'!A:K,MATCH(A23,'Tabelas 2 e 3 mob'!A:A,0),9),"ERRO") -> E9579 | D23: 5 | E23: 1 | F23: 1 | G23: =IF(C23="Veículo(s) da própria frota.",0,INDEX(Equipamentos!B:K,MATCH(C23,Equipamentos!A:A,0),9)) -> 307.4739 | H23: 25.622825
A24: E9509 | B24: =VLOOKUP(A24,Equipamentos!$A:$K,2,FALSE) -> Caminhão tanque distribuidor de asfalto com capacidade de 6.000 l - 7 kW/136 kW | C24: =IFERROR(INDEX('Tabelas 2 e 3 mob'!A:K,MATCH(A24,'Tabelas 2 e 3 mob'!A:A,0),9),"ERRO") -> E9509 | D24: 1 | E24: 1 | F24: 1 | G24: =IF(C24="Veículo(s) da própria frota.",0,INDEX(Equipamentos!B:K,MATCH(C24,Equipamentos!A:A,0),9)) -> 331.9397 | H24: 5.532328333
A25: E9762 | B25: =VLOOKUP(A25,Equipamentos!$A:$K,2,FALSE) -> Rolo compactador de pneus autopropelido de 27 t - 85 kW | C25: =IFERROR(INDEX('Tabelas 2 e 3 mob'!A:K,MATCH(A25,'Tabelas 2 e 3 mob'!A:A,0),9),"ERRO") -> E9666 | D25: 1 | E25: 2 | F25: 0.5 | G25: =IF(C25="Veículo(s) da própria frota.",0,INDEX(Equipamentos!B:K,MATCH(C25,Equipamentos!A:A,0),9)) -> 471.958 | H25: 7.865966667
A26: E9681 | B26: =VLOOKUP(A26,Equipamentos!$A:$K,2,FALSE) -> Rolo compactador liso tandem vibratório autopropelido de 10,4 t - 82 kW | C26: =IFERROR(INDEX('Tabelas 2 e 3 mob'!A:K,MATCH(A26,'Tabelas 2 e 3 mob'!A:A,0),9),"ERRO") -> E9666 | D26: 1 | E26: 2 | F26: 0.5 | G26: =IF(C26="Veículo(s) da própria frota.",0,INDEX(Equipamentos!B:K,MATCH(C26,Equipamentos!A:A,0),9)) -> 471.958 | H26: 7.865966667
A27: E9545 | B27: =VLOOKUP(A27,Equipamentos!$A:$K,2,FALSE) -> Vibroacabadora de asfalto sobre esteiras - 97 kW | C27: =IFERROR(INDEX('Tabelas 2 e 3 mob'!A:K,MATCH(A27,'Tabelas 2 e 3 mob'!A:A,0),9),"ERRO") -> E9018 | D27: 1 | E27: 2 | F27: 0.5 | G27: =IF(C27="Veículo(s) da própria frota.",0,INDEX(Equipamentos!B:K,MATCH(C27,Equipamentos!A:A,0),9)) -> 561.7483 | H27: 9.362471667
A28: E9571 | B28: =VLOOKUP(A28,Equipamentos!$A:$K,2,FALSE) -> Caminhão tanque com capacidade de 10.000 l - 188 kW | C28: =IFERROR(INDEX('Tabelas 2 e 3 mob'!A:K,MATCH(A28,'Tabelas 2 e 3 mob'!A:A,0),9),"ERRO") -> E9571 | D28: 1 | E28: 1 | F28: 1 | G28: =IF(C28="Veículo(s) da própria frota.",0,INDEX(Equipamentos!B:K,MATCH(C28,Equipamentos!A:A,0),9)) -> 357.5993 | H28: 5.959988333
A29: E9514 | B29: =VLOOKUP(A29,Equipamentos!$A:$K,2,FALSE) -> Distribuidor de agregados sobre pneus autopropelido - 130 kW | C29: =IFERROR(INDEX('Tabelas 2 e 3 mob'!A:K,MATCH(A29,'Tabelas 2 e 3 mob'!A:A,0),9),"ERRO") -> E9665 | D29: 1 | E29: 2 | F29: 0.5 | G29: =IF(C29="Veículo(s) da própria frota.",0,INDEX(Equipamentos!B:K,MATCH(C29,Equipamentos!A:A,0),9)) -> 422.6932 | H29: 7.044886667
A30: E9511 | B30: =VLOOKUP(A30,Equipamentos!$A:$K,2,FALSE) -> Carregadeira de pneus com capacidade de 3,40 m³ - 195 kW | C30: =IFERROR(INDEX('Tabelas 2 e 3 mob'!A:K,MATCH(A30,'Tabelas 2 e 3 mob'!A:A,0),9),"ERRO") -> E9665 | D30: 1 | E30: 2 | F30: 1 | G30: =IF(C30="Veículo(s) da própria frota.",0,INDEX(Equipamentos!B:K,MATCH(C30,Equipamentos!A:A,0),9)) -> 422.6932 | H30: 14.08977333
A31: E9779 | B31: =VLOOKUP(A31,Equipamentos!$A:$K,2,FALSE) -> Grupo gerador - 113 kVA | C31: =IFERROR(INDEX('Tabelas 2 e 3 mob'!A:K,MATCH(A31,'Tabelas 2 e 3 mob'!A:A,0),9),"ERRO") -> Veículo(s) da própria frota. | D31: 1 | E31: 2 | F31: 0 | G31: =IF(C31="Veículo(s) da própria frota.",0,INDEX(Equipamentos!B:K,MATCH(C31,Equipamentos!A:A,0),9)) -> 0 | H31: 0
A32: E9559 | B32: =VLOOKUP(A32,Equipamentos!$A:$K,2,FALSE) -> Aquecedor de fluido térmico - 12 kW | C32: =IFERROR(INDEX('Tabelas 2 e 3 mob'!A:K,MATCH(A32,'Tabelas 2 e 3 mob'!A:A,0),9),"ERRO") -> Veículo(s) da própria frota. | D32: 1 | E32: 2 | F32: 0 | G32: =IF(C32="Veículo(s) da própria frota.",0,INDEX(Equipamentos!B:K,MATCH(C32,Equipamentos!A:A,0),9)) -> 0 | H32: 0
A33: E9584 | B33: =VLOOKUP(A33,Equipamentos!$A:$K,2,FALSE) -> Carregadeira de pneus com capacidade de 1,72 m³ - 113 kW | C33: =IFERROR(INDEX('Tabelas 2 e 3 mob'!A:K,MATCH(A33,'Tabelas 2 e 3 mob'!A:A,0),9),"ERRO") -> E9665 | D33: 1 | E33: 2 | F33: 1 | G33: =IF(C33="Veículo(s) da própria frota.",0,INDEX(Equipamentos!B:K,MATCH(C33,Equipamentos!A:A,0),9)) -> 422.6932 | H33: 14.08977333
A34: E9021 | B34: =VLOOKUP(A34,Equipamentos!$A:$K,2,FALSE) -> Grupo gerador - 456 kVA | C34: =IFERROR(INDEX('Tabelas 2 e 3 mob'!A:K,MATCH(A34,'Tabelas 2 e 3 mob'!A:A,0),9),"ERRO") -> E9508 | D34: 1 | E34: 2 | F34: 1 | G34: =IF(C34="Veículo(s) da própria frota.",0,INDEX(Equipamentos!B:K,MATCH(C34,Equipamentos!A:A,0),9)) -> 193.3443 | H34: 6.44481
A35: E9687 | B35: =VLOOKUP(A35,Equipamentos!$A:$K,2,FALSE) -> Caminhão carroceria com capacidade de 5 t - 120 kW | C35: =IFERROR(INDEX('Tabelas 2 e 3 mob'!A:K,MATCH(A35,'Tabelas 2 e 3 mob'!A:A,0),9),"ERRO") -> E9687 | D35: 1 | E35: 1 | F35: 1 | G35: =IF(C35="Veículo(s) da própria frota.",0,INDEX(Equipamentos!B:K,MATCH(C35,Equipamentos!A:A,0),9)) -> 172.5414 | H35: 2.87569
A36: E9667 | B36: =VLOOKUP(A36,Equipamentos!$A:$K,2,FALSE) -> Caminhão basculante com capacidade de 14 m³ - 210 kW | C36: =IFERROR(INDEX('Tabelas 2 e 3 mob'!A:K,MATCH(A36,'Tabelas 2 e 3 mob'!A:A,0),9),"ERRO") -> E9667 | D36: 1 | E36: 1 | F36: 1 | G36: =IF(C36="Veículo(s) da própria frota.",0,INDEX(Equipamentos!B:K,MATCH(C36,Equipamentos!A:A,0),9)) -> 319.382 | H36: 5.323033333
A37: E9644 | B37: =VLOOKUP(A37,Equipamentos!$A:$K,2,FALSE) -> Caminhão demarcador de faixas com sistema de pintura a frio - 28 kW/129 kW | C37: =IFERROR(INDEX('Tabelas 2 e 3 mob'!A:K,MATCH(A37,'Tabelas 2 e 3 mob'!A:A,0),9),"ERRO") -> E9644 | D37: 1 | E37: 1 | F37: 1 | G37: =IF(C37="Veículo(s) da própria frota.",0,INDEX(Equipamentos!B:K,MATCH(C37,Equipamentos!A:A,0),9)) -> 454.6873 | H37: 7.578121667
A38: E9592 | B38: =VLOOKUP(A38,Equipamentos!$A:$K,2,FALSE) -> Caminhão carroceria com capacidade de 15 t - 188 kW | C38: =IFERROR(INDEX('Tabelas 2 e 3 mob'!A:K,MATCH(A38,'Tabelas 2 e 3 mob'!A:A,0),9),"ERRO") -> E9592 | D38: 1 | E38: 1 | F38: 1 | G38: =IF(C38="Veículo(s) da própria frota.",0,INDEX(Equipamentos!B:K,MATCH(C38,Equipamentos!A:A,0),9)) -> 281.4919 | H38: 4.691531667
A39: E9540 | B39: =VLOOKUP(A39,Equipamentos!$A:$K,2,FALSE) -> Trator sobre esteiras com lâmina - 127 kW | C39: =IFERROR(INDEX('Tabelas 2 e 3 mob'!A:K,MATCH(A39,'Tabelas 2 e 3 mob'!A:A,0),9),"ERRO") -> E9018 | D39: 1 | E39: 2 | F39: 0.5 | G39: =IF(C39="Veículo(s) da própria frota.",0,INDEX(Equipamentos!B:K,MATCH(C39,Equipamentos!A:A,0),9)) -> 561.7483 | H39: 9.362471667
A40: E9515 | B40: =VLOOKUP(A40,Equipamentos!$A:$K,2,FALSE) -> Escavadeira hidráulica sobre esteiras com caçamba com capacidade de 1,56 m³ - 118 kW | C40: =IFERROR(INDEX('Tabelas 2 e 3 mob'!A:K,MATCH(A40,'Tabelas 2 e 3 mob'!A:A,0),9),"ERRO") -> E9666 | D40: 1 | E40: 2 | F40: 1 | G40: =IF(C40="Veículo(s) da própria frota.",0,INDEX(Equipamentos!B:K,MATCH(C40,Equipamentos!A:A,0),9)) -> 471.958 | H40: 15.73193333
A41: E9506 | B41: =VLOOKUP(A41,Equipamentos!$A:$K,2,FALSE) -> Caminhão basculante com capacidade de 6 m³ - 136 kW | C41: =IFERROR(INDEX('Tabelas 2 e 3 mob'!A:K,MATCH(A41,'Tabelas 2 e 3 mob'!A:A,0),9),"ERRO") -> E9506 | D41: 1 | E41: 1 | F41: 1 | G41: =IF(C41="Veículo(s) da própria frota.",0,INDEX(Equipamentos!B:K,MATCH(C41,Equipamentos!A:A,0),9)) -> 198.7481 | H41: 3.312468333
A42: E9256 | B42: =VLOOKUP(A42,Equipamentos!$A:$K,2,FALSE) -> Equipamento para pintura com cal rebocável com dois bicos aplicadores e capacidade de 2.200 l | C42: =IFERROR(INDEX('Tabelas 2 e 3 mob'!A:K,MATCH(A42,'Tabelas 2 e 3 mob'!A:A,0),9),"ERRO") -> Veículo(s) da própria frota. | D42: 1 | E42: 2 | F42: 0 | G42: =IF(C42="Veículo(s) da própria frota.",0,INDEX(Equipamentos!B:K,MATCH(C42,Equipamentos!A:A,0),9)) -> 0 | H42: 0
A43: E9156 | B43: =VLOOKUP(A43,Equipamentos!$A:$K,2,FALSE) -> Soprador de ar costal - 2,6 kW | C43: =IFERROR(INDEX('Tabelas 2 e 3 mob'!A:K,MATCH(A43,'Tabelas 2 e 3 mob'!A:A,0),9),"ERRO") -> Veículo(s) da própria frota. | D43: 1 | E43: 2 | F43: 0 | G43: =IF(C43="Veículo(s) da própria frota.",0,INDEX(Equipamentos!B:K,MATCH(C43,Equipamentos!A:A,0),9)) -> 0 | H43: 0
A44: E9146 | B44: =VLOOKUP(A44,Equipamentos!$A:$K,2,FALSE) -> Caminhão silo com capacidade de 30 m³ - 368 kW | C44: =IFERROR(INDEX('Tabelas 2 e 3 mob'!A:K,MATCH(A44,'Tabelas 2 e 3 mob'!A:A,0),9),"ERRO") -> E9146 | D44: 1 | E44: 1 | F44: 1 | G44: =IF(C44="Veículo(s) da própria frota.",0,INDEX(Equipamentos!B:K,MATCH(C44,Equipamentos!A:A,0),9)) -> 668.0535 | H44: 11.134225
A45: E9599 | B45: =VLOOKUP(A45,Equipamentos!$A:$K,2,FALSE) -> Central de concreto com capacidade de 30 m³/h - dosadora RS | C45: =IFERROR(INDEX('Tabelas 2 e 3 mob'!A:K,MATCH(A45,'Tabelas 2 e 3 mob'!A:A,0),9),"ERRO") -> E9018 | D45: 1 | E45: 2 | F45: 1 | G45: =IF(C45="Veículo(s) da própria frota.",0,INDEX(Equipamentos!B:K,MATCH(C45,Equipamentos!A:A,0),9)) -> 561.7483 | H45: 18.72494333
A46: E9103 | B46: =VLOOKUP(A46,Equipamentos!$A:$K,2,FALSE) -> Extrusora para meio-fio de concreto - 10,44 kW | C46: =IFERROR(INDEX('Tabelas 2 e 3 mob'!A:K,MATCH(A46,'Tabelas 2 e 3 mob'!A:A,0),9),"ERRO") -> Veículo(s) da própria frota. | D46: 1 | E46: 2 | F46: 0 | G46: =IF(C46="Veículo(s) da própria frota.",0,INDEX(Equipamentos!B:K,MATCH(C46,Equipamentos!A:A,0),9)) -> 0 | H46: 0
A47: E9071 | B47: =VLOOKUP(A47,Equipamentos!$A:$K,2,FALSE) -> Transportador manual carrinho de mão com capacidade de 80 l | C47: =IFERROR(INDEX('Tabelas 2 e 3 mob'!A:K,MATCH(A47,'Tabelas 2 e 3 mob'!A:A,0),9),"ERRO") -> Veículo(s) da própria frota. | D47: 0 | E47: 2 | F47: 0 | G47: =IF(C47="Veículo(s) da própria frota.",0,INDEX(Equipamentos!B:K,MATCH(C47,Equipamentos!A:A,0),9)) -> 0 | H47: 0
A48: E9064 | B48: =VLOOKUP(A48,Equipamentos!$A:$K,2,FALSE) -> Transportador manual gerica com capacidade de 180 l | C48: =IFERROR(INDEX('Tabelas 2 e 3 mob'!A:K,MATCH(A48,'Tabelas 2 e 3 mob'!A:A,0),9),"ERRO") -> Veículo(s) da própria frota. | D48: 0 | E48: 2 | F48: 0 | G48: =IF(C48="Veículo(s) da própria frota.",0,INDEX(Equipamentos!B:K,MATCH(C48,Equipamentos!A:A,0),9)) -> 0 | H48: 0
A49: E9066 | B49: =VLOOKUP(A49,Equipamentos!$A:$K,2,FALSE) -> Grupo gerador - 14 kVA | C49: =IFERROR(INDEX('Tabelas 2 e 3 mob'!A:K,MATCH(A49,'Tabelas 2 e 3 mob'!A:A,0),9),"ERRO") -> Veículo(s) da própria frota. | D49: 0 | E49: 2 | F49: 0 | G49: =IF(C49="Veículo(s) da própria frota.",0,INDEX(Equipamentos!B:K,MATCH(C49,Equipamentos!A:A,0),9)) -> 0 | H49: 0
A50: E9535 | B50: =VLOOKUP(A50,Equipamentos!$A:$K,2,FALSE) -> Serra circular com bancada - D = 30 cm - 4 kW | C50: =IFERROR(INDEX('Tabelas 2 e 3 mob'!A:K,MATCH(A50,'Tabelas 2 e 3 mob'!A:A,0),9),"ERRO") -> Veículo(s) da própria frota. | D50: 0 | E50: 2 | F50: 0 | G50: =IF(C50="Veículo(s) da própria frota.",0,INDEX(Equipamentos!B:K,MATCH(C50,Equipamentos!A:A,0),9)) -> 0 | H50: 0
A51: E9507 | B51: =VLOOKUP(A51,Equipamentos!$A:$K,2,FALSE) -> Plotadora de recorte com computador e programa computacional | C51: =IFERROR(INDEX('Tabelas 2 e 3 mob'!A:K,MATCH(A51,'Tabelas 2 e 3 mob'!A:A,0),9),"ERRO") -> Veículo(s) da própria frota. | D51: 0 | E51: 2 | F51: 0 | G51: =IF(C51="Veículo(s) da própria frota.",0,INDEX(Equipamentos!B:K,MATCH(C51,Equipamentos!A:A,0),9)) -> 0 | H51: 0
A52: E9568 | B52: =VLOOKUP(A52,Equipamentos!$A:$K,2,FALSE) -> Furadeira de impacto de 12,5 mm - 0,80 kW | C52: =IFERROR(INDEX('Tabelas 2 e 3 mob'!A:K,MATCH(A52,'Tabelas 2 e 3 mob'!A:A,0),9),"ERRO") -> Veículo(s) da própria frota. | D52: 0 | E52: 2 | F52: 0 | G52: =IF(C52="Veículo(s) da própria frota.",0,INDEX(Equipamentos!B:K,MATCH(C52,Equipamentos!A:A,0),9)) -> 0 | H52: 0
A53: E9753 | B53: =VLOOKUP(A53,Equipamentos!$A:$K,2,FALSE) -> Grupo gerador - 23 kVA | C53: =IFERROR(INDEX('Tabelas 2 e 3 mob'!A:K,MATCH(A53,'Tabelas 2 e 3 mob'!A:A,0),9),"ERRO") -> Veículo(s) da própria frota. | D53: 0 | E53: 2 | F53: 0 | G53: =IF(C53="Veículo(s) da própria frota.",0,INDEX(Equipamentos!B:K,MATCH(C53,Equipamentos!A:A,0),9)) -> 0 | H53: 0
A54: E9623 | B54: =VLOOKUP(A54,Equipamentos!$A:$K,2,FALSE) -> Máquina de bancada guilhotina - 4,00 kW | C54: =IFERROR(INDEX('Tabelas 2 e 3 mob'!A:K,MATCH(A54,'Tabelas 2 e 3 mob'!A:A,0),9),"ERRO") -> Veículo(s) da própria frota. | D54: 0 | E54: 2 | F54: 0 | G54: =IF(C54="Veículo(s) da própria frota.",0,INDEX(Equipamentos!B:K,MATCH(C54,Equipamentos!A:A,0),9)) -> 0 | H54: 0
A55: E9622 | B55: =VLOOKUP(A55,Equipamentos!$A:$K,2,FALSE) -> Máquina de bancada universal para corte de chapa - 1,50 kW | C55: =IFERROR(INDEX('Tabelas 2 e 3 mob'!A:K,MATCH(A55,'Tabelas 2 e 3 mob'!A:A,0),9),"ERRO") -> Veículo(s) da própria frota. | D55: 0 | E55: 2 | F55: 0 | G55: =IF(C55="Veículo(s) da própria frota.",0,INDEX(Equipamentos!B:K,MATCH(C55,Equipamentos!A:A,0),9)) -> 0 | H55: 0
A56: E9678 | B56: =VLOOKUP(A56,Equipamentos!$A:$K,2,FALSE) -> Fresadora a frio - 455 kW | C56: =IFERROR(INDEX('Tabelas 2 e 3 mob'!A:K,MATCH(A56,'Tabelas 2 e 3 mob'!A:A,0),9),"ERRO") -> E9666 | D56: 0 | E56: 2 | F56: 1 | G56: =IF(C56="Veículo(s) da própria frota.",0,INDEX(Equipamentos!B:K,MATCH(C56,Equipamentos!A:A,0),9)) -> 471.958 | H56: 0
G57: TOTAL | H57: =SUM(H13:H56) -> 299.0897333
A60: CUSTO TOTAL MOBILIZAÇÃO E DESMOBILIZAÇÃO
A61: DESCRIÇÃO | B61: VALOR
A62: Custo Mobilização (km) | B62: =H57 -> 299.0897333
A63: BDI (%) | B63: =BDI!C14 -> 0.2339
A64: Custo Mobilização (R$/km) com BDI | B64: =B62+(B62*B63) -> 369.046822
A65: Total de Frentes | B65: ='MC MODULO'!G1 -> 9
A66: Custo Mobilização (frentes x distancia) | B66: =B64*H6*B65 -> 1195711.703

Sheet Canteiro
A4: CANTEIRO DE OBRAS PARA CONSTRUÇAO RODOVIÁRIA
A5: Descrição dos serviços | B5: Tipo de container | C5: Unidade | D5: Quantidade | E5: Preço unitário (R$) | F5: Total (R$)
A6: Escritório e seção técnica
A7: =VLOOKUP(B7,'INSUMOS SINAPI'!$A:$E,2,0) -> LOCACAO DE CONTAINER 2,30 X 6,00 M, ALT. 2,50 M, PARA ESCRITORIO, SEM DIVISORIAS INTERNAS E SEM SANITARIO (NAO INCLUI MOBILIZACAO/DESMOBILIZACAO) | B7: 10776 | C7: und | D7: 1 | E7: =VLOOKUP(B7,'INSUMOS SINAPI'!$A:$E,5,0) -> 789.06 | F7: =TRUNC(D7*E7,2) -> 789.06
A8: Banheiro e vestiário
A9: =VLOOKUP(B9,'INSUMOS SINAPI'!$A:$E,2,0) -> LOCACAO DE CONTAINER 2,30 X 4,30 M, ALT. 2,50 M, PARA SANITARIO, COM 3 BACIAS, 4 CHUVEIROS, 1 LAVATORIO E 1 MICTORIO (NAO INCLUI MOBILIZACAO/DESMOBILIZACAO) | B9: 10777 | C9: und | D9: 1 | E9: =VLOOKUP(B9,'INSUMOS SINAPI'!$A:$E,5,0) -> 1146.77 | F9: =TRUNC(D9*E9,2) -> 1146.77
D10: TOTAL DO CANTEIRO | F10: =SUM(F7:F9) -> 1935.83
D11: DURAÇÃO (MESES) | E11: 9 | F11: =F10*E11 -> 17422.47
D12: BDI | F12: =BDI!C14 -> 0.2339
D13: TOTAL DO CANTEIRO (com BDI) | F13: =F11+(F11*F12) -> 21497.58573

Sheet Adm Local
A2: parcela fixa da administração local (mão de obra)
A3: Código | B3: Discriminação | C3: Unidade | D3: Quantidade | F3: Custo Unitário (R$) | H3: Custo Total (R$)
B4: Mão de Obra
B5: Gerência Técnica
B6: Geral
A7: P9955 | B7: Engenheiro chefe | C7: mês | D7: 0.5 | F7: =VLOOKUP(A7,'Pessoal Sicro'!$A$6:$G$118,6,0) -> 33658.8937 | H7: =F7*D7 -> 16829.44685
A8: P9840 | B8: Encarregado geral | C8: mês | D8: 1 | F8: =VLOOKUP(A8,'Pessoal Sicro'!$A$6:$G$118,6,0) -> 13682.4303 | H8: =F8*D8 -> 13682.4303
A9: P9897 | B9: Técnico de meio ambiente | C9: mês | D9: 0 | F9: =VLOOKUP(A9,'Pessoal Sicro'!$A$6:$G$118,6,0) -> 7846.5681 | H9: =F9*D9 -> 0
A10: P9948 | B10: Motorista | C10: mês | D10: 0 | F10: =VLOOKUP(A10,'Pessoal Sicro'!$A$6:$G$118,6,0) -> 5309.2692 | H10: =F10*D10 -> 0
A11: P9878 | B11: Secretária | C11: mês | D11: 0 | F11: =VLOOKUP(A11,'Pessoal Sicro'!$A$6:$G$118,6,0) -> 6629.0373 | H11: =F11*D11 -> 0
F12: Subtotal do Item 1.1 | H12: =SUM(H7:I11) -> 30511.87715
B13: Auxiliar
A14: P9946 | B14: Engenheiro auxiliar | C14: mês | D14: 0.5 | F14: =VLOOKUP(A14,'Pessoal Sicro'!$A$6:$G$118,6,0) -> 23734.9878 | H14: =D14*F14 -> 11867.4939
A15: P9903 | B15: Auxiliar técnico | C15: mês | D15: 0 | F15: =VLOOKUP(A15,'Pessoal Sicro'!$A$6:$G$118,6,0) -> 5431.1212 | H15: =D15*F15 -> 0
F16: Subtotal do Item 1.2 | H16: =SUM(H14:I15) -> 11867.4939
B17: Gerência Administrativa
B18: Geral
A19: P9883 | B19: Chefe do setor administrativo | C19: mês | D19: 0.5 | F19: =VLOOKUP(A19,'Pessoal Sicro'!$A$6:$G$118,6,0) -> 9425.9445 | H19: =F19*D19 -> 4712.97225
A20: P9809 | B20: Encarregado administrativo | C20: mês | D20: 0.5 | F20: =VLOOKUP(A20,'Pessoal Sicro'!$A$6:$G$118,6,0) -> 9425.8696 | H20: =F20*D20 -> 4712.9348
A21: P9896 | B21: Porteiro | C21: mês | D21: 0 | F21: =VLOOKUP(A21,'Pessoal Sicro'!$A$6:$G$118,6,0) -> 5225.0279 | H21: =F21*D21 -> 0
A22: P9827 | B22: Vigia | C22: mês | D22: 0 | F22: =VLOOKUP(A22,'Pessoal Sicro'!$A$6:$G$118,6,0) -> 4872.7312 | H22: =F22*D22 -> 0
A23: P9948 | B23: Motorista | C23: mês | D23: 0 | F23: =VLOOKUP(A23,'Pessoal Sicro'!$A$6:$G$118,6,0) -> 5309.2692 | H23: =F23*D23 -> 0
F24: Subtotal do Item 1.3 | H24: =SUM(H19:I23) -> 9425.90705
B25: Auxiliar
A26: P9806 | B26: Auxiliar administrativo | C26: mês | D26: 0.5 | F26: =VLOOKUP(A26,'Pessoal Sicro'!$A$6:$G$118,6,0) -> 4656.427 | H26: =F26*D26 -> 2328.2135
A27: P9842 | B27: Faxineiro | C27: mês | D27: 0 | F27: =VLOOKUP(A27,'Pessoal Sicro'!$A$6:$G$118,6,0) -> 5234.1079 | H27: =F27*D27 -> 0
F28: Subtotal do Item 1.4 | H28: =SUM(H26:I27) -> 2328.2135
H29: Total da Mão de Obra da Parcela Fixa | I29: =H28+H24+H16+H12 -> 54133.4916
A31: parcela fixa da administração local (veículos)
A32: Código | B32: Discriminação | C32: Unidade | D32: Quantidade | E32: Utilização Produtiva | F32: Utilização Improdutiva | G32: Custo Horário Produtivo (R$) | H32: Custo Horário Improdutivo (R$) | I32: Custo Total (R$)
A33: 2 | B33: Veículos
B34: Gerência Técnica
A35: 2.1 | B35: Geral
A36: E9093 | B36: Veículo Leve 53 kw | C36: mês | D36: 1 | E36: 44 | F36: 176 | G36: =VLOOKUP(A36,Equipamentos!$A$4:$K$541,10,0) -> 36.8232 | H36: =VLOOKUP(A36,Equipamentos!$A$4:$K$541,11,0) -> 6.6702 | I36: =((E36*G36)+(F36*H36))*D36 -> 2794.176
A37: E9560 | B37: Ônibus coletivo - 175 kw | C37: mês | D37: 0 | E37: 44 | F37: 176 | G37: =VLOOKUP(A37,Equipamentos!$A$4:$K$541,10,0) -> 345.0576 | H37: =VLOOKUP(A37,Equipamentos!$A$4:$K$541,11,0) -> 99.6218 | I37: =((E37*G37)+(F37*H37))*D37 -> 0
H38: Subtotal do Item 2 | I38: =SUM(I36:I37) -> 2794.176
A39: 2.2 | B39: Auxiliar
A40: E9093 | B40: Veículo Leve 53 kw | C40: mês | D40: 0 | E40: 44 | F40: 176 | G40: =G36 -> 36.8232 | H40: =H36 -> 6.6702 | I40: =((E40*G40)+(F40*H40))*D40 -> 0
H41: Subtotal do Item 2 | I41: =SUM(I40) -> 0
A42: 2.3 | B42: Gerência Administrativa
A43: E9093 | B43: Veículo Leve 53 kw | C43: mês | D43: 0 | E43: 44 | F43: 176 | G43: =G36 -> 36.8232 | H43: =H36 -> 6.6702 | I43: =((E43*G43)+(F43*H43))*D43 -> 0
H44: Subtotal do Item 2 | I44: =I43 -> 0
H45: Total dos Veículos da Parcela Fixa | I45: =I44+I41+I38 -> 2794.176
A47: Composição de custo da equipe de produção de terraplenagem
A48: Código | B48: Discriminação | C48: Unidade | D48: Quantidade | F48: Custo Unitário (R$) | H48: Custo Total (R$)
B49: Equipe de Produção de Terraplenagem
A50: 3.1 | B50: Mão de Obra
A51: P9884 | B51: Encarregado de produção | C51: mês | D51: 1 | F51: =VLOOKUP(A51,'Pessoal Sicro'!$A$6:$G$118,6,0) -> 9542.6471 | H51: =F51*D51 -> 9542.6471
F52: Subtotal do Item 3.1 | H52: =SUM(H51:H51) -> 9542.6471
A53: Código | B53: Discriminação | C53: Unidade | D53: Quantidade | E53: Utilização Produtiva | F53: Utilização Improdutiva | G53: Custo Horário Produtivo (R$) | H53: Custo Horário Improdutivo (R$) | I53: Custo Total (R$)
A54: 3.2 | B54: Veículos
B55: Veículo Leve 53 kw | C55: mês | D55: 1 | E55: 44 | F55: 176 | G55: =G36 -> 36.8232 | H55: =H36 -> 6.6702 | I55: =((E55*G55)+(F55*H55))*D55 -> 2794.176
H56: Subtotal do Item 3.2 | I56: =SUM(I55:I55) -> 2794.176
H57: Total da Equipe de Produção de Terraplenagem | I57: =I56+H52 -> 12336.8231
A59: Composição de custo da equipe de produção de pavimentação
A60: Código | B60: Discriminação | C60: Unidade | D60: Quantidade | F60: Custo Unitário (R$) | H60: Custo Total (R$)
B61: Equipe de Produção de Pavimentação
A62: 3.1 | B62: Mão de Obra
A63: ='Pessoal Sicro'!$A$70 -> P9901 | B63: Encarregado de produção | C63: mês | D63: 1 | F63: =VLOOKUP(A63,'Pessoal Sicro'!$A$6:$G$118,6,0) -> 9542.6471 | H63: =F63*D63 -> 9542.6471
F64: Subtotal do Item 3.1 | H64: =SUM(H63:H63) -> 9542.6471
A65: Código | B65: Discriminação | C65: Unidade | D65: Quantidade | E65: Utilização Produtiva | F65: Utilização Improdutiva | G65: Custo Horário Produtivo (R$) | H65: Custo Horário Improdutivo (R$) | I65: Custo Total (R$)
A66: 3.2 | B66: Veículos
B67: Veículo Leve 53 kw | C67: mês | D67: 1 | E67: 44 | F67: 176 | G67: =$G$36 -> 36.8232 | H67: =$H$36 -> 6.6702 | I67: =((E67*G67)+(F67*H67))*D67 -> 2794.176
H68: Subtotal do Item 3.2 | I68: =SUM(I67:I67) -> 2794.176
H69: Total da Equipe de Produção de Pavimentação | I69: =I68+H64 -> 12336.8231
A71: Composição de custo da equipe de produção de drenagem
A72: Código | B72: Discriminação | C72: Unidade | D72: Quantidade | F72: Custo Unitário (R$) | H72: Custo Total (R$)
B73: Equipe de Produção de Pavimentação
A74: 3.1 | B74: Mão de Obra
A75: ='Pessoal Sicro'!$A$70 -> P9901 | B75: Encarregado de produção | C75: mês | D75: 1 | F75: =VLOOKUP(A75,'Pessoal Sicro'!$A$6:$G$118,6,0) -> 9542.6471 | H75: =F75*D75 -> 9542.6471
F76: Subtotal do Item 3.1 | H76: =SUM(H75:H75) -> 9542.6471
A77: Código | B77: Discriminação | C77: Unidade | D77: Quantidade | E77: Utilização Produtiva | F77: Utilização Improdutiva | G77: Custo Horário Produtivo (R$) | H77: Custo Horário Improdutivo (R$) | I77: Custo Total (R$)
A78: 3.2 | B78: Veículos
B79: Veículo Leve 53 kw | C79: mês | D79: 1 | E79: 44 | F79: 176 | G79: =$G$36 -> 36.8232 | H79: =$H$36 -> 6.6702 | I79: =((E79*G79)+(F79*H79))*D79 -> 2794.176
H80: Subtotal do Item 3.2 | I80: =SUM(I79:I79) -> 2794.176
H81: Total da Equipe de Produção de Pavimentação | I81: =I80+H76 -> 12336.8231
A83: Composição de custo da equipe de produção de sinalização
A84: Código | B84: Discriminação | C84: Unidade | D84: Quantidade | F84: Custo Unitário (R$) | H84: Custo Total (R$)
B85: Equipe de Produção de Pavimentação
A86: 3.1 | B86: Mão de Obra
A87: ='Pessoal Sicro'!$A$70 -> P9901 | B87: Encarregado de produção | C87: mês | D87: 1 | F87: =VLOOKUP(A87,'Pessoal Sicro'!$A$6:$G$118,6,0) -> 9542.6471 | H87: =F87*D87 -> 9542.6471
F88: Subtotal do Item 3.1 | H88: =SUM(H87:H87) -> 9542.6471
A89: Código | B89: Discriminação | C89: Unidade | D89: Quantidade | E89: Utilização Produtiva | F89: Utilização Improdutiva | G89: Custo Horário Produtivo (R$) | H89: Custo Horário Improdutivo (R$) | I89: Custo Total (R$)
A90: 3.2 | B90: Veículos
B91: Veículo Leve 53 kw | C91: mês | D91: 1 | E91: 44 | F91: 176 | G91: =$G$36 -> 36.8232 | H91: =$H$36 -> 6.6702 | I91: =((E91*G91)+(F91*H91))*D91 -> 2794.176
H92: Subtotal do Item 3.2 | I92: =SUM(I91:I91) -> 2794.176
H93: Total da Equipe de Produção de Pavimentação | I93: =I92+H88 -> 12336.8231
A95: Composição de custo da equipe topografia
A96: Código | B96: Discriminação | C96: Unidade | D96: Quantidade | F96: Custo Unitário (R$) | H96: Custo Total (R$)
B97: Equipe de Topografia
A98: 3.1 | B98: Mão de Obra
A99: P9949 | B99: Topográfo | C99: mês | D99: 1 | F99: =VLOOKUP(A99,'Pessoal Sicro'!$A$6:$G$118,6,0) -> 7010.6638 | H99: =F99*D99 -> 7010.6638
A100: P9950 | B100: Auxiliar de topografia | C100: mês | D100: 1 | F100: =VLOOKUP(A100,'Pessoal Sicro'!$A$6:$G$118,6,0) -> 6479.6361 | H100: =F100*D100 -> 6479.6361
F101: Subtotal do Item 3.1 | H101: =SUM(H99:I100) -> 13490.2999
A102: Código | B102: Discriminação | C102: Unidade | D102: Quantidade | E102: Utilização Produtiva | F102: Utilização Improdutiva | G102: Custo Horário Produtivo (R$) | H102: Custo Horário Improdutivo (R$) | I102: Custo Total (R$)
A103: 3.2 | B103: Veículos
B104: Veículo Leve 53 kw | C104: mês | D104: 1 | E104: 44 | F104: 176 | G104: =G36 -> 36.8232 | H104: =H36 -> 6.6702 | I104: =((E104*G104)+(F104*H104))*D104 -> 2794.176
H105: Subtotal do Item 3.2 | I105: =SUM(I104:I104) -> 2794.176
H106: Total da Equipe de Produção de Topografia | I106: =I105+H101 -> 16284.4759
A108: Composição de custo do setor de medicina e segurança do trabalho
A109: Código | B109: Discriminação | C109: Unidade | D109: Quantidade | F109: Custo Unitário (R$) | H109: Custo Total (R$)
A110: 4 | B110: Setor de Medicina e Segurança do Trabalho
A111: P9876 | B111: Técnico de segurança do trabalho | C111: mês | D111: 1 | F111: =VLOOKUP(A111,'Pessoal Sicro'!$A$6:$G$118,6,0) -> 8095.9286 | H111: =F111*D111 -> 8095.9286
A112: P9864 | B112: Engenheiro de segurança do trabalho | C112: mês | D112: 0 | F112: =VLOOKUP(A112,'Pessoal Sicro'!$A$6:$G$118,6,0) -> 24966.753 | H112: =F112*D112 -> 0
A113: P9851 | B113: Médico do trabalho | C113: mês | D113: 0 | F113: =VLOOKUP(A113,'Pessoal Sicro'!$A$6:$G$118,6,0) -> 18900.6717 | H113: =F113*D113 -> 0
A114: P9951 | B114: Médico de câmara hiperbárica | C114: mês | D114: 0 | F114: =VLOOKUP(A114,'Pessoal Sicro'!$A$6:$G$118,6,0) -> 21490.3476 | H114: =F114*D114 -> 0
F115: Subtotal do Item 4 | H115: =SUM(H111:I114) -> 8095.9286
A117: Parcela Variável - Composição de custo da equipe de frente de serviço
A118: Código | B118: Discriminação | C118: Unidade | D118: Quantidade | F118: Custo Unitário (R$) | H118: Custo Total (R$)
A119: 5 | B119: Equipe de Frente de Serviço | C119: equipexmês
A120: P9875 | B120: Encarregado de Turma | C120: mês | D120: 1 | F120: =VLOOKUP(A120,'Pessoal Sicro'!$A$6:$G$118,6,0) -> 6250.38 | H120: =F120*D120 -> 6250.38
A121: P9804 | B121: Apontador | C121: mês | D121: 0.5 | F121: =VLOOKUP(A121,'Pessoal Sicro'!$A$6:$G$118,6,0) -> 4509.8511 | H121: =F121*D121 -> 2254.92555
F122: Subtotal do Item 5 | H122: =SUM(H120:I121) -> 8505.30555
A124: Parcela Variável - Composição de custo da equipe de frente de serviço (Terraplenagem) - Somente Compactação
A125: Código | B125: Discriminação | C125: Unidade | D125: Quantidade | F125: Produção Horária (und/h) | H125: Efs
A126: 5.1 | B126: Equipe de Frente de Serviço | C126: equipexmês
C127: mês | H127: =(D127)/(F127*182.49) -> 
C128: mês | H128: =(D128)/(F128*182.49) -> 
C129: mês | H129: =(D129)/(F129*182.49) -> 
F130: Total de Equipes para Terraplenagem | H130: =SUM(H129:I129) -> 
A132: Parcela Variável - Composição de custo da acompanhamento das frentes de serviço de pavimentação
A133: Código | B133: Discriminação | C133: Unidade | D133: Quantidade | F133: Produção Horária (und/h) | H133: Efs
A134: 5.2 | B134: Equipe de Frente de Serviço | C134: equipe x mês
A135: 4011463 | B135: =VLOOKUP(A135,'SINTÉTICO SICRO'!$A$4:$D$6373,2,0) -> Concreto asfáltico - faixa C-12,5 - areia e brita comerciais | C135: m² | D135: ='RESUMO MODULO TOTAL'!H23 -> 15120 | F135: 99.6 | H135: =(D135)/(F135*182.49) -> 0.8318660141
A136: 4011352 | B136: =VLOOKUP(A136,'SINTÉTICO SICRO'!$A$4:$D$6373,2,0) -> Imprimação com emulsão asfáltica | C136: m² | D136: ='RESUMO MODULO TOTAL'!H24 -> 126000 | F136: 1038.46 | H136: 0.6648775992
A137: 4011353 | B137: =VLOOKUP(A137,'SINTÉTICO SICRO'!$A$4:$D$6373,2,0) -> Pintura de ligação | C137: m² | D137: ='RESUMO MODULO TOTAL'!H25 -> 126000 | F137: 1500 | H137: 0.4602991945
A138: 4011318 | B138: =VLOOKUP(A138,'SINTÉTICO SICRO'!$A$4:$D$6373,2,0) -> Base ou sub-base estabilizada granulometricamente com mistura solo brita (70% - 30%) em usina com material de jazida e brita comercial - 100% Proctor modificado | C138: m³ | D138: ='RESUMO MODULO TOTAL'!H26 -> 18900 | F138: 120.7 | H138: 0.8580556649
A139: 4011227 | B139: =VLOOKUP(A139,'SINTÉTICO SICRO'!$A$4:$D$6373,2,0) -> Sub-base de solo estabilizado granulometricamente sem mistura com material de jazida - 100% Proctor intermediário | C139: m³ | D139: ='RESUMO MODULO TOTAL'!H27 -> 18900 | F139: 134.56 | H139: 0.7696738909
A140: 4011209 | B140: =VLOOKUP(A140,'SINTÉTICO SICRO'!$A$4:$D$6373,2,0) -> Regularização do subleito - 100% Proctor intermediário | C140: m² | D140: ='RESUMO MODULO TOTAL'!H28 -> 126000 | F140: 672.8 | H140: 1.026231855
F141: Total de Equipes para Pavimentação | H141: =SUM(H135:I140) -> 4.611004218
A143: Parcela Variável - Composição de custo da acompanhamento das frentes de serviço de drenagem
A144: Código | B144: Discriminação | C144: Unidade | D144: Quantidade | F144: Efsdu | H144: Efs
A145: 5.3 | B145: Frentes de Serviço para Drenagem | C145: equipe x mês
A146: ='RESUMO MODULO TOTAL'!C42 -> 2003943 | B146: =VLOOKUP(A146,'SINTÉTICO SICRO'!$A$4:$D$6373,2,0) -> Meio-fio de concreto - MFC 03 moldado no local com extrusora e concreto usinado - areia e brita comerciais | C146: m | D146: ='RESUMO MODULO TOTAL'!H42 -> 36000 | F146: 0.00021 | H146: =D146*F146 -> 7.56
F147: Total de Equipes para Drenagem | H147: =H146 -> 7.56
A149: Parcela Variável - Composição de custo da acompanhamento das frentes de serviço de sinalização
A150: Código | B150: Discriminação | C150: Unidade | D150: Quantidade | F150: Produção Horária (und/h) | H150: Efs
A151: 5.4 | B151: Frentes de Serviço para Sinalização | C151: equipe x mês
A152: ='RESUMO MODULO TOTAL'!C37 -> 5213440 | B152: =VLOOKUP(A152,'SINTÉTICO SICRO'!$A$4:$D$6373,2,0) -> Placa de regulamentação em aço D = 0,60 m - película retrorrefletiva tipo I + SI - fornecimento e implantação | C152: Unidade | D152: ='RESUMO MODULO TOTAL'!H37 -> 54 | F152: 3 | H152: =0.2*((D152)/(F152*182.49)) -> 0.01972710833
A153: ='RESUMO MODULO TOTAL'!C38 -> 5213464 | B153: =VLOOKUP(A153,'SINTÉTICO SICRO'!$A$4:$D$6373,2,0) -> Placa de advertência em aço, lado de 0,60 m - película retrorrefletiva tipo I + SI - fornecimento e implantação | C153: Unidade | D153: ='RESUMO MODULO TOTAL'!H38 -> 54 | F153: 3 | H153: =0.2*((D153)/(F153*182.49)) -> 0.01972710833
A154: ='RESUMO MODULO TOTAL'!C40 -> 5213400 | B154: =VLOOKUP(A154,'SINTÉTICO SICRO'!$A$4:$D$6373,2,0) -> Pintura de faixa com tinta acrílica - espessura de 0,4 mm | C154: m² | D154: ='RESUMO MODULO TOTAL'!H40 -> 5400 | F154: 177.07 | H154: =0.2*((D154)/(F154*182.49)) -> 0.03342255888
F155: Total de Equipes para Sinalização | H155: =SUM(H152:I154) -> 0.07287677555 | J155: =H155+H147 -> 7.632876776
A157: 3. PARCELA VARIÁVEL - EQUIPE DE CONTROLE TECNOLÓGICO
A158: LABORATÓRIO DE SOLOS
A159: Item | B159: Discriminação | F159: Unidade | G159: Quantidade | H159: Custo Unitário (R$) | I159: Custo Total (R$)
B160: Laboratório de Solos (equipe x mês)
B161: Mão de Obra
A162: P9858 | B162: Laboratorista | F162: func./mês | G162: 1 | H162: =VLOOKUP(A162,'Pessoal Sicro'!$A$6:$G$118,6,0) -> 6494.5904 | I162: =TRUNC(G162*H162,2) -> 6494.59
A163: P9833 | B163: Auxiliar de laboratório | F163: func./mês | G163: 1 | H163: =VLOOKUP(A163,'Pessoal Sicro'!$A$6:$G$118,6,0) -> 6465.2457 | I163: =TRUNC(G163*H163,2) -> 6465.24
H164: Subtotal do Item | I164: =SUM(I162:I163) -> 12959.83
A165: Item | B165: Discriminação | C165: Und | D165: Quant | E165: Utilização Produtiva | F165: Utilização Improdutiva | G165: Horário Produtivo (R$) | H165: Horário Improdutivo (R$) | I165: Total (R$)
B166: Equipe de Controle Tecnológico
B167: Veículos
A168: E9125 | B168: Van furgão a diesel - 93 kW | C168: veic./mês | D168: 1 | E168: 44 | F168: 176 | G168: =VLOOKUP(A168,Equipamentos!$A$4:$K$533,10,0) -> 84.0248 | H168: =VLOOKUP(A168,Equipamentos!$A$4:$K$533,11,0) -> 45.6877 | I168: =D168*((E168*G168)+(F168*H168)) -> 11738.1264
H169: Subtotal do Item | I169: =SUM(I168:I168) -> 11738.1264
H170: Total da Equipe do Laboratório de Solos | I170: =I164+I169 -> 24697.9564
A172: 3. PARCELA VARIÁVEL - EQUIPE DE CONTROLE TECNOLÓGICO
A173: LABORATÓRIO DE ASFALTOS
A174: Item | B174: Discriminação | F174: Unidade | G174: Quantidade | H174: Custo Unitário (R$) | I174: Custo Total (R$)
B175: Laboratório de Solos (equipe x mês)
B176: Mão de Obra
A177: P9858 | B177: Laboratorista | F177: func./mês | G177: 1 | H177: =VLOOKUP(A177,'Pessoal Sicro'!$A$6:$G$118,6,0) -> 6494.5904 | I177: =TRUNC(G177*H177,2) -> 6494.59
A178: P9833 | B178: Auxiliar de laboratório | F178: func./mês | G178: 1 | H178: =VLOOKUP(A178,'Pessoal Sicro'!$A$6:$G$118,6,0) -> 6465.2457 | I178: =TRUNC(G178*H178,2) -> 6465.24
H179: Subtotal do Item | I179: =SUM(I177:I178) -> 12959.83
A180: Item | B180: Discriminação | C180: Und | D180: Quant | E180: Utilização Produtiva | F180: Utilização Improdutiva | G180: Horário Produtivo (R$) | H180: Horário Improdutivo (R$) | I180: Total (R$)
B181: Equipe de Controle Tecnológico
B182: Veículos
A183: E9125 | B183: Van furgão a diesel - 93 kW | C183: veic./mês | D183: 1 | E183: 44 | F183: 176 | G183: =VLOOKUP(A183,Equipamentos!$A$4:$K$533,10,0) -> 84.0248 | H183: =VLOOKUP(A183,Equipamentos!$A$4:$K$533,11,0) -> 45.6877 | I183: =D183*((E183*G183)+(F183*H183)) -> 11738.1264
H184: Subtotal do Item | I184: =SUM(I183:I183) -> 11738.1264
H185: Total da Equipe do Laboratório de Asfaltos | I185: =I179+I184 -> 24697.9564
A187: Equipes de laboratório de solos para pavimentação
A188: Item | B188: Discriminação | F188: Und | G188: Quant | H188: QE | I188: Els
A189: ='RESUMO MODULO TOTAL'!C26 -> 4011227 | B189: =VLOOKUP(A189,'SINTÉTICO SICRO'!A:D,2,0) -> Sub-base de solo estabilizado granulometricamente sem mistura com material de jazida - 100% Proctor intermediário | F189: =VLOOKUP(A189,'SINTÉTICO SICRO'!A:D,3,0) -> m³ | G189: ='RESUMO MODULO TOTAL'!H26 -> 18900 | H189: 21900 | I189: =G189/H189 -> 0.8630136986
A190: ='RESUMO MODULO TOTAL'!C27 -> 4011318 | B190: =VLOOKUP(A190,'SINTÉTICO SICRO'!A:D,2,0) -> Base ou sub-base estabilizada granulometricamente com mistura solo brita (70% - 30%) em usina com material de jazida e brita comercial - 100% Proctor modificado | F190: =VLOOKUP(A190,'SINTÉTICO SICRO'!A:D,3,0) -> m³ | G190: ='RESUMO MODULO TOTAL'!H27 -> 18900 | H190: 21900 | I190: =G190/H190 -> 0.8630136986
A191: ='RESUMO MODULO TOTAL'!C28 -> 4011209 | B191: =VLOOKUP(A191,'SINTÉTICO SICRO'!A:D,2,0) -> Regularização do subleito - 100% Proctor intermediário | F191: =VLOOKUP(A191,'SINTÉTICO SICRO'!A:D,3,0) -> m² | G191: ='RESUMO MODULO TOTAL'!H28 -> 126000 | H191: 21900 | I191: =G191/H191 -> 5.753424658
H192: Total de equipes de Laboratório de Solos para Pavimentação | I192: =SUM(I189:I191) -> 7.479452055
A194: Equipes de laboratório de Asfalto
A195: Item | B195: Discriminação | F195: Und | G195: Quant | H195: QE | I195: Ela
A196: ='RESUMO MODULO TOTAL'!C23 -> 4011463 | B196: =VLOOKUP(A196,'SINTÉTICO SICRO'!A:D,2,0) -> Concreto asfáltico - faixa C-12,5 - areia e brita comerciais | F196: =VLOOKUP(A196,'SINTÉTICO SICRO'!A:D,3,0) -> t | G196: ='RESUMO MODULO TOTAL'!H23 -> 15120 | H196: 9000 | I196: =G196/H196 -> 1.68
A197: ='RESUMO MODULO TOTAL'!C24 -> 4011352 | B197: =VLOOKUP(A197,'SINTÉTICO SICRO'!A:D,2,0) -> Imprimação com emulsão asfáltica | F197: =VLOOKUP(A197,'SINTÉTICO SICRO'!A:D,3,0) -> m² | G197: ='RESUMO MODULO TOTAL'!H24 -> 126000 | H197: 1610000 | I197: =G197/H197 -> 0.07826086957
A198: ='RESUMO MODULO TOTAL'!C25 -> 4011353 | B198: =VLOOKUP(A198,'SINTÉTICO SICRO'!A:D,2,0) -> Pintura de ligação | F198: =VLOOKUP(A198,'SINTÉTICO SICRO'!A:D,3,0) -> m² | G198: ='RESUMO MODULO TOTAL'!H25 -> 126000 | H198: 3610000 | I198: =G198/H198 -> 0.03490304709
H199: Total de equipes de Laboratório de Asfaltos | I199: =SUM(I196:I198) -> 1.793163917
A201: manutenção do canteiro de obras e acampamentos
A202: Código | B202: Discriminação | C202: Unidade | D202: Quantidade | F202: Custo Unitário (R$) | H202: Custo Total (R$)
B203: Manutenção do Canteiro de Obras e Acampamentos
A204: 6.1 | B204: Mão de Obra
A205: P9952 | B205: Pedreiro | C205: mês | D205: 0 | F205: =VLOOKUP(A205,'Pessoal Sicro'!$A$6:$G$118,6,0) -> 5100.3551 | H205: =F205*D205 -> 0
A206: P9954 | B206: Servente | C206: mês | D206: 0 | F206: =VLOOKUP(A206,'Pessoal Sicro'!$A$6:$G$118,6,0) -> 4006.6531 | H206: =F206*D206 -> 0
A207: P9953 | B207: Eletricista | C207: mês | D207: 0 | F207: =VLOOKUP(A207,'Pessoal Sicro'!$A$6:$G$118,6,0) -> 5583.7836 | H207: =F207*D207 -> 0
F208: Subtotal do Item 6.1 | H208: =SUM(H205:I207) -> 0
A210: Código | B210: Discriminação | C210: Unidade | D210: Quantidade | F210: Custo Produtivo (R$) | H210: Custo Total (R$)
A211: 6.2 | B211: Equipamentos
B212: Caminhão guindauto de 6 toneladas | C212: h/mês | D212: 0 | H212: =F212*D212 -> 0
B213: Caminhão tanque de 8.000 litros | C213: h/mês | D213: 0 | H213: =F213*D213 -> 0
A214: E9524 | B214: Motoniveladora | C214: h/mês | D214: 0 | F214: =Equipamentos!J168 -> 65.6087 | H214: =F214*D214 -> 0
F215: Subtotal do Item 6.2 | H215: =SUM(H212:I214) -> 0
G216: Total da Manutenção do Canteiro de Obras e Acampamentos | H216: =H215+H208 -> 0
A220: Resumo das parcelas de administração local
A221: Código | B221: Discriminação | C221: Unidade | D221: Quantidade | F221: Custo Unitário (R$) | H221: Custo Total (R$)
B222: Parcela Fixa
... 28 more rows

Sheet CPU CODEVASF
A4: ='RESUMO MODULO TOTAL'!B64 -> CONTRATAÇÃO DE SERVIÇOS DE PAVIMENTAÇÃO ASFÁLTICA COM CONCRETO BETUMINOSO USINADO A QUENTE (CBUQ) EM VIAS DE DIVERSOS MUNICÍPIOS INSERIDOS NA ÁREA DE ATUAÇÃO DA 16ª SUPERINTENDÊNCIA REGIONAL DA CODEVASF, NO ESTADO DE MINAS GERAIS - REGIÃO TRIÂNGULO E ALTO DO SÃO FRANCISCO
F5: BDI %: | G5: =BDI!$C$14 -> 0.2339
E6: Encargos Sociais: | G6: Horista | H6: Mensalista
G7: ='ENC. SOCIAIS'!E48/100 -> 1.1679 | H7: ='ENC. SOCIAIS'!F48/100 -> 0.7393
A8: COMPOSIÇÕES DE CUSTO UNITARIO
A9: CPU-12 | B9: CODEVASF | D9: Correção de vazamentos no ramal na rua sem pavimento com fornecimento do material hidráulico | E9: M | F9: COEF. | G9: PRECO UNITÁRIO (R$) | H9: TOTAL (R$)
A11: SICRO | B11: SICRO | C11: P9824 | D11: =VLOOKUP(C11,'Pessoal Sicro'!$A$5:$G$1048576,2,0) -> Servente | E11: H | F11: 0.2 | G11: =VLOOKUP(C11,'Pessoal Sicro'!$A$5:$G$1048576,6,0) -> 21.634 | H11: =F11*G11 -> 4.3268
A12: SICRO | B12: SICRO | C12: P9807 | D12: =VLOOKUP(C12,'Pessoal Sicro'!$A$5:$G$1048576,2,0) -> Bombeiro hidráulico | E12: H | F12: 0.1 | G12: =VLOOKUP(C12,'Pessoal Sicro'!$A$5:$G$1048576,6,0) -> 35.8132 | H12: 3.58132
A13: INS. SINAPI | B13: SINAPI | C13: 9867 | D13: TUBO PVC, SOLDAVEL, DN 20 MM, AGUA FRIA (NBR-5648) | E13: m | F13: 1 | G13: =IFERROR(VLOOKUP(C13,'INSUMOS SINAPI'!$A:$E,5,FALSE),VLOOKUP(C13,'COMP Sint. Sinapi'!$A:$E,4,FALSE)) -> 3.79 | H13: 3.79
A14: INSUMO | B14: ORSE | C14: 10585 | D14: Arco de serra | E14: un | F14: 0.1 | G14: 19.9 | H14: 1.99
A15: INS. SINAPI | B15: SINAPI | C15: 3859 | D15: LUVA SOLDAVEL COM ROSCA, PVC, 20 MM X 1/2", PARA AGUA FRIA PREDIAL | E15: un | F15: 2 | G15: =IFERROR(VLOOKUP(C15,'INSUMOS SINAPI'!$A:$E,5,FALSE),VLOOKUP(C15,'COMP Sint. Sinapi'!$A:$E,4,FALSE)) -> 1.36 | H15: 2.72
E16: Sub total: | H16: =SUM(H11:H15) -> 16.40812
F17: BDI | G17: =BDI!$C$14 -> 0.2339 | H17: =H16*G17 -> 3.837859268
G18: Total Serviços: | H18: =H16+H17 -> 20.24597927
E19: =A9 -> CPU-12 | F19: PREÇO UNITÁRIO TOTAL: | H19: =H18 -> 20.24597927 | I19: =H16 -> 16.40812
A21: CPU-13 | B21: CODEVASF | D21: AQUISIÇÃO DE CIMENTO ASFALTICO CAP 50/70 | E21: t | F21: COEF. | G21: PRECO UNITÁRIO (R$) | H21: TOTAL (R$)
D23: CIMENTO ASFALTICO 50/70 | E23: t | F23: 1 | G23: =RESUMO_Transp!$V$17 -> 4430.94547 | H23: =F23*G23 -> 4430.94547
E24: Sub total: | H24: =SUM(H23) -> 4430.94547
F25: BDI | G25: 0.15 | H25: =H24*G25 -> 664.6418205
G26: Total Serviços: | H26: =H24+H25 -> 5095.58729
E27: =A21 -> CPU-13 | F27: PREÇO UNITÁRIO TOTAL: | H27: =H26 -> 5095.58729 | I27: =H24 -> 4430.94547
A29: CPU-14 | B29: CODEVASF | D29: AQUISIÇÃO DE EAI | E29: t | F29: COEF. | G29: PRECO UNITÁRIO (R$) | H29: TOTAL (R$)
D31: EAI | E31: t | F31: 1 | G31: =RESUMO_Transp!$V$35 -> 2726.654786 | H31: =F31*G31 -> 2726.654786
E32: Sub total: | H32: =SUM(H31) -> 2726.654786
F33: BDI | G33: 0.15 | H33: =H32*G33 -> 408.9982179
G34: Total Serviços: | H34: =H32+H33 -> 3135.653004
E35: =A29 -> CPU-14 | F35: PREÇO UNITÁRIO TOTAL: | H35: =H34 -> 3135.653004 | I35: =H32 -> 2726.654786
A37: CPU-15 | B37: CODEVASF | D37: AQUISIÇÃO DE EMULSÃO ASFÁLTICA RR-1C | E37: t | F37: COEF. | G37: PRECO UNITÁRIO (R$) | H37: TOTAL (R$)
D39: EMULSÃO ASFÁLTICA RR-1C | E39: t | F39: 1 | G39: =RESUMO_Transp!$V$42 -> 3308.98895 | H39: =F39*G39 -> 3308.98895
E40: Sub total: | H40: =SUM(H39) -> 3308.98895
F41: BDI | G41: 0.15 | H41: =ROUND(H40,2)*ROUND(G41,4) -> 496.3485
G42: Total Serviços: | H42: =H40+H41 -> 3805.33745
E43: =A37 -> CPU-15 | F43: PREÇO UNITÁRIO TOTAL: | H43: =H42 -> 3805.33745 | I43: =H40 -> 3308.98895
A45: CPU-17 | B45: CODEVASF | D45: TRANSPORTE DE CIMENTO ASFALTICO CAP 50/70 | E45: t | F45: COEF. | G45: PRECO UNITÁRIO (R$) | H45: TOTAL (R$)
D47: TRANSPORTE DE CIMENTO ASFALTICO 50/70 | E47: t | F47: 1 | G47: =RESUMO_Transp!$U$17 -> 422.659542 | H47: =F47*G47 -> 422.659542
E48: Sub total: | H48: =SUM(H47) -> 422.659542
F49: BDI | G49: 0.15 | H49: =H48*G49 -> 63.3989313
G50: Total Serviços: | H50: =H48+H49 -> 486.0584733
E51: =A45 -> CPU-17 | F51: PREÇO UNITÁRIO TOTAL: | H51: =H50 -> 486.0584733 | I51: =H48 -> 422.659542
A53: CPU-18 | B53: CODEVASF | D53: TRANSPORTE DE EAI | E53: t | F53: COEF. | G53: PRECO UNITÁRIO (R$) | H53: TOTAL (R$)
D55: TRANSPORTE DE EAI | E55: t | F55: 1 | G55: =RESUMO_Transp!$U$35 -> 206.3669841 | H55: =F55*G55 -> 206.3669841
E56: Sub total: | H56: =SUM(H55) -> 206.3669841
F57: BDI | G57: 0.15 | H57: =H56*G57 -> 30.95504762
G58: Total Serviços: | H58: =H56+H57 -> 237.3220317
E59: =A53 -> CPU-18 | F59: PREÇO UNITÁRIO TOTAL: | H59: =H58 -> 237.3220317 | I59: =H56 -> 206.3669841
A61: CPU-19 | B61: CODEVASF | D61: TRANSPORTE DE EMULSÃO ASFÁLTICA RR-1C | E61: t | F61: COEF. | G61: PRECO UNITÁRIO (R$) | H61: TOTAL (R$)
D63: TRANSPORTE DE EMULSÃO ASFÁLTICA RR-1C | E63: t | F63: 1 | G63: =RESUMO_Transp!$U$42 -> 206.3669841 | H63: =F63*G63 -> 206.3669841
E64: Sub total: | H64: =SUM(H63) -> 206.3669841
F65: BDI | G65: 0.15 | H65: =H64*G65 -> 30.95504762
G66: Total Serviços: | H66: =H64+H65 -> 237.3220317
E67: =A61 -> CPU-19 | F67: PREÇO UNITÁRIO TOTAL: | H67: =H66 -> 237.3220317 | I67: =H64 -> 206.3669841

Sheet Projeto Executivo
A2: COMPOSIÇAO PREÇO PROJETO EXECUTIVO
A4: DISCRIMINAÇAO | F4: Pr. Unit. | G4: Pr. Total
A6: A· EOUIPE TECNICA | G6: =G7+G10 -> 15926.68314
B7: A. 1 - Pessoal de Nível Superior | C7: Unidade | D7: Quantitativo | E7: SICRO e Rel.Custos Gerais | G7: =G8+G9 -> 12401.16803
B8: Engenheiro | C8: mês | D8: 0.4 | E8: P9812 | F8: =VLOOKUP(E8,'Pessoal Sicro'!A:G,6,0) -> 26621.2552 | G8: =F8*D8 -> 10648.50208
B9: Topógrafo | C9: mês | D9: 0.25 | E9: P9949 | F9: =VLOOKUP(E9,'Pessoal Sicro'!A:G,6,0) -> 7010.6638 | G9: =F9*D9 -> 1752.66595
B10: A.2 - Pessoal de Nível Técnico e Aux. | G10: =G11+G12 -> 3525.515112
B11: Auxiliar de topógrafo | C11: mês | D11: 0.125 | E11: P9950 | F11: =VLOOKUP(E11,'Pessoal Sicro'!A:G,6,0) -> 6479.6361 | G11: =F11*D11 -> 809.9545125
B12: Auxiliar Técnico/Assistente de Engenharia | C12: mês | D12: 0.5 | E12: P9903 | F12: =VLOOKUP(E12,'Pessoal Sicro'!A:G,6,0) -> 5431.1212 | G12: =F12*D12 -> 2715.5606
A13: B - ENCARGOS SOCIAIS | G13: =G14 -> 0
B14: =CONCATENATE("Taxas ",'ENC. SOCIAIS'!E48,"%") -> Taxas 116,79% | C14: JÁ INCLUSAS EM "A"
A15: C - DESPESAS GERAIS | G15: =G16+G18+G17 -> 5254.647605
B16: C.1 - MATERIAIS DE CONSUMO | C16: Estimativa % como referência de equipe técnica com encargos sociais | D16: 0.03 | F16: =G6+G14 -> 15926.68314 | G16: =F16*D16 -> 477.8004943
B17: C.2 - VEÍCULOS (Veículo leve picape 4 x 4 com capacidade de 1,10 t - 147 kW) | C17: h | D17: 40 | E17: E9684 | F17: =VLOOKUP(E17,Equipamentos!A:K,10,0) -> 108.8705 | G17: =F17*D17 -> 4354.82
B18: C.3 - Estação total eletrônica com alcance máximo de 3.000 m | C18: h | D18: 52.15168868 | E18: E9553 | F18: =VLOOKUP(E18,Equipamentos!A:K,10,0) -> 8.0923 | G18: =F18*D18 -> 422.0271103
A19: D - ENSAIOS | G19: =SUM(G20:G23) -> 3616.414563
B20: Laboratorista | C20: mês | D20: =1/4 -> 0.25 | E20: P9858 | F20: =VLOOKUP(E20,'Pessoal Sicro'!A:G,6,0) -> 6494.5904 | G20: =F20*D20 -> 1623.6476
B21: Auxiliar de Laboratório | C21: mês | D21: =1/8 -> 0.125 | E21: P9833 | F21: =VLOOKUP(E21,'Pessoal Sicro'!A:G,6,0) -> 6465.2457 | G21: =F21*D21 -> 808.1557125
B22: Laboratório de solos | C22: mês | D22: =1/8 -> 0.125 | E22: B8957 | F22: =VLOOKUP(E22,'Tabelas 1 e 2'!C14:G23,5,0) -> 3597.39 | G22: =F22*D22 -> 449.67375
B23: Laboratório de asfalto | C23: mês | D23: 0.125 | E23: B8955 | F23: =VLOOKUP(E23,'Tabelas 1 e 2'!C15:G24,5,0) -> 5879.5 | G23: =F23*D23 -> 734.9375
A24: I - SOMA (A+B+C+D) | G24: =G6+G13+G15+G19 -> 24797.74531
F25: Produtividade (m2) | G25: ='MC MODULO'!C1*'MC MODULO'!C2 -> 14000
F26: Por m²: | G26: =TRUNC(G24/G25,2) -> 1.77

Sheet BDI
A2: DETALHAMENTO DO BDI - SEM DESONERAÇÃO
A3: ='RESUMO MODULO TOTAL'!B64 -> CONTRATAÇÃO DE SERVIÇOS DE PAVIMENTAÇÃO ASFÁLTICA COM CONCRETO BETUMINOSO USINADO A QUENTE (CBUQ) EM VIAS DE DIVERSOS MUNICÍPIOS INSERIDOS NA ÁREA DE ATUAÇÃO DA 16ª SUPERINTENDÊNCIA REGIONAL DA CODEVASF, NO ESTADO DE MINAS GERAIS - REGIÃO TRIÂNGULO E ALTO DO SÃO FRANCISCO
A4: DESCRIÇÃO DOS SERVIÇOS | B4: PREÇO DE VENDA (%) | C4: CUSTO DIRETO (%)
A5: ADMINISTRAÇÃO CENTRAL | C5: 0.06
A6: DESPESA FINANCEIRAS | B6: 0.0102
A7: SEGUROS E GARANTIAS CONTRATUAIS | B7: 0.0025
A8: RISCOS | B8: 0.005
A9: LUCRO OPERACIONAL | C9: 0.07
A10: PIS | B10: 0.0065
A11: COFINS | B11: 0.03
A12: ISSQN | B12: 0.03
A13: Contribuição Previdenciaria | B13: 0
B14: BDI | C14: =ROUND((1+(C5+C9))/(1-(B6+B7+B8+B10+B11+B12+B13))-1,4) -> 0.2339
A15: Observação: O percentual de ISSQN aqui utilizado consiste apenas em um referencial médio.
B16: O valor real do ISSQN a ser adotado deve ser aquele proveniente das alíquotas dos municípios situados na área de
B17: influência das obras.
A52: DETALHAMENTO DO BDI DIFERENCIADO - SEM DESONERAÇÃO
A53: ='RESUMO MODULO TOTAL'!B64 -> CONTRATAÇÃO DE SERVIÇOS DE PAVIMENTAÇÃO ASFÁLTICA COM CONCRETO BETUMINOSO USINADO A QUENTE (CBUQ) EM VIAS DE DIVERSOS MUNICÍPIOS INSERIDOS NA ÁREA DE ATUAÇÃO DA 16ª SUPERINTENDÊNCIA REGIONAL DA CODEVASF, NO ESTADO DE MINAS GERAIS - REGIÃO TRIÂNGULO E ALTO DO SÃO FRANCISCO
A55: DESCRIÇÃO DOS SERVIÇOS | B55: PREÇO DE VENDA (%) | C55: CUSTO DIRETO (%)
A56: ADMINISTRAÇÃO CENTRAL | C56: 0.0377
A57: DESPESA FINANCEIRAS | B57: 0.0102
A58: SEGUROS E GARANTIAS CONTRATUAIS | B58: 0.0025
A59: RISCOS | B59: 0.005
A60: LUCRO OPERACIONAL | C60: 0.05
A61: PIS | B61: 0.0065
A62: COFINS | B62: 0.03
A63: ISSQN | B63: 0
A64: Contribuição Previdenciaria | B64: 0
B65: BDI | C65: =ROUND((1+(C56+C60))/(1-(B57+B58+B59+B61+B62+B63+B64))-1,4) -> 0.15
A66: Fonte da composição, valores de referência e fórmula do BDI: Instrução Normativa N° 62/DNIT SEDE

Sheet ENC. SOCIAIS
A6: ='RESUMO MODULO TOTAL'!B64 -> CONTRATAÇÃO DE SERVIÇOS DE PAVIMENTAÇÃO ASFÁLTICA COM CONCRETO BETUMINOSO USINADO A QUENTE (CBUQ) EM VIAS DE DIVERSOS MUNICÍPIOS INSERIDOS NA ÁREA DE ATUAÇÃO DA 16ª SUPERINTENDÊNCIA REGIONAL DA CODEVASF, NO ESTADO DE MINAS GERAIS - REGIÃO TRIÂNGULO E ALTO DO SÃO FRANCISCO
A8: DETALHAMENTO DOS ENCARGOS SOCIAIS (%)
A9: VIGÊNCIA A PARTIR DE 01/2025 | C9: COM DESONERAÇÃO | E9: SEM DESONERAÇÃO
C11: HORISTA | D11: MENSALISTA | E11: HORISTA | F11: MENSALISTA
A13: GRUPO A
A14: A1 | B14: INSS | C14: 0 | D14: 0 | E14: 20 | F14: 20
A15: A2 | B15: SESI | C15: 1.5 | D15: 1.5 | E15: 1.5 | F15: 1.5
A16: A3 | B16: SENAI | C16: 1 | D16: 1 | E16: 1 | F16: 1
A17: A4 | B17: INCRA | C17: 0.2 | D17: 0.2 | E17: 0.2 | F17: 0.2
A18: A5 | B18: SEBRAE | C18: 0.6 | D18: 0.6 | E18: 0.6 | F18: 0.6
A19: A6 | B19: Salário Educação | C19: 2.5 | D19: 2.5 | E19: 2.5 | F19: 2.5
A20: A7 | B20: Seguro Contra Acidentes de Trabalho | C20: 3 | D20: 3 | E20: 3 | F20: 3
A21: A8 | B21: FGTS | C21: 8 | D21: 8 | E21: 8 | F21: 8
A22: A9 | B22: SECONCI | C22: 1 | D22: 1 | E22: 1.2 | F22: 1.2
A23: A | B23: Total | C23: =SUM(C14:C22) -> 17.8 | D23: =SUM(D14:D22) -> 17.8 | E23: =SUM(E14:E22) -> 38 | F23: =SUM(F14:F22) -> 38
A24: GRUPO B
A25: B1 | B25: Repouso Semanal Remunerado | C25: 17.88 | D25: - | E25: 17.76 | F25: -
A26: B2 | B26: Feriados | C26: 3.94 | D26: - | E26: 3.68 | F26: -
A27: B3 | B27: Auxílio-enfermidade | C27: 0.91 | D27: 0.69 | E27: 0.86 | F27: 0.65
A28: B4 | B28: 13° salário | C28: 10.98 | D28: 8.33 | E28: 11.06 | F28: 8.33
A29: B5 | B29: Licença-paternidade | C29: 0.07 | D29: 0.06 | E29: 0.07 | F29: 0.05
A30: B6 | B30: Faltas Justificadas | C30: 0.73 | D30: 0.56 | E30: 0.74 | F30: 0.56
A31: B7 | B31: Dias de chuva | C31: 1.45 | D31: - | E31: 1.09 | F31: -
A32: B8 | B32: Auxílio Acidente de Trabalho | C32: 0.11 | D32: 0.09 | E32: 0.1 | F32: 0.07
A33: B9 | B33: Férias Gozadas | C33: 11.35 | D33: 8.62 | E33: 13.84 | F33: 10.42
A34: B10 | B34: Salário Maternidade | C34: 0.03 | D34: 0.03 | E34: 0.03 | F34: 0.03
A35: B | B35: Total | C35: =SUM(C25:C34) -> 47.45 | D35: =SUM(D25:D34) -> 18.38 | E35: =SUM(E25:E34) -> 49.23 | F35: =SUM(F25:F34) -> 20.11
A36: GRUPO C
A37: C1 | B37: Aviso Prévio Indenizado | C37: 6.76 | D37: 5.14 | E37: 5.97 | F37: 4.5
A38: C2 | B38: Aviso Prévio Trabalhado | C38: 0.16 | D38: 0.12 | E38: 0.14 | F38: 0.11
A39: C3 | B39: Férias Indenizadas | C39: 2.28 | D39: 1.73 | E39: 0.93 | F39: 0.7
A40: C4 | B40: Depósito Rescisão Sem Justa Causa | C40: 3.81 | D40: 2.89 | E40: 2.78 | F40: 2.09
A41: C5 | B41: Indenização Adicional | C41: 0.57 | D41: 0.43 | E41: 0.5 | F41: 0.38
A42: C | B42: Total | C42: =SUM(C37:C41) -> 13.58 | D42: =SUM(D37:D41) -> 10.31 | E42: =SUM(E37:E41) -> 10.32 | F42: =SUM(F37:F41) -> 7.78
A43: GRUPO D
A44: D1 | B44: Reincidência de A sobre B | C44: 8.45 | D44: 3.27 | E44: 18.71 | F44: 7.64
A45: D2 | B45: Reincidência de Grupo A sobre Aviso Prévio Trabalhado e Reincidência do FGTS sobre Aviso Prévio Indenizado | C45: 0.57 | D45: 0.43 | E45: 0.53 | F45: 0.4
A46: D | B46: Total | C46: =SUM(C44:C45) -> 9.02 | D46: =SUM(D44:D45) -> 3.7 | E46: =SUM(E44:E45) -> 19.24 | F46: =SUM(F44:F45) -> 8.04 | H46: Fonte: Sinapi Cálculos e Parâmetros 5ª Edição - Atualizada em Agosto 2023
A48: T O T A L (%) | C48: =C23+C35+C42+C46 -> 87.85 | D48: =D23+D35+D42+D46 -> 50.19 | E48: =E23+E35+E42+E46 -> 116.79 | F48: =F23+F35+F42+F46 -> 73.93

Sheet Transporte Cap 50-70
C3: MEMÓRIA DE CÁLCULO
C8: REAJUSTE | F8: TIPOLOGIA DO MATERIAL | I8: CIMENTOS ASFÁLTICOS CAP-50-70 | M8: IMPOSTOS | N8: COFINS | O8: 0.0065 | P8: 0.0065
G9: ÍNDICE DE PAVIMENTAÇÃO DNIT | H9: 2014-07-01 | I9: ÍNDICE INICIAL | J9: 270.237 | L9: =(L14/(1-(O8+O9+O10-((O9+O8)*O10))))-L14 -> 925.5050435 | N9: PIS | O9: 0.03 | P9: 0.03 | T9: LEGENDA | AC9: As empresas tributadas pelo Lucro Presumido pagam 0,65% de PIS e 3% de COFINS
H10: 2025-09-01 | I10: ÍNDICE FINAL | J10: 589.906 | N10: ICMS | O10: 0.18 | P10: 0.18 | Q10: =1-(O10/1) -> 0.82 | R10: =1-(P10/1) -> 0.82 | S10: =1-(Q10/1) -> 0.18 | T10: ENTRADA DE DADOS | AC10: As empresas tributadas pelo Lucro Real pagam 1,65% de PIS e 7,60% de COFINS
G11: Data ANP | H11: 2025-08-01
C12: DATA-BASE | D12: PRODUTOS | E12: LOCALIDADES | J12: CUSTO ANP (R$/Kg) | L12: CUSTO ANP | M12: IMPOSTOS DO PRODUTO | N12: CUSTO DO PRODUTO COM IMPOSTOS | O12: DMT's | P12: DMT's FLUVIAL | Q12: CUSTO DO TRANSPORTE RODOVIA PAVIMENTADA | R12: CUSTO DO TRANSPORTE FLUVIAL | S12: CUSTO DO TRANSPORTE TOTAL | T12: ICMS | U12: ATUALIZAÇÃO DO CUSTO DE TRANSPORTE | V12: CUSTO DO TRANSPORTE RODOVIA PAVIMENTADA COM IMPOSTOS E ATUALIZAÇÃO MONETÁRIA | W12: PEDÁGIO | Y12: TOTAL TRANSPORTE | Z12: AQUISIÇÃO DO PRODUTO | AA12: TOTAL GERAL ( TRANSP + AQUISIÇÃO) | AC12: 1 | AD12: 2 | AE12: 3
C13: =H10 -> 2025-09-01 | E13: REFINARIAS | F13: ENDEREÇO | G13: ESTADO | H13: CIDADE | I13: DESTINO | J13: ESTADO | K13: REGIÃO | L13: R$/t | M13: R$/t | N13: R$/t | O13: KM | P13: KM | Q13: R$/t | R13: R$/t | S13: R$/t | T13: R$/t | U13: R$/t | V13: R$/t | W13: CUSTO | X13: R$/t | Y13: R$/t | Z13: R$/t | AA13: R$/t | AC13: TOTAL GERAL ( TRANSP + AQUISIÇÃO) | AD13: TOTAL TRANSPORTE | AE13: AQUISIÇÃO DO PRODUTO
B14: =AA14 -> 5970.44775 | C14: 1 | D14: =I8 -> CIMENTOS ASFÁLTICOS CAP-50-70 | E14: Refinaria Abreu e Lima | F14: Rodovia PE 60, Km 10 - Ipojuca - PE CEP:55590-000 | G14: Pernambuco | H14: IPOJUCA - PE | I14: Araxá - MG | J14: =VLOOKUP('Transporte Cap 50-70'!G14,OFFSET('ANP ESTADO'!$A$1,MATCH('Transporte Cap 50-70'!$I$8,'ANP ESTADO'!B:B,0)+MATCH('Transporte Cap 50-70'!$H$11,OFFSET('ANP ESTADO'!$A$1,MATCH('Transporte Cap 50-70'!$I$8,'ANP ESTADO'!B:B,0),0,100000,1),0),2,100000,2),2,FALSE) -> - | K14: =VLOOKUP($H$11,OFFSET('ANP REGIÃO'!$A$9,MATCH('Transporte Cap 50-70'!$I$8,'ANP REGIÃO'!A:A,0),1,10000,10000),MATCH('Transporte Cap 50-70'!AH14,'ANP REGIÃO'!$B$8:$G$8,0),FALSE) -> 3.483131376 | L14: =IF(AND(J14="-",K14="-"),"",IF(AND(J14<>0,K14="-"),J14*1000,IF(AND(J14="-",K14<>0),K14*1000,IF(AND(J14<>0,K14<>0),J14*1000,"")))) -> 3483.131376 | M14: =ROUND(((L14/(1-$O$8-$O$9-$O$10+($O$9+$O$8)*$O$10)-L14)),2) -> 925.51 | N14: =L14+M14 -> 4408.641376 | O14: 2193 | P14: 0 | Q14: =ROUND((26.939+0.253*O14),2) -> 581.77 | S14: =Q14+R14 -> 581.77 | T14: =TRUNC(S14*($O$10/(1-$O$10)),2) -> 127.7 | U14: =TRUNC(IF($J$9="","",(($J$10-$J$9)/$J$9)*(S14+T14)),2) -> 839.24 | V14: =S14+T14+U14 -> 1548.71 | W14: 183 | X14: =EVEN(' CONSUMO DE MAT. B TOTAL'!$P$13*2/28)*W14/' CONSUMO DE MAT. B TOTAL'!$P$13 -> 13.09637405 | Y14: =IF(AND(Q14="",T14=""),"",V14+X14) -> 1561.806374 | Z14: =IF(OR(L14="",M14=""),"",L14+M14) -> 4408.641376 | AA14: =IF(OR(Y14="",Z14=""),"",Y14+Z14) -> 5970.44775 | AC14: =AA14 -> 5970.44775 | AD14: =Y14 -> 1561.806374 | AE14: =Z14 -> 4408.641376 | AH14: =IF(OR(G14=$D$52,G14=$D$53,G14=$D$55,G14=$D$61,G14=$D$45,G14=$D$41,G14=$D$37,G14=$D$50,G14=$D$40),"NORDESTE",IF(OR(G14=$D$36,G14=$D$38,G14=$D$39,G14=$D$49,G14=$D$57,G14=$D$58,G14=$D$62),"NORTE",IF(OR(G14=$D$42,G14=$D$44,G14=$D$46,G14=$D$47),"CENTRO-OESTE",IF(OR(G14=$D$60,G14=$D$54,G14=$D$48,G14=$D$43),"SUDESTE",IF(OR(G14=$D$59,G14=$D$51,G14=$D$56),"SUL",""))))) -> NORDESTE
B15: =AA15 -> 6190.68775 | C15: 3 | E15: Refinaria Potiguar Clara Camarão | F15: Rodovia RN 221, KM 25 - Guamaré - RN CEP:59598-000 | G15: Rio Grande do Norte | H15: GUAMARÉ - RN | I15: Araxá - MG | J15: =VLOOKUP('Transporte Cap 50-70'!G15,OFFSET('ANP ESTADO'!$A$1,MATCH('Transporte Cap 50-70'!$I$8,'ANP ESTADO'!B:B,0)+MATCH('Transporte Cap 50-70'!$H$11,OFFSET('ANP ESTADO'!$A$1,MATCH('Transporte Cap 50-70'!$I$8,'ANP ESTADO'!B:B,0),0,100000,1),0),2,100000,2),2,FALSE) -> - | K15: =VLOOKUP($H$11,OFFSET('ANP REGIÃO'!$A$9,MATCH('Transporte Cap 50-70'!$I$8,'ANP REGIÃO'!A:A,0),1,10000,10000),MATCH('Transporte Cap 50-70'!AH15,'ANP REGIÃO'!$B$8:$G$8,0),FALSE) -> 3.483131376 | L15: =IF(AND(J15="-",K15=""),"",IF(AND(J15<>0,K15=""),J15*1000,IF(AND(J15="-",K15<>0),K15*1000,IF(AND(J15<>0,K15<>0),J15*1000,"")))) -> 3483.131376 | M15: =ROUND(((L15/(1-$O$8-$O$9-$O$10+($O$9+$O$8)*$O$10)-L15)),2) -> 925.51 | N15: =L15+M15 -> 4408.641376 | O15: 2520 | P15: 0 | Q15: =ROUND((26.939+0.253*O15),2) -> 664.5 | S15: =Q15+R15 -> 664.5 | T15: =TRUNC(S15*($O$10/(1-$O$10)),2) -> 145.86 | U15: =TRUNC(IF($J$9="","",(($J$10-$J$9)/$J$9)*(S15+T15)),2) -> 958.59 | V15: =S15+T15+U15 -> 1768.95 | W15: 183 | X15: =EVEN(' CONSUMO DE MAT. B TOTAL'!$P$13*2/28)*W15/' CONSUMO DE MAT. B TOTAL'!$P$13 -> 13.09637405 | Y15: 1782.046374 | Z15: 4408.641376 | AA15: =IF(OR(Y15="",Z15=""),"",Y15+Z15) -> 6190.68775 | AC15: =AA15 -> 6190.68775 | AD15: =Y15 -> 1782.046374 | AE15: =Z15 -> 4408.641376 | AH15: =IF(OR(G15=$D$52,G15=$D$53,G15=$D$55,G15=$D$61,G15=$D$45,G15=$D$41,G15=$D$37,G15=$D$50,G15=$D$40),"NORDESTE",IF(OR(G15=$D$36,G15=$D$38,G15=$D$39,G15=$D$49,G15=$D$57,G15=$D$58,G15=$D$62),"NORTE",IF(OR(G15=$D$42,G15=$D$44,G15=$D$46,G15=$D$47),"CENTRO-OESTE",IF(OR(G15=$D$60,G15=$D$54,G15=$D$48,G15=$D$43),"SUDESTE",IF(OR(G15=$D$59,G15=$D$51,G15=$D$56),"SUL",""))))) -> NORDESTE
B16: 5600.9516 | C16: 4 | E16: Refinaria Landulpho Alves (RLAM) | F16: Rodovia BA 523, KM 4 – Mataripe São Francisco do Conde - BA CEP:43900-000 | G16: Bahia | H16: SÃO FRANCISCO DO CONDE - BA | I16: Araxá - MG | J16: =VLOOKUP('Transporte Cap 50-70'!G16,OFFSET('ANP ESTADO'!$A$1,MATCH('Transporte Cap 50-70'!$I$8,'ANP ESTADO'!B:B,0)+MATCH('Transporte Cap 50-70'!$H$11,OFFSET('ANP ESTADO'!$A$1,MATCH('Transporte Cap 50-70'!$I$8,'ANP ESTADO'!B:B,0),0,100000,1),0),2,100000,2),2,FALSE) -> 3.557182364 | K16: =VLOOKUP($H$11,OFFSET('ANP REGIÃO'!$A$9,MATCH('Transporte Cap 50-70'!$I$8,'ANP REGIÃO'!A:A,0),1,10000,10000),MATCH('Transporte Cap 50-70'!AH16,'ANP REGIÃO'!$B$8:$G$8,0),FALSE) -> 3.483131376 | L16: 3557.182364 | M16: 945.18 | N16: 4502.362364 | O16: 1503 | P16: 0 | Q16: =ROUND((26.939+0.253*O16),2) -> 407.2 | S16: 407.2 | T16: 89.38 | U16: 587.41 | V16: 1083.99 | W16: 204 | X16: =EVEN(' CONSUMO DE MAT. B TOTAL'!$P$13*2/28)*W16/' CONSUMO DE MAT. B TOTAL'!$P$13 -> 14.59923664 | Y16: 1098.589237 | Z16: 4502.362364 | AA16: 5600.9516 | AC16: 5600.9516 | AD16: 1098.589237 | AE16: 4502.362364 | AH16: NORDESTE
A17: 2403 | B17: 6159.548671 | C17: 5 | E17: Refinaria Lubrificantes e Derivados do Nordeste (Lubnor) | F17: Av. Leite Barbosa, s/nº - Mucuripe Fortaleza - Ceará CEP:60180-420 | G17: Ceará | H17: FORTALEZA - CE | I17: Araxá - MG | J17: =VLOOKUP('Transporte Cap 50-70'!G17,OFFSET('ANP ESTADO'!$A$1,MATCH('Transporte Cap 50-70'!$I$8,'ANP ESTADO'!B:B,0)+MATCH('Transporte Cap 50-70'!$H$11,OFFSET('ANP ESTADO'!$A$1,MATCH('Transporte Cap 50-70'!$I$8,'ANP ESTADO'!B:B,0),0,100000,1),0),2,100000,2),2,FALSE) -> 3.419162297 | K17: =VLOOKUP($H$11,OFFSET('ANP REGIÃO'!$A$9,MATCH('Transporte Cap 50-70'!$I$8,'ANP REGIÃO'!A:A,0),1,10000,10000),MATCH('Transporte Cap 50-70'!AH17,'ANP REGIÃO'!$B$8:$G$8,0),FALSE) -> 3.483131376 | L17: =IF(AND(J17="-",K17=""),"",IF(AND(J17<>0,K17=""),J17*1000,IF(AND(J17="-",K17<>0),K17*1000,IF(AND(J17<>0,K17<>0),J17*1000,"")))) -> 3419.162297 | M17: 908.51 | N17: 4327.672297 | O17: 2594 | P17: 0 | Q17: 683.22 | S17: 683.22 | T17: 149.97 | U17: 985.59 | V17: 1818.78 | W17: 183 | X17: =EVEN(' CONSUMO DE MAT. B TOTAL'!$P$13*2/28)*W17/' CONSUMO DE MAT. B TOTAL'!$P$13 -> 13.09637405 | Y17: 1831.876374 | Z17: 4327.672297 | AA17: 6159.548671 | AC17: 6159.548671 | AD17: 1831.876374 | AE17: 4327.672297 | AH17: NORDESTE
B18: 4985.273256 | C18: 6 | E18: Refinaria Capuava (Recap) | F18: Av. Alberto Soares Sampaio, 2122-A Capuava – Mauá - SP | G18: São Paulo | H18: MAUÁ - SP | I18: Araxá - MG | J18: =VLOOKUP('Transporte Cap 50-70'!G18,OFFSET('ANP ESTADO'!$A$1,MATCH('Transporte Cap 50-70'!$I$8,'ANP ESTADO'!B:B,0)+MATCH('Transporte Cap 50-70'!$H$11,OFFSET('ANP ESTADO'!$A$1,MATCH('Transporte Cap 50-70'!$I$8,'ANP ESTADO'!B:B,0),0,100000,1),0),2,100000,2),2,FALSE) -> 3.50075547 | K18: =VLOOKUP($H$11,OFFSET('ANP REGIÃO'!$A$9,MATCH('Transporte Cap 50-70'!$I$8,'ANP REGIÃO'!A:A,0),1,10000,10000),MATCH('Transporte Cap 50-70'!AH18,'ANP REGIÃO'!$B$8:$G$8,0),FALSE) -> 3.578562234 | L18: 3500.75547 | M18: 930.19 | N18: 4430.94547 | O18: 637 | P18: 0 | Q18: 188.1 | S18: 188.1 | T18: 41.29 | U18: 271.35 | V18: 500.74 | W18: 748.8 | X18: =EVEN(' CONSUMO DE MAT. B TOTAL'!$P$13*2/28)*W18/' CONSUMO DE MAT. B TOTAL'!$P$13 -> 53.58778626 | Y18: 554.3277863 | Z18: 4430.94547 | AA18: 4985.273256 | AC18: 4985.273256 | AD18: 554.3277863 | AE18: 4430.94547 | AH18: SUDESTE
B19: 5062.853279 | C19: 7 | E19: Refinaria Duque de Caxias (Reduc) | F19: Rodovia Washington Luiz, km 113,7 Campos Elíseos – Duque de Caxias - RJ CEP:25213-005 | G19: Rio de Janeiro | H19: DUQUE DE CAXIAS - RJ | I19: Araxá - MG | J19: =VLOOKUP('Transporte Cap 50-70'!G19,OFFSET('ANP ESTADO'!$A$1,MATCH('Transporte Cap 50-70'!$I$8,'ANP ESTADO'!B:B,0)+MATCH('Transporte Cap 50-70'!$H$11,OFFSET('ANP ESTADO'!$A$1,MATCH('Transporte Cap 50-70'!$I$8,'ANP ESTADO'!B:B,0),0,100000,1),0),2,100000,2),2,FALSE) -> 3.50108221 | K19: =VLOOKUP($H$11,OFFSET('ANP REGIÃO'!$A$9,MATCH('Transporte Cap 50-70'!$I$8,'ANP REGIÃO'!A:A,0),1,10000,10000),MATCH('Transporte Cap 50-70'!AH19,'ANP REGIÃO'!$B$8:$G$8,0),FALSE) -> 3.578562234 | L19: 3501.08221 | M19: 930.27 | N19: 4431.35221 | O19: 778 | P19: 0 | Q19: 223.77 | S19: 223.77 | T19: 49.12 | U19: 322.8 | V19: 595.69 | W19: 500.4 | X19: =EVEN(' CONSUMO DE MAT. B TOTAL'!$P$13*2/28)*W19/' CONSUMO DE MAT. B TOTAL'!$P$13 -> 35.8110687 | Y19: 631.5010687 | Z19: 4431.35221 | AA19: 5062.853279 | AC19: 5062.853279 | AD19: 631.5010687 | AE19: 4431.35221 | AH19: SUDESTE
B20: 6081.301565 | C20: 8 | E20: Refinaria Alberto Pasqualini (Refap) | F20: Avenida Getúlio Vargas, 11001 - Bairro Brigadeira Canoas - RS - Brasil CEP:92420-221 | G20: Rio Grande do Sul | H20: CANOAS - RS | I20: Araxá - MG | J20: =VLOOKUP('Transporte Cap 50-70'!G20,OFFSET('ANP ESTADO'!$A$1,MATCH('Transporte Cap 50-70'!$I$8,'ANP ESTADO'!B:B,0)+MATCH('Transporte Cap 50-70'!$H$11,OFFSET('ANP ESTADO'!$A$1,MATCH('Transporte Cap 50-70'!$I$8,'ANP ESTADO'!B:B,0),0,100000,1),0),2,100000,2),2,FALSE) -> 3.778730878 | K20: =VLOOKUP($H$11,OFFSET('ANP REGIÃO'!$A$9,MATCH('Transporte Cap 50-70'!$I$8,'ANP REGIÃO'!A:A,0),1,10000,10000),MATCH('Transporte Cap 50-70'!AH20,'ANP REGIÃO'!$B$8:$G$8,0),FALSE) -> 3.721252386 | L20: 3778.730878 | M20: 1004.05 | N20: 4782.780878 | O20: 1674 | P20: 0 | Q20: 450.46 | S20: 450.46 | T20: 98.88 | U20: 649.82 | V20: 1199.16 | W20: 1388.4 | X20: =EVEN(' CONSUMO DE MAT. B TOTAL'!$P$13*2/28)*W20/' CONSUMO DE MAT. B TOTAL'!$P$13 -> 99.36068702 | Y20: 1298.520687 | Z20: 4782.780878 | AA20: 6081.301565 | AC20: 6081.301565 | AD20: 1298.520687 | AE20: 4782.780878 | AH20: SUL
B21: 5441.428233 | C21: 9 | E21: Unidade de Industrialização do Xisto (SIX) | F21: Rodovia do Xisto, BR 476, km 153 São Mateus do Sul – PR CEP 83900-000 | G21: Paraná | H21: SÃO MATEUS DO SUL - PR | I21: Araxá - MG | J21: =VLOOKUP('Transporte Cap 50-70'!G21,OFFSET('ANP ESTADO'!$A$1,MATCH('Transporte Cap 50-70'!$I$8,'ANP ESTADO'!B:B,0)+MATCH('Transporte Cap 50-70'!$H$11,OFFSET('ANP ESTADO'!$A$1,MATCH('Transporte Cap 50-70'!$I$8,'ANP ESTADO'!B:B,0),0,100000,1),0),2,100000,2),2,FALSE) -> 3.688921458 | K21: =VLOOKUP($H$11,OFFSET('ANP REGIÃO'!$A$9,MATCH('Transporte Cap 50-70'!$I$8,'ANP REGIÃO'!A:A,0),1,10000,10000),MATCH('Transporte Cap 50-70'!AH21,'ANP REGIÃO'!$B$8:$G$8,0),FALSE) -> 3.721252386 | L21: 3688.921458 | M21: 980.19 | N21: 4669.111458 | O21: 957 | P21: 0 | Q21: 269.06 | S21: 269.06 | T21: 59.06 | U21: 388.14 | V21: 716.26 | W21: 783.3 | X21: =EVEN(' CONSUMO DE MAT. B TOTAL'!$P$13*2/28)*W21/' CONSUMO DE MAT. B TOTAL'!$P$13 -> 56.05677481 | Y21: 772.3167748 | Z21: 4669.111458 | AA21: 5441.428233 | AC21: 5441.428233 | AD21: 772.3167748 | AE21: 4669.111458 | AH21: SUL
B22: 4949.873738 | C22: 10 | E22: Refinaria Gabriel Passos (Regap) | F22: Av. Refinaria Gabriel Passos, 690 Distrito Industrial Paulo Camilo Sul Betim - MG CEP:32669-205 | G22: Minas Gerais | H22: BETIM - MG | I22: Araxá - MG | J22: =VLOOKUP('Transporte Cap 50-70'!G22,OFFSET('ANP ESTADO'!$A$1,MATCH('Transporte Cap 50-70'!$I$8,'ANP ESTADO'!B:B,0)+MATCH('Transporte Cap 50-70'!$H$11,OFFSET('ANP ESTADO'!$A$1,MATCH('Transporte Cap 50-70'!$I$8,'ANP ESTADO'!B:B,0),0,100000,1),0),2,100000,2),2,FALSE) -> 3.670681868 | K22: =VLOOKUP($H$11,OFFSET('ANP REGIÃO'!$A$9,MATCH('Transporte Cap 50-70'!$I$8,'ANP REGIÃO'!A:A,0),1,10000,10000),MATCH('Transporte Cap 50-70'!AH22,'ANP REGIÃO'!$B$8:$G$8,0),FALSE) -> 3.578562234 | L22: 3670.681868 | M22: 975.34 | N22: 4646.021868 | O22: 331 | P22: 0 | Q22: 110.68 | S22: 110.68 | T22: 24.29 | U22: 159.65 | V22: 294.62 | W22: 129 | X22: =EVEN(' CONSUMO DE MAT. B TOTAL'!$P$13*2/28)*W22/' CONSUMO DE MAT. B TOTAL'!$P$13 -> 9.231870229 | Y22: 303.8518702 | Z22: 4646.021868 | AA22: =IF(OR(Y22="",Z22=""),"",Y22+Z22) -> 4949.873738 | AC22: 4949.873738 | AD22: 303.8518702 | AE22: 4646.021868 | AH22: SUDESTE
B23: 5443.888633 | C23: 11 | E23: Refinaria Presidente Getúlio Vargas (Repar) | F23: Rodovia do Xisto, BR 476, km 16 Araucária - PR CEP:83707-440 | G23: Paraná | H23: ARAUCÁRIA - PR | I23: Araxá - MG | J23: =VLOOKUP('Transporte Cap 50-70'!G23,OFFSET('ANP ESTADO'!$A$1,MATCH('Transporte Cap 50-70'!$I$8,'ANP ESTADO'!B:B,0)+MATCH('Transporte Cap 50-70'!$H$11,OFFSET('ANP ESTADO'!$A$1,MATCH('Transporte Cap 50-70'!$I$8,'ANP ESTADO'!B:B,0),0,100000,1),0),2,100000,2),2,FALSE) -> 3.688921458 | K23: =VLOOKUP($H$11,OFFSET('ANP REGIÃO'!$A$9,MATCH('Transporte Cap 50-70'!$I$8,'ANP REGIÃO'!A:A,0),1,10000,10000),MATCH('Transporte Cap 50-70'!AH23,'ANP REGIÃO'!$B$8:$G$8,0),FALSE) -> 3.721252386 | L23: 3688.921458 | M23: 980.19 | N23: 4669.111458 | O23: 947 | P23: 0 | Q23: 266.53 | S23: 266.53 | T23: 58.5 | U23: 384.48 | V23: 709.51 | W23: 912 | X23: =EVEN(' CONSUMO DE MAT. B TOTAL'!$P$13*2/28)*W23/' CONSUMO DE MAT. B TOTAL'!$P$13 -> 65.26717557 | Y23: 774.7771756 | Z23: 4669.111458 | AA23: 5443.888633 | AC23: 5443.888633 | AD23: 774.7771756 | AE23: 4669.111458 | AH23: SUL
B24: 4993.343256 | C24: 12 | E24: Refinaria Presidente Bernardes (RPBC) | F24: Av. 9 de abril, 777 - Jardim das Indústrias Cubatão - SP CEP:11505-000 | G24: São Paulo | H24: CUBATÃO - SP | I24: Araxá - MG | J24: =VLOOKUP('Transporte Cap 50-70'!G24,OFFSET('ANP ESTADO'!$A$1,MATCH('Transporte Cap 50-70'!$I$8,'ANP ESTADO'!B:B,0)+MATCH('Transporte Cap 50-70'!$H$11,OFFSET('ANP ESTADO'!$A$1,MATCH('Transporte Cap 50-70'!$I$8,'ANP ESTADO'!B:B,0),0,100000,1),0),2,100000,2),2,FALSE) -> 3.50075547 | K24: =VLOOKUP($H$11,OFFSET('ANP REGIÃO'!$A$9,MATCH('Transporte Cap 50-70'!$I$8,'ANP REGIÃO'!A:A,0),1,10000,10000),MATCH('Transporte Cap 50-70'!AH24,'ANP REGIÃO'!$B$8:$G$8,0),FALSE) -> 3.578562234 | L24: 3500.75547 | M24: 930.19 | N24: 4430.94547 | O24: 649 | P24: 0 | Q24: 191.14 | S24: 191.14 | T24: 41.95 | U24: 275.72 | V24: 508.81 | W24: 748.8 | X24: =EVEN(' CONSUMO DE MAT. B TOTAL'!$P$13*2/28)*W24/' CONSUMO DE MAT. B TOTAL'!$P$13 -> 53.58778626 | Y24: 562.3977863 | Z24: 4430.94547 | AA24: 4993.343256 | AC24: 4993.343256 | AD24: 562.3977863 | AE24: 4430.94547 | AH24: SUDESTE
B25: 4853.605012 | C25: 13 | E25: Refinaria de Paulínia (Replan) | F25: Rodovia SP 332 - Km. 130 Bonfim - Paulínia – SP CEP:13140-000 | G25: São Paulo | H25: PAULÍNIA - SP | I25: Araxá - MG | J25: =VLOOKUP('Transporte Cap 50-70'!G25,OFFSET('ANP ESTADO'!$A$1,MATCH('Transporte Cap 50-70'!$I$8,'ANP ESTADO'!B:B,0)+MATCH('Transporte Cap 50-70'!$H$11,OFFSET('ANP ESTADO'!$A$1,MATCH('Transporte Cap 50-70'!$I$8,'ANP ESTADO'!B:B,0),0,100000,1),0),2,100000,2),2,FALSE) -> 3.50075547 | K25: =VLOOKUP($H$11,OFFSET('ANP REGIÃO'!$A$9,MATCH('Transporte Cap 50-70'!$I$8,'ANP REGIÃO'!A:A,0),1,10000,10000),MATCH('Transporte Cap 50-70'!AH25,'ANP REGIÃO'!$B$8:$G$8,0),FALSE) -> 3.578562234 | L25: 3500.75547 | M25: 930.19 | N25: 4430.94547 | O25: 458 | P25: 0 | Q25: 142.81 | S25: 142.81 | T25: 31.34 | U25: 206 | V25: 380.15 | W25: 594 | X25: =EVEN(' CONSUMO DE MAT. B TOTAL'!$P$13*2/28)*W25/' CONSUMO DE MAT. B TOTAL'!$P$13 -> 42.50954198 | Y25: 422.659542 | Z25: 4430.94547 | AA25: 4853.605012 | AC25: 4853.605012 | AD25: 422.659542 | AE25: 4430.94547 | AH25: SUDESTE
B26: 4984.558752 | C26: 14 | E26: Refinaria Henrique Lage (Revap) | F26: Rodovia Presidente Dutra, KM 143, S/N Bairro Jardim Diamante - São José dos Campos – SP CEP:12223-900 | G26: São Paulo | H26: SÃO JOSÉ DOS CAMPOS - SP | I26: Araxá - MG | J26: =VLOOKUP('Transporte Cap 50-70'!G26,OFFSET('ANP ESTADO'!$A$1,MATCH('Transporte Cap 50-70'!$I$8,'ANP ESTADO'!B:B,0)+MATCH('Transporte Cap 50-70'!$H$11,OFFSET('ANP ESTADO'!$A$1,MATCH('Transporte Cap 50-70'!$I$8,'ANP ESTADO'!B:B,0),0,100000,1),0),2,100000,2),2,FALSE) -> 3.50075547 | K26: =VLOOKUP($H$11,OFFSET('ANP REGIÃO'!$A$9,MATCH('Transporte Cap 50-70'!$I$8,'ANP REGIÃO'!A:A,0),1,10000,10000),MATCH('Transporte Cap 50-70'!AH26,'ANP REGIÃO'!$B$8:$G$8,0),FALSE) -> 3.578562234 | L26: 3500.75547 | M26: 930.19 | N26: 4430.94547 | O26: 625 | P26: 0 | Q26: 185.06 | S26: 185.06 | T26: 40.62 | U26: 266.96 | V26: 492.64 | W26: 852 | X26: =EVEN(' CONSUMO DE MAT. B TOTAL'!$P$13*2/28)*W26/' CONSUMO DE MAT. B TOTAL'!$P$13 -> 60.97328244 | Y26: 553.6132824 | Z26: 4430.94547 | AA26: 4984.558752 | AC26: 4984.558752 | AD26: 553.6132824 | AE26: 4430.94547 | AH26: SUDESTE
D36: Acre
D37: Alagoas
D38: Amapá
D39: Amazonas
D40: Bahia
D41: Ceará
D42: Distrito Federal
D43: Espírito Santo
D44: Goiás
D45: Maranhão
D46: Mato Grosso
D47: Mato Grosso do Sul
D48: Minas Gerais
D49: Pará
D50: Paraíba
D51: Paraná
D52: Pernambuco
D53: Piauí
D54: Rio de Janeiro
D55: Rio Grande do Norte
D56: Rio Grande do Sul
D57: Rondônia
D58: Roraima
D59: Santa Catarina
D60: São Paulo
D61: Sergipe
D62: Tocantins
D66: ASFALTOS DILUÍDOS CM-30
D67: ASFALTOS DILUÍDOS CM-70
D68: ASFALTOS DILUÍDOS CR-250
D69: ASFALTOS DILUÍDOS CR-70
D70: CAP MODIFICADO POR BORRACHA DE PNEU AB22
D71: CAP MODIFICADO POR BORRACHA DE PNEU AB8
D72: CAP MODIFICADO POR POLÍMERO 55-75-E
D73: CAP MODIFICADO POR POLÍMERO 60-85-E
D74: CAP MODIFICADO POR POLÍMERO 65-90-E
D75: CIMENTOS ASFÁLTICOS CAP-150-200
D76: CIMENTOS ASFÁLTICOS CAP-30-45
D77: CIMENTOS ASFÁLTICOS CAP-50-70
D78: CIMENTOS ASFÁLTICOS CAP-85-100
D79: EMULSÃO ASFÁLTICA CATIÔNICA DE RUPTURA CONTROLADA PARA SERVIÇO DE LAMA ASFÁLTICA
D80: EMULSÃO ASFÁLTICA DE RUPTURA LENTA CATIÔNICA PARA SERVIÇO DE LAMA ASFÁLTICA
D81: EMULSÃO ASFÁLTICA DE RUPTURA LENTA DE CARGA NEUTRA PARA SERVIÇO DE LAMA ASFÁLTICA
D82: EMULSÃO ASFÁLTICA PARA SERVIÇO DE IMPRIMAÇÃO
D83: EMULSÕES ASF. MOD. POR POLÍMEROS RC1C-E
D84: EMULSÕES ASF. MOD. POR POLÍMEROS RL1C-E
D85: EMULSÕES ASF. MOD. POR POLÍMEROS RM1C-E
D86: EMULSÕES ASF. MOD. POR POLÍMEROS RR1C-E
D87: EMULSÕES ASF. MOD. POR POLÍMEROS RR2C-E
D88: EMULSÕES ASFÁLTICAS RL-1C
D89: EMULSÕES ASFÁLTICAS RM-1C
D90: EMULSÕES ASFÁLTICAS RM-2C
D91: EMULSÕES ASFÁLTICAS RR-1C
D92: EMULSÕES ASFÁLTICAS RR-2C

Sheet Transporte EAI
C3: MEMÓRIA DE CÁLCULO
C8: REAJUSTE | F8: TIPOLOGIA DO MATERIAL | I8: EMULSÃO ASFÁLTICA PARA SERVIÇO DE IMPRIMAÇÃO | M8: IMPOSTOS | N8: COFINS | O8: 0.0065 | P8: 0.0065
G9: ÍNDICE DE PAVIMENTAÇÃO DNIT | H9: 2014-07-01 | I9: ÍNDICE INICIAL | J9: 270.237 | N9: PIS | O9: 0.03 | P9: 0.03 | T9: LEGENDA | AC9: As empresas tributadas pelo Lucro Presumido pagam 0,65% de PIS e 3% de COFINS
H10: 2025-09-01 | I10: ÍNDICE FINAL | J10: 589.906 | N10: ICMS | O10: 0.18 | P10: 0.18 | Q10: =1-(O10/1) -> 0.82 | R10: =1-(P10/1) -> 0.82 | S10: =1-(Q10/1) -> 0.18 | T10: ENTRADA DE DADOS | AC10: As empresas tributadas pelo Lucro Real pagam 1,65% de PIS e 7,60% de COFINS
G11: Data ANP | H11: 2025-08-01
C12: DATA-BASE | D12: PRODUTOS | E12: LOCALIDADES | J12: CUSTO ANP (R$/Kg) | L12: CUSTO ANP | M12: IMPOSTOS DO PRODUTO | N12: CUSTO DO PRODUTO COM IMPOSTOS | O12: DMT's | P12: DMT'S FLUVIAL | Q12: CUSTO DO TRANSPORTE RODOVIA PAVIMENTADA | R12: CUSTO DO TRANSPORTE FLUVIAL | S12: CUSTO DO TRANSPORTE TOTAL | T12: ICMS | U12: ATUALIZAÇÃO DO CUSTO DE TRANSPORTE | V12: CUSTO DO TRANSPORTE RODOVIA PAVIMENTADA COM IMPOSTOS E ATUALIZAÇÃO MONETÁRIA | W12: PEDÁGIO | Y12: TOTAL TRANSPORTE | Z12: AQUISIÇÃO DO PRODUTO | AA12: TOTAL GERAL ( TRANSP + AQUISIÇÃO) | AC12: 1 | AD12: 2 | AE12: 3
C13: =H10 -> 2025-09-01 | E13: REFINARIAS | F13: ENDEREÇO | G13: ESTADO | H13: CIDADE | I13: DESTINO | J13: ESTADO | K13: REGIÃO | L13: R$/t | M13: R$/t | N13: R$/t | O13: KM | P13: KM | Q13: R$/t | R13: R$/t | S13: R$/t | T13: R$/t | U13: R$/t | V13: R$/t | W13: CUSTO | X13: R$/t | Y13: R$/t | Z13: R$/t | AA13: R$/t | AC13: TOTAL GERAL ( TRANSP + AQUISIÇÃO) | AD13: TOTAL TRANSPORTE | AE13: AQUISIÇÃO DO PRODUTO
B14: =AA14 -> 3742.202341 | C14: 1 | D14: =I8 -> EMULSÃO ASFÁLTICA PARA SERVIÇO DE IMPRIMAÇÃO | E14: 'CENTRO OESTE ASFALTOS LTDA. | F14: SETOR DE INFLAMÁVEIS, S/N TRECHO 02 - LOTE 1.100 - GUARÁ - CEP:71225-000 | G14: Distrito Federal | H14: BRASÍLIA - DF | I14: Araxá - MG | J14: =VLOOKUP(G14,OFFSET('ANP ESTADO'!$A$1,MATCH($I$8,'ANP ESTADO'!B:B,0)+MATCH($H$11,OFFSET('ANP ESTADO'!$A$1,MATCH($I$8,'ANP ESTADO'!B:B,0),0,100000,1),0),2,100000,2),2,FALSE) -> - | K14: =VLOOKUP($H$11,OFFSET('ANP REGIÃO'!$A$9,MATCH('Transporte EAI'!$I$8,'ANP REGIÃO'!A:A,0),1,10000,10000),MATCH('Transporte EAI'!AH14,'ANP REGIÃO'!$B$8:$G$8,0),FALSE) -> 2.557381706 | L14: =IF(AND(J14="-",K14="-"),"",IF(AND(J14<>0,K14="-"),J14*1000,IF(AND(J14="-",K14<>0),K14*1000,IF(AND(J14<>0,K14<>0),J14*1000,"")))) -> 2557.381706 | M14: =ROUND(((L14/(1-$O$8-$O$9-$O$10+($O$9+$O$8)*$O$10)-L14)),2) -> 679.52 | N14: =L14+M14 -> 3236.901706 | O14: 586 | P14: 0 | Q14: =ROUND((26.939+0.253*O14),2) -> 175.2 | S14: =Q14+R14 -> 175.2 | T14: =TRUNC(S14*($O$10/(1-$O$10)),2) -> 38.45 | U14: =TRUNC(IF($J$9="","",(($J$10-$J$9)/$J$9)*(S14+T14)),2) -> 252.73 | V14: =S14+T14+U14 -> 466.38 | W14: 367.8 | X14: =EVEN(' CONSUMO DE MAT. B TOTAL'!$P$11*2/28)*W14/' CONSUMO DE MAT. B TOTAL'!$P$11 -> 38.92063492 | Y14: =IF(AND(Q14="",T14=""),"",V14+X14) -> 505.3006349 | Z14: =IF(OR(L14="",M14=""),"",L14+M14) -> 3236.901706 | AA14: =IF(OR(Y14="",Z14=""),"",Y14+Z14) -> 3742.202341 | AC14: =AA14 -> 3742.202341 | AD14: =Y14 -> 505.3006349 | AE14: =Z14 -> 3236.901706 | AH14: =IF(OR(G14=$D$59,G14=$D$60,G14=$D$62,G14=$D$68,G14=$D$52,G14=$D$48,G14=$D$44,G14=$D$57,G14=$D$47),"NORDESTE",IF(OR(G14=$D$43,G14=$D$45,G14=$D$46,G14=$D$56,G14=$D$64,G14=$D$65,G14=$D$69),"NORTE",IF(OR(G14=$D$49,G14=$D$51,G14=$D$53,G14=$D$54),"CENTRO-OESTE",IF(OR(G14=$D$67,G14=$D$61,G14=$D$55,G14=$D$50),"SUDESTE",IF(OR(G14=$D$66,G14=$D$58,G14=$D$63),"SUL",""))))) -> CENTRO-OESTE
B15: =AA15 -> 3296.948948 | C15: 2 | E15: STRATURA ASFALTOS S/A | F15: AVENIDA PRESIDENTE WILSON, 08 - JUNDIAÍ - CEP:75115-100 | G15: Goiás | H15: ANÁPOLIS - GO | I15: Araxá - MG | J15: =VLOOKUP(G15,OFFSET('ANP ESTADO'!$A$1,MATCH($I$8,'ANP ESTADO'!B:B,0)+MATCH($H$11,OFFSET('ANP ESTADO'!$A$1,MATCH($I$8,'ANP ESTADO'!B:B,0),0,100000,1),0),2,100000,2),2,FALSE) -> 2.216693075 | K15: =VLOOKUP($H$11,OFFSET('ANP REGIÃO'!$A$9,MATCH('Transporte EAI'!$I$8,'ANP REGIÃO'!A:A,0),1,10000,10000),MATCH('Transporte EAI'!AH15,'ANP REGIÃO'!$B$8:$G$8,0),FALSE) -> 2.557381706 | L15: =IF(AND(J15="-",K15="-"),"",IF(AND(J15<>0,K15="-"),J15*1000,IF(AND(J15="-",K15<>0),K15*1000,IF(AND(J15<>0,K15<>0),J15*1000,"")))) -> 2216.693075 | M15: =ROUND(((L15/(1-$O$8-$O$9-$O$10+($O$9+$O$8)*$O$10)-L15)),2) -> 589 | N15: =L15+M15 -> 2805.693075 | O15: 568 | P15: 0 | Q15: =ROUND((26.939+0.253*O15),2) -> 170.64 | S15: =Q15+R15 -> 170.64 | T15: =TRUNC(S15*($O$10/(1-$O$10)),2) -> 37.45 | U15: =TRUNC(IF($J$9="","",(($J$10-$J$9)/$J$9)*(S15+T15)),2) -> 246.15 | V15: =S15+T15+U15 -> 454.24 | W15: 349.8 | X15: =EVEN(' CONSUMO DE MAT. B TOTAL'!$P$11*2/28)*W15/' CONSUMO DE MAT. B TOTAL'!$P$11 -> 37.01587302 | Y15: 491.255873 | Z15: 2805.693075 | AA15: =IF(OR(Y15="",Z15=""),"",Y15+Z15) -> 3296.948948 | AC15: =AA15 -> 3296.948948 | AD15: =Y15 -> 491.255873 | AE15: 2805.693075 | AH15: =IF(OR(G15=$D$59,G15=$D$60,G15=$D$62,G15=$D$68,G15=$D$52,G15=$D$48,G15=$D$44,G15=$D$57,G15=$D$47),"NORDESTE",IF(OR(G15=$D$43,G15=$D$45,G15=$D$46,G15=$D$56,G15=$D$64,G15=$D$65,G15=$D$69),"NORTE",IF(OR(G15=$D$49,G15=$D$51,G15=$D$53,G15=$D$54),"CENTRO-OESTE",IF(OR(G15=$D$67,G15=$D$61,G15=$D$55,G15=$D$50),"SUDESTE",IF(OR(G15=$D$66,G15=$D$58,G15=$D$63),"SUL",""))))) -> CENTRO-OESTE
B16: 3245.900852 | C16: 3 | E16: DISTRIBUIDORA BRASILEIRA DE ASFALTO SA - DISBRAL | F16: VIA PRIMARIA 8, S/N QD-18, MODS. 24/47 - DAIAG - CEP:74980-970 | G16: Goiás | H16: APARECIDA DE GOIANIA - GO | I16: Araxá - MG | J16: =VLOOKUP(G16,OFFSET('ANP ESTADO'!$A$1,MATCH($I$8,'ANP ESTADO'!B:B,0)+MATCH($H$11,OFFSET('ANP ESTADO'!$A$1,MATCH($I$8,'ANP ESTADO'!B:B,0),0,100000,1),0),2,100000,2),2,FALSE) -> 2.216693075 | K16: =VLOOKUP($H$11,OFFSET('ANP REGIÃO'!$A$9,MATCH('Transporte EAI'!$I$8,'ANP REGIÃO'!A:A,0),1,10000,10000),MATCH('Transporte EAI'!AH16,'ANP REGIÃO'!$B$8:$G$8,0),FALSE) -> 2.557381706 | L16: 2216.693075 | M16: 589 | N16: 2805.693075 | O16: 497 | P16: 0 | Q16: 152.68 | S16: 152.68 | T16: 33.51 | U16: 220.24 | V16: 406.43 | W16: 319.2 | X16: =EVEN(' CONSUMO DE MAT. B TOTAL'!$P$11*2/28)*W16/' CONSUMO DE MAT. B TOTAL'!$P$11 -> 33.77777778 | Y16: 440.2077778 | Z16: 2805.693075 | AA16: 3245.900852 | AC16: 3245.900852 | AD16: 440.2077778 | AE16: 2805.693075 | AH16: CENTRO-OESTE
A17: 2403 | B17: 3275.530852 | C17: 4 | E17: INDÚSTRIA NACIONAL DE ASFALTOS LTDA. | F17: VIA PRIMEIRA E SEGUNDA 3, S/N.º LOTES 01 A 10 - DISTRITO AGROINDUSTRIAL - CEP:75370-000 | G17: Goiás | H17: GOIANIRA - GO | I17: Araxá - MG | J17: =VLOOKUP(G17,OFFSET('ANP ESTADO'!$A$1,MATCH($I$8,'ANP ESTADO'!B:B,0)+MATCH($H$11,OFFSET('ANP ESTADO'!$A$1,MATCH($I$8,'ANP ESTADO'!B:B,0),0,100000,1),0),2,100000,2),2,FALSE) -> 2.216693075 | K17: =VLOOKUP($H$11,OFFSET('ANP REGIÃO'!$A$9,MATCH('Transporte EAI'!$I$8,'ANP REGIÃO'!A:A,0),1,10000,10000),MATCH('Transporte EAI'!AH17,'ANP REGIÃO'!$B$8:$G$8,0),FALSE) -> 2.557381706 | L17: 2216.693075 | M17: 589 | N17: 2805.693075 | O17: 541 | P17: 0 | Q17: 163.81 | S17: 163.81 | T17: 35.95 | U17: 236.3 | V17: 436.06 | W17: 319.2 | X17: =EVEN(' CONSUMO DE MAT. B TOTAL'!$P$11*2/28)*W17/' CONSUMO DE MAT. B TOTAL'!$P$11 -> 33.77777778 | Y17: 469.8377778 | Z17: 2805.693075 | AA17: 3275.530852 | AC17: 3275.530852 | AD17: 469.8377778 | AE17: 2805.693075 | AH17: CENTRO-OESTE
B18: 2933.02177 | C18: 5 | E18: STRATURA ASFALTOS S/A | F18: RUA VICTOR RODRIGUES RESENDE, 333 - DISTRITO IND. DE UBERLÂNDIA - CEP:38405-440 | G18: Minas Gerais | H18: UBERLANDIA - MG | I18: Araxá - MG | J18: =VLOOKUP(G18,OFFSET('ANP ESTADO'!$A$1,MATCH($I$8,'ANP ESTADO'!B:B,0)+MATCH($H$11,OFFSET('ANP ESTADO'!$A$1,MATCH($I$8,'ANP ESTADO'!B:B,0),0,100000,1),0),2,100000,2),2,FALSE) -> 2.154244786 | K18: =VLOOKUP($H$11,OFFSET('ANP REGIÃO'!$A$9,MATCH('Transporte EAI'!$I$8,'ANP REGIÃO'!A:A,0),1,10000,10000),MATCH('Transporte EAI'!AH18,'ANP REGIÃO'!$B$8:$G$8,0),FALSE) -> 2.343816026 | L18: 2154.244786 | M18: 572.41 | N18: 2726.654786 | O18: 176 | P18: 0 | Q18: 71.47 | S18: 71.47 | T18: 15.68 | U18: 103.09 | V18: 190.24 | W18: 152.4 | X18: =EVEN(' CONSUMO DE MAT. B TOTAL'!$P$11*2/28)*W18/' CONSUMO DE MAT. B TOTAL'!$P$11 -> 16.12698413 | Y18: 206.3669841 | Z18: 2726.654786 | AA18: 2933.02177 | AC18: 2933.02177 | AD18: 206.3669841 | AE18: 2726.654786 | AH18: SUDESTE
B19: 2935.05177 | C19: 6 | E19: BETUNEL INDÚSTRIA E COMÉRCIO LTDA. | F19: RUA VICTOR RODRIGUES DE REZENDE, 185 - DISTRITO INDUSTRIAL - CEP:38402-334 | G19: Minas Gerais | H19: UBERLANDIA - MG | I19: Araxá - MG | J19: =VLOOKUP(G19,OFFSET('ANP ESTADO'!$A$1,MATCH($I$8,'ANP ESTADO'!B:B,0)+MATCH($H$11,OFFSET('ANP ESTADO'!$A$1,MATCH($I$8,'ANP ESTADO'!B:B,0),0,100000,1),0),2,100000,2),2,FALSE) -> 2.154244786 | K19: =VLOOKUP($H$11,OFFSET('ANP REGIÃO'!$A$9,MATCH('Transporte EAI'!$I$8,'ANP REGIÃO'!A:A,0),1,10000,10000),MATCH('Transporte EAI'!AH19,'ANP REGIÃO'!$B$8:$G$8,0),FALSE) -> 2.343816026 | L19: 2154.244786 | M19: 572.41 | N19: 2726.654786 | O19: 179 | P19: 0 | Q19: 72.23 | S19: 72.23 | T19: 15.85 | U19: 104.19 | V19: 192.27 | W19: 152.4 | X19: =EVEN(' CONSUMO DE MAT. B TOTAL'!$P$11*2/28)*W19/' CONSUMO DE MAT. B TOTAL'!$P$11 -> 16.12698413 | Y19: 208.3969841 | Z19: 2726.654786 | AA19: 2935.05177 | AC19: 2935.05177 | AD19: 208.3969841 | AE19: 2726.654786 | AH19: SUDESTE
B20: 4102.511165 | C20: 7 | E20: ARAPETRO DISTRIBUIDORA DE PETRÓLEO LTDA. | F20: RUA 04, S/N° LOTES 17 A 20. - DISTRITO INDUSTRIAL 1/8 - CEP:78600-000 | G20: Mato Grosso | H20: BARRA DO GARCAS - MT | I20: Araxá - MG | J20: =VLOOKUP(G20,OFFSET('ANP ESTADO'!$A$1,MATCH($I$8,'ANP ESTADO'!B:B,0)+MATCH($H$11,OFFSET('ANP ESTADO'!$A$1,MATCH($I$8,'ANP ESTADO'!B:B,0),0,100000,1),0),2,100000,2),2,FALSE) -> 2.699773387 | K20: =VLOOKUP($H$11,OFFSET('ANP REGIÃO'!$A$9,MATCH('Transporte EAI'!$I$8,'ANP REGIÃO'!A:A,0),1,10000,10000),MATCH('Transporte EAI'!AH20,'ANP REGIÃO'!$B$8:$G$8,0),FALSE) -> 2.557381706 | L20: =IF(AND(J20="-",K20="-"),"",IF(AND(J20<>0,K20="-"),J20*1000,IF(AND(J20="-",K20<>0),K20*1000,IF(AND(J20<>0,K20<>0),J20*1000,"")))) -> 2699.773387 | M20: 717.36 | N20: 3417.133387 | O20: 861 | P20: 0 | Q20: 244.77 | S20: 244.77 | T20: 53.73 | U20: 353.1 | V20: 651.6 | W20: 319.2 | X20: =EVEN(' CONSUMO DE MAT. B TOTAL'!$P$11*2/28)*W20/' CONSUMO DE MAT. B TOTAL'!$P$11 -> 33.77777778 | Y20: 685.3777778 | Z20: 3417.133387 | AA20: 4102.511165 | AH20: CENTRO-OESTE
B21: 3042.038119 | C21: 8 | E21: DISTRIBUIDORA BRASILEIRA DE ASFALTO SA - DISBRAL | F21: SÃO JUDAS TADEU, 288 - DISTRITO INDUSTRIAL - CEP:32450-000 | G21: Minas Gerais | H21: SARZEDO - MG | I21: Araxá - MG | J21: =VLOOKUP(G21,OFFSET('ANP ESTADO'!$A$1,MATCH($I$8,'ANP ESTADO'!B:B,0)+MATCH($H$11,OFFSET('ANP ESTADO'!$A$1,MATCH($I$8,'ANP ESTADO'!B:B,0),0,100000,1),0),2,100000,2),2,FALSE) -> 2.154244786 | K21: =VLOOKUP($H$11,OFFSET('ANP REGIÃO'!$A$9,MATCH('Transporte EAI'!$I$8,'ANP REGIÃO'!A:A,0),1,10000,10000),MATCH('Transporte EAI'!AH21,'ANP REGIÃO'!$B$8:$G$8,0),FALSE) -> 2.343816026 | L21: 2154.244786 | M21: 572.41 | N21: 2726.654786 | O21: 342 | P21: 0 | Q21: 113.47 | S21: 113.47 | T21: 24.9 | U21: 163.68 | V21: 302.05 | W21: 126 | X21: =EVEN(' CONSUMO DE MAT. B TOTAL'!$P$11*2/28)*W21/' CONSUMO DE MAT. B TOTAL'!$P$11 -> 13.33333333 | Y21: 315.3833333 | Z21: 2726.654786 | AA21: 3042.038119 | AH21: SUDESTE
B22: 4685.400914 | C22: 9 | E22: 'INDÚSTRIA NACIONAL DE ASFALTOS LTDA. | F22: INDÚSTRIA NACIONAL DE ASFALTOS LTDA - CEP:77053-080 | G22: Tocantins | H22: PALMAS - TO | I22: Araxá - MG | J22: =VLOOKUP(G22,OFFSET('ANP ESTADO'!$A$1,MATCH($I$8,'ANP ESTADO'!B:B,0)+MATCH($H$11,OFFSET('ANP ESTADO'!$A$1,MATCH($I$8,'ANP ESTADO'!B:B,0),0,100000,1),0),2,100000,2),2,FALSE) -> - | K22: =VLOOKUP($H$11,OFFSET('ANP REGIÃO'!$A$9,MATCH('Transporte EAI'!$I$8,'ANP REGIÃO'!A:A,0),1,10000,10000),MATCH('Transporte EAI'!AH22,'ANP REGIÃO'!$B$8:$G$8,0),FALSE) -> 2.835191866 | L22: 2835.191866 | M22: 753.34 | N22: 3588.531866 | O22: 1392 | P22: 0 | Q22: 379.12 | S22: 379.12 | T22: 83.22 | U22: 546.91 | V22: 1009.25 | W22: 828 | X22: =EVEN(' CONSUMO DE MAT. B TOTAL'!$P$11*2/28)*W22/' CONSUMO DE MAT. B TOTAL'!$P$11 -> 87.61904762 | Y22: 1096.869048 | Z22: 3588.531866 | AA22: 4685.400914 | AH22: NORTE
B23: 3603.528922 | C23: 10 | E23: 'NTA - NOVAS TÉCNICAS DE ASFALTOS S/A | F23: RUA SOFIA ATAURI FADIN, 150 SALA A - B. SANTA TEREZINHA - CEP:13140-000 | G23: São Paulo | H23: PAULINIA - SP | I23: Araxá - MG | J23: =VLOOKUP(G23,OFFSET('ANP ESTADO'!$A$1,MATCH($I$8,'ANP ESTADO'!B:B,0)+MATCH($H$11,OFFSET('ANP ESTADO'!$A$1,MATCH($I$8,'ANP ESTADO'!B:B,0),0,100000,1),0),2,100000,2),2,FALSE) -> 2.500793684 | K23: =VLOOKUP($H$11,OFFSET('ANP REGIÃO'!$A$9,MATCH('Transporte EAI'!$I$8,'ANP REGIÃO'!A:A,0),1,10000,10000),MATCH('Transporte EAI'!AH23,'ANP REGIÃO'!$B$8:$G$8,0),FALSE) -> 2.343816026 | L23: 2500.793684 | M23: 664.49 | N23: 3165.283684 | O23: 458 | P23: 0 | Q23: 142.81 | S23: 142.81 | T23: 31.34 | U23: 206 | V23: 380.15 | W23: 549 | X23: =EVEN(' CONSUMO DE MAT. B TOTAL'!$P$11*2/28)*W23/' CONSUMO DE MAT. B TOTAL'!$P$11 -> 58.0952381 | Y23: 438.2452381 | Z23: 3165.283684 | AA23: 3603.528922 | AC23: 3603.528922 | AD23: 438.2452381 | AE23: 3165.283684 | AH23: SUDESTE
B24: 3693.393525 | C24: 11 | E24: COMPANHIA BRASILEIRA DE ASFALTOS DA AMAZÔNIA - IMPORTAÇÃO E EXPORTAÇÃO | F24: Avenida Doutor Olindo Dártora 2451, Galpão 02, Morro Grande - CEP:07726-555 | G24: São Paulo | H24: CAIEIRAS - SP | I24: Araxá - MG | J24: =VLOOKUP(G24,OFFSET('ANP ESTADO'!$A$1,MATCH($I$8,'ANP ESTADO'!B:B,0)+MATCH($H$11,OFFSET('ANP ESTADO'!$A$1,MATCH($I$8,'ANP ESTADO'!B:B,0),0,100000,1),0),2,100000,2),2,FALSE) -> 2.500793684 | K24: =VLOOKUP($H$11,OFFSET('ANP REGIÃO'!$A$9,MATCH('Transporte EAI'!$I$8,'ANP REGIÃO'!A:A,0),1,10000,10000),MATCH('Transporte EAI'!AH24,'ANP REGIÃO'!$B$8:$G$8,0),FALSE) -> 2.343816026 | L24: 2500.793684 | M24: 664.49 | N24: 3165.283684 | O24: 557 | P24: 0 | Q24: 167.86 | S24: 167.86 | T24: 36.84 | U24: 242.14 | V24: 446.84 | W24: 768 | X24: =EVEN(' CONSUMO DE MAT. B TOTAL'!$P$11*2/28)*W24/' CONSUMO DE MAT. B TOTAL'!$P$11 -> 81.26984127 | Y24: 528.1098413 | Z24: 3165.283684 | AA24: 3693.393525 | AH24: SUDESTE
B25: 3936.552817 | C25: 12 | E25: BETUNEL INDÚSTRIA E COMÉRCIO LTDA. | F25: R 16 , 82, Vila Nova Campo Grande - CEP:79.103-834 | G25: Mato Grosso do Sul | H25: CAMPO GRANDE - MS | I25: Araxá - MG | J25: =VLOOKUP(G25,OFFSET('ANP ESTADO'!$A$1,MATCH($I$8,'ANP ESTADO'!B:B,0)+MATCH($H$11,OFFSET('ANP ESTADO'!$A$1,MATCH($I$8,'ANP ESTADO'!B:B,0),0,100000,1),0),2,100000,2),2,FALSE) -> - | K25: =VLOOKUP($H$11,OFFSET('ANP REGIÃO'!$A$9,MATCH('Transporte EAI'!$I$8,'ANP REGIÃO'!A:A,0),1,10000,10000),MATCH('Transporte EAI'!AH25,'ANP REGIÃO'!$B$8:$G$8,0),FALSE) -> 2.557381706 | L25: 2557.381706 | M25: 679.52 | N25: 3236.901706 | O25: 904 | P25: 0 | Q25: 255.65 | S25: 255.65 | T25: 56.11 | U25: 368.78 | V25: 680.54 | W25: 180.6 | X25: =EVEN(' CONSUMO DE MAT. B TOTAL'!$P$11*2/28)*W25/' CONSUMO DE MAT. B TOTAL'!$P$11 -> 19.11111111 | Y25: 699.6511111 | Z25: 3236.901706 | AA25: 3936.552817 | AH25: CENTRO-OESTE
B26: 4342.99799 | C26: 13 | E26: CENTRO OESTE ASFALTOS LTDA. | F26: RUA N, S/N.º LOTES 39/43 E LOTES 129/133 - DISTRITO INDUSTRIAL - CEP:78098-400 | G26: Mato Grosso | H26: CUIABA - MT | I26: Araxá - MG | J26: =VLOOKUP(G26,OFFSET('ANP ESTADO'!$A$1,MATCH($I$8,'ANP ESTADO'!B:B,0)+MATCH($H$11,OFFSET('ANP ESTADO'!$A$1,MATCH($I$8,'ANP ESTADO'!B:B,0),0,100000,1),0),2,100000,2),2,FALSE) -> 2.699773387 | K26: =VLOOKUP($H$11,OFFSET('ANP REGIÃO'!$A$9,MATCH('Transporte EAI'!$I$8,'ANP REGIÃO'!A:A,0),1,10000,10000),MATCH('Transporte EAI'!AH26,'ANP REGIÃO'!$B$8:$G$8,0),FALSE) -> 2.557381706 | L26: 2699.773387 | M26: 717.36 | N26: 3417.133387 | O26: 1216 | P26: 0 | Q26: 334.59 | S26: 334.59 | T26: 73.44 | U26: 482.66 | V26: 890.69 | W26: 332.4 | X26: =EVEN(' CONSUMO DE MAT. B TOTAL'!$P$11*2/28)*W26/' CONSUMO DE MAT. B TOTAL'!$P$11 -> 35.17460317 | Y26: 925.8646032 | Z26: 3417.133387 | AA26: 4342.99799 | AH26: CENTRO-OESTE
B27: 4340.96799 | C27: 14 | E27: BETUNEL INDÚSTRIA E COMÉRCIO LTDA. | F27: RUA N ESQUINA COM RUA X, S/N QD. IND. 7 L 01/08 - DIST. IND. - CEP:78015-285 | G27: Mato Grosso | H27: CUIABA - MT | I27: Araxá - MG | J27: =VLOOKUP(G27,OFFSET('ANP ESTADO'!$A$1,MATCH($I$8,'ANP ESTADO'!B:B,0)+MATCH($H$11,OFFSET('ANP ESTADO'!$A$1,MATCH($I$8,'ANP ESTADO'!B:B,0),0,100000,1),0),2,100000,2),2,FALSE) -> 2.699773387 | K27: =VLOOKUP($H$11,OFFSET('ANP REGIÃO'!$A$9,MATCH('Transporte EAI'!$I$8,'ANP REGIÃO'!A:A,0),1,10000,10000),MATCH('Transporte EAI'!AH27,'ANP REGIÃO'!$B$8:$G$8,0),FALSE) -> 2.557381706 | L27: 2699.773387 | M27: 717.36 | N27: 3417.133387 | O27: 1213 | P27: 0 | Q27: 333.83 | S27: 333.83 | T27: 73.27 | U27: 481.56 | V27: 888.66 | W27: 332.4 | X27: =EVEN(' CONSUMO DE MAT. B TOTAL'!$P$11*2/28)*W27/' CONSUMO DE MAT. B TOTAL'!$P$11 -> 35.17460317 | Y27: 923.8346032 | Z27: 3417.133387 | AA27: 4340.96799 | AH27: CENTRO-OESTE
B28: 4346.35799 | C28: 15 | E28: EMAM - EMULSÕES E TRANSPORTES LTDA. | F28: RODOVIA DOS IMIGRANTES, S/Nº KM 8,6 - - CEP:60035-351 | G28: Mato Grosso | H28: VARZEA GRANDE - MT | I28: Araxá - MG | J28: =VLOOKUP(G28,OFFSET('ANP ESTADO'!$A$1,MATCH($I$8,'ANP ESTADO'!B:B,0)+MATCH($H$11,OFFSET('ANP ESTADO'!$A$1,MATCH($I$8,'ANP ESTADO'!B:B,0),0,100000,1),0),2,100000,2),2,FALSE) -> 2.699773387 | K28: =VLOOKUP($H$11,OFFSET('ANP REGIÃO'!$A$9,MATCH('Transporte EAI'!$I$8,'ANP REGIÃO'!A:A,0),1,10000,10000),MATCH('Transporte EAI'!AH28,'ANP REGIÃO'!$B$8:$G$8,0),FALSE) -> 2.557381706 | L28: 2699.773387 | M28: 717.36 | N28: 3417.133387 | O28: 1221 | P28: 0 | Q28: 335.85 | S28: 335.85 | T28: 73.72 | U28: 484.48 | V28: 894.05 | W28: 332.4 | X28: =EVEN(' CONSUMO DE MAT. B TOTAL'!$P$11*2/28)*W28/' CONSUMO DE MAT. B TOTAL'!$P$11 -> 35.17460317 | Y28: 929.2246032 | Z28: 3417.133387 | AA28: 4346.35799 | AC28: 4346.35799 | AD28: 929.2246032 | AE28: 3417.133387 | AH28: CENTRO-OESTE
B29: 3763.582414 | C29: 16 | E29: VIAPOL LTDA. | F29: VITO ARDITO, 6401 KM 118,5 - JARDIM CAMPO GRANDE - CEP:12282-535 | G29: São Paulo | H29: CACAPAVA - SP | I29: Araxá - MG | J29: =VLOOKUP(G29,OFFSET('ANP ESTADO'!$A$1,MATCH($I$8,'ANP ESTADO'!B:B,0)+MATCH($H$11,OFFSET('ANP ESTADO'!$A$1,MATCH($I$8,'ANP ESTADO'!B:B,0),0,100000,1),0),2,100000,2),2,FALSE) -> 2.500793684 | K29: =VLOOKUP($H$11,OFFSET('ANP REGIÃO'!$A$9,MATCH('Transporte EAI'!$I$8,'ANP REGIÃO'!A:A,0),1,10000,10000),MATCH('Transporte EAI'!AH29,'ANP REGIÃO'!$B$8:$G$8,0),FALSE) -> 2.343816026 | L29: 2500.793684 | M29: 664.49 | N29: 3165.283684 | O29: 648 | P29: 0 | Q29: 190.88 | S29: 190.88 | T29: 41.9 | U29: 275.36 | V29: 508.14 | W29: 852 | X29: =EVEN(' CONSUMO DE MAT. B TOTAL'!$P$11*2/28)*W29/' CONSUMO DE MAT. B TOTAL'!$P$11 -> 90.15873016 | Y29: 598.2987302 | Z29: 3165.283684 | AA29: 3763.582414 | AC29: 3763.582414 | AD29: 598.2987302 | AE29: 3165.283684 | AH29: SUDESTE
B30: 3615.238407 | C30: 17 | E30: STRATURA ASFALTOS S/A | F30: RUA LUIS DE CAMÕES, 26 - CAMPOS ELÍSEOS - CEP:25225-030 | G30: Rio de Janeiro | H30: DUQUE DE CAXIAS - RJ | I30: Araxá - MG | J30: =VLOOKUP(G30,OFFSET('ANP ESTADO'!$A$1,MATCH($I$8,'ANP ESTADO'!B:B,0)+MATCH($H$11,OFFSET('ANP ESTADO'!$A$1,MATCH($I$8,'ANP ESTADO'!B:B,0),0,100000,1),0),2,100000,2),2,FALSE) -> - | K30: =VLOOKUP($H$11,OFFSET('ANP REGIÃO'!$A$9,MATCH('Transporte EAI'!$I$8,'ANP REGIÃO'!A:A,0),1,10000,10000),MATCH('Transporte EAI'!AH30,'ANP REGIÃO'!$B$8:$G$8,0),FALSE) -> 2.343816026 | L30: 2343.816026 | M30: 622.78 | N30: 2966.596026 | O30: 778 | P30: 0 | Q30: 223.77 | S30: 223.77 | T30: 49.12 | U30: 322.8 | V30: 595.69 | W30: 500.4 | X30: =EVEN(' CONSUMO DE MAT. B TOTAL'!$P$11*2/28)*W30/' CONSUMO DE MAT. B TOTAL'!$P$11 -> 52.95238095 | Y30: 648.642381 | Z30: 2966.596026 | AA30: 3615.238407 | AC30: 3615.238407 | AD30: 648.642381 | AE30: 2966.596026 | AH30: SUDESTE
B31: 3625.348407 | C31: 18 | E31: PROBITEC - PRODUTOS BETUMINOSOS E TECNOLOGIA DE APLICAÇÃO LTDA. | F31: AVENIDA CANAL DA PAVUNA, 620 - PAVUNA - CEP:21535-630 | G31: Rio de Janeiro | H31: RIO DE JANEIRO - RJ | I31: Araxá - MG | J31: =VLOOKUP(G31,OFFSET('ANP ESTADO'!$A$1,MATCH($I$8,'ANP ESTADO'!B:B,0)+MATCH($H$11,OFFSET('ANP ESTADO'!$A$1,MATCH($I$8,'ANP ESTADO'!B:B,0),0,100000,1),0),2,100000,2),2,FALSE) -> - | K31: =VLOOKUP($H$11,OFFSET('ANP REGIÃO'!$A$9,MATCH('Transporte EAI'!$I$8,'ANP REGIÃO'!A:A,0),1,10000,10000),MATCH('Transporte EAI'!AH31,'ANP REGIÃO'!$B$8:$G$8,0),FALSE) -> 2.343816026 | L31: 2343.816026 | M31: 622.78 | N31: 2966.596026 | O31: 793 | P31: 0 | Q31: 227.57 | S31: 227.57 | T31: 49.95 | U31: 328.28 | V31: 605.8 | W31: 500.4 | X31: =EVEN(' CONSUMO DE MAT. B TOTAL'!$P$11*2/28)*W31/' CONSUMO DE MAT. B TOTAL'!$P$11 -> 52.95238095 | Y31: 658.752381 | Z31: 2966.596026 | AA31: 3625.348407 | AC31: 3625.348407 | AD31: 658.752381 | AE31: 2966.596026 | AH31: SUDESTE
B32: 4000.558003 | C32: 19 | E32: CASA DO ASFALTO DISTRIBUIDORA, INDÚSTRIA E COMÉRCIO DE ASFALTO LTDA. | F32: BR 376, PARQUE INDUSTRIAL, S/N LOTE 6/7/7-A-3-1 - GL.PATR.MARIALVA - CEP:86990-000 | G32: Paraná | H32: MARIALVA - PR | I32: Araxá - MG | J32: =VLOOKUP(G32,OFFSET('ANP ESTADO'!$A$1,MATCH($I$8,'ANP ESTADO'!B:B,0)+MATCH($H$11,OFFSET('ANP ESTADO'!$A$1,MATCH($I$8,'ANP ESTADO'!B:B,0),0,100000,1),0),2,100000,2),2,FALSE) -> 2.629115305 | K32: =VLOOKUP($H$11,OFFSET('ANP REGIÃO'!$A$9,MATCH('Transporte EAI'!$I$8,'ANP REGIÃO'!A:A,0),1,10000,10000),MATCH('Transporte EAI'!AH32,'ANP REGIÃO'!$B$8:$G$8,0),FALSE) -> 2.667638445 | L32: 2629.115305 | M32: 698.58 | N32: 3327.695305 | O32: 791 | P32: 0 | Q32: 227.06 | S32: 227.06 | T32: 49.84 | U32: 327.55 | V32: 604.45 | W32: 646.5 | X32: =EVEN(' CONSUMO DE MAT. B TOTAL'!$P$11*2/28)*W32/' CONSUMO DE MAT. B TOTAL'!$P$11 -> 68.41269841 | Y32: 672.8626984 | Z32: 3327.695305 | AA32: 4000.558003 | AC32: 4000.558003 | AD32: 672.8626984 | AE32: 3327.695305 | AH32: SUL
B33: 4044.654194 | C33: 20 | E33: PETROBRAS DISTRIBUIDORA S.A. | F33: RUA MAQUINISTA ELEODORO JACINTO, 100 - OFICINAS - CEP:84045-170 | G33: Paraná | H33: PONTA GROSSA - PR | I33: Araxá - MG | J33: =VLOOKUP(G33,OFFSET('ANP ESTADO'!$A$1,MATCH($I$8,'ANP ESTADO'!B:B,0)+MATCH($H$11,OFFSET('ANP ESTADO'!$A$1,MATCH($I$8,'ANP ESTADO'!B:B,0),0,100000,1),0),2,100000,2),2,FALSE) -> 2.629115305 | K33: =VLOOKUP($H$11,OFFSET('ANP REGIÃO'!$A$9,MATCH('Transporte EAI'!$I$8,'ANP REGIÃO'!A:A,0),1,10000,10000),MATCH('Transporte EAI'!AH33,'ANP REGIÃO'!$B$8:$G$8,0),FALSE) -> 2.667638445 | L33: 2629.115305 | M33: 698.58 | N33: 3327.695305 | O33: 835 | P33: 0 | Q33: 238.19 | S33: 238.19 | T33: 52.28 | U33: 343.6 | V33: 634.07 | W33: 783.3 | X33: =EVEN(' CONSUMO DE MAT. B TOTAL'!$P$11*2/28)*W33/' CONSUMO DE MAT. B TOTAL'!$P$11 -> 82.88888889 | Y33: 716.9588889 | Z33: 3327.695305 | AA33: 4044.654194 | AC33: 4044.654194 | AD33: 716.9588889 | AE33: 3327.695305 | AH33: SUL
D43: Acre
D44: Alagoas
D45: Amapá
D46: Amazonas
D47: Bahia
D48: Ceará
D49: Distrito Federal
D50: Espírito Santo
D51: Goiás
D52: Maranhão
D53: Mato Grosso
D54: Mato Grosso do Sul
D55: Minas Gerais
D56: Pará
D57: Paraíba
D58: Paraná
D59: Pernambuco
D60: Piauí
D61: Rio de Janeiro
D62: Rio Grande do Norte
D63: Rio Grande do Sul
D64: Rondônia
D65: Roraima
D66: Santa Catarina
D67: São Paulo
D68: Sergipe
D69: Tocantins
D73: ASFALTOS DILUÍDOS CM-30
D74: ASFALTOS DILUÍDOS CM-70
D75: ASFALTOS DILUÍDOS CR-250
D76: ASFALTOS DILUÍDOS CR-70
D77: CAP MODIFICADO POR BORRACHA DE PNEU AB22
D78: CAP MODIFICADO POR BORRACHA DE PNEU AB8
D79: CAP MODIFICADO POR POLÍMERO 55-75-E
D80: CAP MODIFICADO POR POLÍMERO 60-85-E
D81: CAP MODIFICADO POR POLÍMERO 65-90-E
D82: CIMENTOS ASFÁLTICOS CAP-150-200
D83: CIMENTOS ASFÁLTICOS CAP-30-45
D84: CIMENTOS ASFÁLTICOS CAP-50-70
D85: CIMENTOS ASFÁLTICOS CAP-85-100
D86: EMULSÃO ASFÁLTICA CATIÔNICA DE RUPTURA CONTROLADA PARA SERVIÇO DE LAMA ASFÁLTICA
D87: EMULSÃO ASFÁLTICA DE RUPTURA LENTA CATIÔNICA PARA SERVIÇO DE LAMA ASFÁLTICA
D88: EMULSÃO ASFÁLTICA DE RUPTURA LENTA DE CARGA NEUTRA PARA SERVIÇO DE LAMA ASFÁLTICA
D89: EMULSÃO ASFÁLTICA PARA SERVIÇO DE IMPRIMAÇÃO
D90: EMULSÕES ASF. MOD. POR POLÍMEROS RC1C-E
D91: EMULSÕES ASF. MOD. POR POLÍMEROS RL1C-E
D92: EMULSÕES ASF. MOD. POR POLÍMEROS RM1C-E
D93: EMULSÕES ASF. MOD. POR POLÍMEROS RR1C-E
D94: EMULSÕES ASF. MOD. POR POLÍMEROS RR2C-E
D95: EMULSÕES ASFÁLTICAS RL-1C
D96: EMULSÕES ASFÁLTICAS RM-1C
D97: EMULSÕES ASFÁLTICAS RM-2C
D98: EMULSÕES ASFÁLTICAS RR-1C
D99: EMULSÕES ASFÁLTICAS RR-2C

Sheet Transporte RR-1C
C3: MEMÓRIA DE CÁLCULO
C8: REAJUSTE | F8: TIPOLOGIA DO MATERIAL | I8: EMULSÕES ASFÁLTICAS RR-1C | M8: IMPOSTOS | N8: COFINS | O8: 0.0065 | P8: 0.0065
G9: ÍNDICE DE PAVIMENTAÇÃO DNIT | H9: 2014-07-01 | I9: ÍNDICE INICIAL | J9: 270.237 | N9: PIS | O9: 0.03 | P9: 0.03 | T9: LEGENDA | AC9: As empresas tributadas pelo Lucro Presumido pagam 0,65% de PIS e 3% de COFINS
H10: 2025-09-01 | I10: ÍNDICE FINAL | J10: 589.906 | N10: ICMS | O10: 0.18 | P10: 0.18 | Q10: =1-(O10/1) -> 0.82 | R10: =1-(P10/1) -> 0.82 | S10: =1-(Q10/1) -> 0.18 | T10: ENTRADA DE DADOS | AC10: As empresas tributadas pelo Lucro Real pagam 1,65% de PIS e 7,60% de COFINS
G11: Data ANP | H11: 2025-08-01
C12: DATA-BASE | D12: PRODUTOS | E12: LOCALIDADES | J12: CUSTO ANP (R$/Kg) | L12: CUSTO ANP | M12: IMPOSTOS DO PRODUTO | N12: CUSTO DO PRODUTO COM IMPOSTOS | O12: DMT's | P12: DMT'S FLUVIAL | Q12: CUSTO DO TRANSPORTE RODOVIA PAVIMENTADA | R12: CUSTO DO TRANSPORTE FLUVIAL | S12: CUSTO DO TRANSPORTE TOTAL | T12: ICMS | U12: ATUALIZAÇÃO DO CUSTO DE TRANSPORTE | V12: CUSTO DO TRANSPORTE RODOVIA PAVIMENTADA COM IMPOSTOS E ATUALIZAÇÃO MONETÁRIA | W12: PEDÁGIO | Y12: TOTAL TRANSPORTE | Z12: AQUISIÇÃO DO PRODUTO | AA12: TOTAL GERAL ( TRANSP + AQUISIÇÃO) | AC12: 1 | AD12: 2 | AE12: 3
C13: =H10 -> 2025-09-01 | E13: REFINARIAS | F13: ENDEREÇO | G13: ESTADO | H13: CIDADE | I13: DESTINO | J13: ESTADO | K13: REGIÃO | L13: R$/t | M13: R$/t | N13: R$/t | O13: KM | P13: KM | Q13: R$/t | R13: R$/t | S13: R$/t | T13: R$/t | U13: R$/t | V13: R$/t | W13: CUSTO | X13: R$/t | Y13: R$/t | Z13: R$/t | AA13: R$/t | AC13: TOTAL GERAL ( TRANSP + AQUISIÇÃO) | AD13: TOTAL TRANSPORTE | AE13: AQUISIÇÃO DO PRODUTO
B14: =AA14 -> 3931.664577 | C14: 1 | D14: =I8 -> EMULSÕES ASFÁLTICAS RR-1C | E14: 'CENTRO OESTE ASFALTOS LTDA. | F14: SETOR DE INFLAMÁVEIS, S/N TRECHO 02 - LOTE 1.100 - GUARÁ - CEP:71225-000 | G14: Distrito Federal | H14: BRASÍLIA - DF | I14: ='Transporte EAI'!I14 -> Araxá - MG | J14: =VLOOKUP(G14,OFFSET('ANP ESTADO'!$A$1,MATCH($I$8,'ANP ESTADO'!B:B,0)+MATCH($H$11,OFFSET('ANP ESTADO'!$A$1,MATCH($I$8,'ANP ESTADO'!B:B,0),0,100000,1),0),2,100000,2),2,FALSE) -> - | K14: =VLOOKUP($H$11,OFFSET('ANP REGIÃO'!$A$9,MATCH('Transporte RR-1C'!$I$8,'ANP REGIÃO'!A:A,0),1,10000,10000),MATCH('Transporte RR-1C'!AH14,'ANP REGIÃO'!$B$8:$G$8,0),FALSE) -> 2.707063942 | L14: =IF(AND(J14="-",K14="-"),"",IF(AND(J14<>0,K14="-"),J14*1000,IF(AND(J14="-",K14<>0),K14*1000,IF(AND(J14<>0,K14<>0),J14*1000,"")))) -> 2707.063942 | M14: =ROUND(((L14/(1-$O$8-$O$9-$O$10+($O$9+$O$8)*$O$10)-L14)),2) -> 719.3 | N14: =L14+M14 -> 3426.363942 | O14: ='Transporte EAI'!O14 -> 586 | P14: ='Transporte EAI'!P14 -> 0 | Q14: =ROUND((26.939+0.253*O14),2) -> 175.2 | S14: =Q14+R14 -> 175.2 | T14: =TRUNC(S14*($O$10/(1-$O$10)),2) -> 38.45 | U14: =TRUNC(IF($J$9="","",(($J$10-$J$9)/$J$9)*(S14+T14)),2) -> 252.73 | V14: =S14+T14+U14 -> 466.38 | W14: ='Transporte EAI'!W14 -> 367.8 | X14: =EVEN(' CONSUMO DE MAT. B TOTAL'!$P$11*2/28)*W14/' CONSUMO DE MAT. B TOTAL'!$P$11 -> 38.92063492 | Y14: =IF(AND(Q14="",T14=""),"",V14+X14) -> 505.3006349 | Z14: =IF(OR(L14="",M14=""),"",L14+M14) -> 3426.363942 | AA14: =IF(OR(Y14="",Z14=""),"",Y14+Z14) -> 3931.664577 | AC14: =AA14 -> 3931.664577 | AD14: =Y14 -> 505.3006349 | AE14: =Z14 -> 3426.363942 | AH14: =IF(OR(G14=$D$59,G14=$D$60,G14=$D$62,G14=$D$68,G14=$D$52,G14=$D$48,G14=$D$44,G14=$D$57,G14=$D$47),"NORDESTE",IF(OR(G14=$D$43,G14=$D$45,G14=$D$46,G14=$D$56,G14=$D$64,G14=$D$65,G14=$D$69),"NORTE",IF(OR(G14=$D$49,G14=$D$51,G14=$D$53,G14=$D$54),"CENTRO-OESTE",IF(OR(G14=$D$67,G14=$D$61,G14=$D$55,G14=$D$50),"SUDESTE",IF(OR(G14=$D$66,G14=$D$58,G14=$D$63),"SUL",""))))) -> CENTRO-OESTE
B15: =AA15 -> 3755.904918 | C15: 2 | E15: STRATURA ASFALTOS S/A | F15: AVENIDA PRESIDENTE WILSON, 08 - JUNDIAÍ - CEP:75115-100 | G15: Goiás | H15: ANÁPOLIS - GO | I15: ='Transporte EAI'!I15 -> Araxá - MG | J15: =VLOOKUP(G15,OFFSET('ANP ESTADO'!$A$1,MATCH($I$8,'ANP ESTADO'!B:B,0)+MATCH($H$11,OFFSET('ANP ESTADO'!$A$1,MATCH($I$8,'ANP ESTADO'!B:B,0),0,100000,1),0),2,100000,2),2,FALSE) -> 2.579299045 | K15: =VLOOKUP($H$11,OFFSET('ANP REGIÃO'!$A$9,MATCH('Transporte RR-1C'!$I$8,'ANP REGIÃO'!A:A,0),1,10000,10000),MATCH('Transporte RR-1C'!AH15,'ANP REGIÃO'!$B$8:$G$8,0),FALSE) -> 2.707063942 | L15: =IF(AND(J15="-",K15="-"),"",IF(AND(J15<>0,K15="-"),J15*1000,IF(AND(J15="-",K15<>0),K15*1000,IF(AND(J15<>0,K15<>0),J15*1000,"")))) -> 2579.299045 | M15: =ROUND(((L15/(1-$O$8-$O$9-$O$10+($O$9+$O$8)*$O$10)-L15)),2) -> 685.35 | N15: =L15+M15 -> 3264.649045 | O15: ='Transporte EAI'!O15 -> 568 | P15: ='Transporte EAI'!P15 -> 0 | Q15: =ROUND((26.939+0.253*O15),2) -> 170.64 | S15: =Q15+R15 -> 170.64 | T15: =TRUNC(S15*($O$10/(1-$O$10)),2) -> 37.45 | U15: =TRUNC(IF($J$9="","",(($J$10-$J$9)/$J$9)*(S15+T15)),2) -> 246.15 | V15: =S15+T15+U15 -> 454.24 | W15: ='Transporte EAI'!W15 -> 349.8 | X15: =EVEN(' CONSUMO DE MAT. B TOTAL'!$P$11*2/28)*W15/' CONSUMO DE MAT. B TOTAL'!$P$11 -> 37.01587302 | Y15: 491.255873 | Z15: 3264.649045 | AA15: =IF(OR(Y15="",Z15=""),"",Y15+Z15) -> 3755.904918 | AC15: =AA15 -> 3755.904918 | AD15: =Y15 -> 491.255873 | AE15: 3264.649045 | AH15: =IF(OR(G15=$D$59,G15=$D$60,G15=$D$62,G15=$D$68,G15=$D$52,G15=$D$48,G15=$D$44,G15=$D$57,G15=$D$47),"NORDESTE",IF(OR(G15=$D$43,G15=$D$45,G15=$D$46,G15=$D$56,G15=$D$64,G15=$D$65,G15=$D$69),"NORTE",IF(OR(G15=$D$49,G15=$D$51,G15=$D$53,G15=$D$54),"CENTRO-OESTE",IF(OR(G15=$D$67,G15=$D$61,G15=$D$55,G15=$D$50),"SUDESTE",IF(OR(G15=$D$66,G15=$D$58,G15=$D$63),"SUL",""))))) -> CENTRO-OESTE
B16: 3704.856823 | C16: 3 | E16: DISTRIBUIDORA BRASILEIRA DE ASFALTO SA - DISBRAL | F16: VIA PRIMARIA 8, S/N QD-18, MODS. 24/47 - DAIAG - CEP:74980-970 | G16: Goiás | H16: APARECIDA DE GOIANIA - GO | I16: ='Transporte EAI'!I16 -> Araxá - MG | J16: =VLOOKUP(G16,OFFSET('ANP ESTADO'!$A$1,MATCH($I$8,'ANP ESTADO'!B:B,0)+MATCH($H$11,OFFSET('ANP ESTADO'!$A$1,MATCH($I$8,'ANP ESTADO'!B:B,0),0,100000,1),0),2,100000,2),2,FALSE) -> 2.579299045 | K16: =VLOOKUP($H$11,OFFSET('ANP REGIÃO'!$A$9,MATCH('Transporte RR-1C'!$I$8,'ANP REGIÃO'!A:A,0),1,10000,10000),MATCH('Transporte RR-1C'!AH16,'ANP REGIÃO'!$B$8:$G$8,0),FALSE) -> 2.707063942 | L16: 2579.299045 | M16: 685.35 | N16: 3264.649045 | O16: ='Transporte EAI'!O16 -> 497 | P16: ='Transporte EAI'!P16 -> 0 | Q16: 152.68 | S16: 152.68 | T16: 33.51 | U16: 220.24 | V16: 406.43 | W16: ='Transporte EAI'!W16 -> 319.2 | X16: =EVEN(' CONSUMO DE MAT. B TOTAL'!$P$11*2/28)*W16/' CONSUMO DE MAT. B TOTAL'!$P$11 -> 33.77777778 | Y16: 440.2077778 | Z16: 3264.649045 | AA16: 3704.856823 | AC16: 3704.856823 | AD16: 440.2077778 | AE16: 3264.649045 | AH16: CENTRO-OESTE
A17: 2403 | B17: 3734.486823 | C17: 4 | E17: INDÚSTRIA NACIONAL DE ASFALTOS LTDA. | F17: VIA PRIMEIRA E SEGUNDA 3, S/N.º LOTES 01 A 10 - DISTRITO AGROINDUSTRIAL - CEP:75370-000 | G17: Goiás | H17: GOIANIRA - GO | I17: ='Transporte EAI'!I17 -> Araxá - MG | J17: =VLOOKUP(G17,OFFSET('ANP ESTADO'!$A$1,MATCH($I$8,'ANP ESTADO'!B:B,0)+MATCH($H$11,OFFSET('ANP ESTADO'!$A$1,MATCH($I$8,'ANP ESTADO'!B:B,0),0,100000,1),0),2,100000,2),2,FALSE) -> 2.579299045 | K17: =VLOOKUP($H$11,OFFSET('ANP REGIÃO'!$A$9,MATCH('Transporte RR-1C'!$I$8,'ANP REGIÃO'!A:A,0),1,10000,10000),MATCH('Transporte RR-1C'!AH17,'ANP REGIÃO'!$B$8:$G$8,0),FALSE) -> 2.707063942 | L17: 2579.299045 | M17: 685.35 | N17: 3264.649045 | O17: ='Transporte EAI'!O17 -> 541 | P17: ='Transporte EAI'!P17 -> 0 | Q17: 163.81 | S17: 163.81 | T17: 35.95 | U17: 236.3 | V17: 436.06 | W17: ='Transporte EAI'!W17 -> 319.2 | X17: =EVEN(' CONSUMO DE MAT. B TOTAL'!$P$11*2/28)*W17/' CONSUMO DE MAT. B TOTAL'!$P$11 -> 33.77777778 | Y17: 469.8377778 | Z17: 3264.649045 | AA17: 3734.486823 | AC17: 3734.486823 | AD17: 469.8377778 | AE17: 3264.649045 | AH17: CENTRO-OESTE
B18: 3515.355935 | C18: 5 | E18: STRATURA ASFALTOS S/A | F18: RUA VICTOR RODRIGUES RESENDE, 333 - DISTRITO IND. DE UBERLÂNDIA - CEP:38405-440 | G18: Minas Gerais | H18: UBERLANDIA - MG | I18: ='Transporte EAI'!I18 -> Araxá - MG | J18: =VLOOKUP(G18,OFFSET('ANP ESTADO'!$A$1,MATCH($I$8,'ANP ESTADO'!B:B,0)+MATCH($H$11,OFFSET('ANP ESTADO'!$A$1,MATCH($I$8,'ANP ESTADO'!B:B,0),0,100000,1),0),2,100000,2),2,FALSE) -> 2.61432895 | K18: =VLOOKUP($H$11,OFFSET('ANP REGIÃO'!$A$9,MATCH('Transporte RR-1C'!$I$8,'ANP REGIÃO'!A:A,0),1,10000,10000),MATCH('Transporte RR-1C'!AH18,'ANP REGIÃO'!$B$8:$G$8,0),FALSE) -> 2.854040788 | L18: 2614.32895 | M18: 694.66 | N18: 3308.98895 | O18: ='Transporte EAI'!O18 -> 176 | P18: ='Transporte EAI'!P18 -> 0 | Q18: 71.47 | S18: 71.47 | T18: 15.68 | U18: 103.09 | V18: 190.24 | W18: ='Transporte EAI'!W18 -> 152.4 | X18: =EVEN(' CONSUMO DE MAT. B TOTAL'!$P$11*2/28)*W18/' CONSUMO DE MAT. B TOTAL'!$P$11 -> 16.12698413 | Y18: 206.3669841 | Z18: 3308.98895 | AA18: 3515.355935 | AC18: 3515.355935 | AD18: 206.3669841 | AE18: 3308.98895 | AH18: SUDESTE
B19: 3517.385935 | C19: 6 | E19: BETUNEL INDÚSTRIA E COMÉRCIO LTDA. | F19: RUA VICTOR RODRIGUES DE REZENDE, 185 - DISTRITO INDUSTRIAL - CEP:38402-334 | G19: Minas Gerais | H19: UBERLANDIA - MG | I19: ='Transporte EAI'!I19 -> Araxá - MG | J19: =VLOOKUP(G19,OFFSET('ANP ESTADO'!$A$1,MATCH($I$8,'ANP ESTADO'!B:B,0)+MATCH($H$11,OFFSET('ANP ESTADO'!$A$1,MATCH($I$8,'ANP ESTADO'!B:B,0),0,100000,1),0),2,100000,2),2,FALSE) -> 2.61432895 | K19: =VLOOKUP($H$11,OFFSET('ANP REGIÃO'!$A$9,MATCH('Transporte RR-1C'!$I$8,'ANP REGIÃO'!A:A,0),1,10000,10000),MATCH('Transporte RR-1C'!AH19,'ANP REGIÃO'!$B$8:$G$8,0),FALSE) -> 2.854040788 | L19: 2614.32895 | M19: 694.66 | N19: 3308.98895 | O19: ='Transporte EAI'!O19 -> 179 | P19: ='Transporte EAI'!P19 -> 0 | Q19: 72.23 | S19: 72.23 | T19: 15.85 | U19: 104.19 | V19: 192.27 | W19: ='Transporte EAI'!W19 -> 152.4 | X19: =EVEN(' CONSUMO DE MAT. B TOTAL'!$P$11*2/28)*W19/' CONSUMO DE MAT. B TOTAL'!$P$11 -> 16.12698413 | Y19: 208.3969841 | Z19: 3308.98895 | AA19: 3517.385935 | AC19: 3517.385935 | AD19: 208.3969841 | AE19: 3308.98895 | AH19: SUDESTE
B20: 5220.096172 | C20: 7 | E20: ARAPETRO DISTRIBUIDORA DE PETRÓLEO LTDA. | F20: RUA 04, S/N° LOTES 17 A 20. - DISTRITO INDUSTRIAL 1/8 - CEP:78600-000 | G20: Mato Grosso | H20: BARRA DO GARCAS - MT | I20: ='Transporte EAI'!I20 -> Araxá - MG | J20: =VLOOKUP(G20,OFFSET('ANP ESTADO'!$A$1,MATCH($I$8,'ANP ESTADO'!B:B,0)+MATCH($H$11,OFFSET('ANP ESTADO'!$A$1,MATCH($I$8,'ANP ESTADO'!B:B,0),0,100000,1),0),2,100000,2),2,FALSE) -> 3.582748395 | K20: =VLOOKUP($H$11,OFFSET('ANP REGIÃO'!$A$9,MATCH('Transporte RR-1C'!$I$8,'ANP REGIÃO'!A:A,0),1,10000,10000),MATCH('Transporte RR-1C'!AH20,'ANP REGIÃO'!$B$8:$G$8,0),FALSE) -> 2.707063942 | L20: =IF(AND(J20="-",K20="-"),"",IF(AND(J20<>0,K20="-"),J20*1000,IF(AND(J20="-",K20<>0),K20*1000,IF(AND(J20<>0,K20<>0),J20*1000,"")))) -> 3582.748395 | M20: 951.97 | N20: 4534.718395 | O20: ='Transporte EAI'!O20 -> 861 | P20: ='Transporte EAI'!P20 -> 0 | Q20: 244.77 | S20: 244.77 | T20: 53.73 | U20: 353.1 | V20: 651.6 | W20: ='Transporte EAI'!W20 -> 319.2 | X20: =EVEN(' CONSUMO DE MAT. B TOTAL'!$P$11*2/28)*W20/' CONSUMO DE MAT. B TOTAL'!$P$11 -> 33.77777778 | Y20: 685.3777778 | Z20: 4534.718395 | AA20: 5220.096172 | AH20: CENTRO-OESTE
B21: 3624.372284 | C21: 8 | E21: DISTRIBUIDORA BRASILEIRA DE ASFALTO SA - DISBRAL | F21: SÃO JUDAS TADEU, 288 - DISTRITO INDUSTRIAL - CEP:32450-000 | G21: Minas Gerais | H21: SARZEDO - MG | I21: ='Transporte EAI'!I21 -> Araxá - MG | J21: =VLOOKUP(G21,OFFSET('ANP ESTADO'!$A$1,MATCH($I$8,'ANP ESTADO'!B:B,0)+MATCH($H$11,OFFSET('ANP ESTADO'!$A$1,MATCH($I$8,'ANP ESTADO'!B:B,0),0,100000,1),0),2,100000,2),2,FALSE) -> 2.61432895 | K21: =VLOOKUP($H$11,OFFSET('ANP REGIÃO'!$A$9,MATCH('Transporte RR-1C'!$I$8,'ANP REGIÃO'!A:A,0),1,10000,10000),MATCH('Transporte RR-1C'!AH21,'ANP REGIÃO'!$B$8:$G$8,0),FALSE) -> 2.854040788 | L21: 2614.32895 | M21: 694.66 | N21: 3308.98895 | O21: ='Transporte EAI'!O21 -> 342 | P21: ='Transporte EAI'!P21 -> 0 | Q21: 113.47 | S21: 113.47 | T21: 24.9 | U21: 163.68 | V21: 302.05 | W21: ='Transporte EAI'!W21 -> 126 | X21: =EVEN(' CONSUMO DE MAT. B TOTAL'!$P$11*2/28)*W21/' CONSUMO DE MAT. B TOTAL'!$P$11 -> 13.33333333 | Y21: 315.3833333 | Z21: 3308.98895 | AA21: 3624.372284 | AH21: SUDESTE
B22: 5743.661652 | C22: 9 | E22: 'INDÚSTRIA NACIONAL DE ASFALTOS LTDA. | F22: INDÚSTRIA NACIONAL DE ASFALTOS LTDA - CEP:77053-080 | G22: Tocantins | H22: PALMAS - TO | I22: ='Transporte EAI'!I22 -> Araxá - MG | J22: =VLOOKUP(G22,OFFSET('ANP ESTADO'!$A$1,MATCH($I$8,'ANP ESTADO'!B:B,0)+MATCH($H$11,OFFSET('ANP ESTADO'!$A$1,MATCH($I$8,'ANP ESTADO'!B:B,0),0,100000,1),0),2,100000,2),2,FALSE) -> - | K22: =VLOOKUP($H$11,OFFSET('ANP REGIÃO'!$A$9,MATCH('Transporte RR-1C'!$I$8,'ANP REGIÃO'!A:A,0),1,10000,10000),MATCH('Transporte RR-1C'!AH22,'ANP REGIÃO'!$B$8:$G$8,0),FALSE) -> 3.671292604 | L22: 3671.292604 | M22: 975.5 | N22: 4646.792604 | O22: ='Transporte EAI'!O22 -> 1392 | P22: ='Transporte EAI'!P22 -> 0 | Q22: 379.12 | S22: 379.12 | T22: 83.22 | U22: 546.91 | V22: 1009.25 | W22: ='Transporte EAI'!W22 -> 828 | X22: =EVEN(' CONSUMO DE MAT. B TOTAL'!$P$11*2/28)*W22/' CONSUMO DE MAT. B TOTAL'!$P$11 -> 87.61904762 | Y22: 1096.869048 | Z22: 4646.792604 | AA22: 5743.661652 | AH22: NORTE
B23: 4153.144994 | C23: 10 | E23: 'NTA - NOVAS TÉCNICAS DE ASFALTOS S/A | F23: RUA SOFIA ATAURI FADIN, 150 SALA A - B. SANTA TEREZINHA - CEP:13140-000 | G23: São Paulo | H23: PAULINIA - SP | I23: ='Transporte EAI'!I23 -> Araxá - MG | J23: =VLOOKUP(G23,OFFSET('ANP ESTADO'!$A$1,MATCH($I$8,'ANP ESTADO'!B:B,0)+MATCH($H$11,OFFSET('ANP ESTADO'!$A$1,MATCH($I$8,'ANP ESTADO'!B:B,0),0,100000,1),0),2,100000,2),2,FALSE) -> 2.935029756 | K23: =VLOOKUP($H$11,OFFSET('ANP REGIÃO'!$A$9,MATCH('Transporte RR-1C'!$I$8,'ANP REGIÃO'!A:A,0),1,10000,10000),MATCH('Transporte RR-1C'!AH23,'ANP REGIÃO'!$B$8:$G$8,0),FALSE) -> 2.854040788 | L23: 2935.029756 | M23: 779.87 | N23: 3714.899756 | O23: ='Transporte EAI'!O23 -> 458 | P23: ='Transporte EAI'!P23 -> 0 | Q23: 142.81 | S23: 142.81 | T23: 31.34 | U23: 206 | V23: 380.15 | W23: ='Transporte EAI'!W23 -> 549 | X23: =EVEN(' CONSUMO DE MAT. B TOTAL'!$P$11*2/28)*W23/' CONSUMO DE MAT. B TOTAL'!$P$11 -> 58.0952381 | Y23: 438.2452381 | Z23: 3714.899756 | AA23: 4153.144994 | AC23: 4153.144994 | AD23: 438.2452381 | AE23: 3714.899756 | AH23: SUDESTE
B24: 4243.009597 | C24: 11 | E24: COMPANHIA BRASILEIRA DE ASFALTOS DA AMAZÔNIA - IMPORTAÇÃO E EXPORTAÇÃO | F24: Avenida Doutor Olindo Dártora 2451, Galpão 02, Morro Grande - CEP:07726-555 | G24: São Paulo | H24: CAIEIRAS - SP | I24: ='Transporte EAI'!I24 -> Araxá - MG | J24: =VLOOKUP(G24,OFFSET('ANP ESTADO'!$A$1,MATCH($I$8,'ANP ESTADO'!B:B,0)+MATCH($H$11,OFFSET('ANP ESTADO'!$A$1,MATCH($I$8,'ANP ESTADO'!B:B,0),0,100000,1),0),2,100000,2),2,FALSE) -> 2.935029756 | K24: =VLOOKUP($H$11,OFFSET('ANP REGIÃO'!$A$9,MATCH('Transporte RR-1C'!$I$8,'ANP REGIÃO'!A:A,0),1,10000,10000),MATCH('Transporte RR-1C'!AH24,'ANP REGIÃO'!$B$8:$G$8,0),FALSE) -> 2.854040788 | L24: 2935.029756 | M24: 779.87 | N24: 3714.899756 | O24: ='Transporte EAI'!O24 -> 557 | P24: ='Transporte EAI'!P24 -> 0 | Q24: 167.86 | S24: 167.86 | T24: 36.84 | U24: 242.14 | V24: 446.84 | W24: ='Transporte EAI'!W24 -> 768 | X24: =EVEN(' CONSUMO DE MAT. B TOTAL'!$P$11*2/28)*W24/' CONSUMO DE MAT. B TOTAL'!$P$11 -> 81.26984127 | Y24: 528.1098413 | Z24: 3714.899756 | AA24: 4243.009597 | AH24: SUDESTE
B25: 4126.015053 | C25: 12 | E25: BETUNEL INDÚSTRIA E COMÉRCIO LTDA. | F25: R 16 , 82, Vila Nova Campo Grande - CEP:79.103-834 | G25: Mato Grosso do Sul | H25: CAMPO GRANDE - MS | I25: ='Transporte EAI'!I25 -> Araxá - MG | J25: =VLOOKUP(G25,OFFSET('ANP ESTADO'!$A$1,MATCH($I$8,'ANP ESTADO'!B:B,0)+MATCH($H$11,OFFSET('ANP ESTADO'!$A$1,MATCH($I$8,'ANP ESTADO'!B:B,0),0,100000,1),0),2,100000,2),2,FALSE) -> - | K25: =VLOOKUP($H$11,OFFSET('ANP REGIÃO'!$A$9,MATCH('Transporte RR-1C'!$I$8,'ANP REGIÃO'!A:A,0),1,10000,10000),MATCH('Transporte RR-1C'!AH25,'ANP REGIÃO'!$B$8:$G$8,0),FALSE) -> 2.707063942 | L25: 2707.063942 | M25: 719.3 | N25: 3426.363942 | O25: ='Transporte EAI'!O25 -> 904 | P25: ='Transporte EAI'!P25 -> 0 | Q25: 255.65 | S25: 255.65 | T25: 56.11 | U25: 368.78 | V25: 680.54 | W25: ='Transporte EAI'!W25 -> 180.6 | X25: =EVEN(' CONSUMO DE MAT. B TOTAL'!$P$11*2/28)*W25/' CONSUMO DE MAT. B TOTAL'!$P$11 -> 19.11111111 | Y25: 699.6511111 | Z25: 3426.363942 | AA25: 4126.015053 | AH25: CENTRO-OESTE
B26: 5460.582998 | C26: 13 | E26: CENTRO OESTE ASFALTOS LTDA. | F26: RUA N, S/N.º LOTES 39/43 E LOTES 129/133 - DISTRITO INDUSTRIAL - CEP:78098-400 | G26: Mato Grosso | H26: CUIABA - MT | I26: ='Transporte EAI'!I26 -> Araxá - MG | J26: =VLOOKUP(G26,OFFSET('ANP ESTADO'!$A$1,MATCH($I$8,'ANP ESTADO'!B:B,0)+MATCH($H$11,OFFSET('ANP ESTADO'!$A$1,MATCH($I$8,'ANP ESTADO'!B:B,0),0,100000,1),0),2,100000,2),2,FALSE) -> 3.582748395 | K26: =VLOOKUP($H$11,OFFSET('ANP REGIÃO'!$A$9,MATCH('Transporte RR-1C'!$I$8,'ANP REGIÃO'!A:A,0),1,10000,10000),MATCH('Transporte RR-1C'!AH26,'ANP REGIÃO'!$B$8:$G$8,0),FALSE) -> 2.707063942 | L26: 3582.748395 | M26: 951.97 | N26: 4534.718395 | O26: ='Transporte EAI'!O26 -> 1216 | P26: ='Transporte EAI'!P26 -> 0 | Q26: 334.59 | S26: 334.59 | T26: 73.44 | U26: 482.66 | V26: 890.69 | W26: ='Transporte EAI'!W26 -> 332.4 | X26: =EVEN(' CONSUMO DE MAT. B TOTAL'!$P$11*2/28)*W26/' CONSUMO DE MAT. B TOTAL'!$P$11 -> 35.17460317 | Y26: 925.8646032 | Z26: 4534.718395 | AA26: 5460.582998 | AH26: CENTRO-OESTE
B27: 5458.552998 | C27: 14 | E27: BETUNEL INDÚSTRIA E COMÉRCIO LTDA. | F27: RUA N ESQUINA COM RUA X, S/N QD. IND. 7 L 01/08 - DIST. IND. - CEP:78015-285 | G27: Mato Grosso | H27: CUIABA - MT | I27: ='Transporte EAI'!I27 -> Araxá - MG | J27: =VLOOKUP(G27,OFFSET('ANP ESTADO'!$A$1,MATCH($I$8,'ANP ESTADO'!B:B,0)+MATCH($H$11,OFFSET('ANP ESTADO'!$A$1,MATCH($I$8,'ANP ESTADO'!B:B,0),0,100000,1),0),2,100000,2),2,FALSE) -> 3.582748395 | K27: =VLOOKUP($H$11,OFFSET('ANP REGIÃO'!$A$9,MATCH('Transporte RR-1C'!$I$8,'ANP REGIÃO'!A:A,0),1,10000,10000),MATCH('Transporte RR-1C'!AH27,'ANP REGIÃO'!$B$8:$G$8,0),FALSE) -> 2.707063942 | L27: 3582.748395 | M27: 951.97 | N27: 4534.718395 | O27: ='Transporte EAI'!O27 -> 1213 | P27: ='Transporte EAI'!P27 -> 0 | Q27: 333.83 | S27: 333.83 | T27: 73.27 | U27: 481.56 | V27: 888.66 | W27: ='Transporte EAI'!W27 -> 332.4 | X27: =EVEN(' CONSUMO DE MAT. B TOTAL'!$P$11*2/28)*W27/' CONSUMO DE MAT. B TOTAL'!$P$11 -> 35.17460317 | Y27: 923.8346032 | Z27: 4534.718395 | AA27: 5458.552998 | AH27: CENTRO-OESTE
B28: 5463.942998 | C28: 15 | E28: EMAM - EMULSÕES E TRANSPORTES LTDA. | F28: RODOVIA DOS IMIGRANTES, S/Nº KM 8,6 - - CEP:60035-351 | G28: Mato Grosso | H28: VARZEA GRANDE - MT | I28: ='Transporte EAI'!I28 -> Araxá - MG | J28: =VLOOKUP(G28,OFFSET('ANP ESTADO'!$A$1,MATCH($I$8,'ANP ESTADO'!B:B,0)+MATCH($H$11,OFFSET('ANP ESTADO'!$A$1,MATCH($I$8,'ANP ESTADO'!B:B,0),0,100000,1),0),2,100000,2),2,FALSE) -> 3.582748395 | K28: =VLOOKUP($H$11,OFFSET('ANP REGIÃO'!$A$9,MATCH('Transporte RR-1C'!$I$8,'ANP REGIÃO'!A:A,0),1,10000,10000),MATCH('Transporte RR-1C'!AH28,'ANP REGIÃO'!$B$8:$G$8,0),FALSE) -> 2.707063942 | L28: 3582.748395 | M28: 951.97 | N28: 4534.718395 | O28: ='Transporte EAI'!O28 -> 1221 | P28: ='Transporte EAI'!P28 -> 0 | Q28: 335.85 | S28: 335.85 | T28: 73.72 | U28: 484.48 | V28: 894.05 | W28: ='Transporte EAI'!W28 -> 332.4 | X28: =EVEN(' CONSUMO DE MAT. B TOTAL'!$P$11*2/28)*W28/' CONSUMO DE MAT. B TOTAL'!$P$11 -> 35.17460317 | Y28: 929.2246032 | Z28: 4534.718395 | AA28: 5463.942998 | AC28: 5463.942998 | AD28: 929.2246032 | AE28: 4534.718395 | AH28: CENTRO-OESTE
B29: 4313.198486 | C29: 16 | E29: VIAPOL LTDA. | F29: VITO ARDITO, 6401 KM 118,5 - JARDIM CAMPO GRANDE - CEP:12282-535 | G29: São Paulo | H29: CACAPAVA - SP | I29: ='Transporte EAI'!I29 -> Araxá - MG | J29: =VLOOKUP(G29,OFFSET('ANP ESTADO'!$A$1,MATCH($I$8,'ANP ESTADO'!B:B,0)+MATCH($H$11,OFFSET('ANP ESTADO'!$A$1,MATCH($I$8,'ANP ESTADO'!B:B,0),0,100000,1),0),2,100000,2),2,FALSE) -> 2.935029756 | K29: =VLOOKUP($H$11,OFFSET('ANP REGIÃO'!$A$9,MATCH('Transporte RR-1C'!$I$8,'ANP REGIÃO'!A:A,0),1,10000,10000),MATCH('Transporte RR-1C'!AH29,'ANP REGIÃO'!$B$8:$G$8,0),FALSE) -> 2.854040788 | L29: 2935.029756 | M29: 779.87 | N29: 3714.899756 | O29: ='Transporte EAI'!O29 -> 648 | P29: ='Transporte EAI'!P29 -> 0 | Q29: 190.88 | S29: 190.88 | T29: 41.9 | U29: 275.36 | V29: 508.14 | W29: ='Transporte EAI'!W29 -> 852 | X29: =EVEN(' CONSUMO DE MAT. B TOTAL'!$P$11*2/28)*W29/' CONSUMO DE MAT. B TOTAL'!$P$11 -> 90.15873016 | Y29: 598.2987302 | Z29: 3714.899756 | AA29: 4313.198486 | AC29: 4313.198486 | AD29: 598.2987302 | AE29: 3714.899756 | AH29: SUDESTE
B30: 4261.033169 | C30: 17 | E30: STRATURA ASFALTOS S/A | F30: RUA LUIS DE CAMÕES, 26 - CAMPOS ELÍSEOS - CEP:25225-030 | G30: Rio de Janeiro | H30: DUQUE DE CAXIAS - RJ | I30: ='Transporte EAI'!I30 -> Araxá - MG | J30: =VLOOKUP(G30,OFFSET('ANP ESTADO'!$A$1,MATCH($I$8,'ANP ESTADO'!B:B,0)+MATCH($H$11,OFFSET('ANP ESTADO'!$A$1,MATCH($I$8,'ANP ESTADO'!B:B,0),0,100000,1),0),2,100000,2),2,FALSE) -> - | K30: =VLOOKUP($H$11,OFFSET('ANP REGIÃO'!$A$9,MATCH('Transporte RR-1C'!$I$8,'ANP REGIÃO'!A:A,0),1,10000,10000),MATCH('Transporte RR-1C'!AH30,'ANP REGIÃO'!$B$8:$G$8,0),FALSE) -> 2.854040788 | L30: 2854.040788 | M30: 758.35 | N30: 3612.390788 | O30: ='Transporte EAI'!O30 -> 778 | P30: ='Transporte EAI'!P30 -> 0 | Q30: 223.77 | S30: 223.77 | T30: 49.12 | U30: 322.8 | V30: 595.69 | W30: ='Transporte EAI'!W30 -> 500.4 | X30: =EVEN(' CONSUMO DE MAT. B TOTAL'!$P$11*2/28)*W30/' CONSUMO DE MAT. B TOTAL'!$P$11 -> 52.95238095 | Y30: 648.642381 | Z30: 3612.390788 | AA30: 4261.033169 | AC30: 4261.033169 | AD30: 648.642381 | AE30: 3612.390788 | AH30: SUDESTE
B31: 4271.143169 | C31: 18 | E31: PROBITEC - PRODUTOS BETUMINOSOS E TECNOLOGIA DE APLICAÇÃO LTDA. | F31: AVENIDA CANAL DA PAVUNA, 620 - PAVUNA - CEP:21535-630 | G31: Rio de Janeiro | H31: RIO DE JANEIRO - RJ | I31: ='Transporte EAI'!I31 -> Araxá - MG | J31: =VLOOKUP(G31,OFFSET('ANP ESTADO'!$A$1,MATCH($I$8,'ANP ESTADO'!B:B,0)+MATCH($H$11,OFFSET('ANP ESTADO'!$A$1,MATCH($I$8,'ANP ESTADO'!B:B,0),0,100000,1),0),2,100000,2),2,FALSE) -> - | K31: =VLOOKUP($H$11,OFFSET('ANP REGIÃO'!$A$9,MATCH('Transporte RR-1C'!$I$8,'ANP REGIÃO'!A:A,0),1,10000,10000),MATCH('Transporte RR-1C'!AH31,'ANP REGIÃO'!$B$8:$G$8,0),FALSE) -> 2.854040788 | L31: 2854.040788 | M31: 758.35 | N31: 3612.390788 | O31: ='Transporte EAI'!O31 -> 793 | P31: ='Transporte EAI'!P31 -> 0 | Q31: 227.57 | S31: 227.57 | T31: 49.95 | U31: 328.28 | V31: 605.8 | W31: ='Transporte EAI'!W31 -> 500.4 | X31: =EVEN(' CONSUMO DE MAT. B TOTAL'!$P$11*2/28)*W31/' CONSUMO DE MAT. B TOTAL'!$P$11 -> 52.95238095 | Y31: 658.752381 | Z31: 3612.390788 | AA31: 4271.143169 | AC31: 4271.143169 | AD31: 658.752381 | AE31: 3612.390788 | AH31: SUDESTE
B32: 4071.669053 | C32: 19 | E32: CASA DO ASFALTO DISTRIBUIDORA, INDÚSTRIA E COMÉRCIO DE ASFALTO LTDA. | F32: BR 376, PARQUE INDUSTRIAL, S/N LOTE 6/7/7-A-3-1 - GL.PATR.MARIALVA - CEP:86990-000 | G32: Paraná | H32: MARIALVA - PR | I32: ='Transporte EAI'!I32 -> Araxá - MG | J32: =VLOOKUP(G32,OFFSET('ANP ESTADO'!$A$1,MATCH($I$8,'ANP ESTADO'!B:B,0)+MATCH($H$11,OFFSET('ANP ESTADO'!$A$1,MATCH($I$8,'ANP ESTADO'!B:B,0),0,100000,1),0),2,100000,2),2,FALSE) -> 2.685296355 | K32: =VLOOKUP($H$11,OFFSET('ANP REGIÃO'!$A$9,MATCH('Transporte RR-1C'!$I$8,'ANP REGIÃO'!A:A,0),1,10000,10000),MATCH('Transporte RR-1C'!AH32,'ANP REGIÃO'!$B$8:$G$8,0),FALSE) -> 2.72053343 | L32: 2685.296355 | M32: 713.51 | N32: 3398.806355 | O32: ='Transporte EAI'!O32 -> 791 | P32: ='Transporte EAI'!P32 -> 0 | Q32: 227.06 | S32: 227.06 | T32: 49.84 | U32: 327.55 | V32: 604.45 | W32: ='Transporte EAI'!W32 -> 646.5 | X32: =EVEN(' CONSUMO DE MAT. B TOTAL'!$P$11*2/28)*W32/' CONSUMO DE MAT. B TOTAL'!$P$11 -> 68.41269841 | Y32: 672.8626984 | Z32: 3398.806355 | AA32: 4071.669053 | AC32: 4071.669053 | AD32: 672.8626984 | AE32: 3398.806355 | AH32: SUL
B33: 4115.765244 | C33: 20 | E33: PETROBRAS DISTRIBUIDORA S.A. | F33: RUA MAQUINISTA ELEODORO JACINTO, 100 - OFICINAS - CEP:84045-170 | G33: Paraná | H33: PONTA GROSSA - PR | I33: ='Transporte EAI'!I33 -> Araxá - MG | J33: =VLOOKUP(G33,OFFSET('ANP ESTADO'!$A$1,MATCH($I$8,'ANP ESTADO'!B:B,0)+MATCH($H$11,OFFSET('ANP ESTADO'!$A$1,MATCH($I$8,'ANP ESTADO'!B:B,0),0,100000,1),0),2,100000,2),2,FALSE) -> 2.685296355 | K33: =VLOOKUP($H$11,OFFSET('ANP REGIÃO'!$A$9,MATCH('Transporte RR-1C'!$I$8,'ANP REGIÃO'!A:A,0),1,10000,10000),MATCH('Transporte RR-1C'!AH33,'ANP REGIÃO'!$B$8:$G$8,0),FALSE) -> 2.72053343 | L33: 2685.296355 | M33: 713.51 | N33: 3398.806355 | O33: ='Transporte EAI'!O33 -> 835 | P33: ='Transporte EAI'!P33 -> 0 | Q33: 238.19 | S33: 238.19 | T33: 52.28 | U33: 343.6 | V33: 634.07 | W33: ='Transporte EAI'!W33 -> 783.3 | X33: =EVEN(' CONSUMO DE MAT. B TOTAL'!$P$11*2/28)*W33/' CONSUMO DE MAT. B TOTAL'!$P$11 -> 82.88888889 | Y33: 716.9588889 | Z33: 3398.806355 | AA33: 4115.765244 | AC33: 4115.765244 | AD33: 716.9588889 | AE33: 3398.806355 | AH33: SUL
D43: Acre
D44: Alagoas
D45: Amapá
D46: Amazonas
D47: Bahia
D48: Ceará
D49: Distrito Federal
D50: Espírito Santo
D51: Goiás
D52: Maranhão
D53: Mato Grosso
D54: Mato Grosso do Sul
D55: Minas Gerais
D56: Pará
D57: Paraíba
D58: Paraná
D59: Pernambuco
D60: Piauí
D61: Rio de Janeiro
D62: Rio Grande do Norte
D63: Rio Grande do Sul
D64: Rondônia
D65: Roraima
D66: Santa Catarina
D67: São Paulo
D68: Sergipe
D69: Tocantins
D73: ASFALTOS DILUÍDOS CM-30
D74: ASFALTOS DILUÍDOS CM-70
D75: ASFALTOS DILUÍDOS CR-250
D76: ASFALTOS DILUÍDOS CR-70
D77: CAP MODIFICADO POR BORRACHA DE PNEU AB22
D78: CAP MODIFICADO POR BORRACHA DE PNEU AB8
D79: CAP MODIFICADO POR POLÍMERO 55-75-E
D80: CAP MODIFICADO POR POLÍMERO 60-85-E
D81: CAP MODIFICADO POR POLÍMERO 65-90-E
D82: CIMENTOS ASFÁLTICOS CAP-150-200
D83: CIMENTOS ASFÁLTICOS CAP-30-45
D84: CIMENTOS ASFÁLTICOS CAP-50-70
D85: CIMENTOS ASFÁLTICOS CAP-85-100
D86: EMULSÃO ASFÁLTICA CATIÔNICA DE RUPTURA CONTROLADA PARA SERVIÇO DE LAMA ASFÁLTICA
D87: EMULSÃO ASFÁLTICA DE RUPTURA LENTA CATIÔNICA PARA SERVIÇO DE LAMA ASFÁLTICA
D88: EMULSÃO ASFÁLTICA DE RUPTURA LENTA DE CARGA NEUTRA PARA SERVIÇO DE LAMA ASFÁLTICA
D89: EMULSÃO ASFÁLTICA PARA SERVIÇO DE IMPRIMAÇÃO
D90: EMULSÕES ASF. MOD. POR POLÍMEROS RC1C-E
D91: EMULSÕES ASF. MOD. POR POLÍMEROS RL1C-E
D92: EMULSÕES ASF. MOD. POR POLÍMEROS RM1C-E
D93: EMULSÕES ASF. MOD. POR POLÍMEROS RR1C-E
D94: EMULSÕES ASF. MOD. POR POLÍMEROS RR2C-E
D95: EMULSÕES ASFÁLTICAS RL-1C
D96: EMULSÕES ASFÁLTICAS RM-1C
D97: EMULSÕES ASFÁLTICAS RM-2C
D98: EMULSÕES ASFÁLTICAS RR-1C
D99: EMULSÕES ASFÁLTICAS RR-2C

Sheet RESUMO_Transp
B11: ÍNDICE DE PAVIMENTAÇÃO DNIT | E11: TIPOLOGIA DO MATERIAL | G11: LIGANTE BETUMINOSO | K11: IMPOSTOS | L11: COFINS | M11: ='Transporte Cap 50-70'!O8 -> 0.0065 | N11: ='Transporte Cap 50-70'!P8 -> 0.0065
C12: DATA INICIAL | F12: 2014-07-01 | G12: ÍNDICE INICIAL | H12: ='Transporte Cap 50-70'!J9 -> 270.237 | L12: PIS | M12: ='Transporte Cap 50-70'!O9 -> 0.03 | N12: ='Transporte Cap 50-70'!P9 -> 0.03 | P12: LEGENDA
C13: DATA FINAL | F13: ='Transporte RR-1C'!H10 -> 2025-09-01 | G13: ÍNDICE FINAL | H13: ='Transporte Cap 50-70'!J10 -> 589.906 | L13: ICMS | M13: ='Transporte Cap 50-70'!O10 -> 0.18 | N13: ='Transporte Cap 50-70'!P10 -> 0.18 | P13: ENTRADA DE DADOS
B15: DATA-BASE | C15: PRODUTOS | D15: LOCALIDADES | H15: CUSTO ANP (R$/Kg) | J15: CUSTO ANP | K15: IMPOSTOS DO PRODUTO | L15: CUSTO DO PRODUTO COM IMPOSTOS | M15: DMT's | N15: DMT's | O15: CUSTO DO TRANSPORTE TOTAL | P15: ICMS | Q15: ATUALIZAÇÃO DO CUSTO DE TRANSPORTE | R15: CUSTO DO TRANSPORTE RODOVIA PAVIMENTADA COM IMPOSTOS E ATUALIZAÇÃO MONETÁRIA | S15: PEDÁGIO | U15: TOTAL TRANSPORTE | V15: TOTAL PRODUTO | W15: TOTAL GERAL
B16: =F13 -> 2025-09-01 | D16: REFINARIAS | E16: ENDEREÇO | F16: ORIGEM REFINARIAS / DISTRIBUIDORAS | G16: DESTINO | H16: ESTADO | I16: REGIÃO | J16: R$/t | K16: R$/t | L16: R$/t | M16: KM | N16: KM | O16: R$/t | P16: R$/t | Q16: R$/t | R16: R$/t | S16: CUSTO POR EIXO | T16: R$/t | U16: R$/t | V16: R$/t | W16: R$/t
B17: 1 | C17: CAP 50/70 | D17: Refinaria Abreu e Lima | E17: Rodovia PE 60, Km 10 - Ipojuca - PE CEP:55590-000 | F17: =VLOOKUP($W17,'Transporte Cap 50-70'!$B:$AA,7,FALSE) -> PAULÍNIA - SP | G17: =VLOOKUP($W17,'Transporte Cap 50-70'!$B:$AA,8,FALSE) -> Araxá - MG | H17: =VLOOKUP($W17,'Transporte Cap 50-70'!$B:$AA,9,FALSE) -> 3.50075547 | I17: =VLOOKUP($W17,'Transporte Cap 50-70'!$B:$AA,10,FALSE) -> 3.578562234 | J17: =VLOOKUP($W17,'Transporte Cap 50-70'!$B:$AA,11,FALSE) -> 3500.75547 | K17: =VLOOKUP($W17,'Transporte Cap 50-70'!$B:$AA,12,FALSE) -> 930.19 | L17: =VLOOKUP($W17,'Transporte Cap 50-70'!$B:$AA,13,FALSE) -> 4430.94547 | M17: =VLOOKUP($W17,'Transporte Cap 50-70'!$B$14:$AA$26,14,FALSE) -> 458 | N17: =VLOOKUP($W17,'Transporte Cap 50-70'!$B:$AA,15,FALSE) -> 0 | O17: =VLOOKUP($W17,'Transporte Cap 50-70'!$B:$AA,18,FALSE) -> 142.81 | P17: =VLOOKUP($W17,'Transporte Cap 50-70'!$B:$AA,19,FALSE) -> 31.34 | Q17: =VLOOKUP($W17,'Transporte Cap 50-70'!$B:$AA,20,FALSE) -> 206 | R17: =VLOOKUP($W17,'Transporte Cap 50-70'!$B:$AA,21,FALSE) -> 380.15 | S17: =VLOOKUP($W17,'Transporte Cap 50-70'!$B:$AA,22,FALSE) -> 594 | T17: =VLOOKUP($W17,'Transporte Cap 50-70'!$B:$AA,23,FALSE) -> 42.50954198 | U17: =VLOOKUP($W17,'Transporte Cap 50-70'!$B:$AA,24,FALSE) -> 422.659542 | V17: =VLOOKUP($W17,'Transporte Cap 50-70'!$B:$AA,25,FALSE) -> 4430.94547 | W17: =SMALL('Transporte Cap 50-70'!$AA$14:$AA$26,1) -> 4853.605012
B18: 2 | D18: Refinaria Potiguar Clara Camarão | E18: Rodovia RN 221, KM 25 - Guamaré - RN CEP:59598-000 | F18: =VLOOKUP($W18,'Transporte Cap 50-70'!$B:$AA,7,FALSE) -> BETIM - MG | G18: =VLOOKUP($W18,'Transporte Cap 50-70'!$B:$AA,8,FALSE) -> Araxá - MG | H18: =VLOOKUP($W18,'Transporte Cap 50-70'!$B:$AA,9,FALSE) -> 3.670681868 | I18: =VLOOKUP($W18,'Transporte Cap 50-70'!$B:$AA,10,FALSE) -> 3.578562234 | J18: =VLOOKUP($W18,'Transporte Cap 50-70'!$B:$AA,11,FALSE) -> 3670.681868 | K18: =VLOOKUP($W18,'Transporte Cap 50-70'!$B:$AA,12,FALSE) -> 975.34 | L18: =VLOOKUP($W18,'Transporte Cap 50-70'!$B:$AA,13,FALSE) -> 4646.021868 | M18: =VLOOKUP($W18,'Transporte Cap 50-70'!$B$14:$AA$26,14,FALSE) -> 331 | N18: =VLOOKUP($W18,'Transporte Cap 50-70'!$B:$AA,15,FALSE) -> 0 | O18: =VLOOKUP($W18,'Transporte Cap 50-70'!$B:$AA,18,FALSE) -> 110.68 | P18: =VLOOKUP($W18,'Transporte Cap 50-70'!$B:$AA,19,FALSE) -> 24.29 | Q18: =VLOOKUP($W18,'Transporte Cap 50-70'!$B:$AA,20,FALSE) -> 159.65 | R18: =VLOOKUP($W18,'Transporte Cap 50-70'!$B:$AA,21,FALSE) -> 294.62 | S18: =VLOOKUP($W18,'Transporte Cap 50-70'!$B:$AA,22,FALSE) -> 129 | T18: =VLOOKUP($W18,'Transporte Cap 50-70'!$B:$AA,23,FALSE) -> 9.231870229 | U18: =VLOOKUP($W18,'Transporte Cap 50-70'!$B:$AA,24,FALSE) -> 303.8518702 | V18: =VLOOKUP($W18,'Transporte Cap 50-70'!$B:$AA,25,FALSE) -> 4646.021868 | W18: =SMALL('Transporte Cap 50-70'!$AA$14:$AA$26,2) -> 4949.873738
B19: 3 | D19: Complexo Petroquímico do Rio de Janeiro (Comperj) | E19: Rodovia Estadual RJ-116 - Km 5,2 - Acesso A-1, s/n, Complemento Sambaetiba - Zona Urbana do 4º Distrito de Itaboraí - RJ CEP:24841-203 | F19: =VLOOKUP($W19,'Transporte Cap 50-70'!$B:$AA,7,FALSE) -> SÃO JOSÉ DOS CAMPOS - SP | G19: =VLOOKUP($W19,'Transporte Cap 50-70'!$B:$AA,8,FALSE) -> Araxá - MG | H19: =VLOOKUP($W19,'Transporte Cap 50-70'!$B:$AA,9,FALSE) -> 3.50075547 | I19: =VLOOKUP($W19,'Transporte Cap 50-70'!$B:$AA,10,FALSE) -> 3.578562234 | J19: =VLOOKUP($W19,'Transporte Cap 50-70'!$B:$AA,11,FALSE) -> 3500.75547 | K19: =VLOOKUP($W19,'Transporte Cap 50-70'!$B:$AA,12,FALSE) -> 930.19 | L19: =VLOOKUP($W19,'Transporte Cap 50-70'!$B:$AA,13,FALSE) -> 4430.94547 | M19: =VLOOKUP($W19,'Transporte Cap 50-70'!$B$14:$AA$26,14,FALSE) -> 625 | N19: =VLOOKUP($W19,'Transporte Cap 50-70'!$B:$AA,15,FALSE) -> 0 | O19: =VLOOKUP($W19,'Transporte Cap 50-70'!$B:$AA,18,FALSE) -> 185.06 | P19: =VLOOKUP($W19,'Transporte Cap 50-70'!$B:$AA,19,FALSE) -> 40.62 | Q19: =VLOOKUP($W19,'Transporte Cap 50-70'!$B:$AA,20,FALSE) -> 266.96 | R19: =VLOOKUP($W19,'Transporte Cap 50-70'!$B:$AA,21,FALSE) -> 492.64 | S19: =VLOOKUP($W19,'Transporte Cap 50-70'!$B:$AA,22,FALSE) -> 852 | T19: =VLOOKUP($W19,'Transporte Cap 50-70'!$B:$AA,23,FALSE) -> 60.97328244 | U19: =VLOOKUP($W19,'Transporte Cap 50-70'!$B:$AA,24,FALSE) -> 553.6132824 | V19: =VLOOKUP($W19,'Transporte Cap 50-70'!$B:$AA,25,FALSE) -> 4430.94547 | W19: =SMALL('Transporte Cap 50-70'!$AA$14:$AA$26,3) -> 4984.558752
B20: 4 | F20: =VLOOKUP($W20,'Transporte Cap 50-70'!$B:$AA,7,FALSE) -> MAUÁ - SP | G20: =VLOOKUP($W20,'Transporte Cap 50-70'!$B:$AA,8,FALSE) -> Araxá - MG | H20: =VLOOKUP($W20,'Transporte Cap 50-70'!$B:$AA,9,FALSE) -> 3.50075547 | I20: =VLOOKUP($W20,'Transporte Cap 50-70'!$B:$AA,10,FALSE) -> 3.578562234 | J20: =VLOOKUP($W20,'Transporte Cap 50-70'!$B:$AA,11,FALSE) -> 3500.75547 | K20: =VLOOKUP($W20,'Transporte Cap 50-70'!$B:$AA,12,FALSE) -> 930.19 | L20: =VLOOKUP($W20,'Transporte Cap 50-70'!$B:$AA,13,FALSE) -> 4430.94547 | M20: =VLOOKUP($W20,'Transporte Cap 50-70'!$B$14:$AA$26,14,FALSE) -> 637 | N20: =VLOOKUP($W20,'Transporte Cap 50-70'!$B:$AA,15,FALSE) -> 0 | O20: =VLOOKUP($W20,'Transporte Cap 50-70'!$B:$AA,18,FALSE) -> 188.1 | P20: =VLOOKUP($W20,'Transporte Cap 50-70'!$B:$AA,19,FALSE) -> 41.29 | Q20: =VLOOKUP($W20,'Transporte Cap 50-70'!$B:$AA,20,FALSE) -> 271.35 | R20: =VLOOKUP($W20,'Transporte Cap 50-70'!$B:$AA,21,FALSE) -> 500.74 | S20: =VLOOKUP($W20,'Transporte Cap 50-70'!$B:$AA,22,FALSE) -> 748.8 | T20: =VLOOKUP($W20,'Transporte Cap 50-70'!$B:$AA,23,FALSE) -> 53.58778626 | U20: =VLOOKUP($W20,'Transporte Cap 50-70'!$B:$AA,24,FALSE) -> 554.3277863 | V20: =VLOOKUP($W20,'Transporte Cap 50-70'!$B:$AA,25,FALSE) -> 4430.94547 | W20: =SMALL('Transporte Cap 50-70'!$AA$14:$AA$26,4) -> 4985.273256
B21: 5 | F21: =VLOOKUP($W21,'Transporte Cap 50-70'!$B:$AA,7,FALSE) -> CUBATÃO - SP | G21: =VLOOKUP($W21,'Transporte Cap 50-70'!$B:$AA,8,FALSE) -> Araxá - MG | H21: =VLOOKUP($W21,'Transporte Cap 50-70'!$B:$AA,9,FALSE) -> 3.50075547 | I21: =VLOOKUP($W21,'Transporte Cap 50-70'!$B:$AA,10,FALSE) -> 3.578562234 | J21: =VLOOKUP($W21,'Transporte Cap 50-70'!$B:$AA,11,FALSE) -> 3500.75547 | K21: =VLOOKUP($W21,'Transporte Cap 50-70'!$B:$AA,12,FALSE) -> 930.19 | L21: =VLOOKUP($W21,'Transporte Cap 50-70'!$B:$AA,13,FALSE) -> 4430.94547 | M21: =VLOOKUP($W21,'Transporte Cap 50-70'!$B$14:$AA$26,14,FALSE) -> 649 | N21: =VLOOKUP($W21,'Transporte Cap 50-70'!$B:$AA,15,FALSE) -> 0 | O21: =VLOOKUP($W21,'Transporte Cap 50-70'!$B:$AA,18,FALSE) -> 191.14 | P21: =VLOOKUP($W21,'Transporte Cap 50-70'!$B:$AA,19,FALSE) -> 41.95 | Q21: =VLOOKUP($W21,'Transporte Cap 50-70'!$B:$AA,20,FALSE) -> 275.72 | R21: =VLOOKUP($W21,'Transporte Cap 50-70'!$B:$AA,21,FALSE) -> 508.81 | S21: =VLOOKUP($W21,'Transporte Cap 50-70'!$B:$AA,22,FALSE) -> 748.8 | T21: =VLOOKUP($W21,'Transporte Cap 50-70'!$B:$AA,23,FALSE) -> 53.58778626 | U21: =VLOOKUP($W21,'Transporte Cap 50-70'!$B:$AA,24,FALSE) -> 562.3977863 | V21: =VLOOKUP($W21,'Transporte Cap 50-70'!$B:$AA,25,FALSE) -> 4430.94547 | W21: =SMALL('Transporte Cap 50-70'!$AA$14:$AA$26,5) -> 4993.343256
B22: 6 | F22: =VLOOKUP($W22,'Transporte Cap 50-70'!$B:$AA,7,FALSE) -> DUQUE DE CAXIAS - RJ | G22: =VLOOKUP($W22,'Transporte Cap 50-70'!$B:$AA,8,FALSE) -> Araxá - MG | H22: =VLOOKUP($W22,'Transporte Cap 50-70'!$B:$AA,9,FALSE) -> 3.50108221 | I22: =VLOOKUP($W22,'Transporte Cap 50-70'!$B:$AA,10,FALSE) -> 3.578562234 | J22: =VLOOKUP($W22,'Transporte Cap 50-70'!$B:$AA,11,FALSE) -> 3501.08221 | K22: =VLOOKUP($W22,'Transporte Cap 50-70'!$B:$AA,12,FALSE) -> 930.27 | L22: =VLOOKUP($W22,'Transporte Cap 50-70'!$B:$AA,13,FALSE) -> 4431.35221 | M22: =VLOOKUP($W22,'Transporte Cap 50-70'!$B$14:$AA$26,14,FALSE) -> 778 | N22: =VLOOKUP($W22,'Transporte Cap 50-70'!$B:$AA,15,FALSE) -> 0 | O22: =VLOOKUP($W22,'Transporte Cap 50-70'!$B:$AA,18,FALSE) -> 223.77 | P22: =VLOOKUP($W22,'Transporte Cap 50-70'!$B:$AA,19,FALSE) -> 49.12 | Q22: =VLOOKUP($W22,'Transporte Cap 50-70'!$B:$AA,20,FALSE) -> 322.8 | R22: =VLOOKUP($W22,'Transporte Cap 50-70'!$B:$AA,21,FALSE) -> 595.69 | S22: =VLOOKUP($W22,'Transporte Cap 50-70'!$B:$AA,22,FALSE) -> 500.4 | T22: =VLOOKUP($W22,'Transporte Cap 50-70'!$B:$AA,23,FALSE) -> 35.8110687 | U22: =VLOOKUP($W22,'Transporte Cap 50-70'!$B:$AA,24,FALSE) -> 631.5010687 | V22: =VLOOKUP($W22,'Transporte Cap 50-70'!$B:$AA,25,FALSE) -> 4431.35221 | W22: =SMALL('Transporte Cap 50-70'!$AA$14:$AA$26,6) -> 5062.853279
O23: =VLOOKUP($W23,'Transporte Cap 50-70'!$B:$AA,18,FALSE) ->  | R23: =VLOOKUP($W23,'Transporte Cap 50-70'!$B:$AA,21,FALSE) -> 
O24: =VLOOKUP($W24,'Transporte Cap 50-70'!$B:$AA,18,FALSE) ->  | R24: =VLOOKUP($W24,'Transporte Cap 50-70'!$B:$AA,21,FALSE) -> 
O25: =VLOOKUP($W25,'Transporte Cap 50-70'!$B:$AA,18,FALSE) ->  | R25: =VLOOKUP($W25,'Transporte Cap 50-70'!$B:$AA,21,FALSE) -> 
O26: =VLOOKUP($W26,'Transporte Cap 50-70'!$B:$AA,18,FALSE) ->  | R26: =VLOOKUP($W26,'Transporte Cap 50-70'!$B:$AA,21,FALSE) -> 
O27: =VLOOKUP($W27,'Transporte Cap 50-70'!$B:$AA,18,FALSE) ->  | R27: =VLOOKUP($W27,'Transporte Cap 50-70'!$B:$AA,21,FALSE) -> 
B28: 1 | C28: CAP MODIF. C/ POLÍMERO 60/85 | D28: Refinaria Abreu e Lima | E28: Rodovia PE 60, Km 10 - Ipojuca - PE CEP:55590-000 | F28: Transporte EAI'! | G28: Palmas - TO | H28: 2.261894948 | I28: 2.353413905 | J28: 2261.894948 | K28: 393.19 | L28: 2655.084948 | M28: 1181 | N28: 1181 | O28: =VLOOKUP($W28,'Transporte Cap 50-70'!$B:$AA,18,FALSE) ->  | P28: 44.41 | Q28: 202.55 | R28: =VLOOKUP($W28,'Transporte Cap 50-70'!$B:$AA,21,FALSE) ->  | S28: 102 | T28: 102 | U28: 674.69 | V28: 2655.084948 | W28: 3329.774948
B29: 2 | D29: Refinaria Potiguar Clara Camarão | E29: Rodovia RN 221, KM 25 - Guamaré - RN CEP:59598-000 | F29: UBERLANDIA - MG | G29: Palmas - TO | H29: 2.261894948 | I29: 2.353413905 | J29: 2261.894948 | K29: 393.19 | L29: 2655.084948 | M29: 1182 | N29: 1182 | O29: =VLOOKUP($W29,'Transporte Cap 50-70'!$B:$AA,18,FALSE) ->  | P29: 44.45 | Q29: 202.71 | R29: =VLOOKUP($W29,'Transporte Cap 50-70'!$B:$AA,21,FALSE) ->  | S29: 102 | T29: 102 | U29: 675.14 | V29: 2655.084948 | W29: 3330.224948
B30: 3 | D30: Complexo Petroquímico do Rio de Janeiro (Comperj) | E30: Rodovia Estadual RJ-116 - Km 5,2 - Acesso A-1, s/n, Complemento Sambaetiba - Zona Urbana do 4º Distrito de Itaboraí - RJ CEP:24841-203 | F30: GOIANIRA - GO | G30: Palmas - TO | I30: 2.555206955 | J30: 2555.206955 | K30: 444.18 | L30: 2999.386955 | M30: 814 | N30: 814 | O30: =VLOOKUP($W30,'Transporte Cap 50-70'!$B:$AA,18,FALSE) ->  | P30: 31.75 | Q30: 144.81 | R30: =VLOOKUP($W30,'Transporte Cap 50-70'!$B:$AA,21,FALSE) ->  | S30: 0 | T30: 0 | U30: 409.44 | V30: 2999.386955 | W30: 3408.826955
B31: 4 | F31: BRASÍLIA - DF | G31: Palmas - TO | I31: 2.555206955 | J31: 2555.206955 | K31: 444.18 | L31: 2999.386955 | M31: 822 | N31: 822 | O31: =VLOOKUP($W31,'Transporte Cap 50-70'!$B:$AA,18,FALSE) ->  | P31: 32.03 | Q31: 146.07 | R31: =VLOOKUP($W31,'Transporte Cap 50-70'!$B:$AA,21,FALSE) ->  | S31: 0 | T31: 0 | U31: 413 | V31: 2999.386955 | W31: 3412.386955
B32: 5 | F32: APARECIDA DE GOIANIA - GO | G32: Palmas - TO | I32: 2.555206955 | J32: 2555.206955 | K32: 444.18 | L32: 2999.386955 | M32: 842 | N32: 842 | O32: =VLOOKUP($W32,'Transporte Cap 50-70'!$B:$AA,18,FALSE) ->  | P32: 32.72 | Q32: 149.22 | R32: =VLOOKUP($W32,'Transporte Cap 50-70'!$B:$AA,21,FALSE) ->  | S32: 0 | T32: 0 | U32: 421.9 | V32: 2999.386955 | W32: 3421.286955
B33: 6 | F33: ANÁPOLIS - GO | G33: Palmas - TO | I33: 2.555206955 | J33: 2555.206955 | K33: 444.18 | L33: 2999.386955 | M33: 950 | N33: 950 | O33: =VLOOKUP($W33,'Transporte Cap 50-70'!$B:$AA,18,FALSE) ->  | P33: 36.44 | Q33: 166.21 | R33: =VLOOKUP($W33,'Transporte Cap 50-70'!$B:$AA,21,FALSE) ->  | S33: 0 | T33: 0 | U33: 469.93 | V33: 2999.386955 | W33: 3469.316955
B35: 1 | C35: EAI | D35: Refinaria Abreu e Lima | E35: Rodovia PE 60, Km 10 - Ipojuca - PE CEP:55590-000 | F35: =VLOOKUP($W35,'Transporte EAI'!$B$14:$AA$33,7,FALSE) -> UBERLANDIA - MG | G35: =VLOOKUP($W35,'Transporte EAI'!$B$14:$AA$33,8,FALSE) -> Araxá - MG | H35: =VLOOKUP($W35,'Transporte EAI'!$B$14:$AA$33,9,FALSE) -> 2.154244786 | I35: =VLOOKUP($W35,'Transporte EAI'!$B$14:$AA$33,10,FALSE) -> 2.343816026 | J35: =VLOOKUP($W35,'Transporte EAI'!$B$14:$AA$33,11,FALSE) -> 2154.244786 | K35: =VLOOKUP($W35,'Transporte EAI'!$B$14:$AA$33,12,FALSE) -> 572.41 | L35: =VLOOKUP($W35,'Transporte EAI'!$B$14:$AA$33,13,FALSE) -> 2726.654786 | M35: =VLOOKUP($W35,'Transporte EAI'!$B$14:$AA$33,14,FALSE) -> 176 | N35: =VLOOKUP($W35,'Transporte EAI'!$B$14:$AA$33,15,FALSE) -> 0 | O35: =VLOOKUP($W35,'Transporte EAI'!$B$14:$AA$33,18,FALSE) -> 71.47 | P35: =VLOOKUP($W35,'Transporte EAI'!$B$14:$AA$33,19,FALSE) -> 15.68 | Q35: =VLOOKUP($W35,'Transporte EAI'!$B$14:$AA$33,20,FALSE) -> 103.09 | R35: =VLOOKUP($W35,'Transporte EAI'!$B$14:$AA$33,21,FALSE) -> 190.24 | S35: =VLOOKUP($W35,'Transporte EAI'!$B$14:$AA$33,22,FALSE) -> 152.4 | T35: =VLOOKUP($W35,'Transporte EAI'!$B$14:$AA$33,23,FALSE) -> 16.12698413 | U35: =VLOOKUP($W35,'Transporte EAI'!$B$14:$AA$33,24,FALSE) -> 206.3669841 | V35: =VLOOKUP($W35,'Transporte EAI'!$B$14:$AA$33,25,FALSE) -> 2726.654786 | W35: =SMALL('Transporte EAI'!$AA$14:$AA$33,1) -> 2933.02177
B36: 2 | D36: Refinaria Potiguar Clara Camarão | E36: Rodovia RN 221, KM 25 - Guamaré - RN CEP:59598-000 | F36: =VLOOKUP($W36,'Transporte EAI'!$B$14:$AA$33,7,FALSE) -> UBERLANDIA - MG | G36: =VLOOKUP($W36,'Transporte EAI'!$B$14:$AA$33,8,FALSE) -> Araxá - MG | H36: =VLOOKUP($W36,'Transporte EAI'!$B$14:$AA$33,9,FALSE) -> 2.154244786 | I36: =VLOOKUP($W36,'Transporte EAI'!$B$14:$AA$33,10,FALSE) -> 2.343816026 | J36: =VLOOKUP($W36,'Transporte EAI'!$B$14:$AA$33,11,FALSE) -> 2154.244786 | K36: =VLOOKUP($W36,'Transporte EAI'!$B$14:$AA$33,12,FALSE) -> 572.41 | L36: =VLOOKUP($W36,'Transporte EAI'!$B$14:$AA$33,13,FALSE) -> 2726.654786 | M36: =VLOOKUP($W36,'Transporte EAI'!$B$14:$AA$33,14,FALSE) -> 179 | N36: =VLOOKUP($W36,'Transporte EAI'!$B$14:$AA$33,15,FALSE) -> 0 | O36: =VLOOKUP($W36,'Transporte EAI'!$B$14:$AA$33,18,FALSE) -> 72.23 | P36: =VLOOKUP($W36,'Transporte EAI'!$B$14:$AA$33,19,FALSE) -> 15.85 | Q36: =VLOOKUP($W36,'Transporte EAI'!$B$14:$AA$33,20,FALSE) -> 104.19 | R36: =VLOOKUP($W36,'Transporte EAI'!$B$14:$AA$33,21,FALSE) -> 192.27 | S36: =VLOOKUP($W36,'Transporte EAI'!$B$14:$AA$33,22,FALSE) -> 152.4 | T36: =VLOOKUP($W36,'Transporte EAI'!$B$14:$AA$33,23,FALSE) -> 16.12698413 | U36: =VLOOKUP($W36,'Transporte EAI'!$B$14:$AA$33,24,FALSE) -> 208.3969841 | V36: =VLOOKUP($W36,'Transporte EAI'!$B:$AA,25,FALSE) -> 2726.654786 | W36: =SMALL('Transporte EAI'!$AA$14:$AA$33,2) -> 2935.05177
B37: 3 | D37: Complexo Petroquímico do Rio de Janeiro (Comperj) | E37: Rodovia Estadual RJ-116 - Km 5,2 - Acesso A-1, s/n, Complemento Sambaetiba - Zona Urbana do 4º Distrito de Itaboraí - RJ CEP:24841-203 | F37: =VLOOKUP($W37,'Transporte EAI'!$B$14:$AA$33,7,FALSE) -> SARZEDO - MG | G37: =VLOOKUP($W37,'Transporte EAI'!$B$14:$AA$33,8,FALSE) -> Araxá - MG | H37: =VLOOKUP($W37,'Transporte EAI'!$B$14:$AA$33,9,FALSE) -> 2.154244786 | I37: =VLOOKUP($W37,'Transporte EAI'!$B$14:$AA$33,10,FALSE) -> 2.343816026 | J37: =VLOOKUP($W37,'Transporte EAI'!$B$14:$AA$33,11,FALSE) -> 2154.244786 | K37: =VLOOKUP($W37,'Transporte EAI'!$B$14:$AA$33,12,FALSE) -> 572.41 | L37: =VLOOKUP($W37,'Transporte EAI'!$B$14:$AA$33,13,FALSE) -> 2726.654786 | M37: =VLOOKUP($W37,'Transporte EAI'!$B$14:$AA$33,14,FALSE) -> 342 | N37: =VLOOKUP($W37,'Transporte EAI'!$B$14:$AA$33,15,FALSE) -> 0 | O37: =VLOOKUP($W37,'Transporte EAI'!$B$14:$AA$33,18,FALSE) -> 113.47 | P37: =VLOOKUP($W37,'Transporte EAI'!$B$14:$AA$33,19,FALSE) -> 24.9 | Q37: =VLOOKUP($W37,'Transporte EAI'!$B$14:$AA$33,20,FALSE) -> 163.68 | R37: =VLOOKUP($W37,'Transporte EAI'!$B$14:$AA$33,21,FALSE) -> 302.05 | S37: =VLOOKUP($W37,'Transporte EAI'!$B$14:$AA$33,22,FALSE) -> 126 | T37: =VLOOKUP($W37,'Transporte EAI'!$B$14:$AA$33,23,FALSE) -> 13.33333333 | U37: =VLOOKUP($W37,'Transporte EAI'!$B$14:$AA$33,24,FALSE) -> 315.3833333 | V37: =VLOOKUP($W37,'Transporte EAI'!$B:$AA,25,FALSE) -> 2726.654786 | W37: =SMALL('Transporte EAI'!$AA$14:$AA$33,3) -> 3042.038119
B38: 4 | F38: =VLOOKUP($W38,'Transporte EAI'!$B$14:$AA$33,7,FALSE) -> APARECIDA DE GOIANIA - GO | G38: =VLOOKUP($W38,'Transporte EAI'!$B$14:$AA$33,8,FALSE) -> Araxá - MG | H38: =VLOOKUP($W38,'Transporte EAI'!$B$14:$AA$33,9,FALSE) -> 2.216693075 | I38: =VLOOKUP($W38,'Transporte EAI'!$B$14:$AA$33,10,FALSE) -> 2.557381706 | J38: =VLOOKUP($W38,'Transporte EAI'!$B$14:$AA$33,11,FALSE) -> 2216.693075 | K38: =VLOOKUP($W38,'Transporte EAI'!$B$14:$AA$33,12,FALSE) -> 589 | L38: =VLOOKUP($W38,'Transporte EAI'!$B$14:$AA$33,13,FALSE) -> 2805.693075 | M38: =VLOOKUP($W38,'Transporte EAI'!$B$14:$AA$33,14,FALSE) -> 497 | N38: =VLOOKUP($W38,'Transporte EAI'!$B$14:$AA$33,15,FALSE) -> 0 | O38: =VLOOKUP($W38,'Transporte EAI'!$B$14:$AA$33,18,FALSE) -> 152.68 | P38: =VLOOKUP($W38,'Transporte EAI'!$B$14:$AA$33,19,FALSE) -> 33.51 | Q38: =VLOOKUP($W38,'Transporte EAI'!$B$14:$AA$33,20,FALSE) -> 220.24 | R38: =VLOOKUP($W38,'Transporte EAI'!$B$14:$AA$33,21,FALSE) -> 406.43 | S38: =VLOOKUP($W38,'Transporte EAI'!$B$14:$AA$33,22,FALSE) -> 319.2 | T38: =VLOOKUP($W38,'Transporte EAI'!$B$14:$AA$33,23,FALSE) -> 33.77777778 | U38: =VLOOKUP($W38,'Transporte EAI'!$B$14:$AA$33,24,FALSE) -> 440.2077778 | V38: =VLOOKUP($W38,'Transporte EAI'!$B:$AA,25,FALSE) -> 2805.693075 | W38: =SMALL('Transporte EAI'!$AA$14:$AA$33,4) -> 3245.900852
B39: 5 | F39: =VLOOKUP($W39,'Transporte EAI'!$B$14:$AA$33,7,FALSE) -> GOIANIRA - GO | G39: =VLOOKUP($W39,'Transporte EAI'!$B$14:$AA$33,8,FALSE) -> Araxá - MG | H39: =VLOOKUP($W39,'Transporte EAI'!$B$14:$AA$33,9,FALSE) -> 2.216693075 | I39: =VLOOKUP($W39,'Transporte EAI'!$B$14:$AA$33,10,FALSE) -> 2.557381706 | J39: =VLOOKUP($W39,'Transporte EAI'!$B$14:$AA$33,11,FALSE) -> 2216.693075 | K39: =VLOOKUP($W39,'Transporte EAI'!$B$14:$AA$33,12,FALSE) -> 589 | L39: =VLOOKUP($W39,'Transporte EAI'!$B$14:$AA$33,13,FALSE) -> 2805.693075 | M39: =VLOOKUP($W39,'Transporte EAI'!$B$14:$AA$33,14,FALSE) -> 541 | N39: =VLOOKUP($W39,'Transporte EAI'!$B$14:$AA$33,15,FALSE) -> 0 | O39: =VLOOKUP($W39,'Transporte EAI'!$B$14:$AA$33,18,FALSE) -> 163.81 | P39: =VLOOKUP($W39,'Transporte EAI'!$B$14:$AA$33,19,FALSE) -> 35.95 | Q39: =VLOOKUP($W39,'Transporte EAI'!$B$14:$AA$33,20,FALSE) -> 236.3 | R39: =VLOOKUP($W39,'Transporte EAI'!$B$14:$AA$33,21,FALSE) -> 436.06 | S39: =VLOOKUP($W39,'Transporte EAI'!$B$14:$AA$33,22,FALSE) -> 319.2 | T39: =VLOOKUP($W39,'Transporte EAI'!$B$14:$AA$33,23,FALSE) -> 33.77777778 | U39: =VLOOKUP($W39,'Transporte EAI'!$B$14:$AA$33,24,FALSE) -> 469.8377778 | V39: =VLOOKUP($W39,'Transporte EAI'!$B:$AA,25,FALSE) -> 2805.693075 | W39: =SMALL('Transporte EAI'!$AA$14:$AA$33,5) -> 3275.530852
B40: 6 | F40: =VLOOKUP($W40,'Transporte EAI'!$B$14:$AA$33,7,FALSE) -> ANÁPOLIS - GO | G40: =VLOOKUP($W40,'Transporte EAI'!$B$14:$AA$33,8,FALSE) -> Araxá - MG | H40: =VLOOKUP($W40,'Transporte EAI'!$B$14:$AA$33,9,FALSE) -> 2.216693075 | I40: =VLOOKUP($W40,'Transporte EAI'!$B$14:$AA$33,10,FALSE) -> 2.557381706 | J40: =VLOOKUP($W40,'Transporte EAI'!$B$14:$AA$33,11,FALSE) -> 2216.693075 | K40: =VLOOKUP($W40,'Transporte EAI'!$B$14:$AA$33,12,FALSE) -> 589 | L40: =VLOOKUP($W40,'Transporte EAI'!$B$14:$AA$33,13,FALSE) -> 2805.693075 | M40: =VLOOKUP($W40,'Transporte EAI'!$B$14:$AA$33,14,FALSE) -> 568 | N40: =VLOOKUP($W40,'Transporte EAI'!$B$14:$AA$33,15,FALSE) -> 0 | O40: =VLOOKUP($W40,'Transporte EAI'!$B$14:$AA$33,18,FALSE) -> 170.64 | P40: =VLOOKUP($W40,'Transporte EAI'!$B$14:$AA$33,19,FALSE) -> 37.45 | Q40: =VLOOKUP($W40,'Transporte EAI'!$B$14:$AA$33,20,FALSE) -> 246.15 | R40: =VLOOKUP($W40,'Transporte EAI'!$B$14:$AA$33,21,FALSE) -> 454.24 | S40: =VLOOKUP($W40,'Transporte EAI'!$B$14:$AA$33,22,FALSE) -> 349.8 | T40: =VLOOKUP($W40,'Transporte EAI'!$B$14:$AA$33,23,FALSE) -> 37.01587302 | U40: =VLOOKUP($W40,'Transporte EAI'!$B$14:$AA$33,24,FALSE) -> 491.255873 | V40: =VLOOKUP($W40,'Transporte EAI'!$B:$AA,25,FALSE) -> 2805.693075 | W40: =SMALL('Transporte EAI'!$AA$14:$AA$33,6) -> 3296.948948
B42: 1 | C42: RR1-C | D42: Refinaria Abreu e Lima | E42: Rodovia PE 60, Km 10 - Ipojuca - PE CEP:55590-000 | F42: =VLOOKUP($W42,'Transporte RR-1C'!$B:$AA,7,FALSE) -> UBERLANDIA - MG | G42: =VLOOKUP($W42,'Transporte RR-1C'!$B:$AA,8,FALSE) -> Araxá - MG | H42: =VLOOKUP($W42,'Transporte RR-1C'!$B:$AA,9,FALSE) -> 2.61432895 | I42: =VLOOKUP($W42,'Transporte RR-1C'!$B:$AA,10,FALSE) -> 2.854040788 | J42: =VLOOKUP($W42,'Transporte RR-1C'!$B:$AA,11,FALSE) -> 2614.32895 | K42: =VLOOKUP($W42,'Transporte RR-1C'!$B:$AA,12,FALSE) -> 694.66 | L42: =VLOOKUP($W42,'Transporte RR-1C'!$B:$AA,13,FALSE) -> 3308.98895 | M42: =VLOOKUP($W42,'Transporte RR-1C'!$B:$AA,14,FALSE) -> 176 | N42: =VLOOKUP($W42,'Transporte RR-1C'!$B:$AA,15,FALSE) -> 0 | O42: =VLOOKUP($W42,'Transporte RR-1C'!$B:$AA,18,FALSE) -> 71.47 | P42: =VLOOKUP($W42,'Transporte RR-1C'!$B:$AA,19,FALSE) -> 15.68 | Q42: =VLOOKUP($W42,'Transporte RR-1C'!$B:$AA,20,FALSE) -> 103.09 | R42: =VLOOKUP($W42,'Transporte RR-1C'!$B:$AA,21,FALSE) -> 190.24 | S42: =VLOOKUP($W42,'Transporte RR-1C'!$B:$AA,22,FALSE) -> 152.4 | T42: =VLOOKUP($W42,'Transporte RR-1C'!$B:$AA,23,FALSE) -> 16.12698413 | U42: =VLOOKUP($W42,'Transporte RR-1C'!$B:$AA,24,FALSE) -> 206.3669841 | V42: =VLOOKUP($W42,'Transporte RR-1C'!$B:$AA,25,FALSE) -> 3308.98895 | W42: =SMALL('Transporte RR-1C'!$AA$14:$AA$33,1) -> 3515.355935
B43: 2 | D43: Refinaria Potiguar Clara Camarão | E43: Rodovia RN 221, KM 25 - Guamaré - RN CEP:59598-000 | F43: =VLOOKUP($W43,'Transporte RR-1C'!$B:$AA,7,FALSE) -> UBERLANDIA - MG | G43: =VLOOKUP($W43,'Transporte RR-1C'!$B:$AA,8,FALSE) -> Araxá - MG | H43: =VLOOKUP($W43,'Transporte RR-1C'!$B:$AA,9,FALSE) -> 2.61432895 | I43: =VLOOKUP($W43,'Transporte RR-1C'!$B:$AA,10,FALSE) -> 2.854040788 | J43: =VLOOKUP($W43,'Transporte RR-1C'!$B:$AA,11,FALSE) -> 2614.32895 | K43: =VLOOKUP($W43,'Transporte RR-1C'!$B:$AA,12,FALSE) -> 694.66 | L43: =VLOOKUP($W43,'Transporte RR-1C'!$B:$AA,13,FALSE) -> 3308.98895 | M43: =VLOOKUP($W43,'Transporte RR-1C'!$B:$AA,14,FALSE) -> 179 | N43: =VLOOKUP($W43,'Transporte RR-1C'!$B:$AA,15,FALSE) -> 0 | O43: =VLOOKUP($W43,'Transporte RR-1C'!$B:$AA,18,FALSE) -> 72.23 | P43: =VLOOKUP($W43,'Transporte RR-1C'!$B:$AA,19,FALSE) -> 15.85 | Q43: =VLOOKUP($W43,'Transporte RR-1C'!$B:$AA,20,FALSE) -> 104.19 | R43: =VLOOKUP($W43,'Transporte RR-1C'!$B:$AA,21,FALSE) -> 192.27 | S43: =VLOOKUP($W43,'Transporte RR-1C'!$B:$AA,22,FALSE) -> 152.4 | T43: =VLOOKUP($W43,'Transporte RR-1C'!$B:$AA,23,FALSE) -> 16.12698413 | U43: =VLOOKUP($W43,'Transporte RR-1C'!$B:$AA,24,FALSE) -> 208.3969841 | V43: =VLOOKUP($W43,'Transporte RR-1C'!$B:$AA,25,FALSE) -> 3308.98895 | W43: =SMALL('Transporte RR-1C'!$AA$14:$AA$33,2) -> 3517.385935
B44: 3 | D44: Complexo Petroquímico do Rio de Janeiro (Comperj) | E44: Rodovia Estadual RJ-116 - Km 5,2 - Acesso A-1, s/n, Complemento Sambaetiba - Zona Urbana do 4º Distrito de Itaboraí - RJ CEP:24841-203 | F44: =VLOOKUP($W44,'Transporte RR-1C'!$B:$AA,7,FALSE) -> SARZEDO - MG | G44: =VLOOKUP($W44,'Transporte RR-1C'!$B:$AA,8,FALSE) -> Araxá - MG | H44: =VLOOKUP($W44,'Transporte RR-1C'!$B:$AA,9,FALSE) -> 2.61432895 | I44: =VLOOKUP($W44,'Transporte RR-1C'!$B:$AA,10,FALSE) -> 2.854040788 | J44: =VLOOKUP($W44,'Transporte RR-1C'!$B:$AA,11,FALSE) -> 2614.32895 | K44: =VLOOKUP($W44,'Transporte RR-1C'!$B:$AA,12,FALSE) -> 694.66 | L44: =VLOOKUP($W44,'Transporte RR-1C'!$B:$AA,13,FALSE) -> 3308.98895 | M44: =VLOOKUP($W44,'Transporte RR-1C'!$B:$AA,14,FALSE) -> 342 | N44: =VLOOKUP($W44,'Transporte RR-1C'!$B:$AA,15,FALSE) -> 0 | O44: =VLOOKUP($W44,'Transporte RR-1C'!$B:$AA,18,FALSE) -> 113.47 | P44: =VLOOKUP($W44,'Transporte RR-1C'!$B:$AA,19,FALSE) -> 24.9 | Q44: =VLOOKUP($W44,'Transporte RR-1C'!$B:$AA,20,FALSE) -> 163.68 | R44: =VLOOKUP($W44,'Transporte RR-1C'!$B:$AA,21,FALSE) -> 302.05 | S44: =VLOOKUP($W44,'Transporte RR-1C'!$B:$AA,22,FALSE) -> 126 | T44: =VLOOKUP($W44,'Transporte RR-1C'!$B:$AA,23,FALSE) -> 13.33333333 | U44: =VLOOKUP($W44,'Transporte RR-1C'!$B:$AA,24,FALSE) -> 315.3833333 | V44: =VLOOKUP($W44,'Transporte RR-1C'!$B:$AA,25,FALSE) -> 3308.98895 | W44: =SMALL('Transporte RR-1C'!$AA$14:$AA$33,3) -> 3624.372284
B45: 4 | D45: Refinaria Abreu e Lima | E45: Rodovia PE 60, Km 10 - Ipojuca - PE CEP:55590-000 | F45: =VLOOKUP($W45,'Transporte RR-1C'!$B:$AA,7,FALSE) -> APARECIDA DE GOIANIA - GO | G45: =VLOOKUP($W45,'Transporte RR-1C'!$B:$AA,8,FALSE) -> Araxá - MG | H45: =VLOOKUP($W45,'Transporte RR-1C'!$B:$AA,9,FALSE) -> 2.579299045 | I45: =VLOOKUP($W45,'Transporte RR-1C'!$B:$AA,10,FALSE) -> 2.707063942 | J45: =VLOOKUP($W45,'Transporte RR-1C'!$B:$AA,11,FALSE) -> 2579.299045 | K45: =VLOOKUP($W45,'Transporte RR-1C'!$B:$AA,12,FALSE) -> 685.35 | L45: =VLOOKUP($W45,'Transporte RR-1C'!$B:$AA,13,FALSE) -> 3264.649045 | M45: =VLOOKUP($W45,'Transporte RR-1C'!$B:$AA,14,FALSE) -> 497 | N45: =VLOOKUP($W45,'Transporte RR-1C'!$B:$AA,15,FALSE) -> 0 | O45: =VLOOKUP($W45,'Transporte RR-1C'!$B:$AA,18,FALSE) -> 152.68 | P45: =VLOOKUP($W45,'Transporte RR-1C'!$B:$AA,19,FALSE) -> 33.51 | Q45: =VLOOKUP($W45,'Transporte RR-1C'!$B:$AA,20,FALSE) -> 220.24 | R45: =VLOOKUP($W45,'Transporte RR-1C'!$B:$AA,21,FALSE) -> 406.43 | S45: =VLOOKUP($W45,'Transporte RR-1C'!$B:$AA,22,FALSE) -> 319.2 | T45: =VLOOKUP($W45,'Transporte RR-1C'!$B:$AA,23,FALSE) -> 33.77777778 | U45: =VLOOKUP($W45,'Transporte RR-1C'!$B:$AA,24,FALSE) -> 440.2077778 | V45: =VLOOKUP($W45,'Transporte RR-1C'!$B:$AA,25,FALSE) -> 3264.649045 | W45: =SMALL('Transporte RR-1C'!$AA$14:$AA$33,4) -> 3704.856823
B46: 5 | D46: Refinaria Potiguar Clara Camarão | E46: Rodovia RN 221, KM 25 - Guamaré - RN CEP:59598-000 | F46: =VLOOKUP($W46,'Transporte RR-1C'!$B:$AA,7,FALSE) -> GOIANIRA - GO | G46: =VLOOKUP($W46,'Transporte RR-1C'!$B:$AA,8,FALSE) -> Araxá - MG | H46: =VLOOKUP($W46,'Transporte RR-1C'!$B:$AA,9,FALSE) -> 2.579299045 | I46: =VLOOKUP($W46,'Transporte RR-1C'!$B:$AA,10,FALSE) -> 2.707063942 | J46: =VLOOKUP($W46,'Transporte RR-1C'!$B:$AA,11,FALSE) -> 2579.299045 | K46: =VLOOKUP($W46,'Transporte RR-1C'!$B:$AA,12,FALSE) -> 685.35 | L46: =VLOOKUP($W46,'Transporte RR-1C'!$B:$AA,13,FALSE) -> 3264.649045 | M46: =VLOOKUP($W46,'Transporte RR-1C'!$B:$AA,14,FALSE) -> 541 | N46: =VLOOKUP($W46,'Transporte RR-1C'!$B:$AA,15,FALSE) -> 0 | O46: =VLOOKUP($W46,'Transporte RR-1C'!$B:$AA,18,FALSE) -> 163.81 | P46: =VLOOKUP($W46,'Transporte RR-1C'!$B:$AA,19,FALSE) -> 35.95 | Q46: =VLOOKUP($W46,'Transporte RR-1C'!$B:$AA,20,FALSE) -> 236.3 | R46: =VLOOKUP($W46,'Transporte RR-1C'!$B:$AA,21,FALSE) -> 436.06 | S46: =VLOOKUP($W46,'Transporte RR-1C'!$B:$AA,22,FALSE) -> 319.2 | T46: =VLOOKUP($W46,'Transporte RR-1C'!$B:$AA,23,FALSE) -> 33.77777778 | U46: =VLOOKUP($W46,'Transporte RR-1C'!$B:$AA,24,FALSE) -> 469.8377778 | V46: =VLOOKUP($W46,'Transporte RR-1C'!$B:$AA,25,FALSE) -> 3264.649045 | W46: =SMALL('Transporte RR-1C'!$AA$14:$AA$33,5) -> 3734.486823
B47: 6 | D47: Complexo Petroquímico do Rio de Janeiro (Comperj) | E47: Rodovia Estadual RJ-116 - Km 5,2 - Acesso A-1, s/n, Complemento Sambaetiba - Zona Urbana do 4º Distrito de Itaboraí - RJ CEP:24841-203 | F47: =VLOOKUP($W47,'Transporte RR-1C'!$B:$AA,7,FALSE) -> ANÁPOLIS - GO | G47: =VLOOKUP($W47,'Transporte RR-1C'!$B:$AA,8,FALSE) -> Araxá - MG | H47: =VLOOKUP($W47,'Transporte RR-1C'!$B:$AA,9,FALSE) -> 2.579299045 | I47: =VLOOKUP($W47,'Transporte RR-1C'!$B:$AA,10,FALSE) -> 2.707063942 | J47: =VLOOKUP($W47,'Transporte RR-1C'!$B:$AA,11,FALSE) -> 2579.299045 | K47: =VLOOKUP($W47,'Transporte RR-1C'!$B:$AA,12,FALSE) -> 685.35 | L47: =VLOOKUP($W47,'Transporte RR-1C'!$B:$AA,13,FALSE) -> 3264.649045 | M47: =VLOOKUP($W47,'Transporte RR-1C'!$B:$AA,14,FALSE) -> 568 | N47: =VLOOKUP($W47,'Transporte RR-1C'!$B:$AA,15,FALSE) -> 0 | O47: =VLOOKUP($W47,'Transporte RR-1C'!$B:$AA,18,FALSE) -> 170.64 | P47: =VLOOKUP($W47,'Transporte RR-1C'!$B:$AA,19,FALSE) -> 37.45 | Q47: =VLOOKUP($W47,'Transporte RR-1C'!$B:$AA,20,FALSE) -> 246.15 | R47: =VLOOKUP($W47,'Transporte RR-1C'!$B:$AA,21,FALSE) -> 454.24 | S47: =VLOOKUP($W47,'Transporte RR-1C'!$B:$AA,22,FALSE) -> 349.8 | T47: =VLOOKUP($W47,'Transporte RR-1C'!$B:$AA,23,FALSE) -> 37.01587302 | U47: =VLOOKUP($W47,'Transporte RR-1C'!$B:$AA,24,FALSE) -> 491.255873 | V47: =VLOOKUP($W47,'Transporte RR-1C'!$B:$AA,25,FALSE) -> 3264.649045 | W47: =SMALL('Transporte RR-1C'!$AA$14:$AA$33,6) -> 3755.904918

Sheet MOMENTO DE TRANSPORTE - PRINC
B5: ='RESUMO MODULO TOTAL'!B64 -> CONTRATAÇÃO DE SERVIÇOS DE PAVIMENTAÇÃO ASFÁLTICA COM CONCRETO BETUMINOSO USINADO A QUENTE (CBUQ) EM VIAS DE DIVERSOS MUNICÍPIOS INSERIDOS NA ÁREA DE ATUAÇÃO DA 16ª SUPERINTENDÊNCIA REGIONAL DA CODEVASF, NO ESTADO DE MINAS GERAIS - REGIÃO TRIÂNGULO E ALTO DO SÃO FRANCISCO
B6: DATA BASE: | C6: ='RESUMO MODULO TOTAL'!C6 -> 2025-10-01
C8: RESUMO DO TRANSPORTE PRINCIPAL
B9: CODIGO | C9: DESCRIÇÃO | D9: TKM
B10: 5914359 | C10: =VLOOKUP(B10,'SINTÉTICO SICRO'!$A:$D,2,0) -> Transporte com caminhão basculante de 10 m³ - rodovia em leito natural | D10: =ROUND(SUMIF('MOMENTO DE TRANSPORTE - PRINC'!A:A,B10,'MOMENTO DE TRANSPORTE - PRINC'!K:K),2) -> 275017.91
B11: 5914374 | C11: =VLOOKUP(B11,'SINTÉTICO SICRO'!$A:$D,2,0) -> Transporte com caminhão basculante de 10 m³ - rodovia em revestimento primário | D11: =ROUND(SUMIF('MOMENTO DE TRANSPORTE - PRINC'!A:A,B11,'MOMENTO DE TRANSPORTE - PRINC'!K:K),2) -> 275017.91
B12: 5914389 | C12: =VLOOKUP(B12,'SINTÉTICO SICRO'!$A:$D,2,0) -> Transporte com caminhão basculante de 10 m³ - rodovia pavimentada | D12: =ROUND(SUMIF('MOMENTO DE TRANSPORTE - PRINC'!A:A,B12,'MOMENTO DE TRANSPORTE - PRINC'!K:K),2) -> 2200143.25
B13: 5914449 | C13: =VLOOKUP(B13,'SINTÉTICO SICRO'!$A:$D,2,0) -> Transporte com caminhão carroceria de 15 t - rodovia em leito natural | D13: =ROUND(SUMIF('MOMENTO DE TRANSPORTE - PRINC'!A:A,B13,'MOMENTO DE TRANSPORTE - PRINC'!K:K),2) -> 0
B14: 5914464 | C14: =VLOOKUP(B14,'SINTÉTICO SICRO'!$A:$D,2,0) -> Transporte com caminhão carroceria de 15 t - rodovia em revestimento primário | D14: =ROUND(SUMIF('MOMENTO DE TRANSPORTE - PRINC'!A:A,B14,'MOMENTO DE TRANSPORTE - PRINC'!K:K),2) -> 0
B15: 5914479 | C15: =VLOOKUP(B15,'SINTÉTICO SICRO'!$A:$D,2,0) -> Transporte com caminhão carroceria de 15 t - rodovia pavimentada | D15: =ROUND(SUMIF('MOMENTO DE TRANSPORTE - PRINC'!A:A,B15,'MOMENTO DE TRANSPORTE - PRINC'!K:K),2) -> 0
B16: 5914364 | C16: =VLOOKUP(B16,'SINTÉTICO SICRO'!$A:$D,2,0) -> Transporte de cimento ou cal hidratada a granel com caminhão silo de 30 m³ - rodovia em leito natural | D16: =ROUND(SUMIF('MOMENTO DE TRANSPORTE - PRINC'!A:A,B16,'MOMENTO DE TRANSPORTE - PRINC'!K:K),2) -> 0
B17: 5914365 | C17: =VLOOKUP(B17,'SINTÉTICO SICRO'!$A:$D,2,0) -> Transporte de cimento ou cal hidratada a granel com caminhão silo de 30 m³ - rodovia em revestimento primário | D17: =ROUND(SUMIF('MOMENTO DE TRANSPORTE - PRINC'!A:A,B17,'MOMENTO DE TRANSPORTE - PRINC'!K:K),2) -> 0
B18: 5914366 | C18: =VLOOKUP(B18,'SINTÉTICO SICRO'!$A:$D,2,0) -> Transporte de cimento ou cal hidratada a granel com caminhão silo de 30 m³ - rodovia pavimentada | D18: =ROUND(SUMIF('MOMENTO DE TRANSPORTE - PRINC'!A:A,B18,'MOMENTO DE TRANSPORTE - PRINC'!K:K),2) -> 0
B19: 5914539 | C19: =VLOOKUP(B19,'SINTÉTICO SICRO'!$A:$D,2,0) -> Transporte com caminhão betoneira - rodovia em leito natural | D19: =ROUND(SUMIF('MOMENTO DE TRANSPORTE - PRINC'!A:A,B19,'MOMENTO DE TRANSPORTE - PRINC'!K:K),2) -> 4354.56
B20: 5914554 | C20: =VLOOKUP(B20,'SINTÉTICO SICRO'!$A:$D,2,0) -> Transporte com caminhão betoneira - rodovia em revestimento primário | D20: =ROUND(SUMIF('MOMENTO DE TRANSPORTE - PRINC'!A:A,B20,'MOMENTO DE TRANSPORTE - PRINC'!K:K),2) -> 4354.56
B21: 5914569 | C21: =VLOOKUP(B21,'SINTÉTICO SICRO'!$A:$D,2,0) -> Transporte com caminhão betoneira - rodovia pavimentada | D21: =ROUND(SUMIF('MOMENTO DE TRANSPORTE - PRINC'!A:A,B21,'MOMENTO DE TRANSPORTE - PRINC'!K:K),2) -> 34836.48
B23: TIPO (P, RP ou LN) | C23: DMT ESTIMADA (DISTRIBUIÇÃO DO ITEM NA PISTA
B24: P | C24: - | D24: Fica a cargo de cada SR colocar a distancia de distribuição
B26: SISTEMA DE CUSTOS REFERENCIAIS DE OBRAS - SICRO
B27: Custo Unitário de Referência | I27: Quantitativo | K27: un.
B28: 903808 | C28: =VLOOKUP(B28,'SINTÉTICO SICRO'!A:D,2,0) -> Instalação da usina misturadora de solos com capacidade de 300 t/h | I28: =SUMIF('RESUMO MODULO TOTAL'!C:C,B28,'RESUMO MODULO TOTAL'!H:H)*0.8 -> 7.2
B29: D - ATIVIDADES AUXILIARES | D29: Quantidade | E29: Unidade
B30: 3713608 | C30: Cerca com 4 fios de arame farpado e mourão de madeira a cada 2,5 m e esticador a cada 50 m | D30: 302 | E30: m
B31: 5502986 | C31: Expurgo de jazida | D31: 1402.5 | E31: m³
B32: 903845 | C32: Lastro de brita comercial - espalhamento mecânico | D32: 110.12926 | E32: m³
B33: 5502985 | C33: Limpeza mecanizada da camada vegetal | D33: 5610 | E33: m²
B34: 919012 | C34: Montagem e desmontagem da usina misturadora de solos com capacidade de 300 t/h - inclusive construção e demolição de bases, rampas e depósitos de agregados | D34: 1 | E34: un
B35: 4011211 | C35: Reforço do subleito com material de jazida - 100% Proctor intermediário | D35: 1122 | E35: m³
B36: 4011209 | C36: Regularização do subleito - 100% Proctor intermediário | D36: 5610 | E36: m²
B38: F - MOMENTO DE TRANSPORTE | D38: Quantidade | E38: Unidade | F38: CÓDIGO TRANSPORTE
F39: LN | G39: RP | H39: P | I39: TIPO (P, RP ou LN) | J39: DMT ESTIMADA (km) | K39: QUANTITATIVO TOTAL DE TRANSPORTE (tkm)
B41: Obs.
B42: SISTEMA DE CUSTOS REFERENCIAIS DE OBRAS - SICRO
B43: Custo Unitário de Referência | I43: Quantitativo | K43: t
B44: 4011463 | C44: =VLOOKUP(B44,'SINTÉTICO SICRO'!A:D,2,0) -> Concreto asfáltico - faixa C-12,5 - areia e brita comerciais | I44: =SUMIF('RESUMO MODULO TOTAL'!C:C,B44,'RESUMO MODULO TOTAL'!H:H)*0.8 -> 12096
B45: D - ATIVIDADES AUXILIARES | D45: Quantidade | E45: Unidade
B46: 6416078 | C46: =VLOOKUP(B46,'SINTÉTICO SICRO'!A:D,2,0) -> Usinagem de concreto asfáltico - faixa C-12,5 - areia e brita comerciais | D46: 1 | E46: t
B48: F - MOMENTO DE TRANSPORTE | D48: Quantidade | E48: Unidade | F48: CÓDIGO TRANSPORTE
F49: LN | G49: RP | H49: P | I49: TIPO (P, RP ou LN) | J49: DMT ESTIMADA (km) | K49: QUANTITATIVO TOTAL DE TRANSPORTE (tkm)
A50: =IF(I50="P",H50,IF(I50="RP",G50,IF(I50="LN",F50,""))) -> 5914389 | B50: 6416078 | C50: =VLOOKUP(B50,'SINTÉTICO SICRO'!A:D,2,0) -> Usinagem de concreto asfáltico - faixa C-12,5 - areia e brita comerciais | D50: 1 | E50: tkm | F50: 5914359 | G50: 5914374 | H50: 5914389 | I50: =$B$24 -> P | J50: 120 | K50: =IF(ISBLANK(J50),"",J50*D50)*I44 -> 1451520
B52: Obs.
B55: SISTEMA DE CUSTOS REFERENCIAIS DE OBRAS - SICRO
B56: Custo Unitário de Referência | I56: Quantitativo | K56: m³
B57: 4011318 | C57: =VLOOKUP(B57,'SINTÉTICO SICRO'!A:D,2,0) -> Base ou sub-base estabilizada granulometricamente com mistura solo brita (70% - 30%) em usina com material de jazida e brita comercial - 100% Proctor modificado | I57: =SUMIF('RESUMO MODULO TOTAL'!C:C,B57,'RESUMO MODULO TOTAL'!H:H)*0.8 -> 15120
B58: D - ATIVIDADES AUXILIARES | D58: Quantidade | E58: Unidade
B59: 6416030 | C59: =VLOOKUP(B59,'[205]SINTÉTICO SICRO'!A:D,2,0) -> Usinagem de solo brita (70% - 30%) com material de jazida e brita comercial em usina de 300 t/h | D59: 1 | E59: m³
B61: F - MOMENTO DE TRANSPORTE | D61: Quantidade | E61: Unidade | F61: CÓDIGO TRANSPORTE
F62: LN | G62: RP | H62: P | I62: TIPO (P, RP ou LN) | J62: DMT ESTIMADA (km) | K62: QUANTITATIVO TOTAL DE TRANSPORTE (tkm)
A63: =IF(I63="P",H63,IF(I63="RP",G63,IF(I63="LN",F63,""))) -> 5914389 | B63: 6416030 | C63: =VLOOKUP(B63,'[205]SINTÉTICO SICRO'!A:D,2,0) -> Usinagem de solo brita (70% - 30%) com material de jazida e brita comercial em usina de 300 t/h | D63: 2.063 | E63: tkm | F63: 5914359 | G63: 5914374 | H63: 5914389 | I63: =$B$24 -> P | J63: 12 | K63: =IF(ISBLANK(J63),"",J63*D63)*I57 -> 374310.72
B65: Obs.
B67: SISTEMA DE CUSTOS REFERENCIAIS DE OBRAS - SICRO
B68: Custo Unitário de Referência | I68: Quantitativo | K68: m³
B69: 4011227 | C69: =VLOOKUP(B69,'SINTÉTICO SICRO'!A:D,2,0) -> Sub-base de solo estabilizado granulometricamente sem mistura com material de jazida - 100% Proctor intermediário | I69: =SUMIF('RESUMO MODULO TOTAL'!C:C,B69,'RESUMO MODULO TOTAL'!H:H)*0.8 -> 15120
B70: D - ATIVIDADES AUXILIARES | D70: Quantidade | E70: Unidade
B71: 4016096 | C71: =VLOOKUP(B71,'SINTÉTICO SICRO'!A:D,2,0) -> Escavação e carga de material de jazida com escavadeira hidráulica de 1,56 m³ | D71: 1.10027 | E71: m³
B73: F - MOMENTO DE TRANSPORTE | D73: Quantidade | E73: Unidade | F73: CÓDIGO TRANSPORTE
F74: LN | G74: RP | H74: P | I74: TIPO (P, RP ou LN) | J74: DMT ESTIMADA (km) | K74: QUANTITATIVO TOTAL DE TRANSPORTE (tkm)
A75: =IF(I75="P",H75,IF(I75="RP",G75,IF(I75="LN",F75,""))) -> 5914389 | B75: 4016096 | C75: =VLOOKUP(B75,'SINTÉTICO SICRO'!A:D,2,0) -> Escavação e carga de material de jazida com escavadeira hidráulica de 1,56 m³ | D75: 2.06301 | E75: tkm | F75: 5914359 | G75: 5914374 | H75: 5914389 | I75: =$B$24 -> P | J75: 12 | K75: =IF(ISBLANK(J75),"",J75*D75)*I69 -> 374312.5344
B77: Obs.
B79: SISTEMA DE CUSTOS REFERENCIAIS DE OBRAS - SICRO
B80: Custo Unitário de Referência | I80: Quantitativo | K80: m
B81: 2003943 | C81: =VLOOKUP(B81,'SINTÉTICO SICRO'!A:D,2,0) -> Meio-fio de concreto - MFC 03 moldado no local com extrusora e concreto usinado - areia e brita comerciais | I81: =SUMIF('RESUMO MODULO TOTAL'!C:C,B81,'RESUMO MODULO TOTAL'!H:H)*0.8 -> 28800
B82: D - ATIVIDADES AUXILIARES | D82: Quantidade | E82: Unidade
B83: 1107928 | C83: =VLOOKUP(B83,'SINTÉTICO SICRO'!A:D,2,0) -> Concreto fck = 20 MPa - confecção em central dosadora de 30 m³/h - areia e brita comerciais | D83: 0.042 | E83: m³
B84: 4805750 | C84: =VLOOKUP(B84,'SINTÉTICO SICRO'!A:D,2,0) -> Escavação manual em material de 1ª categoria na profundidade de até 1 m | D84: 0.03 | E84: m³
B86: F - MOMENTO DE TRANSPORTE | D86: Quantidade | E86: Unidade | F86: CÓDIGO TRANSPORTE
F87: LN | G87: RP | H87: P | I87: TIPO (P, RP ou LN) | J87: DMT ESTIMADA (km) | K87: QUANTITATIVO TOTAL DE TRANSPORTE (tkm)
A88: =IF(I88="P",H88,IF(I88="RP",G88,IF(I88="LN",F88,""))) -> 5914569 | B88: 1107928 | C88: =VLOOKUP(B88,'SINTÉTICO SICRO'!A:D,2,0) -> Concreto fck = 20 MPa - confecção em central dosadora de 30 m³/h - areia e brita comerciais | D88: 0.1008 | E88: tkm | F88: 5914539 | G88: 5914554 | H88: 5914569 | I88: =$B$24 -> P | J88: 12 | K88: =IF(ISBLANK(J88),"",J88*D88)*I81 -> 34836.48
B89: Obs.
B90: TIPO (P, RP ou LN) | C90: DMT ESTIMADA (DISTRIBUIÇÃO DO ITEM NA PISTA
B91: LN | C91: - | D91: Fica a cargo de cada SR colocar a distancia de distribuição
B93: SISTEMA DE CUSTOS REFERENCIAIS DE OBRAS - SICRO
B94: Custo Unitário de Referência | I94: Quantitativo | K94: un.
B95: 903808 | C95: =VLOOKUP(B95,'SINTÉTICO SICRO'!A:D,2,0) -> Instalação da usina misturadora de solos com capacidade de 300 t/h | I95: =SUMIF('RESUMO MODULO TOTAL'!C:C,B95,'RESUMO MODULO TOTAL'!H:H)*0.1 -> 0.9
B96: D - ATIVIDADES AUXILIARES | D96: Quantidade | E96: Unidade
B97: 3713608 | C97: Cerca com 4 fios de arame farpado e mourão de madeira a cada 2,5 m e esticador a cada 50 m | D97: 302 | E97: m
B98: 5502986 | C98: Expurgo de jazida | D98: 1402.5 | E98: m³
B99: 903845 | C99: Lastro de brita comercial - espalhamento mecânico | D99: 110.12926 | E99: m³
B100: 5502985 | C100: Limpeza mecanizada da camada vegetal | D100: 5610 | E100: m²
B101: 919012 | C101: Montagem e desmontagem da usina misturadora de solos com capacidade de 300 t/h - inclusive construção e demolição de bases, rampas e depósitos de agregados | D101: 1 | E101: un
B102: 4011211 | C102: Reforço do subleito com material de jazida - 100% Proctor intermediário | D102: 1122 | E102: m³
B103: 4011209 | C103: Regularização do subleito - 100% Proctor intermediário | D103: 5610 | E103: m²
B105: F - MOMENTO DE TRANSPORTE | D105: Quantidade | E105: Unidade | F105: CÓDIGO TRANSPORTE
F106: LN | G106: RP | H106: P | I106: TIPO (P, RP ou LN) | J106: DMT ESTIMADA (km) | K106: QUANTITATIVO TOTAL DE TRANSPORTE (tkm)
B108: Obs.
B110: SISTEMA DE CUSTOS REFERENCIAIS DE OBRAS - SICRO
B111: Custo Unitário de Referência | I111: Quantitativo | K111: t
B112: 4011463 | C112: =VLOOKUP(B112,'SINTÉTICO SICRO'!A:D,2,0) -> Concreto asfáltico - faixa C-12,5 - areia e brita comerciais | I112: =SUMIF('RESUMO MODULO TOTAL'!C:C,B112,'RESUMO MODULO TOTAL'!H:H)*0.1 -> 1512
B113: D - ATIVIDADES AUXILIARES | D113: Quantidade | E113: Unidade
B114: 6416078 | C114: =VLOOKUP(B114,'SINTÉTICO SICRO'!A:D,2,0) -> Usinagem de concreto asfáltico - faixa C-12,5 - areia e brita comerciais | D114: 1 | E114: t
B116: F - MOMENTO DE TRANSPORTE | D116: Quantidade | E116: Unidade | F116: CÓDIGO TRANSPORTE
F117: LN | G117: RP | H117: P | I117: TIPO (P, RP ou LN) | J117: DMT ESTIMADA (km) | K117: QUANTITATIVO TOTAL DE TRANSPORTE (tkm)
A118: =IF(I118="P",H118,IF(I118="RP",G118,IF(I118="LN",F118,""))) -> 5914359 | B118: 6416078 | C118: =VLOOKUP(B118,'SINTÉTICO SICRO'!A:D,2,0) -> Usinagem de concreto asfáltico - faixa C-12,5 - areia e brita comerciais | D118: 1 | E118: tkm | F118: 5914359 | G118: 5914374 | H118: 5914389 | I118: =$B$91 -> LN | J118: 120 | K118: =IF(ISBLANK(J118),"",J118*D118)*I112 -> 181440
B120: Obs.
B123: SISTEMA DE CUSTOS REFERENCIAIS DE OBRAS - SICRO
B124: Custo Unitário de Referência | I124: Quantitativo | K124: m³
B125: 4011318 | C125: =VLOOKUP(B125,'SINTÉTICO SICRO'!A:D,2,0) -> Base ou sub-base estabilizada granulometricamente com mistura solo brita (70% - 30%) em usina com material de jazida e brita comercial - 100% Proctor modificado | I125: =SUMIF('RESUMO MODULO TOTAL'!C:C,B125,'RESUMO MODULO TOTAL'!H:H)*0.1 -> 1890
B126: D - ATIVIDADES AUXILIARES | D126: Quantidade | E126: Unidade
B127: 6416030 | C127: =VLOOKUP(B127,'[205]SINTÉTICO SICRO'!A:D,2,0) -> Usinagem de solo brita (70% - 30%) com material de jazida e brita comercial em usina de 300 t/h | D127: 1 | E127: m³
B129: F - MOMENTO DE TRANSPORTE | D129: Quantidade | E129: Unidade | F129: CÓDIGO TRANSPORTE
F130: LN | G130: RP | H130: P | I130: TIPO (P, RP ou LN) | J130: DMT ESTIMADA (km) | K130: QUANTITATIVO TOTAL DE TRANSPORTE (tkm)
A131: =IF(I131="P",H131,IF(I131="RP",G131,IF(I131="LN",F131,""))) -> 5914359 | B131: 6416030 | C131: =VLOOKUP(B131,'[205]SINTÉTICO SICRO'!A:D,2,0) -> Usinagem de solo brita (70% - 30%) com material de jazida e brita comercial em usina de 300 t/h | D131: 2.063 | E131: tkm | F131: 5914359 | G131: 5914374 | H131: 5914389 | I131: LN | J131: 12 | K131: =IF(ISBLANK(J131),"",J131*D131)*I125 -> 46788.84
B133: Obs.
B135: SISTEMA DE CUSTOS REFERENCIAIS DE OBRAS - SICRO
B136: Custo Unitário de Referência | I136: Quantitativo | K136: m³
B137: 4011227 | C137: =VLOOKUP(B137,'SINTÉTICO SICRO'!A:D,2,0) -> Sub-base de solo estabilizado granulometricamente sem mistura com material de jazida - 100% Proctor intermediário | I137: =SUMIF('RESUMO MODULO TOTAL'!C:C,B137,'RESUMO MODULO TOTAL'!H:H)*0.1 -> 1890
B138: D - ATIVIDADES AUXILIARES | D138: Quantidade | E138: Unidade
B139: 4016096 | C139: =VLOOKUP(B139,'SINTÉTICO SICRO'!A:D,2,0) -> Escavação e carga de material de jazida com escavadeira hidráulica de 1,56 m³ | D139: 1.10027 | E139: m³
B141: F - MOMENTO DE TRANSPORTE | D141: Quantidade | E141: Unidade | F141: CÓDIGO TRANSPORTE
F142: LN | G142: RP | H142: P | I142: TIPO (P, RP ou LN) | J142: DMT ESTIMADA (km) | K142: QUANTITATIVO TOTAL DE TRANSPORTE (tkm)
A143: =IF(I143="P",H143,IF(I143="RP",G143,IF(I143="LN",F143,""))) -> 5914359 | B143: 4016096 | C143: =VLOOKUP(B143,'SINTÉTICO SICRO'!A:D,2,0) -> Escavação e carga de material de jazida com escavadeira hidráulica de 1,56 m³ | D143: 2.06301 | E143: tkm | F143: 5914359 | G143: 5914374 | H143: 5914389 | I143: LN | J143: 12 | K143: =IF(ISBLANK(J143),"",J143*D143)*I137 -> 46789.0668
B145: Obs.
B147: SISTEMA DE CUSTOS REFERENCIAIS DE OBRAS - SICRO
B148: Custo Unitário de Referência | I148: Quantitativo | K148: m
B149: 2003943 | C149: =VLOOKUP(B149,'SINTÉTICO SICRO'!A:D,2,0) -> Meio-fio de concreto - MFC 03 moldado no local com extrusora e concreto usinado - areia e brita comerciais | I149: =SUMIF('RESUMO MODULO TOTAL'!C:C,B149,'RESUMO MODULO TOTAL'!H:H)*0.1 -> 3600
B150: D - ATIVIDADES AUXILIARES | D150: Quantidade | E150: Unidade
B151: 1107928 | C151: =VLOOKUP(B151,'SINTÉTICO SICRO'!A:D,2,0) -> Concreto fck = 20 MPa - confecção em central dosadora de 30 m³/h - areia e brita comerciais | D151: 0.042 | E151: m³
B152: 4805750 | C152: =VLOOKUP(B152,'SINTÉTICO SICRO'!A:D,2,0) -> Escavação manual em material de 1ª categoria na profundidade de até 1 m | D152: 0.03 | E152: m³
B154: F - MOMENTO DE TRANSPORTE | D154: Quantidade | E154: Unidade | F154: CÓDIGO TRANSPORTE
F155: LN | G155: RP | H155: P | I155: TIPO (P, RP ou LN) | J155: DMT ESTIMADA (km) | K155: QUANTITATIVO TOTAL DE TRANSPORTE (tkm)
A156: =IF(I156="P",H156,IF(I156="RP",G156,IF(I156="LN",F156,""))) -> 5914539 | B156: 1107928 | C156: =VLOOKUP(B156,'SINTÉTICO SICRO'!A:D,2,0) -> Concreto fck = 20 MPa - confecção em central dosadora de 30 m³/h - areia e brita comerciais | D156: 0.1008 | E156: tkm | F156: 5914539 | G156: 5914554 | H156: 5914569 | I156: =$B$91 -> LN | J156: 12 | K156: =IF(ISBLANK(J156),"",J156*D156)*I149 -> 4354.56
B157: Obs.
B158: TIPO (P, RP ou LN) | C158: DMT ESTIMADA (DISTRIBUIÇÃO DO ITEM NA PISTA
B159: RP | C159: - | D159: Fica a cargo de cada SR colocar a distancia de distribuição
B161: SISTEMA DE CUSTOS REFERENCIAIS DE OBRAS - SICRO
B162: Custo Unitário de Referência | I162: Quantitativo | K162: un.
B163: 903808 | C163: =VLOOKUP(B163,'SINTÉTICO SICRO'!A:D,2,0) -> Instalação da usina misturadora de solos com capacidade de 300 t/h | I163: =SUMIF('RESUMO MODULO TOTAL'!C:C,B163,'RESUMO MODULO TOTAL'!H:H)*0.1 -> 0.9
B164: D - ATIVIDADES AUXILIARES | D164: Quantidade | E164: Unidade
B165: 3713608 | C165: Cerca com 4 fios de arame farpado e mourão de madeira a cada 2,5 m e esticador a cada 50 m | D165: 302 | E165: m
B166: 5502986 | C166: Expurgo de jazida | D166: 1402.5 | E166: m³
B167: 903845 | C167: Lastro de brita comercial - espalhamento mecânico | D167: 110.12926 | E167: m³
B168: 5502985 | C168: Limpeza mecanizada da camada vegetal | D168: 5610 | E168: m²
B169: 919012 | C169: Montagem e desmontagem da usina misturadora de solos com capacidade de 300 t/h - inclusive construção e demolição de bases, rampas e depósitos de agregados | D169: 1 | E169: un
B170: 4011211 | C170: Reforço do subleito com material de jazida - 100% Proctor intermediário | D170: 1122 | E170: m³
B171: 4011209 | C171: Regularização do subleito - 100% Proctor intermediário | D171: 5610 | E171: m²
B173: F - MOMENTO DE TRANSPORTE | D173: Quantidade | E173: Unidade | F173: CÓDIGO TRANSPORTE
F174: LN | G174: RP | H174: P | I174: TIPO (P, RP ou LN) | J174: DMT ESTIMADA (km) | K174: QUANTITATIVO TOTAL DE TRANSPORTE (tkm)
B176: Obs.
B178: SISTEMA DE CUSTOS REFERENCIAIS DE OBRAS - SICRO
B179: Custo Unitário de Referência | I179: Quantitativo | K179: t
B180: 4011463 | C180: =VLOOKUP(B180,'SINTÉTICO SICRO'!A:D,2,0) -> Concreto asfáltico - faixa C-12,5 - areia e brita comerciais | I180: =SUMIF('RESUMO MODULO TOTAL'!C:C,B180,'RESUMO MODULO TOTAL'!H:H)*0.1 -> 1512
B181: D - ATIVIDADES AUXILIARES | D181: Quantidade | E181: Unidade
B182: 6416078 | C182: =VLOOKUP(B182,'SINTÉTICO SICRO'!A:D,2,0) -> Usinagem de concreto asfáltico - faixa C-12,5 - areia e brita comerciais | D182: 1 | E182: t
B184: F - MOMENTO DE TRANSPORTE | D184: Quantidade | E184: Unidade | F184: CÓDIGO TRANSPORTE
F185: LN | G185: RP | H185: P | I185: TIPO (P, RP ou LN) | J185: DMT ESTIMADA (km) | K185: QUANTITATIVO TOTAL DE TRANSPORTE (tkm)
A186: =IF(I186="P",H186,IF(I186="RP",G186,IF(I186="LN",F186,""))) -> 5914374 | B186: 6416078 | C186: =VLOOKUP(B186,'SINTÉTICO SICRO'!A:D,2,0) -> Usinagem de concreto asfáltico - faixa C-12,5 - areia e brita comerciais | D186: 1 | E186: tkm | F186: 5914359 | G186: 5914374 | H186: 5914389 | I186: =$B$159 -> RP | J186: 120 | K186: =IF(ISBLANK(J186),"",J186*D186)*I180 -> 181440
B188: Obs.
B190: SISTEMA DE CUSTOS REFERENCIAIS DE OBRAS - SICRO
B191: Custo Unitário de Referência | I191: Quantitativo | K191: m³
B192: 4011318 | C192: =VLOOKUP(B192,'SINTÉTICO SICRO'!A:D,2,0) -> Base ou sub-base estabilizada granulometricamente com mistura solo brita (70% - 30%) em usina com material de jazida e brita comercial - 100% Proctor modificado | I192: =SUMIF('RESUMO MODULO TOTAL'!C:C,B192,'RESUMO MODULO TOTAL'!H:H)*0.1 -> 1890
B193: D - ATIVIDADES AUXILIARES | D193: Quantidade | E193: Unidade
B194: 6416030 | C194: =VLOOKUP(B194,'[205]SINTÉTICO SICRO'!A:D,2,0) -> Usinagem de solo brita (70% - 30%) com material de jazida e brita comercial em usina de 300 t/h | D194: 1 | E194: m³
B196: F - MOMENTO DE TRANSPORTE | D196: Quantidade | E196: Unidade | F196: CÓDIGO TRANSPORTE
F197: LN | G197: RP | H197: P | I197: TIPO (P, RP ou LN) | J197: DMT ESTIMADA (km) | K197: QUANTITATIVO TOTAL DE TRANSPORTE (tkm)
A198: =IF(I198="P",H198,IF(I198="RP",G198,IF(I198="LN",F198,""))) -> 5914374 | B198: 6416030 | C198: =VLOOKUP(B198,'[205]SINTÉTICO SICRO'!A:D,2,0) -> Usinagem de solo brita (70% - 30%) com material de jazida e brita comercial em usina de 300 t/h | D198: 2.063 | E198: tkm | F198: 5914359 | G198: 5914374 | H198: 5914389 | I198: RP | J198: 12 | K198: =IF(ISBLANK(J198),"",J198*D198)*I192 -> 46788.84
B200: Obs.
B202: SISTEMA DE CUSTOS REFERENCIAIS DE OBRAS - SICRO
B203: Custo Unitário de Referência | I203: Quantitativo | K203: m³
B204: 4011227 | C204: =VLOOKUP(B204,'SINTÉTICO SICRO'!A:D,2,0) -> Sub-base de solo estabilizado granulometricamente sem mistura com material de jazida - 100% Proctor intermediário | I204: =SUMIF('RESUMO MODULO TOTAL'!C:C,B204,'RESUMO MODULO TOTAL'!H:H)*0.1 -> 1890
B205: D - ATIVIDADES AUXILIARES | D205: Quantidade | E205: Unidade
B206: 4016096 | C206: =VLOOKUP(B206,'SINTÉTICO SICRO'!A:D,2,0) -> Escavação e carga de material de jazida com escavadeira hidráulica de 1,56 m³ | D206: 1.10027 | E206: m³
B208: F - MOMENTO DE TRANSPORTE | D208: Quantidade | E208: Unidade | F208: CÓDIGO TRANSPORTE
F209: LN | G209: RP | H209: P | I209: TIPO (P, RP ou LN) | J209: DMT ESTIMADA (km) | K209: QUANTITATIVO TOTAL DE TRANSPORTE (tkm)
A210: =IF(I210="P",H210,IF(I210="RP",G210,IF(I210="LN",F210,""))) -> 5914374 | B210: 4016096 | C210: =VLOOKUP(B210,'SINTÉTICO SICRO'!A:D,2,0) -> Escavação e carga de material de jazida com escavadeira hidráulica de 1,56 m³ | D210: 2.06301 | E210: tkm | F210: 5914359 | G210: 5914374 | H210: 5914389 | I210: RP | J210: 12 | K210: =IF(ISBLANK(J210),"",J210*D210)*I204 -> 46789.0668
B212: Obs.
B214: SISTEMA DE CUSTOS REFERENCIAIS DE OBRAS - SICRO
B215: Custo Unitário de Referência | I215: Quantitativo | K215: m
B216: 2003943 | C216: =VLOOKUP(B216,'SINTÉTICO SICRO'!A:D,2,0) -> Meio-fio de concreto - MFC 03 moldado no local com extrusora e concreto usinado - areia e brita comerciais | I216: =SUMIF('RESUMO MODULO TOTAL'!C:C,B216,'RESUMO MODULO TOTAL'!H:H)*0.1 -> 3600
B217: D - ATIVIDADES AUXILIARES | D217: Quantidade | E217: Unidade
B218: 1107928 | C218: =VLOOKUP(B218,'SINTÉTICO SICRO'!A:D,2,0) -> Concreto fck = 20 MPa - confecção em central dosadora de 30 m³/h - areia e brita comerciais | D218: 0.042 | E218: m³
B219: 4805750 | C219: =VLOOKUP(B219,'SINTÉTICO SICRO'!A:D,2,0) -> Escavação manual em material de 1ª categoria na profundidade de até 1 m | D219: 0.03 | E219: m³
B221: F - MOMENTO DE TRANSPORTE | D221: Quantidade | E221: Unidade | F221: CÓDIGO TRANSPORTE
F222: LN | G222: RP | H222: P | I222: TIPO (P, RP ou LN) | J222: DMT ESTIMADA (km) | K222: QUANTITATIVO TOTAL DE TRANSPORTE (tkm)
A223: =IF(I223="P",H223,IF(I223="RP",G223,IF(I223="LN",F223,""))) -> 5914554 | B223: 1107928 | C223: =VLOOKUP(B223,'SINTÉTICO SICRO'!A:D,2,0) -> Concreto fck = 20 MPa - confecção em central dosadora de 30 m³/h - areia e brita comerciais | D223: 0.1008 | E223: tkm | F223: 5914539 | G223: 5914554 | H223: 5914569 | I223: =$B$159 -> RP | J223: 12 | K223: =IF(ISBLANK(J223),"",J223*D223)*I216 -> 4354.56
B224: Obs.

Sheet MOMENTO DE TRANSPORTE - AUX
B5: ='RESUMO MODULO TOTAL'!B64 -> CONTRATAÇÃO DE SERVIÇOS DE PAVIMENTAÇÃO ASFÁLTICA COM CONCRETO BETUMINOSO USINADO A QUENTE (CBUQ) EM VIAS DE DIVERSOS MUNICÍPIOS INSERIDOS NA ÁREA DE ATUAÇÃO DA 16ª SUPERINTENDÊNCIA REGIONAL DA CODEVASF, NO ESTADO DE MINAS GERAIS - REGIÃO TRIÂNGULO E ALTO DO SÃO FRANCISCO
B6: DATA BASE: | C6: ='RESUMO MODULO TOTAL'!C6 -> 2025-10-01
C8: RESUMO DO TRANSPORTE AUXILIAR
B9: CODIGO | C9: DESCRIÇÃO | D9: TKM
B10: 5914359 | C10: =VLOOKUP(B10,'SINTÉTICO SICRO'!$A:$D,2,0) -> Transporte com caminhão basculante de 10 m³ - rodovia em leito natural | D10: =ROUND(SUMIF($A:$A,B10,$K:$K),2) -> 0
B11: 5914374 | C11: =VLOOKUP(B11,'SINTÉTICO SICRO'!$A:$D,2,0) -> Transporte com caminhão basculante de 10 m³ - rodovia em revestimento primário | D11: 0
B12: 5914389 | C12: =VLOOKUP(B12,'SINTÉTICO SICRO'!$A:$D,2,0) -> Transporte com caminhão basculante de 10 m³ - rodovia pavimentada | D12: 0
B13: 5914449 | C13: =VLOOKUP(B13,'SINTÉTICO SICRO'!$A:$D,2,0) -> Transporte com caminhão carroceria de 15 t - rodovia em leito natural | D13: 0
B14: 5914464 | C14: =VLOOKUP(B14,'SINTÉTICO SICRO'!$A:$D,2,0) -> Transporte com caminhão carroceria de 15 t - rodovia em revestimento primário | D14: 0
B15: 5914479 | C15: =VLOOKUP(B15,'SINTÉTICO SICRO'!$A:$D,2,0) -> Transporte com caminhão carroceria de 15 t - rodovia pavimentada | D15: 0
B16: 5914364 | C16: =VLOOKUP(B16,'SINTÉTICO SICRO'!$A:$D,2,0) -> Transporte de cimento ou cal hidratada a granel com caminhão silo de 30 m³ - rodovia em leito natural | D16: 0
B17: 5914365 | C17: =VLOOKUP(B17,'SINTÉTICO SICRO'!$A:$D,2,0) -> Transporte de cimento ou cal hidratada a granel com caminhão silo de 30 m³ - rodovia em revestimento primário | D17: 0
B18: 5914366 | C18: =VLOOKUP(B18,'SINTÉTICO SICRO'!$A:$D,2,0) -> Transporte de cimento ou cal hidratada a granel com caminhão silo de 30 m³ - rodovia pavimentada | D18: 0
B20: TIPO (P, RP ou LN) | C20: DMT ATÉ 50 KM NÃO DEVE SER PAGA | D20: SOMENTE DEVE SER ADICIONADO A DISTÂNCIA EXCEDENTE A 50 KM
B21: P | D21: 0
B23: SISTEMA DE CUSTOS REFERENCIAIS DE OBRAS - SICRO | I23: Quantitivo
B24: Custo Unitário de Referência | E24: =$C$6 -> 2025-10-01 | I24: (Coeficiente na composição principal) x (quantidade da principal no orçamento) | K24: t
B25: 3713608 | C25: =VLOOKUP(B25,'SINTÉTICO SICRO'!A:D,2,0) -> Cerca com 4 fios de arame farpado e mourão de madeira a cada 2,5 m e esticador a cada 50 m | I25: ='MOMENTO DE TRANSPORTE - PRINC'!D30*(VLOOKUP(C33,'RESUMO MODULO TOTAL'!$C$9:$J$60,6,FALSE))*0.8 -> 2174.4
B26: F - MOMENTO DE TRANSPORTE | D26: Quantidade | E26: Unidade | F26: DMT
F27: LN | G27: RP | H27: P | I27: TIPO (P, RP ou LN) | J27: DMT ESTIMADA (km) | K27: QUANTITATIVO TOTAL DE TRANSPORTE DE MATERIAL (tkm)
A28: =IF(I28="P",H28,IF(I28="RP",G28,IF(I28="LN",F28,""))) -> 5914479 | B28: M0069 | C28: Arame farpado em aço galvanizado - D = 1,60 mm - Caminhão carroceria 15 t | D28: 0.0002 | E28: tkm | F28: 5914449 | G28: 5914464 | H28: 5914479 | I28: =$B$21 -> P | J28: =$D$21 -> 0 | K28: =IF(ISBLANK(J28),"",J28*(D28*I$25)) -> 0
A29: =IF(I29="P",H29,IF(I29="RP",G29,IF(I29="LN",F29,""))) -> 5914479 | B29: M0745 | C29: Grampo em aço galvanizado para cerca - C = 25,4 mm e E = 3,76 mm (1" x 9 BWG) - Caminhão carroceria 15 t | D29: 1e-05 | E29: tkm | F29: 5914449 | G29: 5914464 | H29: 5914479 | I29: =$B$21 -> P | J29: =$D$21 -> 0 | K29: =IF(ISBLANK(J29),"",J29*(D29*I$25)) -> 0
A30: 5914479 | B30: M1638 | C30: Mourão de madeira - H = 2,10 m e D = 0,10 m - Caminhão carroceria 15 t | D30: 0.00693 | E30: tkm | F30: 5914449 | G30: 5914464 | H30: 5914479 | I30: P | J30: =$D$21 -> 0 | K30: 0
A31: 5914479 | B31: M1639 | C31: Mourão de madeira - H = 2,20 m e D = 0,15 m - Caminhão carroceria 15 t | D31: 0.00078 | E31: tkm | F31: 5914449 | G31: 5914464 | H31: 5914479 | I31: P | J31: 0 | K31: 0
B33: PRINCIPAL: | C33: 903808
B35: SISTEMA DE CUSTOS REFERENCIAIS DE OBRAS - SICRO | I35: Quantitivo
B36: Custo Unitário de Referência | E36: =$C$6 -> 2025-10-01 | I36: (Coeficiente na composição principal) x (quantidade da principal no orçamento) | K36: t
B37: 903845 | C37: =VLOOKUP(B37,'SINTÉTICO SICRO'!A:D,2,0) -> Lastro de brita comercial - espalhamento mecânico | I37: ='MOMENTO DE TRANSPORTE - PRINC'!D32*(VLOOKUP(C42,'RESUMO MODULO TOTAL'!$C$9:$J$60,6,FALSE))*0.8 -> 792.930672
B38: F - MOMENTO DE TRANSPORTE | D38: Quantidade | E38: Unidade | F38: DMT
F39: LN | G39: RP | H39: P | I39: TIPO (P, RP ou LN) | J39: DMT ESTIMADA (km) | K39: QUANTITATIVO TOTAL DE TRANSPORTE DE MATERIAL (tkm)
A40: =IF(I40="P",H40,IF(I40="RP",G40,IF(I40="LN",F40,""))) -> 5914389 | B40: M0192 | C40: Brita 2 - Caminhão basculante 10 m³ | D40: 1.5 | E40: tkm | F40: 5914359 | G40: 5914374 | H40: 5914389 | I40: =$B$21 -> P | J40: =$D$21 -> 0 | K40: =IF(ISBLANK(J40),"",J40*(D40*$I$37)) -> 0
A41: =IF(I41="P",H41,IF(I41="RP",G41,IF(I41="LN",F41,""))) -> 
B42: PRINCIPAL: | C42: 903808
B44: SISTEMA DE CUSTOS REFERENCIAIS DE OBRAS - SICRO | I44: Quantitivo
B45: Custo Unitário de Referência | E45: =$C$6 -> 2025-10-01 | I45: (Coeficiente na composição principal) x (quantidade da principal no orçamento) | K45: t
B46: 4011211 | C46: =VLOOKUP(B46,'[205]SINTÉTICO SICRO'!A:D,2,0) -> Reforço do subleito com material de jazida - 100% Proctor intermediário | I46: ='MOMENTO DE TRANSPORTE - PRINC'!D35*(VLOOKUP(C51,'RESUMO MODULO TOTAL'!$C$9:$J$60,6,FALSE))*0.8 -> 8078.4
B47: F - MOMENTO DE TRANSPORTE | D47: Quantidade | E47: Unidade | F47: DMT
F48: LN | G48: RP | H48: P | I48: TIPO (P, RP ou LN) | J48: DMT ESTIMADA (km) | K48: QUANTITATIVO TOTAL DE TRANSPORTE DE MATERIAL (tkm)
A49: =IF(I49="P",H49,IF(I49="RP",G49,IF(I49="LN",F49,""))) -> 5914389 | B49: 4016096 | C49: =VLOOKUP(B49,'[205]SINTÉTICO SICRO'!A:D,2,0) -> Escavação e carga de material de jazida com escavadeira hidráulica de 1,56 m³ | D49: 2.06301 | E49: tkm | F49: 5914359 | G49: 5914374 | H49: 5914389 | I49: =$B$21 -> P | J49: =$D$21 -> 0 | K49: =IF(ISBLANK(J49),"",J49*(D49*$I$46)) -> 0
A50: =IF(I50="P",H50,IF(I50="RP",G50,IF(I50="LN",F50,""))) -> 
B51: PRINCIPAL: | C51: 903808
B53: SISTEMA DE CUSTOS REFERENCIAIS DE OBRAS - SICRO | I53: Quantitivo
B54: Custo Unitário de Referência | E54: =$C$6 -> 2025-10-01 | I54: (Coeficiente na composição principal) x (quantidade da principal no orçamento) | K54: t
B55: 6416078 | C55: =VLOOKUP(B55,'SINTÉTICO SICRO'!A:D,2,0) -> Usinagem de concreto asfáltico - faixa C-12,5 - areia e brita comerciais | I55: ='MOMENTO DE TRANSPORTE - PRINC'!D46*(VLOOKUP(C64,'RESUMO MODULO TOTAL'!$C$9:$J$60,6,FALSE))*0.8 -> 12096
B56: F - MOMENTO DE TRANSPORTE | D56: Quantidade | E56: Unidade | F56: DMT
F57: LN | G57: RP | H57: P | I57: TIPO (P, RP ou LN) | J57: DMT ESTIMADA (km) | K57: QUANTITATIVO TOTAL DE TRANSPORTE DE MATERIAL (tkm)
A58: =IF(I58="P",H58,IF(I58="RP",G58,IF(I58="LN",F58,""))) -> 5914389 | B58: M0028 | C58: Areia média - Caminhão basculante 10 m³ | D58: 0.04052 | E58: tkm | F58: 5914359 | G58: 5914374 | H58: 5914389 | I58: =$B$21 -> P | J58: =$D$21 -> 0 | K58: =IF(ISBLANK(J58),"",J58*(D58*$I$55)) -> 0
A59: =IF(I59="P",H59,IF(I59="RP",G59,IF(I59="LN",F59,""))) -> 5914389 | B59: M0005 | C59: Brita 0 - Caminhão basculante 10 m³ | D59: 0.13505 | E59: tkm | F59: 5914359 | G59: 5914374 | H59: 5914389 | I59: =$B$21 -> P | J59: =$D$21 -> 0 | K59: 0
A60: 5914389 | B60: M0191 | C60: Brita 1 - Caminhão basculante 10 m³ | D60: 0.04823 | E60: tkm | F60: 5914359 | G60: 5914374 | H60: 5914389 | I60: P | J60: 0 | K60: 0
A61: 5914366 | B61: M0344 | C61: Cal hidratada - a granel - Caminhão silo 30 m³ | D61: 0.01446 | E61: tkm | F61: 5914364 | G61: 5914365 | H61: 5914366 | I61: P | J61: 0 | K61: 0
A62: 5914389 | B62: M1103 | C62: Pedrisco - Caminhão basculante 10 m³ | D62: 0.22185 | E62: tkm | F62: 5914359 | G62: 5914374 | H62: 5914389 | I62: P | J62: 0 | K62: 0
A63: 5914389 | B63: M1135 | C63: Pó de pedra - Caminhão basculante 10 m³ | D63: 0.50447 | E63: tkm | F63: 5914359 | G63: 5914374 | H63: 5914389 | I63: P | J63: 0 | K63: 0
B64: PRINCIPAL: | C64: 4011463
B66: SISTEMA DE CUSTOS REFERENCIAIS DE OBRAS - SICRO | I66: Quantitivo
B67: Custo Unitário de Referência | E67: =$C$6 -> 2025-10-01 | I67: (Coeficiente na composição principal) x (quantidade da principal no orçamento) | K67: m³
B68: 6416030 | C68: =VLOOKUP(B68,'SINTÉTICO SICRO'!A:D,2,0) -> Usinagem de solo brita (70% - 30%) com material de jazida e brita comercial em usina de 300 t/h | I68: ='MOMENTO DE TRANSPORTE - PRINC'!D59*(SUMIF('RESUMO MODULO TOTAL'!C10:C60,'MOMENTO DE TRANSPORTE - AUX'!C74,'RESUMO MODULO TOTAL'!H10:H60))*0.8 -> 15120
B69: F - MOMENTO DE TRANSPORTE | D69: Quantidade | E69: Unidade | F69: DMT
F70: LN | G70: RP | H70: P | I70: TIPO (P, RP ou LN) | J70: DMT ESTIMADA (km) | K70: QUANTITATIVO TOTAL DE TRANSPORTE DE MATERIAL (tkm)
A71: =IF(I71="P",H71,IF(I71="RP",G71,IF(I71="LN",F71,""))) -> 5914389 | B71: 4016096 | C71: Escavação e carga de material de jazida com escavadeira hidráulica de 1,56 m³ - Caminhão basculante 10 m³ | D71: 1.44411 | E71: tkm | F71: 5914359 | G71: 5914374 | H71: 5914389 | I71: =$B$21 -> P | J71: =$D$21 -> 0 | K71: =IF(ISBLANK(J71),"",J71*(D71*$I$68)) -> 0
A72: =IF(I72="P",H72,IF(I72="RP",G72,IF(I72="LN",F72,""))) -> 5914389 | B72: M0191 | C72: Brita 1 - Caminhão basculante 10 m³ | D72: 0.6189 | E72: tkm | F72: 5914359 | G72: 5914374 | H72: 5914389 | I72: P | J72: =$D$21 -> 0 | K72: =IF(ISBLANK(J72),"",J72*(D72*$I$68)) -> 0
A73: =IF(I73="P",H73,IF(I73="RP",G73,IF(I73="LN",F73,""))) -> 
B74: PRINCIPAL: | C74: 4011318
B76: SISTEMA DE CUSTOS REFERENCIAIS DE OBRAS - SICRO | I76: Quantitivo
B77: Custo Unitário de Referência | E77: =$C$6 -> 2025-10-01 | I77: (Coeficiente na composição principal) x (quantidade da principal no orçamento) | K77: m³
B78: 1107928 | C78: =VLOOKUP(B78,'SINTÉTICO SICRO'!A:D,2,0) -> Concreto fck = 20 MPa - confecção em central dosadora de 30 m³/h - areia e brita comerciais | I78: ='MOMENTO DE TRANSPORTE - PRINC'!D83*(VLOOKUP(C87,'RESUMO MODULO TOTAL'!$C$9:$J$60,6,FALSE))*0.8 -> 1209.6
B79: F - MOMENTO DE TRANSPORTE | D79: Quantidade | E79: Unidade | F79: DMT
F80: LN | G80: RP | H80: P | I80: TIPO (P, RP ou LN) | J80: DMT ESTIMADA (km) | K80: QUANTITATIVO TOTAL DE TRANSPORTE DE MATERIAL (tkm)
A81: =IF(I81="P",H81,IF(I81="RP",G81,IF(I81="LN",F81,""))) -> 5914479 | B81: M0030 | C81: Aditivo plastificante e retardador de pega para concreto e argamassa - Caminhão carroceria 15 t | D81: 0.00082 | E81: tkm | F81: 5914449 | G81: 5914464 | H81: 5914479 | I81: =$B$21 -> P | J81: 0 | K81: =IF(ISBLANK(J81),"",J81*(D81*$I$78)) -> 0
A82: =IF(I82="P",H82,IF(I82="RP",G82,IF(I82="LN",F82,""))) -> 5914389 | B82: M0082 | C82: Areia média lavada - Caminhão basculante 10 m³ | D82: 0.95639 | E82: tkm | F82: 5914359 | G82: 5914374 | H82: 5914389 | I82: =$B$21 -> P | J82: 0 | K82: =IF(ISBLANK(J82),"",J82*(D82*$I$78)) -> 0
A83: 5914389 | B83: M0191 | C83: Brita 1 - Caminhão basculante 10 m³ | D83: 0.55131 | E83: tkm | F83: 5914359 | G83: 5914374 | H83: 5914389 | I83: P | J83: 0 | K83: =IF(ISBLANK(J83),"",J83*(D83*$I$78)) -> 0
A84: 5914389 | B84: M0192 | C84: Brita 2 - Caminhão basculante 10 m³ | D84: 0.55131 | E84: tkm | F84: 5914359 | G84: 5914374 | H84: 5914389 | I84: P | J84: 0 | K84: =IF(ISBLANK(J84),"",J84*(D84*$I$78)) -> 0
A85: 5914479 | B85: M0424 | C85: Cimento Portland CP II - 32 - saco - Caminhão carroceria 15 t | D85: 0.27464 | E85: tkm | F85: 5914449 | G85: 5914464 | H85: 5914479 | I85: P | J85: 0 | K85: =IF(ISBLANK(J85),"",J85*(D85*$I$78)) -> 0
B87: PRINCIPAL: | C87: 2003943
B88: TIPO (P, RP ou LN) | C88: DMT ATÉ 50 KM NÃO DEVE SER PAGA | D88: SOMENTE DEVE SER ADICIONADO A DISTÂNCIA EXCEDENTE A 50 KM
B89: LN | D89: 0
B91: SISTEMA DE CUSTOS REFERENCIAIS DE OBRAS - SICRO | I91: Quantitivo
B92: Custo Unitário de Referência | E92: =$C$6 -> 2025-10-01 | I92: (Coeficiente na composição principal) x (quantidade da principal no orçamento) | K92: t
B93: 3713608 | C93: =VLOOKUP(B93,'SINTÉTICO SICRO'!A:D,2,0) -> Cerca com 4 fios de arame farpado e mourão de madeira a cada 2,5 m e esticador a cada 50 m | I93: ='MOMENTO DE TRANSPORTE - PRINC'!D97*(VLOOKUP(C101,'RESUMO MODULO TOTAL'!$C$9:$J$60,6,FALSE))*0.1 -> 271.8
B94: F - MOMENTO DE TRANSPORTE | D94: Quantidade | E94: Unidade | F94: DMT
F95: LN | G95: RP | H95: P | I95: TIPO (P, RP ou LN) | J95: DMT ESTIMADA (km) | K95: QUANTITATIVO TOTAL DE TRANSPORTE DE MATERIAL (tkm)
A96: =IF(I96="P",H96,IF(I96="RP",G96,IF(I96="LN",F96,""))) -> 5914449 | B96: M0069 | C96: Arame farpado em aço galvanizado - D = 1,60 mm - Caminhão carroceria 15 t | D96: 0.0002 | E96: tkm | F96: 5914449 | G96: 5914464 | H96: 5914479 | I96: LN | J96: =$D$21 -> 0 | K96: =IF(ISBLANK(J96),"",J96*(D96*I$93)) -> 0
A97: =IF(I97="P",H97,IF(I97="RP",G97,IF(I97="LN",F97,""))) -> 5914449 | B97: M0745 | C97: Grampo em aço galvanizado para cerca - C = 25,4 mm e E = 3,76 mm (1" x 9 BWG) - Caminhão carroceria 15 t | D97: 1e-05 | E97: tkm | F97: 5914449 | G97: 5914464 | H97: 5914479 | I97: LN | J97: =$D$21 -> 0 | K97: =IF(ISBLANK(J97),"",J97*(D97*I$93)) -> 0
A98: 5914449 | B98: M1638 | C98: Mourão de madeira - H = 2,10 m e D = 0,10 m - Caminhão carroceria 15 t | D98: 0.00693 | E98: tkm | F98: 5914449 | G98: 5914464 | H98: 5914479 | I98: LN | J98: =$D$21 -> 0 | K98: =IF(ISBLANK(J98),"",J98*(D98*I$93)) -> 0
A99: 5914449 | B99: M1639 | C99: Mourão de madeira - H = 2,20 m e D = 0,15 m - Caminhão carroceria 15 t | D99: 0.00078 | E99: tkm | F99: 5914449 | G99: 5914464 | H99: 5914479 | I99: LN | J99: 0 | K99: =IF(ISBLANK(J99),"",J99*(D99*I$93)) -> 0
B101: PRINCIPAL: | C101: 903808
B103: SISTEMA DE CUSTOS REFERENCIAIS DE OBRAS - SICRO | I103: Quantitivo
B104: Custo Unitário de Referência | E104: =$C$6 -> 2025-10-01 | I104: (Coeficiente na composição principal) x (quantidade da principal no orçamento) | K104: t
B105: 903845 | C105: =VLOOKUP(B105,'SINTÉTICO SICRO'!A:D,2,0) -> Lastro de brita comercial - espalhamento mecânico | I105: ='MOMENTO DE TRANSPORTE - PRINC'!D99*(VLOOKUP(C110,'RESUMO MODULO TOTAL'!$C$9:$J$60,6,FALSE))*0.1 -> 99.116334
B106: F - MOMENTO DE TRANSPORTE | D106: Quantidade | E106: Unidade | F106: DMT
F107: LN | G107: RP | H107: P | I107: TIPO (P, RP ou LN) | J107: DMT ESTIMADA (km) | K107: QUANTITATIVO TOTAL DE TRANSPORTE DE MATERIAL (tkm)
A108: =IF(I108="P",H108,IF(I108="RP",G108,IF(I108="LN",F108,""))) -> 5914359 | B108: M0192 | C108: Brita 2 - Caminhão basculante 10 m³ | D108: 1.5 | E108: tkm | F108: 5914359 | G108: 5914374 | H108: 5914389 | I108: LN | J108: =$D$21 -> 0 | K108: =IF(ISBLANK(J108),"",J108*(D108*$I$105)) -> 0
A109: =IF(I109="P",H109,IF(I109="RP",G109,IF(I109="LN",F109,""))) -> 
B110: PRINCIPAL: | C110: 903808
B112: SISTEMA DE CUSTOS REFERENCIAIS DE OBRAS - SICRO | I112: Quantitivo
B113: Custo Unitário de Referência | E113: =$C$6 -> 2025-10-01 | I113: (Coeficiente na composição principal) x (quantidade da principal no orçamento) | K113: t
B114: 4011211 | C114: =VLOOKUP(B114,'[205]SINTÉTICO SICRO'!A:D,2,0) -> Reforço do subleito com material de jazida - 100% Proctor intermediário | I114: ='MOMENTO DE TRANSPORTE - PRINC'!D102*(VLOOKUP(C119,'RESUMO MODULO TOTAL'!$C$9:$J$60,6,FALSE))*0.1 -> 1009.8
B115: F - MOMENTO DE TRANSPORTE | D115: Quantidade | E115: Unidade | F115: DMT
F116: LN | G116: RP | H116: P | I116: TIPO (P, RP ou LN) | J116: DMT ESTIMADA (km) | K116: QUANTITATIVO TOTAL DE TRANSPORTE DE MATERIAL (tkm)
A117: =IF(I117="P",H117,IF(I117="RP",G117,IF(I117="LN",F117,""))) -> 5914359 | B117: 4016096 | C117: =VLOOKUP(B117,'[205]SINTÉTICO SICRO'!A:D,2,0) -> Escavação e carga de material de jazida com escavadeira hidráulica de 1,56 m³ | D117: 2.06301 | E117: tkm | F117: 5914359 | G117: 5914374 | H117: 5914389 | I117: LN | J117: =$D$21 -> 0 | K117: =IF(ISBLANK(J117),"",J117*(D117*$I$114)) -> 0
A118: =IF(I118="P",H118,IF(I118="RP",G118,IF(I118="LN",F118,""))) -> 
B119: PRINCIPAL: | C119: 903808
B121: SISTEMA DE CUSTOS REFERENCIAIS DE OBRAS - SICRO | I121: Quantitivo
B122: Custo Unitário de Referência | E122: =$C$6 -> 2025-10-01 | I122: (Coeficiente na composição principal) x (quantidade da principal no orçamento) | K122: t
B123: 6416078 | C123: =VLOOKUP(B123,'SINTÉTICO SICRO'!A:D,2,0) -> Usinagem de concreto asfáltico - faixa C-12,5 - areia e brita comerciais | I123: ='MOMENTO DE TRANSPORTE - PRINC'!D114*(VLOOKUP(C132,'RESUMO MODULO TOTAL'!$C$9:$J$60,6,FALSE))*0.1 -> 1512
B124: F - MOMENTO DE TRANSPORTE | D124: Quantidade | E124: Unidade | F124: DMT
F125: LN | G125: RP | H125: P | I125: TIPO (P, RP ou LN) | J125: DMT ESTIMADA (km) | K125: QUANTITATIVO TOTAL DE TRANSPORTE DE MATERIAL (tkm)
A126: =IF(I126="P",H126,IF(I126="RP",G126,IF(I126="LN",F126,""))) -> 5914359 | B126: M0028 | C126: Areia média - Caminhão basculante 10 m³ | D126: 0.04052 | E126: tkm | F126: 5914359 | G126: 5914374 | H126: 5914389 | I126: =$B$89 -> LN | J126: =$D$89 -> 0 | K126: =IF(ISBLANK(J126),"",J126*(D126*$I$123)) -> 0
A127: =IF(I127="P",H127,IF(I127="RP",G127,IF(I127="LN",F127,""))) -> 5914359 | B127: M0005 | C127: Brita 0 - Caminhão basculante 10 m³ | D127: 0.13505 | E127: tkm | F127: 5914359 | G127: 5914374 | H127: 5914389 | I127: =$B$89 -> LN | J127: =$D$89 -> 0 | K127: =IF(ISBLANK(J127),"",J127*(D127*$I$123)) -> 0
A128: 5914359 | B128: M0191 | C128: Brita 1 - Caminhão basculante 10 m³ | D128: 0.04823 | E128: tkm | F128: 5914359 | G128: 5914374 | H128: 5914389 | I128: LN | J128: 0 | K128: 0
A129: 5914364 | B129: M0344 | C129: Cal hidratada - a granel - Caminhão silo 30 m³ | D129: 0.01446 | E129: tkm | F129: 5914364 | G129: 5914365 | H129: 5914366 | I129: LN | J129: 0 | K129: 0
A130: 5914359 | B130: M1103 | C130: Pedrisco - Caminhão basculante 10 m³ | D130: 0.22185 | E130: tkm | F130: 5914359 | G130: 5914374 | H130: 5914389 | I130: LN | J130: 0 | K130: 0
A131: 5914359 | B131: M1135 | C131: Pó de pedra - Caminhão basculante 10 m³ | D131: 0.50447 | E131: tkm | F131: 5914359 | G131: 5914374 | H131: 5914389 | I131: LN | J131: 0 | K131: =IF(ISBLANK(J131),"",J131*(D131*$I$123)) -> 0
B132: PRINCIPAL: | C132: 4011463
B134: SISTEMA DE CUSTOS REFERENCIAIS DE OBRAS - SICRO | I134: Quantitivo
B135: Custo Unitário de Referência | E135: =$C$6 -> 2025-10-01 | I135: (Coeficiente na composição principal) x (quantidade da principal no orçamento) | K135: m³
B136: 6416030 | C136: =VLOOKUP(B136,'SINTÉTICO SICRO'!A:D,2,0) -> Usinagem de solo brita (70% - 30%) com material de jazida e brita comercial em usina de 300 t/h | I136: ='MOMENTO DE TRANSPORTE - PRINC'!D127*(SUMIF('RESUMO MODULO TOTAL'!C10:C60,'MOMENTO DE TRANSPORTE - AUX'!C142,'RESUMO MODULO TOTAL'!H10:H60))*0.1 -> 1890
B137: F - MOMENTO DE TRANSPORTE | D137: Quantidade | E137: Unidade | F137: DMT
F138: LN | G138: RP | H138: P | I138: TIPO (P, RP ou LN) | J138: DMT ESTIMADA (km) | K138: QUANTITATIVO TOTAL DE TRANSPORTE DE MATERIAL (tkm)
A139: =IF(I139="P",H139,IF(I139="RP",G139,IF(I139="LN",F139,""))) -> 5914359 | B139: 4016096 | C139: Escavação e carga de material de jazida com escavadeira hidráulica de 1,56 m³ - Caminhão basculante 10 m³ | D139: 1.44411 | E139: tkm | F139: 5914359 | G139: 5914374 | H139: 5914389 | I139: LN | J139: =$D$21 -> 0 | K139: =IF(ISBLANK(J139),"",J139*(D139*$I$136)) -> 0
A140: =IF(I140="P",H140,IF(I140="RP",G140,IF(I140="LN",F140,""))) -> 5914359 | B140: M0191 | C140: Brita 1 - Caminhão basculante 10 m³ | D140: 0.6189 | E140: tkm | F140: 5914359 | G140: 5914374 | H140: 5914389 | I140: LN | J140: =$D$21 -> 0 | K140: =IF(ISBLANK(J140),"",J140*(D140*$I$136)) -> 0
A141: =IF(I141="P",H141,IF(I141="RP",G141,IF(I141="LN",F141,""))) -> 
B142: PRINCIPAL: | C142: 4011318
B143: SISTEMA DE CUSTOS REFERENCIAIS DE OBRAS - SICRO | I143: Quantitivo
B144: Custo Unitário de Referência | E144: =$C$6 -> 2025-10-01 | I144: (Coeficiente na composição principal) x (quantidade da principal no orçamento) | K144: m³
B145: 1107928 | C145: =VLOOKUP(B145,'SINTÉTICO SICRO'!A:D,2,0) -> Concreto fck = 20 MPa - confecção em central dosadora de 30 m³/h - areia e brita comerciais | I145: ='MOMENTO DE TRANSPORTE - PRINC'!D151*(VLOOKUP(C154,'RESUMO MODULO TOTAL'!$C$9:$J$60,6,FALSE))*0.1 -> 151.2
B146: F - MOMENTO DE TRANSPORTE | D146: Quantidade | E146: Unidade | F146: DMT
F147: LN | G147: RP | H147: P | I147: TIPO (P, RP ou LN) | J147: DMT ESTIMADA (km) | K147: QUANTITATIVO TOTAL DE TRANSPORTE DE MATERIAL (tkm)
A148: =IF(I148="P",H148,IF(I148="RP",G148,IF(I148="LN",F148,""))) -> 5914449 | B148: M0030 | C148: Aditivo plastificante e retardador de pega para concreto e argamassa - Caminhão carroceria 15 t | D148: 0.00082 | E148: tkm | F148: 5914449 | G148: 5914464 | H148: 5914479 | I148: =$B$89 -> LN | J148: 0 | K148: =IF(ISBLANK(J148),"",J148*(D148*$I$145)) -> 0
A149: =IF(I149="P",H149,IF(I149="RP",G149,IF(I149="LN",F149,""))) -> 5914359 | B149: M0082 | C149: Areia média lavada - Caminhão basculante 10 m³ | D149: 0.95639 | E149: tkm | F149: 5914359 | G149: 5914374 | H149: 5914389 | I149: LN | J149: 0 | K149: =IF(ISBLANK(J149),"",J149*(D149*$I$145)) -> 0
A150: 5914359 | B150: M0191 | C150: Brita 1 - Caminhão basculante 10 m³ | D150: 0.55131 | E150: tkm | F150: 5914359 | G150: 5914374 | H150: 5914389 | I150: LN | J150: 0 | K150: 0
A151: 5914359 | B151: M0192 | C151: Brita 2 - Caminhão basculante 10 m³ | D151: 0.55131 | E151: tkm | F151: 5914359 | G151: 5914374 | H151: 5914389 | I151: LN | J151: 0 | K151: 0
A152: 5914449 | B152: M0424 | C152: Cimento Portland CP II - 32 - saco - Caminhão carroceria 15 t | D152: 0.27464 | E152: tkm | F152: 5914449 | G152: 5914464 | H152: 5914479 | I152: LN | J152: 0 | K152: 0
B154: PRINCIPAL: | C154: 2003943
B155: TIPO (P, RP ou LN) | C155: DMT ATÉ 50 KM NÃO DEVE SER PAGA | D155: SOMENTE DEVE SER ADICIONADO A DISTÂNCIA EXCEDENTE A 50 KM
B156: RP | D156: 0
B158: SISTEMA DE CUSTOS REFERENCIAIS DE OBRAS - SICRO | I158: Quantitivo
B159: Custo Unitário de Referência | E159: =$C$6 -> 2025-10-01 | I159: (Coeficiente na composição principal) x (quantidade da principal no orçamento) | K159: t
B160: 3713608 | C160: =VLOOKUP(B160,'SINTÉTICO SICRO'!A:D,2,0) -> Cerca com 4 fios de arame farpado e mourão de madeira a cada 2,5 m e esticador a cada 50 m | I160: ='MOMENTO DE TRANSPORTE - PRINC'!D165*(VLOOKUP(C168,'RESUMO MODULO TOTAL'!$C$9:$J$60,6,FALSE))*0.1 -> 271.8
B161: F - MOMENTO DE TRANSPORTE | D161: Quantidade | E161: Unidade | F161: DMT
F162: LN | G162: RP | H162: P | I162: TIPO (P, RP ou LN) | J162: DMT ESTIMADA (km) | K162: QUANTITATIVO TOTAL DE TRANSPORTE DE MATERIAL (tkm)
A163: =IF(I163="P",H163,IF(I163="RP",G163,IF(I163="LN",F163,""))) -> 5914464 | B163: M0069 | C163: Arame farpado em aço galvanizado - D = 1,60 mm - Caminhão carroceria 15 t | D163: 0.0002 | E163: tkm | F163: 5914449 | G163: 5914464 | H163: 5914479 | I163: RP | J163: =$D$21 -> 0 | K163: =IF(ISBLANK(J163),"",J163*(D163*I$160)) -> 0
A164: =IF(I164="P",H164,IF(I164="RP",G164,IF(I164="LN",F164,""))) -> 5914464 | B164: M0745 | C164: Grampo em aço galvanizado para cerca - C = 25,4 mm e E = 3,76 mm (1" x 9 BWG) - Caminhão carroceria 15 t | D164: 1e-05 | E164: tkm | F164: 5914449 | G164: 5914464 | H164: 5914479 | I164: RP | J164: =$D$21 -> 0 | K164: =IF(ISBLANK(J164),"",J164*(D164*I$160)) -> 0
A165: 5914464 | B165: M1638 | C165: Mourão de madeira - H = 2,10 m e D = 0,10 m - Caminhão carroceria 15 t | D165: 0.00693 | E165: tkm | F165: 5914449 | G165: 5914464 | H165: 5914479 | I165: RP | J165: =$D$21 -> 0 | K165: =IF(ISBLANK(J165),"",J165*(D165*I$160)) -> 0
A166: 5914464 | B166: M1639 | C166: Mourão de madeira - H = 2,20 m e D = 0,15 m - Caminhão carroceria 15 t | D166: 0.00078 | E166: tkm | F166: 5914449 | G166: 5914464 | H166: 5914479 | I166: RP | J166: 0 | K166: =IF(ISBLANK(J166),"",J166*(D166*I$160)) -> 0
B168: PRINCIPAL: | C168: 903808
B170: SISTEMA DE CUSTOS REFERENCIAIS DE OBRAS - SICRO | I170: Quantitivo
B171: Custo Unitário de Referência | E171: =$C$6 -> 2025-10-01 | I171: (Coeficiente na composição principal) x (quantidade da principal no orçamento) | K171: t
B172: 903845 | C172: =VLOOKUP(B172,'SINTÉTICO SICRO'!A:D,2,0) -> Lastro de brita comercial - espalhamento mecânico | I172: ='MOMENTO DE TRANSPORTE - PRINC'!D167*(VLOOKUP(C177,'RESUMO MODULO TOTAL'!$C$9:$J$60,6,FALSE))*0.1 -> 99.116334
B173: F - MOMENTO DE TRANSPORTE | D173: Quantidade | E173: Unidade | F173: DMT
F174: LN | G174: RP | H174: P | I174: TIPO (P, RP ou LN) | J174: DMT ESTIMADA (km) | K174: QUANTITATIVO TOTAL DE TRANSPORTE DE MATERIAL (tkm)
A175: =IF(I175="P",H175,IF(I175="RP",G175,IF(I175="LN",F175,""))) -> 5914374 | B175: M0192 | C175: Brita 2 - Caminhão basculante 10 m³ | D175: 1.5 | E175: tkm | F175: 5914359 | G175: 5914374 | H175: 5914389 | I175: RP | J175: =$D$21 -> 0 | K175: =IF(ISBLANK(J175),"",J175*(D175*$I$172)) -> 0
A176: =IF(I176="P",H176,IF(I176="RP",G176,IF(I176="LN",F176,""))) -> 
B177: PRINCIPAL: | C177: 903808
B179: SISTEMA DE CUSTOS REFERENCIAIS DE OBRAS - SICRO | I179: Quantitivo
B180: Custo Unitário de Referência | E180: =$C$6 -> 2025-10-01 | I180: (Coeficiente na composição principal) x (quantidade da principal no orçamento) | K180: t
B181: 4011211 | C181: =VLOOKUP(B181,'[205]SINTÉTICO SICRO'!A:D,2,0) -> Reforço do subleito com material de jazida - 100% Proctor intermediário | I181: ='MOMENTO DE TRANSPORTE - PRINC'!D170*(VLOOKUP(C186,'RESUMO MODULO TOTAL'!$C$9:$J$60,6,FALSE))*0.1 -> 1009.8
B182: F - MOMENTO DE TRANSPORTE | D182: Quantidade | E182: Unidade | F182: DMT
F183: LN | G183: RP | H183: P | I183: TIPO (P, RP ou LN) | J183: DMT ESTIMADA (km) | K183: QUANTITATIVO TOTAL DE TRANSPORTE DE MATERIAL (tkm)
A184: =IF(I184="P",H184,IF(I184="RP",G184,IF(I184="LN",F184,""))) -> 5914374 | B184: 4016096 | C184: =VLOOKUP(B184,'[205]SINTÉTICO SICRO'!A:D,2,0) -> Escavação e carga de material de jazida com escavadeira hidráulica de 1,56 m³ | D184: 2.06301 | E184: tkm | F184: 5914359 | G184: 5914374 | H184: 5914389 | I184: RP | J184: =$D$21 -> 0 | K184: =IF(ISBLANK(J184),"",J184*(D184*$I$181)) -> 0
A185: =IF(I185="P",H185,IF(I185="RP",G185,IF(I185="LN",F185,""))) -> 
B186: PRINCIPAL: | C186: 903808
B187: SISTEMA DE CUSTOS REFERENCIAIS DE OBRAS - SICRO | I187: Quantitivo
B188: Custo Unitário de Referência | E188: =$C$6 -> 2025-10-01 | I188: (Coeficiente na composição principal) x (quantidade da principal no orçamento) | K188: t
B189: 6416078 | C189: =VLOOKUP(B189,'SINTÉTICO SICRO'!A:D,2,0) -> Usinagem de concreto asfáltico - faixa C-12,5 - areia e brita comerciais | I189: ='MOMENTO DE TRANSPORTE - PRINC'!D182*(VLOOKUP(C198,'RESUMO MODULO TOTAL'!$C$9:$J$60,6,FALSE))*0.1 -> 1512
B190: F - MOMENTO DE TRANSPORTE | D190: Quantidade | E190: Unidade | F190: DMT
F191: LN | G191: RP | H191: P | I191: TIPO (P, RP ou LN) | J191: DMT ESTIMADA (km) | K191: QUANTITATIVO TOTAL DE TRANSPORTE DE MATERIAL (tkm)
A192: =IF(I192="P",H192,IF(I192="RP",G192,IF(I192="LN",F192,""))) -> 5914374 | B192: M0028 | C192: Areia média - Caminhão basculante 10 m³ | D192: 0.04052 | E192: tkm | F192: 5914359 | G192: 5914374 | H192: 5914389 | I192: =$B$156 -> RP | J192: =$D$156 -> 0 | K192: =IF(ISBLANK(J192),"",J192*(D192*$I$189)) -> 0
A193: =IF(I193="P",H193,IF(I193="RP",G193,IF(I193="LN",F193,""))) -> 5914374 | B193: M0005 | C193: Brita 0 - Caminhão basculante 10 m³ | D193: 0.13505 | E193: tkm | F193: 5914359 | G193: 5914374 | H193: 5914389 | I193: =$B$156 -> RP | J193: =$D$156 -> 0 | K193: =IF(ISBLANK(J193),"",J193*(D193*$I$189)) -> 0
A194: 5914374 | B194: M0191 | C194: Brita 1 - Caminhão basculante 10 m³ | D194: 0.04823 | E194: tkm | F194: 5914359 | G194: 5914374 | H194: 5914389 | I194: RP | J194: 0 | K194: 0
A195: 5914365 | B195: M0344 | C195: Cal hidratada - a granel - Caminhão silo 30 m³ | D195: 0.01446 | E195: tkm | F195: 5914364 | G195: 5914365 | H195: 5914366 | I195: RP | J195: 0 | K195: 0
A196: 5914374 | B196: M1103 | C196: Pedrisco - Caminhão basculante 10 m³ | D196: 0.22185 | E196: tkm | F196: 5914359 | G196: 5914374 | H196: 5914389 | I196: RP | J196: 0 | K196: 0
A197: 5914374 | B197: M1135 | C197: Pó de pedra - Caminhão basculante 10 m³ | D197: 0.50447 | E197: tkm | F197: 5914359 | G197: 5914374 | H197: 5914389 | I197: RP | J197: 0 | K197: =IF(ISBLANK(J197),"",J197*(D197*$I$189)) -> 0
B198: PRINCIPAL: | C198: 4011463
B200: SISTEMA DE CUSTOS REFERENCIAIS DE OBRAS - SICRO | I200: Quantitivo
B201: Custo Unitário de Referência | E201: =$C$6 -> 2025-10-01 | I201: (Coeficiente na composição principal) x (quantidade da principal no orçamento) | K201: m³
B202: 6416030 | C202: =VLOOKUP(B202,'SINTÉTICO SICRO'!A:D,2,0) -> Usinagem de solo brita (70% - 30%) com material de jazida e brita comercial em usina de 300 t/h | I202: ='MOMENTO DE TRANSPORTE - PRINC'!D194*(SUMIF('RESUMO MODULO TOTAL'!C10:C60,'MOMENTO DE TRANSPORTE - AUX'!C208,'RESUMO MODULO TOTAL'!H10:H60))*0.1 -> 1890
B203: F - MOMENTO DE TRANSPORTE | D203: Quantidade | E203: Unidade | F203: DMT
F204: LN | G204: RP | H204: P | I204: TIPO (P, RP ou LN) | J204: DMT ESTIMADA (km) | K204: QUANTITATIVO TOTAL DE TRANSPORTE DE MATERIAL (tkm)
A205: =IF(I205="P",H205,IF(I205="RP",G205,IF(I205="LN",F205,""))) -> 5914374 | B205: 4016096 | C205: Escavação e carga de material de jazida com escavadeira hidráulica de 1,56 m³ - Caminhão basculante 10 m³ | D205: 1.44411 | E205: tkm | F205: 5914359 | G205: 5914374 | H205: 5914389 | I205: RP | J205: =$D$21 -> 0 | K205: =IF(ISBLANK(J205),"",J205*(D205*$I$202)) -> 0
A206: =IF(I206="P",H206,IF(I206="RP",G206,IF(I206="LN",F206,""))) -> 5914374 | B206: M0191 | C206: Brita 1 - Caminhão basculante 10 m³ | D206: 0.6189 | E206: tkm | F206: 5914359 | G206: 5914374 | H206: 5914389 | I206: RP | J206: =$D$21 -> 0 | K206: =IF(ISBLANK(J206),"",J206*(D206*$I$202)) -> 0
A207: =IF(I207="P",H207,IF(I207="RP",G207,IF(I207="LN",F207,""))) -> 
B208: PRINCIPAL: | C208: 4011318
B209: SISTEMA DE CUSTOS REFERENCIAIS DE OBRAS - SICRO | I209: Quantitivo
B210: Custo Unitário de Referência | E210: =$C$6 -> 2025-10-01 | I210: (Coeficiente na composição principal) x (quantidade da principal no orçamento) | K210: m³
B211: 1107928 | C211: =VLOOKUP(B211,'SINTÉTICO SICRO'!A:D,2,0) -> Concreto fck = 20 MPa - confecção em central dosadora de 30 m³/h - areia e brita comerciais | I211: ='MOMENTO DE TRANSPORTE - PRINC'!D218*(VLOOKUP(C220,'RESUMO MODULO TOTAL'!$C$9:$J$60,6,FALSE))*0.1 -> 151.2
B212: F - MOMENTO DE TRANSPORTE | D212: Quantidade | E212: Unidade | F212: DMT
F213: LN | G213: RP | H213: P | I213: TIPO (P, RP ou LN) | J213: DMT ESTIMADA (km) | K213: QUANTITATIVO TOTAL DE TRANSPORTE DE MATERIAL (tkm)
A214: =IF(I214="P",H214,IF(I214="RP",G214,IF(I214="LN",F214,""))) -> 5914464 | B214: M0030 | C214: Aditivo plastificante e retardador de pega para concreto e argamassa - Caminhão carroceria 15 t | D214: 0.00082 | E214: tkm | F214: 5914449 | G214: 5914464 | H214: 5914479 | I214: =$B$156 -> RP | J214: 0 | K214: =IF(ISBLANK(J214),"",J214*(D214*$I$211)) -> 0
A215: =IF(I215="P",H215,IF(I215="RP",G215,IF(I215="LN",F215,""))) -> 5914374 | B215: M0082 | C215: Areia média lavada - Caminhão basculante 10 m³ | D215: 0.95639 | E215: tkm | F215: 5914359 | G215: 5914374 | H215: 5914389 | I215: RP | J215: 0 | K215: =IF(ISBLANK(J215),"",J215*(D215*$I$211)) -> 0
A216: 5914374 | B216: M0191 | C216: Brita 1 - Caminhão basculante 10 m³ | D216: 0.55131 | E216: tkm | F216: 5914359 | G216: 5914374 | H216: 5914389 | I216: RP | J216: 0 | K216: 0
A217: 5914374 | B217: M0192 | C217: Brita 2 - Caminhão basculante 10 m³ | D217: 0.55131 | E217: tkm | F217: 5914359 | G217: 5914374 | H217: 5914389 | I217: RP | J217: 0 | K217: 0
A218: 5914464 | B218: M0424 | C218: Cimento Portland CP II - 32 - saco - Caminhão carroceria 15 t | D218: 0.27464 | E218: tkm | F218: 5914449 | G218: 5914464 | H218: 5914479 | I218: RP | J218: 0 | K218: 0
B220: PRINCIPAL: | C220: 2003943
A223: =IF(I223="P",H223,IF(I223="RP",G223,IF(I223="LN",F223,""))) -> 

Sheet MEDICAO EM TKM (hidden)
A5: PLANILHA DE MEDIÇAO DE TKM
A6: 903808 | B6: =VLOOKUP(A6,'SINTÉTICO SICRO'!A:D,2,0) -> Instalação da usina misturadora de solos com capacidade de 300 t/h
A7: MOMENTO DE TRANSPORTE | D7: Quantidade (tkm) | E7: quantidade medida(un.)
E8: 1
A9: 5914479 | B9: =VLOOKUP(A9,'SINTÉTICO SICRO'!A:D,2,0) -> Transporte com caminhão carroceria de 15 t - rodovia pavimentada | D9: =SUMIF('MOMENTO DE TRANSPORTE - AUX'!#REF!,'MEDICAO EM TKM'!A9,'MOMENTO DE TRANSPORTE - AUX'!#REF!) ->  | E9: =D9*$E$8 -> 
A10: 5914389 | B10: =VLOOKUP(A10,'SINTÉTICO SICRO'!A:D,2,0) -> Transporte com caminhão basculante de 10 m³ - rodovia pavimentada | D10: =SUMIF('MOMENTO DE TRANSPORTE - AUX'!#REF!,'MEDICAO EM TKM'!A10,'MOMENTO DE TRANSPORTE - AUX'!#REF!) -> 
A11: 5914449 | B11: =VLOOKUP(A11,'SINTÉTICO SICRO'!A:D,2,0) -> Transporte com caminhão carroceria de 15 t - rodovia em leito natural | D11: =SUMIF('MOMENTO DE TRANSPORTE - AUX'!#REF!,'MEDICAO EM TKM'!A11,'MOMENTO DE TRANSPORTE - AUX'!#REF!) -> 
A12: 5914359 | B12: =VLOOKUP(A12,'SINTÉTICO SICRO'!A:D,2,0) -> Transporte com caminhão basculante de 10 m³ - rodovia em leito natural | D12: =SUMIF('MOMENTO DE TRANSPORTE - AUX'!#REF!,'MEDICAO EM TKM'!A12,'MOMENTO DE TRANSPORTE - AUX'!#REF!) -> 
A13: 5914464 | B13: =VLOOKUP(A13,'SINTÉTICO SICRO'!A:D,2,0) -> Transporte com caminhão carroceria de 15 t - rodovia em revestimento primário | D13: =SUMIF('MOMENTO DE TRANSPORTE - AUX'!#REF!,'MEDICAO EM TKM'!A13,'MOMENTO DE TRANSPORTE - AUX'!#REF!) -> 
A14: 5914374 | B14: =VLOOKUP(A14,'SINTÉTICO SICRO'!A:D,2,0) -> Transporte com caminhão basculante de 10 m³ - rodovia em revestimento primário | D14: =SUMIF('MOMENTO DE TRANSPORTE - AUX'!#REF!,'MEDICAO EM TKM'!A14,'MOMENTO DE TRANSPORTE - AUX'!#REF!) -> 
A16: 5502114 | B16: =VLOOKUP(A16,'SINTÉTICO SICRO'!A:D,2,0) -> Escavação, carga e transporte de material de 1ª categoria - DMT de 1.000 a 1.200 m - caminho de serviço em leito natural - com escavadeira e caminhão basculante de 14 m³
A17: MOMENTO DE TRANSPORTE | D17: Quantidade (tkm) | E17: -
E18: -
A21: 4413942 | B21: =VLOOKUP(A21,'SINTÉTICO SICRO'!A:D,2,0) -> Espalhamento de material em bota-fora
A22: MOMENTO DE TRANSPORTE | D22: Quantidade (tkm) | E22: -
E23: -
A26: 4011463 | B26: =VLOOKUP(A26,'SINTÉTICO SICRO'!A:D,2,0) -> Concreto asfáltico - faixa C-12,5 - areia e brita comerciais
A27: MOMENTO DE TRANSPORTE | C27: Quantidade (tkm) | D27: Area executada (m2) | E27: 12000
F28: =E27/('MC MODULO'!C1*'MC MODULO'!C2) -> 0.8571428571
A29: 5914389 | B29: =VLOOKUP(A29,'SINTÉTICO SICRO'!A:D,2,0) -> Transporte com caminhão basculante de 10 m³ - rodovia pavimentada | C29: ='MOMENTO DE TRANSPORTE - PRINC'!K50+SUMIF('MOMENTO DE TRANSPORTE - AUX'!$A$58:$A$63,'MEDICAO EM TKM'!A29,'MOMENTO DE TRANSPORTE - AUX'!$K$58:$K$62) -> 1451520 | D29: =C29*$F$28 -> 1244160
A30: 5914359 | B30: =VLOOKUP(A30,'SINTÉTICO SICRO'!A:D,2,0) -> Transporte com caminhão basculante de 10 m³ - rodovia em leito natural | C30: ='MOMENTO DE TRANSPORTE - PRINC'!K118+SUMIF('MOMENTO DE TRANSPORTE - AUX'!$A$126:$A$131,'MEDICAO EM TKM'!A30,'MOMENTO DE TRANSPORTE - AUX'!$K$126:$K$130) -> 181440 | D30: 155520
A31: 5914374 | B31: =VLOOKUP(A31,'SINTÉTICO SICRO'!A:D,2,0) -> Transporte com caminhão basculante de 10 m³ - rodovia em revestimento primário | C31: ='MOMENTO DE TRANSPORTE - PRINC'!K186+SUMIF('MOMENTO DE TRANSPORTE - AUX'!$A$192:$A$196,'MEDICAO EM TKM'!A31,'MOMENTO DE TRANSPORTE - AUX'!$K$192:$K$196) -> 181440 | D31: 155520
A32: 5914366 | B32: =VLOOKUP(A32,'SINTÉTICO SICRO'!A:D,2,0) -> Transporte de cimento ou cal hidratada a granel com caminhão silo de 30 m³ - rodovia pavimentada | C32: =SUMIF('MOMENTO DE TRANSPORTE - AUX'!$A$58:$A$62,'MEDICAO EM TKM'!A32,'MOMENTO DE TRANSPORTE - AUX'!$K$58:$K$62) -> 0 | D32: 0
A33: 5914364 | B33: =VLOOKUP(A33,'SINTÉTICO SICRO'!A:D,2,0) -> Transporte de cimento ou cal hidratada a granel com caminhão silo de 30 m³ - rodovia em leito natural | C33: =SUMIF('MOMENTO DE TRANSPORTE - AUX'!$A$126:$A$131,'MEDICAO EM TKM'!A33,'MOMENTO DE TRANSPORTE - AUX'!$K$126:$K$130) -> 0 | D33: 0
A34: 5914365 | B34: =VLOOKUP(A34,'SINTÉTICO SICRO'!A:D,2,0) -> Transporte de cimento ou cal hidratada a granel com caminhão silo de 30 m³ - rodovia em revestimento primário | C34: =SUMIF('MOMENTO DE TRANSPORTE - AUX'!$A$192:$A$196,'MEDICAO EM TKM'!A34,'MOMENTO DE TRANSPORTE - AUX'!$K$192:$K$196) -> 0 | D34: 0
A36: 4011352 | B36: =VLOOKUP(A36,'SINTÉTICO SICRO'!A:D,2,0) -> Imprimação com emulsão asfáltica
A37: MOMENTO DE TRANSPORTE | C37: Quantidade (tkm)
A41: 4011353 | B41: =VLOOKUP(A41,'SINTÉTICO SICRO'!A:D,2,0) -> Pintura de ligação
A42: MOMENTO DE TRANSPORTE | C42: Quantidade (tkm)
A46: 4011318 | B46: =VLOOKUP(A46,'SINTÉTICO SICRO'!A:D,2,0) -> Base ou sub-base estabilizada granulometricamente com mistura solo brita (70% - 30%) em usina com material de jazida e brita comercial - 100% Proctor modificado
A47: MOMENTO DE TRANSPORTE | C47: Quantidade (tkm) | D47: Área Executada (m2) | E47: =E27 -> 12000
D48: espessura (m) | E48: 0.15 | F48: =(E47*E48)/('RESUMO MODULO TOTAL'!H26+'RESUMO MODULO TOTAL'!H27) -> 0.04761904762
A49: 5914389 | B49: =VLOOKUP(A49,'SINTÉTICO SICRO'!A:D,2,0) -> Transporte com caminhão basculante de 10 m³ - rodovia pavimentada | C49: ='MOMENTO DE TRANSPORTE - PRINC'!K63+SUMIF('MOMENTO DE TRANSPORTE - AUX'!#REF!,'MEDICAO EM TKM'!A49,'MOMENTO DE TRANSPORTE - AUX'!#REF!) ->  | D49: =C49*$F$48 -> 
A50: 5914359 | B50: =VLOOKUP(A50,'SINTÉTICO SICRO'!A:D,2,0) -> Transporte com caminhão basculante de 10 m³ - rodovia em leito natural | C50: ='MOMENTO DE TRANSPORTE - PRINC'!K131+SUMIF('MOMENTO DE TRANSPORTE - AUX'!#REF!,'MEDICAO EM TKM'!A50,'MOMENTO DE TRANSPORTE - AUX'!#REF!) ->  | D50: =C50*$F$48 -> 
A51: 5914374 | B51: =VLOOKUP(A51,'SINTÉTICO SICRO'!A:D,2,0) -> Transporte com caminhão basculante de 10 m³ - rodovia em revestimento primário | C51: ='MOMENTO DE TRANSPORTE - PRINC'!K198+SUMIF('MOMENTO DE TRANSPORTE - AUX'!#REF!,'MEDICAO EM TKM'!A51,'MOMENTO DE TRANSPORTE - AUX'!#REF!) ->  | D51: =C51*$F$48 -> 
A53: 4011209 | B53: =VLOOKUP(A53,'SINTÉTICO SICRO'!A:D,2,0) -> Regularização do subleito - 100% Proctor intermediário
A54: MOMENTO DE TRANSPORTE | D54: Quantidade (tkm)
A58: 5213440 | B58: Placa de regulamentação em aço D = 0,60 m - película retrorrefletiva tipo I + SI - fornecimento e implantação
A59: MOMENTO DE TRANSPORTE | D59: Quantidade (tkm)
A63: 5213464 | B63: =VLOOKUP(A63,'SINTÉTICO SICRO'!A:D,2,0) -> Placa de advertência em aço, lado de 0,60 m - película retrorrefletiva tipo I + SI - fornecimento e implantação
A64: MOMENTO DE TRANSPORTE | D64: Quantidade (tkm)
A68: 5213863 | B68: =VLOOKUP(A68,'SINTÉTICO SICRO'!A:D,2,0) -> Suporte metálico galvanizado para placa de advertência ou regulamentação - lado ou diâmetro de 0,60 m - fornecimento e implantação
A69: MOMENTO DE TRANSPORTE | D69: Quantidade (tkm)
A73: 5213400 | B73: =VLOOKUP(A73,'SINTÉTICO SICRO'!A:D,2,0) -> Pintura de faixa com tinta acrílica - espessura de 0,4 mm
A74: MOMENTO DE TRANSPORTE | D74: Quantidade (tkm)
A78: 2003943 | B78: =VLOOKUP(A78,'SINTÉTICO SICRO'!A:D,2,0) -> Meio-fio de concreto - MFC 03 moldado no local com extrusora e concreto usinado - areia e brita comerciais
A79: MOMENTO DE TRANSPORTE | D79: Quantidade (tkm) | E79: Extensao executada do meio-fio (m)
E80: 2000 | F80: =E80/('MC MODULO'!C1*2) -> 0.5
A81: 5914569 | B81: =VLOOKUP(A81,'SINTÉTICO SICRO'!A:D,2,0) -> Transporte com caminhão betoneira - rodovia pavimentada | D81: ='MOMENTO DE TRANSPORTE - PRINC'!K88 -> 34836.48 | E81: =D81*$F$80 -> 17418.24
A82: 5914539 | B82: =VLOOKUP(A82,'SINTÉTICO SICRO'!A:D,2,0) -> Transporte com caminhão betoneira - rodovia em leito natural | D82: ='MOMENTO DE TRANSPORTE - PRINC'!K156 -> 4354.56 | E82: 2177.28
A83: 5914554 | B83: =VLOOKUP(A83,'SINTÉTICO SICRO'!A:D,2,0) -> Transporte com caminhão betoneira - rodovia em revestimento primário | D83: ='MOMENTO DE TRANSPORTE - PRINC'!K223 -> 4354.56 | E83: 2177.28
A84: 5914479 | B84: =VLOOKUP(A84,'SINTÉTICO SICRO'!A:D,2,0) -> Transporte com caminhão carroceria de 15 t - rodovia pavimentada | D84: =SUMIF('MOMENTO DE TRANSPORTE - AUX'!$A$81:$A$85,'MEDICAO EM TKM'!A84,'MOMENTO DE TRANSPORTE - AUX'!$K$81:$K$85) -> 0 | E84: 0
A85: 5914389 | B85: =VLOOKUP(A85,'SINTÉTICO SICRO'!A:D,2,0) -> Transporte com caminhão basculante de 10 m³ - rodovia pavimentada | D85: =SUMIF('MOMENTO DE TRANSPORTE - AUX'!$A$81:$A$85,'MEDICAO EM TKM'!A85,'MOMENTO DE TRANSPORTE - AUX'!$K$81:$K$85) -> 0 | E85: 0
A86: 5914449 | B86: =VLOOKUP(A86,'SINTÉTICO SICRO'!A:D,2,0) -> Transporte com caminhão carroceria de 15 t - rodovia em leito natural | D86: =SUMIF('MOMENTO DE TRANSPORTE - AUX'!$A$148:$A$152,'MEDICAO EM TKM'!A86,'MOMENTO DE TRANSPORTE - AUX'!$K$148:$K$152) -> 0 | E86: 0
A87: 5914359 | B87: =VLOOKUP(A87,'SINTÉTICO SICRO'!A:D,2,0) -> Transporte com caminhão basculante de 10 m³ - rodovia em leito natural | D87: =SUMIF('MOMENTO DE TRANSPORTE - AUX'!$A$148:$A$152,'MEDICAO EM TKM'!A87,'MOMENTO DE TRANSPORTE - AUX'!$K$148:$K$152) -> 0 | E87: 0
A88: 5914464 | B88: =VLOOKUP(A88,'SINTÉTICO SICRO'!A:D,2,0) -> Transporte com caminhão carroceria de 15 t - rodovia em revestimento primário | D88: =SUMIF('MOMENTO DE TRANSPORTE - AUX'!$A$214:$A$218,'MEDICAO EM TKM'!A88,'MOMENTO DE TRANSPORTE - AUX'!$K$214:$K$218) -> 0 | E88: 0
A89: 5914374 | B89: =VLOOKUP(A89,'SINTÉTICO SICRO'!A:D,2,0) -> Transporte com caminhão basculante de 10 m³ - rodovia em revestimento primário | D89: =SUMIF('MOMENTO DE TRANSPORTE - AUX'!$A$214:$A$218,'MEDICAO EM TKM'!A89,'MOMENTO DE TRANSPORTE - AUX'!$K$214:$K$218) -> 0 | E89: 0
A91: 4915724 | B91: =VLOOKUP(A91,'SINTÉTICO SICRO'!A:D,2,0) -> Caiação mecanizada com fixador de cal
A92: MOMENTO DE TRANSPORTE | D92: Quantidade (tkm)

Sheet MC MODULO
A1: Extensão da Via | B1: = | C1: 2000 | D1: m | F1: QUANTIDADE DE MODULOS | G1: 9
A2: Largura | B2: = | C2: 7 | D2: m
A4: Extensão da Via | B4: = | C4: =C1/1000 -> 2 | D4: km
B6: MOBUILIZAÇÃO
A7: 1 | B7: Implantação da obra
B9: Módulos(un) | D9: Módulos(un)
B10: =G1 -> 9 | C10: = | D10: =B10 -> 9
A12: 2 | B12: Administração da obra
B14: Módulos(un) | D14: Módulos(un)
B15: =G1 -> 9 | C15: = | D15: =B15 -> 9
A17: 3 | B17: Canteiro de Obras e Almoxarifado
B19: Módulos(un) | D19: Módulos(un)
B20: =G1 -> 9 | C20: = | D20: =B20 -> 9
A22: 4 | B22: Placa de Obra em Chapa de Aço Galvanizado
B24: Módulos(un) | C24: Comprimento(m) | D24: Largura (m) | H24: Total de Area de placa (m²)
B25: =G1 -> 9 | C25: 2 | D25: 4 | H25: =C25*D25*B25*2 -> 144
B27: TERRAPLENAGEM
A29: 5 | B29: serviços topográficos para pavimentação, inclusive notas de serviços, acompanhamento e greide
B31: Extensão (m) | D31: Largura (m) | H31: area (m2)
B32: =C1*$G$1 -> 18000 | C32: x | D32: =$C$2 -> 7 | G32: = | H32: =B32*D32 -> 126000
A34: 6 | B34: Escavação, carga e transporte de material de 1ª categoria - DMT de 1.000 a 1.200 m - caminho de serviço em leito natural - com escavadeira e caminhão basculante de 14 m³
B36: Extensão (m) | D36: Largura (m) | F36: Espessura (m) | H36: Volume (m3)
B37: =C1*$G$1 -> 18000 | C37: x | D37: =$C$2 -> 7 | E37: x | F37: 0.35 | G37: = | H37: =B37*D37*F37 -> 44100
A41: 7 | B41: Espalhamento de material em bota-fora
B43: Extensão (m) | D43: Largura (m) | F43: Espessura (m) | H43: Volume (m3)
B44: =C1*$G$1 -> 18000 | C44: x | D44: =$C$2 -> 7 | E44: x | F44: 0.35 | G44: = | H44: =B44*D44*F44 -> 44100
B46: PAVIMENTAÇÃO
A48: 8 | B48: Concreto asfáltico - faixa C - areia e brita comerciais
B50: Extensão (m) | C50: Largura (m) | D50: Espessura (m) | E50: Densidade (t/m³) | H50: Volume (t)
B51: =$C$1*G1 -> 18000 | C51: =$C$2 -> 7 | D51: 0.05 | E51: 2.4 | G51: = | H51: =B51*C51*D51*E51 -> 15120
A54: 9 | B54: Imprimação com emulsão asfáltica
B56: Extensão (m) | D56: Largura (m) | H56: area (m2)
B57: =$C$1*G1 -> 18000 | C57: x | D57: =$C$2 -> 7 | G57: = | H57: =B57*D57 -> 126000
A60: 10 | B60: Pintura de ligação
B62: Extensão (m) | D62: Largura (m) | H62: area (m2)
B63: =$C$1*G1 -> 18000 | C63: x | D63: =$C$2 -> 7 | G63: = | H63: =B63*D63 -> 126000
A65: 11 | B65: ='RESUMO MODULO TOTAL'!E26 -> Sub-base de solo estabilizado granulometricamente sem mistura com material de jazida - 100% Proctor intermediário
B67: Extensão (m) | D67: Largura (m) | F67: Espessura (m) | H67: Volume (m3)
B68: =C1*$G$1 -> 18000 | C68: x | D68: =$C$2 -> 7 | E68: x | F68: 0.15 | G68: = | H68: =B68*D68*F68 -> 18900
A71: 12 | B71: ='RESUMO MODULO TOTAL'!E27 -> Base ou sub-base estabilizada granulometricamente com mistura solo brita (70% - 30%) em usina com material de jazida e brita comercial - 100% Proctor modificado
B73: Extensão (m) | D73: Largura (m) | F73: Espessura (m) | H73: Volume (m3)
B74: =C1*$G$1 -> 18000 | C74: x | D74: =$C$2 -> 7 | E74: x | F74: 0.15 | G74: = | H74: =B74*D74*F74 -> 18900
A77: 13 | B77: Regularização do subleito
B79: Extensão (m) | D79: Largura (m) | H79: area (m2)
B80: =C1*$G$1 -> 18000 | C80: x | D80: =$C$2 -> 7 | G80: = | H80: =B80*D80 -> 126000
B82: SINALIZAÇÃO
A84: 20 | B84: Fornecimento e implantação de placa de regulamentação em aço D = 0,60 m - película retrorrefletiva tipo I + SI
B86: Extensão (km) | D86: Quant. (un) | H86: Quant. (un)
B87: =$C$4*$G$1 -> 18 | C87: x | D87: 3 | G87: = | H87: =B87*D87 -> 54
A89: 20 | B89: Placa de advertência em aço, lado de 0,60 m - película retrorrefletiva tipo I + SI - fornecimento e implantação
B91: Extensão (km) | D91: Quant. (un) | H91: Quant. (un)
B92: =$C$4*$G$1 -> 18 | C92: x | D92: 3 | G92: = | H92: =B92*D92 -> 54
A95: 21 | B95: Fornecimento e implantação de suporte metálico galvanizado para placa de regulamentação - D = 0,60 m
B97: Extensão (km) | D97: Quant. (un) | H97: Quant. (un)
B98: =$C$4*$G$1 -> 18 | C98: x | D98: =D87 -> 3 | G98: = | H98: =H87+H92 -> 108
A100: 22 | B100: Pintura de faixa com tinta acrílica - espessura de 0,4 mm (bordos)
B102: Extensão (m) | D102: Espessura (m) | H102: Quant. (m²)
B103: =C1*G1 -> 18000 | C103: x | D103: 0.1 | G103: = | H103: =B103*D103*2 -> 3600
B105: Pintura de faixa com tinta acrílica - espessura de 0,4 mm (faixa central)
H107: Quant. (m²)
H108: =B103*D103 -> 1800
B111: DRENAGEM
A112: 23 | B112: Meio-fio de concreto - MFC 03 - areia e brita comerciais - fôrma de madeira
B114: Extensão (m) | D114: Quant. (un) | H114: Extensão(m)
B115: =$C$1*$G$1 -> 18000 | C115: x | D115: 2 | G115: = | H115: =B115*D115 -> 36000
A117: 19 | B117: Caiação mecanizada com fixador de cal
B119: Extensão (m) | D119: Perimetro (m) | H119: Area (m²)
B120: =$C$1*$G$1 -> 18000 | C120: x | D120: =0.24 -> 0.24 | G120: = | H120: =B120*D120 -> 4320
B123: SERVIÇOS COMPLEMENTARES
A124: 24
B126: Extensão (m) | D126: Largura (m) | G126: 0.1 | H126: extensão (m)
B127: =$C$1*G1 -> 18000 | C127: x | D127: 1 | E127: x | G127: = | H127: =G126*B127 -> 1800
B130: PROJETO EXECUTIVO
A131: 25 | B131: Projeto Executivo
B133: Extensão (m) | D133: Largura (m) | F133: Quant. (un) | H133: Área (m²)
B134: =$C$1*G1 -> 18000 | C134: x | D134: =C2 -> 7 | E134: x | F134: 1 | G134: = | H134: =B134*D134 -> 126000
B136: CONTROLE TECNOLOGICO - OBRA
A137: 26 | B137: Projeto Executivo
B139: Extensão (m) | D139: Largura (m) | F139: Quant. (un) | H139: meses
G140: = | H140: =0.5*G1 -> 4.5
F145: Perímetro caiação = 0,09 + 0,15

Sheet ANP ESTADO
A1: Agência Nacional do Petróleo, Gás Natural e Biocombustíveis
A2: Superintendência de Defesa da Concorrência
A5: PREÇO MÉDIO MENSAL PONDERADO PRATICADO PELOS DISTRIBUIDORES DE PRODUTOS ASFÁLTICOS (R$/KG)
A7: Importante: | B7: Quando não houver declaração de venda do produto selecionado, ou quando a declaração de venda do produto ocorrer por menos de 03 (três) distribuidoras, a tabela indicará campo vazio.
A8: Mês | B8: Produto | C8: Estado | D8: Preço
A9: 2013-01-01 | B9: ASFALTOS DILUÍDOS CM-30 | C9: Acre | D9: -
A10: 2013-01-01 | B10: ASFALTOS DILUÍDOS CM-30 | C10: Alagoas | D10: -
A11: 2013-01-01 | B11: ASFALTOS DILUÍDOS CM-30 | C11: Amapá | D11: -
A12: 2013-01-01 | B12: ASFALTOS DILUÍDOS CM-30 | C12: Amazonas | D12: 1.453527021
A13: 2013-01-01 | B13: ASFALTOS DILUÍDOS CM-30 | C13: Bahia | D13: 1.464044142
A14: 2013-01-01 | B14: ASFALTOS DILUÍDOS CM-30 | C14: Ceará | D14: 1.447997934
A15: 2013-01-01 | B15: ASFALTOS DILUÍDOS CM-30 | C15: Distrito Federal | D15: -
A16: 2013-01-01 | B16: ASFALTOS DILUÍDOS CM-30 | C16: Espírito Santo | D16: -
A17: 2013-01-01 | B17: ASFALTOS DILUÍDOS CM-30 | C17: Goiás | D17: 1.686383065
A18: 2013-01-01 | B18: ASFALTOS DILUÍDOS CM-30 | C18: Maranhão | D18: -
A19: 2013-01-01 | B19: ASFALTOS DILUÍDOS CM-30 | C19: Mato Grosso | D19: -
A20: 2013-01-01 | B20: ASFALTOS DILUÍDOS CM-30 | C20: Mato Grosso do Sul | D20: -
A21: 2013-01-01 | B21: ASFALTOS DILUÍDOS CM-30 | C21: Minas Gerais | D21: 1.451106114
A22: 2013-01-01 | B22: ASFALTOS DILUÍDOS CM-30 | C22: Pará | D22: -
A23: 2013-01-01 | B23: ASFALTOS DILUÍDOS CM-30 | C23: Paraíba | D23: -
A24: 2013-01-01 | B24: ASFALTOS DILUÍDOS CM-30 | C24: Paraná | D24: 1.520125031
A25: 2013-01-01 | B25: ASFALTOS DILUÍDOS CM-30 | C25: Pernambuco | D25: -
A26: 2013-01-01 | B26: ASFALTOS DILUÍDOS CM-30 | C26: Piauí | D26: -
A27: 2013-01-01 | B27: ASFALTOS DILUÍDOS CM-30 | C27: Rio de Janeiro | D27: 1.330475106
A28: 2013-01-01 | B28: ASFALTOS DILUÍDOS CM-30 | C28: Rio Grande do Norte | D28: -
A29: 2013-01-01 | B29: ASFALTOS DILUÍDOS CM-30 | C29: Rio Grande do Sul | D29: 1.598611074
A30: 2013-01-01 | B30: ASFALTOS DILUÍDOS CM-30 | C30: Rondônia | D30: -
A31: 2013-01-01 | B31: ASFALTOS DILUÍDOS CM-30 | C31: Roraima | D31: -
A32: 2013-01-01 | B32: ASFALTOS DILUÍDOS CM-30 | C32: Santa Catarina | D32: -
A33: 2013-01-01 | B33: ASFALTOS DILUÍDOS CM-30 | C33: São Paulo | D33: 1.471008423
A34: 2013-01-01 | B34: ASFALTOS DILUÍDOS CM-30 | C34: Sergipe | D34: -
A35: 2013-01-01 | B35: ASFALTOS DILUÍDOS CM-30 | C35: Tocantins | D35: -
A36: 2013-02-01 | B36: ASFALTOS DILUÍDOS CM-30 | C36: Acre | D36: -
A37: 2013-02-01 | B37: ASFALTOS DILUÍDOS CM-30 | C37: Alagoas | D37: -
A38: 2013-02-01 | B38: ASFALTOS DILUÍDOS CM-30 | C38: Amapá | D38: -
A39: 2013-02-01 | B39: ASFALTOS DILUÍDOS CM-30 | C39: Amazonas | D39: 1.485578179
A40: 2013-02-01 | B40: ASFALTOS DILUÍDOS CM-30 | C40: Bahia | D40: 1.457014101
A41: 2013-02-01 | B41: ASFALTOS DILUÍDOS CM-30 | C41: Ceará | D41: 1.413192336
A42: 2013-02-01 | B42: ASFALTOS DILUÍDOS CM-30 | C42: Distrito Federal | D42: -
A43: 2013-02-01 | B43: ASFALTOS DILUÍDOS CM-30 | C43: Espírito Santo | D43: -
A44: 2013-02-01 | B44: ASFALTOS DILUÍDOS CM-30 | C44: Goiás | D44: 1.667459711
A45: 2013-02-01 | B45: ASFALTOS DILUÍDOS CM-30 | C45: Maranhão | D45: -
A46: 2013-02-01 | B46: ASFALTOS DILUÍDOS CM-30 | C46: Mato Grosso | D46: -
A47: 2013-02-01 | B47: ASFALTOS DILUÍDOS CM-30 | C47: Mato Grosso do Sul | D47: -
A48: 2013-02-01 | B48: ASFALTOS DILUÍDOS CM-30 | C48: Minas Gerais | D48: 1.452121117
A49: 2013-02-01 | B49: ASFALTOS DILUÍDOS CM-30 | C49: Pará | D49: -
A50: 2013-02-01 | B50: ASFALTOS DILUÍDOS CM-30 | C50: Paraíba | D50: -
A51: 2013-02-01 | B51: ASFALTOS DILUÍDOS CM-30 | C51: Paraná | D51: 1.493783173
A52: 2013-02-01 | B52: ASFALTOS DILUÍDOS CM-30 | C52: Pernambuco | D52: -
A53: 2013-02-01 | B53: ASFALTOS DILUÍDOS CM-30 | C53: Piauí | D53: -
A54: 2013-02-01 | B54: ASFALTOS DILUÍDOS CM-30 | C54: Rio de Janeiro | D54: 1.418234901
A55: 2013-02-01 | B55: ASFALTOS DILUÍDOS CM-30 | C55: Rio Grande do Norte | D55: -
A56: 2013-02-01 | B56: ASFALTOS DILUÍDOS CM-30 | C56: Rio Grande do Sul | D56: 1.435861782
A57: 2013-02-01 | B57: ASFALTOS DILUÍDOS CM-30 | C57: Rondônia | D57: -
A58: 2013-02-01 | B58: ASFALTOS DILUÍDOS CM-30 | C58: Roraima | D58: -
A59: 2013-02-01 | B59: ASFALTOS DILUÍDOS CM-30 | C59: Santa Catarina | D59: -
A60: 2013-02-01 | B60: ASFALTOS DILUÍDOS CM-30 | C60: São Paulo | D60: 1.434190204
A61: 2013-02-01 | B61: ASFALTOS DILUÍDOS CM-30 | C61: Sergipe | D61: -
A62: 2013-02-01 | B62: ASFALTOS DILUÍDOS CM-30 | C62: Tocantins | D62: -
A63: 2013-03-01 | B63: ASFALTOS DILUÍDOS CM-30 | C63: Acre | D63: -
A64: 2013-03-01 | B64: ASFALTOS DILUÍDOS CM-30 | C64: Alagoas | D64: -
A65: 2013-03-01 | B65: ASFALTOS DILUÍDOS CM-30 | C65: Amapá | D65: -
A66: 2013-03-01 | B66: ASFALTOS DILUÍDOS CM-30 | C66: Amazonas | D66: 1.507923921
A67: 2013-03-01 | B67: ASFALTOS DILUÍDOS CM-30 | C67: Bahia | D67: 1.449440325
A68: 2013-03-01 | B68: ASFALTOS DILUÍDOS CM-30 | C68: Ceará | D68: 1.401607485
A69: 2013-03-01 | B69: ASFALTOS DILUÍDOS CM-30 | C69: Distrito Federal | D69: -
A70: 2013-03-01 | B70: ASFALTOS DILUÍDOS CM-30 | C70: Espírito Santo | D70: -
A71: 2013-03-01 | B71: ASFALTOS DILUÍDOS CM-30 | C71: Goiás | D71: 1.661758701
A72: 2013-03-01 | B72: ASFALTOS DILUÍDOS CM-30 | C72: Maranhão | D72: -
A73: 2013-03-01 | B73: ASFALTOS DILUÍDOS CM-30 | C73: Mato Grosso | D73: -
A74: 2013-03-01 | B74: ASFALTOS DILUÍDOS CM-30 | C74: Mato Grosso do Sul | D74: -
A75: 2013-03-01 | B75: ASFALTOS DILUÍDOS CM-30 | C75: Minas Gerais | D75: 1.44324333
A76: 2013-03-01 | B76: ASFALTOS DILUÍDOS CM-30 | C76: Pará | D76: -
A77: 2013-03-01 | B77: ASFALTOS DILUÍDOS CM-30 | C77: Paraíba | D77: -
A78: 2013-03-01 | B78: ASFALTOS DILUÍDOS CM-30 | C78: Paraná | D78: 1.468995996
A79: 2013-03-01 | B79: ASFALTOS DILUÍDOS CM-30 | C79: Pernambuco | D79: -
A80: 2013-03-01 | B80: ASFALTOS DILUÍDOS CM-30 | C80: Piauí | D80: -
A81: 2013-03-01 | B81: ASFALTOS DILUÍDOS CM-30 | C81: Rio de Janeiro | D81: 1.438055574
A82: 2013-03-01 | B82: ASFALTOS DILUÍDOS CM-30 | C82: Rio Grande do Norte | D82: -
A83: 2013-03-01 | B83: ASFALTOS DILUÍDOS CM-30 | C83: Rio Grande do Sul | D83: 1.581425878
A84: 2013-03-01 | B84: ASFALTOS DILUÍDOS CM-30 | C84: Rondônia | D84: -
A85: 2013-03-01 | B85: ASFALTOS DILUÍDOS CM-30 | C85: Roraima | D85: -
A86: 2013-03-01 | B86: ASFALTOS DILUÍDOS CM-30 | C86: Santa Catarina | D86: -
A87: 2013-03-01 | B87: ASFALTOS DILUÍDOS CM-30 | C87: São Paulo | D87: 1.466061702
A88: 2013-03-01 | B88: ASFALTOS DILUÍDOS CM-30 | C88: Sergipe | D88: -
A89: 2013-03-01 | B89: ASFALTOS DILUÍDOS CM-30 | C89: Tocantins | D89: -
A90: 2013-04-01 | B90: ASFALTOS DILUÍDOS CM-30 | C90: Acre | D90: -
A91: 2013-04-01 | B91: ASFALTOS DILUÍDOS CM-30 | C91: Alagoas | D91: -
A92: 2013-04-01 | B92: ASFALTOS DILUÍDOS CM-30 | C92: Amapá | D92: -
A93: 2013-04-01 | B93: ASFALTOS DILUÍDOS CM-30 | C93: Amazonas | D93: 1.484796656
A94: 2013-04-01 | B94: ASFALTOS DILUÍDOS CM-30 | C94: Bahia | D94: 1.454836546
A95: 2013-04-01 | B95: ASFALTOS DILUÍDOS CM-30 | C95: Ceará | D95: 1.387073962
A96: 2013-04-01 | B96: ASFALTOS DILUÍDOS CM-30 | C96: Distrito Federal | D96: -
A97: 2013-04-01 | B97: ASFALTOS DILUÍDOS CM-30 | C97: Espírito Santo | D97: -
A98: 2013-04-01 | B98: ASFALTOS DILUÍDOS CM-30 | C98: Goiás | D98: 1.673481836
A99: 2013-04-01 | B99: ASFALTOS DILUÍDOS CM-30 | C99: Maranhão | D99: -
A100: 2013-04-01 | B100: ASFALTOS DILUÍDOS CM-30 | C100: Mato Grosso | D100: 1.921938422
A101: 2013-04-01 | B101: ASFALTOS DILUÍDOS CM-30 | C101: Mato Grosso do Sul | D101: -
A102: 2013-04-01 | B102: ASFALTOS DILUÍDOS CM-30 | C102: Minas Gerais | D102: 1.456556683
A103: 2013-04-01 | B103: ASFALTOS DILUÍDOS CM-30 | C103: Pará | D103: -
A104: 2013-04-01 | B104: ASFALTOS DILUÍDOS CM-30 | C104: Paraíba | D104: -
A105: 2013-04-01 | B105: ASFALTOS DILUÍDOS CM-30 | C105: Paraná | D105: 1.534419498
A106: 2013-04-01 | B106: ASFALTOS DILUÍDOS CM-30 | C106: Pernambuco | D106: -
A107: 2013-04-01 | B107: ASFALTOS DILUÍDOS CM-30 | C107: Piauí | D107: -
A108: 2013-04-01 | B108: ASFALTOS DILUÍDOS CM-30 | C108: Rio de Janeiro | D108: 1.418419516
A109: 2013-04-01 | B109: ASFALTOS DILUÍDOS CM-30 | C109: Rio Grande do Norte | D109: -
A110: 2013-04-01 | B110: ASFALTOS DILUÍDOS CM-30 | C110: Rio Grande do Sul | D110: 1.572582456
A111: 2013-04-01 | B111: ASFALTOS DILUÍDOS CM-30 | C111: Rondônia | D111: -
A112: 2013-04-01 | B112: ASFALTOS DILUÍDOS CM-30 | C112: Roraima | D112: -
A113: 2013-04-01 | B113: ASFALTOS DILUÍDOS CM-30 | C113: Santa Catarina | D113: -
A114: 2013-04-01 | B114: ASFALTOS DILUÍDOS CM-30 | C114: São Paulo | D114: 1.475764348
A115: 2013-04-01 | B115: ASFALTOS DILUÍDOS CM-30 | C115: Sergipe | D115: -
A116: 2013-04-01 | B116: ASFALTOS DILUÍDOS CM-30 | C116: Tocantins | D116: -
A117: 2013-05-01 | B117: ASFALTOS DILUÍDOS CM-30 | C117: Acre | D117: -
A118: 2013-05-01 | B118: ASFALTOS DILUÍDOS CM-30 | C118: Alagoas | D118: -
A119: 2013-05-01 | B119: ASFALTOS DILUÍDOS CM-30 | C119: Amapá | D119: -
A120: 2013-05-01 | B120: ASFALTOS DILUÍDOS CM-30 | C120: Amazonas | D120: -
A121: 2013-05-01 | B121: ASFALTOS DILUÍDOS CM-30 | C121: Bahia | D121: 1.492587424
A122: 2013-05-01 | B122: ASFALTOS DILUÍDOS CM-30 | C122: Ceará | D122: 1.376263021
A123: 2013-05-01 | B123: ASFALTOS DILUÍDOS CM-30 | C123: Distrito Federal | D123: -
A124: 2013-05-01 | B124: ASFALTOS DILUÍDOS CM-30 | C124: Espírito Santo | D124: -
A125: 2013-05-01 | B125: ASFALTOS DILUÍDOS CM-30 | C125: Goiás | D125: 1.668214819
A126: 2013-05-01 | B126: ASFALTOS DILUÍDOS CM-30 | C126: Maranhão | D126: -
A127: 2013-05-01 | B127: ASFALTOS DILUÍDOS CM-30 | C127: Mato Grosso | D127: 1.903098159
A128: 2013-05-01 | B128: ASFALTOS DILUÍDOS CM-30 | C128: Mato Grosso do Sul | D128: -
A129: 2013-05-01 | B129: ASFALTOS DILUÍDOS CM-30 | C129: Minas Gerais | D129: 1.464709716
A130: 2013-05-01 | B130: ASFALTOS DILUÍDOS CM-30 | C130: Pará | D130: -
A131: 2013-05-01 | B131: ASFALTOS DILUÍDOS CM-30 | C131: Paraíba | D131: -
A132: 2013-05-01 | B132: ASFALTOS DILUÍDOS CM-30 | C132: Paraná | D132: 1.489027849
A133: 2013-05-01 | B133: ASFALTOS DILUÍDOS CM-30 | C133: Pernambuco | D133: -
A134: 2013-05-01 | B134: ASFALTOS DILUÍDOS CM-30 | C134: Piauí | D134: -
A135: 2013-05-01 | B135: ASFALTOS DILUÍDOS CM-30 | C135: Rio de Janeiro | D135: 1.399256048
A136: 2013-05-01 | B136: ASFALTOS DILUÍDOS CM-30 | C136: Rio Grande do Norte | D136: -
A137: 2013-05-01 | B137: ASFALTOS DILUÍDOS CM-30 | C137: Rio Grande do Sul | D137: 1.539636961
A138: 2013-05-01 | B138: ASFALTOS DILUÍDOS CM-30 | C138: Rondônia | D138: -
A139: 2013-05-01 | B139: ASFALTOS DILUÍDOS CM-30 | C139: Roraima | D139: -
A140: 2013-05-01 | B140: ASFALTOS DILUÍDOS CM-30 | C140: Santa Catarina | D140: -
A141: 2013-05-01 | B141: ASFALTOS DILUÍDOS CM-30 | C141: São Paulo | D141: 1.451215936
A142: 2013-05-01 | B142: ASFALTOS DILUÍDOS CM-30 | C142: Sergipe | D142: -
A143: 2013-05-01 | B143: ASFALTOS DILUÍDOS CM-30 | C143: Tocantins | D143: -
A144: 2013-06-01 | B144: ASFALTOS DILUÍDOS CM-30 | C144: Acre | D144: -
A145: 2013-06-01 | B145: ASFALTOS DILUÍDOS CM-30 | C145: Alagoas | D145: -
A146: 2013-06-01 | B146: ASFALTOS DILUÍDOS CM-30 | C146: Amapá | D146: -
A147: 2013-06-01 | B147: ASFALTOS DILUÍDOS CM-30 | C147: Amazonas | D147: 1.586325818
A148: 2013-06-01 | B148: ASFALTOS DILUÍDOS CM-30 | C148: Bahia | D148: 1.44812907
A149: 2013-06-01 | B149: ASFALTOS DILUÍDOS CM-30 | C149: Ceará | D149: 1.382700989
A150: 2013-06-01 | B150: ASFALTOS DILUÍDOS CM-30 | C150: Distrito Federal | D150: -
A151: 2013-06-01 | B151: ASFALTOS DILUÍDOS CM-30 | C151: Espírito Santo | D151: -
A152: 2013-06-01 | B152: ASFALTOS DILUÍDOS CM-30 | C152: Goiás | D152: 1.699613867
A153: 2013-06-01 | B153: ASFALTOS DILUÍDOS CM-30 | C153: Maranhão | D153: -
A154: 2013-06-01 | B154: ASFALTOS DILUÍDOS CM-30 | C154: Mato Grosso | D154: 1.915975658
A155: 2013-06-01 | B155: ASFALTOS DILUÍDOS CM-30 | C155: Mato Grosso do Sul | D155: -
A156: 2013-06-01 | B156: ASFALTOS DILUÍDOS CM-30 | C156: Minas Gerais | D156: 1.475366896
A157: 2013-06-01 | B157: ASFALTOS DILUÍDOS CM-30 | C157: Pará | D157: -
A158: 2013-06-01 | B158: ASFALTOS DILUÍDOS CM-30 | C158: Paraíba | D158: -
A159: 2013-06-01 | B159: ASFALTOS DILUÍDOS CM-30 | C159: Paraná | D159: 1.432166974
A160: 2013-06-01 | B160: ASFALTOS DILUÍDOS CM-30 | C160: Pernambuco | D160: -
A161: 2013-06-01 | B161: ASFALTOS DILUÍDOS CM-30 | C161: Piauí | D161: -
A162: 2013-06-01 | B162: ASFALTOS DILUÍDOS CM-30 | C162: Rio de Janeiro | D162: 1.527420226
A163: 2013-06-01 | B163: ASFALTOS DILUÍDOS CM-30 | C163: Rio Grande do Norte | D163: -
A164: 2013-06-01 | B164: ASFALTOS DILUÍDOS CM-30 | C164: Rio Grande do Sul | D164: 1.59868349
A165: 2013-06-01 | B165: ASFALTOS DILUÍDOS CM-30 | C165: Rondônia | D165: -
A166: 2013-06-01 | B166: ASFALTOS DILUÍDOS CM-30 | C166: Roraima | D166: -
A167: 2013-06-01 | B167: ASFALTOS DILUÍDOS CM-30 | C167: Santa Catarina | D167: -
A168: 2013-06-01 | B168: ASFALTOS DILUÍDOS CM-30 | C168: São Paulo | D168: 1.432748187
A169: 2013-06-01 | B169: ASFALTOS DILUÍDOS CM-30 | C169: Sergipe | D169: -
A170: 2013-06-01 | B170: ASFALTOS DILUÍDOS CM-30 | C170: Tocantins | D170: -
A171: 2013-07-01 | B171: ASFALTOS DILUÍDOS CM-30 | C171: Acre | D171: -
A172: 2013-07-01 | B172: ASFALTOS DILUÍDOS CM-30 | C172: Alagoas | D172: -
A173: 2013-07-01 | B173: ASFALTOS DILUÍDOS CM-30 | C173: Amapá | D173: -
A174: 2013-07-01 | B174: ASFALTOS DILUÍDOS CM-30 | C174: Amazonas | D174: 1.509890931
A175: 2013-07-01 | B175: ASFALTOS DILUÍDOS CM-30 | C175: Bahia | D175: 1.436150016
A176: 2013-07-01 | B176: ASFALTOS DILUÍDOS CM-30 | C176: Ceará | D176: 1.424835845
A177: 2013-07-01 | B177: ASFALTOS DILUÍDOS CM-30 | C177: Distrito Federal | D177: -
A178: 2013-07-01 | B178: ASFALTOS DILUÍDOS CM-30 | C178: Espírito Santo | D178: -
A179: 2013-07-01 | B179: ASFALTOS DILUÍDOS CM-30 | C179: Goiás | D179: 1.663778454
A180: 2013-07-01 | B180: ASFALTOS DILUÍDOS CM-30 | C180: Maranhão | D180: -
A181: 2013-07-01 | B181: ASFALTOS DILUÍDOS CM-30 | C181: Mato Grosso | D181: 1.930589551
A182: 2013-07-01 | B182: ASFALTOS DILUÍDOS CM-30 | C182: Mato Grosso do Sul | D182: -
A183: 2013-07-01 | B183: ASFALTOS DILUÍDOS CM-30 | C183: Minas Gerais | D183: 1.476572352
A184: 2013-07-01 | B184: ASFALTOS DILUÍDOS CM-30 | C184: Pará | D184: -
A185: 2013-07-01 | B185: ASFALTOS DILUÍDOS CM-30 | C185: Paraíba | D185: -
A186: 2013-07-01 | B186: ASFALTOS DILUÍDOS CM-30 | C186: Paraná | D186: 1.477167274
A187: 2013-07-01 | B187: ASFALTOS DILUÍDOS CM-30 | C187: Pernambuco | D187: -
A188: 2013-07-01 | B188: ASFALTOS DILUÍDOS CM-30 | C188: Piauí | D188: -
A189: 2013-07-01 | B189: ASFALTOS DILUÍDOS CM-30 | C189: Rio de Janeiro | D189: 1.584464713
A190: 2013-07-01 | B190: ASFALTOS DILUÍDOS CM-30 | C190: Rio Grande do Norte | D190: -
A191: 2013-07-01 | B191: ASFALTOS DILUÍDOS CM-30 | C191: Rio Grande do Sul | D191: 1.612487925
A192: 2013-07-01 | B192: ASFALTOS DILUÍDOS CM-30 | C192: Rondônia | D192: -
A193: 2013-07-01 | B193: ASFALTOS DILUÍDOS CM-30 | C193: Roraima | D193: -
A194: 2013-07-01 | B194: ASFALTOS DILUÍDOS CM-30 | C194: Santa Catarina | D194: -
A195: 2013-07-01 | B195: ASFALTOS DILUÍDOS CM-30 | C195: São Paulo | D195: 1.507844909
A196: 2013-07-01 | B196: ASFALTOS DILUÍDOS CM-30 | C196: Sergipe | D196: -
A197: 2013-07-01 | B197: ASFALTOS DILUÍDOS CM-30 | C197: Tocantins | D197: -
A198: 2013-08-01 | B198: ASFALTOS DILUÍDOS CM-30 | C198: Acre | D198: -
A199: 2013-08-01 | B199: ASFALTOS DILUÍDOS CM-30 | C199: Alagoas | D199: -
A200: 2013-08-01 | B200: ASFALTOS DILUÍDOS CM-30 | C200: Amapá | D200: -
A201: 2013-08-01 | B201: ASFALTOS DILUÍDOS CM-30 | C201: Amazonas | D201: 1.509275641
A202: 2013-08-01 | B202: ASFALTOS DILUÍDOS CM-30 | C202: Bahia | D202: 1.416699323
A203: 2013-08-01 | B203: ASFALTOS DILUÍDOS CM-30 | C203: Ceará | D203: 1.447403364
... 4297 more rows

Sheet ANP REGIÃO
A1: Agência Nacional do Petróleo, Gás Natural e Biocombustíveis
A2: Superintendência de Defesa da Concorrência
A6: PREÇO MÉDIO MENSAL PONDERADO PRATICADO PELOS DISTRIBUIDORES DE PRODUTOS ASFÁLTICOS (R$/KG)
A8: Produto | B8: Mês | C8: Norte | D8: Nordeste | E8: Centro-Oeste | F8: Sudeste | G8: Sul | H8: Brasil
A9: ASFALTOS DILUÍDOS CM-30 | B9: 2008-11-01 | C9: 1.775468292 | D9: 1.55087853 | E9: 2.022143291 | F9: 1.55449367 | G9: 1.584532899 | H9: 1.64286837
A10: ASFALTOS DILUÍDOS CM-30 | B10: 2008-12-01 | C10: 1.806837667 | D10: 1.509118192 | E10: 2.013020124 | F10: 1.610902223 | G10: 1.607187591 | H10: 1.637581471
A11: ASFALTOS DILUÍDOS CM-30 | B11: 2009-01-01 | C11: 1.497052858 | D11: 1.504296346 | E11: 1.963097671 | F11: 1.524672247 | G11: 1.585137209 | H11: 1.564945876
A12: ASFALTOS DILUÍDOS CM-30 | B12: 2009-02-01 | C12: 1.42787112 | D12: 1.497693283 | E12: 1.981065098 | F12: 1.583490231 | G12: 1.595924062 | H12: 1.565451036
A13: ASFALTOS DILUÍDOS CM-30 | B13: 2009-03-01 | C13: 1.404941405 | D13: 1.497647987 | E13: 1.893430263 | F13: 1.52754782 | G13: 1.588720029 | H13: 1.532713147
A14: ASFALTOS DILUÍDOS CM-30 | B14: 2009-04-01 | C14: 1.410510748 | D14: 1.484826261 | E14: 1.909226429 | F14: 1.464149371 | G14: 1.553831928 | H14: 1.516717648
A15: ASFALTOS DILUÍDOS CM-30 | B15: 2009-05-01 | C15: 1.480355678 | D15: 1.466898928 | E15: 1.891590435 | F15: 1.435443718 | G15: 1.54161118 | H15: 1.537574371
A16: ASFALTOS DILUÍDOS CM-30 | B16: 2009-06-01 | C16: 1.580751039 | D16: 1.444888837 | E16: 1.842074119 | F16: 1.424264315 | G16: 1.501526696 | H16: 1.541315575
A17: ASFALTOS DILUÍDOS CM-30 | B17: 2009-07-01 | C17: 1.905432476 | D17: 1.482618211 | E17: 1.949046345 | F17: 1.584435299 | G17: 1.610310436 | H17: 1.651032523
A18: ASFALTOS DILUÍDOS CM-30 | B18: 2009-08-01 | C18: 1.716995184 | D18: 1.423854915 | E18: 1.712385478 | F18: 1.418000805 | G18: 1.520643497 | H18: 1.504911469
A19: ASFALTOS DILUÍDOS CM-30 | B19: 2009-09-01 | C19: 1.64329494 | D19: 1.445317761 | E19: 1.731518803 | F19: 1.419374251 | G19: 1.500735895 | H19: 1.50552312
A20: ASFALTOS DILUÍDOS CM-30 | B20: 2009-10-01 | C20: 1.588031924 | D20: 1.458932649 | E20: 1.762015056 | F20: 1.429024419 | G20: 1.513753831 | H20: 1.511681904
A21: ASFALTOS DILUÍDOS CM-30 | B21: 2009-11-01 | C21: 1.639348604 | D21: 1.449059777 | E21: 1.772650817 | F21: 1.434122677 | G21: 1.526043188 | H21: 1.499657392
A22: ASFALTOS DILUÍDOS CM-30 | B22: 2009-12-01 | C22: 1.664266853 | D22: 1.441966636 | E22: 1.890574802 | F22: 1.429077727 | G22: 1.520539334 | H22: 1.508864598
A23: ASFALTOS DILUÍDOS CM-30 | B23: 2010-01-01 | C23: 1.842506144 | D23: 1.454977129 | E23: 1.865022447 | F23: 1.414817608 | G23: 1.474450765 | H23: 1.497735227
A24: ASFALTOS DILUÍDOS CM-30 | B24: 2010-02-01 | C24: 1.709886915 | D24: 1.442956487 | E24: 1.919844741 | F24: 1.433146251 | G24: 1.500882448 | H24: 1.496542251
A25: ASFALTOS DILUÍDOS CM-30 | B25: 2010-03-01 | C25: 1.535743416 | D25: 1.448880499 | E25: 1.935062728 | F25: 1.435026116 | G25: 1.480618635 | H25: 1.486789802
A26: ASFALTOS DILUÍDOS CM-30 | B26: 2010-04-01 | C26: 1.710046479 | D26: 1.440300254 | E26: 1.911935961 | F26: 1.421102153 | G26: 1.481270937 | H26: 1.511086431
A27: ASFALTOS DILUÍDOS CM-30 | B27: 2010-05-01 | C27: 1.755610465 | D27: 1.435277221 | E27: 1.873293889 | F27: 1.406944432 | G27: 1.48177605 | H27: 1.537170565
A28: ASFALTOS DILUÍDOS CM-30 | B28: 2010-06-01 | C28: 1.602224314 | D28: 1.396004336 | E28: 1.731734721 | F28: 1.399996227 | G28: 1.49193962 | H28: 1.498073418
A29: ASFALTOS DILUÍDOS CM-30 | B29: 2010-07-01 | C29: 1.559901627 | D29: 1.381016708 | E29: 1.732688214 | F29: 1.402904856 | G29: 1.473854427 | H29: 1.490075269
A30: ASFALTOS DILUÍDOS CM-30 | B30: 2010-08-01 | C30: 1.526639389 | D30: 1.38817836 | E30: 1.738946087 | F30: 1.398751236 | G30: 1.455749849 | H30: 1.495828516
A31: ASFALTOS DILUÍDOS CM-30 | B31: 2010-09-01 | C31: 1.565378829 | D31: 1.408204664 | E31: 1.757027378 | F31: 1.411642875 | G31: 1.487257745 | H31: 1.512257128
A32: ASFALTOS DILUÍDOS CM-30 | B32: 2010-10-01 | C32: 1.481711294 | D32: 1.404357715 | E32: 1.751159947 | F32: 1.403489437 | G32: 1.469340847 | H32: 1.49988826
A33: ASFALTOS DILUÍDOS CM-30 | B33: 2010-11-01 | C33: 1.519267672 | D33: 1.410130904 | E33: 1.779405625 | F33: 1.421283822 | G33: 1.458559112 | H33: 1.481658635
A34: ASFALTOS DILUÍDOS CM-30 | B34: 2010-12-01 | C34: 1.559287556 | D34: 1.40982051 | E34: 1.825185618 | F34: 1.417673572 | G34: 1.473243884 | H34: 1.469113031
A35: ASFALTOS DILUÍDOS CM-30 | B35: 2011-01-01 | C35: 1.525923305 | D35: 1.445794092 | E35: 1.774600924 | F35: 1.403274235 | G35: 1.466002814 | H35: 1.457256066
A36: ASFALTOS DILUÍDOS CM-30 | B36: 2011-02-01 | C36: 1.552825112 | D36: 1.392094259 | E36: 1.763836123 | F36: 1.385194937 | G36: 1.44955884 | H36: 1.426250478
A37: ASFALTOS DILUÍDOS CM-30 | B37: 2011-03-01 | C37: 1.469219693 | D37: 1.369442916 | E37: 1.696017922 | F37: 1.353812804 | G37: 1.435170694 | H37: 1.400130249
A38: ASFALTOS DILUÍDOS CM-30 | B38: 2011-04-01 | C38: 1.470570262 | D38: 1.373220492 | E38: 1.650829394 | F38: 1.345928103 | G38: 1.42199894 | H38: 1.400493522
A39: ASFALTOS DILUÍDOS CM-30 | B39: 2011-05-01 | C39: 1.428528955 | D39: 1.322646267 | E39: 1.700380913 | F39: 1.345068163 | G39: 1.439361431 | H39: 1.428058019
A40: ASFALTOS DILUÍDOS CM-30 | B40: 2011-06-01 | C40: 1.407622163 | D40: 1.305708657 | E40: 1.741843669 | F40: 1.354620495 | G40: 1.399501693 | H40: 1.44029982
A41: ASFALTOS DILUÍDOS CM-30 | B41: 2011-07-01 | C41: 1.259234065 | D41: 1.312033305 | E41: 1.737489696 | F41: 1.33656388 | G41: 1.422474887 | H41: 1.420839252
A42: ASFALTOS DILUÍDOS CM-30 | B42: 2011-08-01 | C42: 1.470680061 | D42: 1.299778765 | E42: 1.727443485 | F42: 1.341477821 | G42: 1.353018352 | H42: 1.425675534
A43: ASFALTOS DILUÍDOS CM-30 | B43: 2011-09-01 | C43: 1.56132872 | D43: 1.321196084 | E43: 1.729821548 | F43: 1.357451483 | G43: 1.395684798 | H43: 1.455202413
A44: ASFALTOS DILUÍDOS CM-30 | B44: 2011-10-01 | C44: 1.520569722 | D44: 1.326218736 | E44: 1.71738046 | F44: 1.332691392 | G44: 1.3577774 | H44: 1.442295871
A45: ASFALTOS DILUÍDOS CM-30 | B45: 2011-11-01 | C45: 1.465886334 | D45: 1.337041154 | E45: 1.741004886 | F45: 1.345486103 | G45: 1.447580565 | H45: 1.445354137
A46: ASFALTOS DILUÍDOS CM-30 | B46: 2011-12-01 | C46: 1.470883899 | D46: 1.335587636 | E46: 1.778724141 | F46: 1.408293068 | G46: 1.428112306 | H46: 1.422418604
A47: ASFALTOS DILUÍDOS CM-30 | B47: 2012-01-01 | C47: 1.384955015 | D47: 1.350130156 | E47: 1.780783883 | F47: 1.421354107 | G47: 1.430352474 | H47: 1.394658167
A48: ASFALTOS DILUÍDOS CM-30 | B48: 2012-02-01 | C48: 1.332181678 | D48: 1.368143891 | E48: 1.741020394 | F48: 1.400200985 | G48: 1.425400986 | H48: 1.410605707
A49: ASFALTOS DILUÍDOS CM-30 | B49: 2012-03-01 | C49: 1.411621867 | D49: 1.349122214 | E49: 1.620096006 | F49: 1.393295764 | G49: 1.406130569 | H49: 1.409768786
A50: ASFALTOS DILUÍDOS CM-30 | B50: 2012-04-01 | C50: 1.549007912 | D50: 1.383976456 | E50: 1.640712752 | F50: 1.404716397 | G50: 1.440617793 | H50: 1.45608482
A51: ASFALTOS DILUÍDOS CM-30 | B51: 2012-05-01 | C51: 1.596178941 | D51: 1.386362272 | E51: 1.712061183 | F51: 1.39923955 | G51: 1.448350887 | H51: 1.498461969
A52: ASFALTOS DILUÍDOS CM-30 | B52: 2012-06-01 | C52: 1.701432576 | D52: 1.388053518 | E52: 1.740352007 | F52: 1.422118749 | G52: 1.449196072 | H52: 1.527722717
A53: ASFALTOS DILUÍDOS CM-30 | B53: 2012-07-01 | C53: 1.652026742 | D53: 1.39436857 | E53: 1.718644846 | F53: 1.439670261 | G53: 1.46187567 | H53: 1.523069159
A54: ASFALTOS DILUÍDOS CM-30 | B54: 2012-08-01 | C54: 1.689998835 | D54: 1.40333785 | E54: 1.741895041 | F54: 1.421723369 | G54: 1.445685799 | H54: 1.536533078
A55: ASFALTOS DILUÍDOS CM-30 | B55: 2012-09-01 | C55: 1.690177972 | D55: 1.421500003 | E55: 1.780920724 | F55: 1.445180432 | G55: 1.483645866 | H55: 1.549410653
A56: ASFALTOS DILUÍDOS CM-30 | B56: 2012-10-01 | C56: 1.574840342 | D56: 1.417066109 | E56: 1.794832036 | F56: 1.451304526 | G56: 1.482037109 | H56: 1.550631802
A57: ASFALTOS DILUÍDOS CM-30 | B57: 2012-11-01 | C57: 1.655163526 | D57: 1.455878748 | E57: 1.840129766 | F57: 1.461204615 | G57: 1.483499722 | H57: 1.552500776
A58: ASFALTOS DILUÍDOS CM-30 | B58: 2012-12-01 | C58: 1.714876125 | D58: 1.435854741 | E58: 1.804066573 | F58: 1.45222765 | G58: 1.509417648 | H58: 1.523411999
A59: ASFALTOS DILUÍDOS CM-30 | B59: 2013-01-01 | C59: 1.495776335 | D59: 1.449494588 | E59: 1.854050525 | F59: 1.44638752 | G59: 1.563753675 | H59: 1.502137259
A60: ASFALTOS DILUÍDOS CM-30 | B60: 2013-02-01 | C60: 1.635067666 | D60: 1.420609638 | E60: 1.731071498 | F60: 1.442746356 | G60: 1.461828405 | H60: 1.4739561
A61: ASFALTOS DILUÍDOS CM-30 | B61: 2013-03-01 | C61: 1.646229098 | D61: 1.413299983 | E61: 1.83828087 | F61: 1.450015152 | G61: 1.525760413 | H61: 1.506542904
A62: ASFALTOS DILUÍDOS CM-30 | B62: 2013-04-01 | C62: 1.581864474 | D62: 1.399189564 | E62: 1.793825113 | F62: 1.458704755 | G62: 1.551913702 | H62: 1.523623636
A63: ASFALTOS DILUÍDOS CM-30 | B63: 2013-05-01 | C63: 1.815646773 | D63: 1.390143517 | E63: 1.812783313 | F63: 1.44951052 | G63: 1.504233457 | H63: 1.549918592
A64: ASFALTOS DILUÍDOS CM-30 | B64: 2013-06-01 | C64: 1.631101583 | D64: 1.383186536 | E64: 1.816642105 | F64: 1.474232641 | G64: 1.503043689 | H64: 1.581049429
A65: ASFALTOS DILUÍDOS CM-30 | B65: 2013-07-01 | C65: 1.86596563 | D65: 1.422051117 | E65: 1.793072753 | F65: 1.498018808 | G65: 1.533391901 | H65: 1.59880513
A66: ASFALTOS DILUÍDOS CM-30 | B66: 2013-08-01 | C66: 1.700325546 | D66: 1.435094415 | E66: 1.821452614 | F66: 1.511722868 | G66: 1.530793596 | H66: 1.606176585
A67: ASFALTOS DILUÍDOS CM-30 | B67: 2013-09-01 | C67: 1.562873733 | D67: 1.472197748 | E67: 1.879842712 | F67: 1.542652867 | G67: 1.490667543 | H67: 1.627945893
A68: ASFALTOS DILUÍDOS CM-30 | B68: 2013-10-01 | C68: 1.648504013 | D68: 1.472152345 | E68: 1.825494997 | F68: 1.501177682 | G68: 1.48378912 | H68: 1.597538775
A69: ASFALTOS DILUÍDOS CM-30 | B69: 2013-11-01 | C69: 1.619179062 | D69: 1.486413317 | E69: 1.844012679 | F69: 1.496326809 | G69: 1.506096878 | H69: 1.581665844
A70: ASFALTOS DILUÍDOS CM-30 | B70: 2013-12-01 | C70: 1.633358293 | D70: 1.494818097 | E70: 1.897197176 | F70: 1.502864538 | G70: 1.517074296 | H70: 1.572475244
A71: ASFALTOS DILUÍDOS CM-30 | B71: 2014-01-01 | C71: 1.688311265 | D71: 1.494181305 | E71: 1.798355903 | F71: 1.484202293 | G71: 1.533353813 | H71: 1.542909737
A72: ASFALTOS DILUÍDOS CM-30 | B72: 2014-02-01 | C72: 1.598304434 | D72: 1.479706587 | E72: 1.814390215 | F72: 1.514829392 | G72: 1.522800588 | H72: 1.528970287
A73: ASFALTOS DILUÍDOS CM-30 | B73: 2014-03-01 | C73: 1.648287687 | D73: 1.472852501 | E73: 1.76657319 | F73: 1.513020673 | G73: 1.506185248 | H73: 1.530181178
A74: ASFALTOS DILUÍDOS CM-30 | B74: 2014-04-01 | C74: 1.534459987 | D74: 1.493898767 | E74: 1.757271278 | F74: 1.533021309 | G74: 1.524275274 | H74: 1.550566305
A75: ASFALTOS DILUÍDOS CM-30 | B75: 2014-05-01 | C75: 1.58658327 | D75: 1.490834685 | E75: 1.804339251 | F75: 1.501138131 | G75: 1.567043824 | H75: 1.586452272
A76: ASFALTOS DILUÍDOS CM-30 | B76: 2014-06-01 | C76: 1.658277164 | D76: 1.505801121 | E76: 1.839593445 | F76: 1.5068632 | G76: 1.523776953 | H76: 1.636070702
A77: ASFALTOS DILUÍDOS CM-30 | B77: 2014-07-01 | C77: 1.890299542 | D77: 1.500730514 | E77: 1.708277865 | F77: 1.487293964 | G77: 1.505956069 | H77: 1.587065158
A78: ASFALTOS DILUÍDOS CM-30 | B78: 2014-08-01 | C78: 1.632741832 | D78: 1.501945324 | E78: 1.671203189 | F78: 1.482359341 | G78: 1.506327366 | H78: 1.557910377
A79: ASFALTOS DILUÍDOS CM-30 | B79: 2014-09-01 | C79: 1.66956717 | D79: 1.546830427 | E79: 1.864797016 | F79: 1.496764585 | G79: 1.570533242 | H79: 1.639281057
A80: ASFALTOS DILUÍDOS CM-30 | B80: 2014-10-01 | C80: 1.742876916 | D80: 1.508978569 | E80: 1.746650466 | F80: 1.470773645 | G80: 1.454273462 | H80: 1.57912022
A81: ASFALTOS DILUÍDOS CM-30 | B81: 2014-11-01 | C81: 1.864723419 | D81: 1.57943059 | E81: 1.749156218 | F81: 1.465084479 | G81: 1.529147988 | H81: 1.601359821
A82: ASFALTOS DILUÍDOS CM-30 | B82: 2014-12-01 | C82: 1.812671914 | D82: 1.704844348 | E82: 1.963310066 | F82: 1.623676702 | G82: 1.649644659 | H82: 1.718826981
A83: ASFALTOS DILUÍDOS CM-30 | B83: 2015-01-01 | C83: 2.154807062 | D83: 2.023760447 | E83: 2.318863736 | F83: 1.866588967 | G83: 1.898380434 | H83: 2.007792032
A84: ASFALTOS DILUÍDOS CM-30 | B84: 2015-02-01 | C84: 2.260238625 | D84: 2.005673765 | E84: 2.393875762 | F84: 1.854519766 | G84: 1.927395107 | H84: 2.007653781
A85: ASFALTOS DILUÍDOS CM-30 | B85: 2015-03-01 | C85: 2.124176462 | D85: 1.968822849 | E85: 2.279643254 | F85: 1.887760911 | G85: 1.930217145 | H85: 1.984816916
A86: ASFALTOS DILUÍDOS CM-30 | B86: 2015-04-01 | C86: 2.030049505 | D86: 2.001506448 | E86: 2.379118903 | F86: 1.85245167 | G86: 1.949025254 | H86: 1.98064321
A87: ASFALTOS DILUÍDOS CM-30 | B87: 2015-05-01 | C87: 2.507271651 | D87: 1.946869908 | E87: 2.254758192 | F87: 1.807470001 | G87: 2.016929536 | H87: 2.005474234
A88: ASFALTOS DILUÍDOS CM-30 | B88: 2015-06-01 | C88: 2.248320042 | D88: 1.944259736 | E88: 2.314331796 | F88: 1.846998595 | G88: 1.968565125 | H88: 2.042581344
A89: ASFALTOS DILUÍDOS CM-30 | B89: 2015-07-01 | C89: 1.992222758 | D89: 1.992791635 | E89: 2.046769953 | F89: 1.782648603 | G89: 1.931671385 | H89: 1.942627362
A90: ASFALTOS DILUÍDOS CM-30 | B90: 2015-08-01 | C90: 2.307605931 | D90: 2.038089127 | E90: 2.252748105 | F90: 1.828097705 | G90: 1.939824481 | H90: 2.08193616
A91: ASFALTOS DILUÍDOS CM-30 | B91: 2015-09-01 | C91: 2.314289704 | D91: 2.095307531 | E91: 2.344561987 | F91: 1.942551091 | G91: 2.005352614 | H91: 2.168175541
A92: ASFALTOS DILUÍDOS CM-30 | B92: 2015-10-01 | C92: 2.329456663 | D92: 2.170570012 | E92: 2.43273012 | F92: 2.035624751 | G92: 2.110261148 | H92: 2.237533782
A93: ASFALTOS DILUÍDOS CM-30 | B93: 2015-11-01 | C93: 2.606056566 | D93: 2.437098304 | E93: 2.711612141 | F93: 2.280113896 | G93: 2.326446297 | H93: 2.474998781
A94: ASFALTOS DILUÍDOS CM-30 | B94: 2015-12-01 | C94: 2.635374006 | D94: 2.395920309 | E94: 2.693528386 | F94: 2.272528129 | G94: 2.330740659 | H94: 2.452848156
A95: ASFALTOS DILUÍDOS CM-30 | B95: 2016-01-01 | C95: 2.715863993 | D95: 2.373861647 | E95: 2.844670602 | F95: 2.263650658 | G95: 2.232631691 | H95: 2.400563394
A96: ASFALTOS DILUÍDOS CM-30 | B96: 2016-02-01 | C96: 2.80468316 | D96: 2.466846816 | E96: 2.791787007 | F96: 2.295637115 | G96: 2.346556173 | H96: 2.464348548
A97: ASFALTOS DILUÍDOS CM-30 | B97: 2016-03-01 | C97: 2.5805021 | D97: 2.470678753 | E97: 2.707688025 | F97: 2.235301999 | G97: 2.383115972 | H97: 2.423563924
A98: ASFALTOS DILUÍDOS CM-30 | B98: 2016-04-01 | C98: 2.942006312 | D98: 2.740742032 | E98: 2.759071855 | F98: 2.544439178 | G98: 2.710751632 | H98: 2.680274833
A99: ASFALTOS DILUÍDOS CM-30 | B99: 2016-05-01 | C99: 3.010579472 | D99: 2.650277047 | E99: 2.857121361 | F99: 2.575583152 | G99: 2.770413362 | H99: 2.70973327
A100: ASFALTOS DILUÍDOS CM-30 | B100: 2016-06-01 | C100: 2.909179844 | D100: 2.621385041 | E100: 2.943487281 | F100: 2.659109515 | G100: 2.684759555 | H100: 2.743619517
A101: ASFALTOS DILUÍDOS CM-30 | B101: 2016-07-01 | C101: 2.985740381 | D101: 2.591644045 | E101: 2.98927803 | F101: 2.604396599 | G101: 2.660884423 | H101: 2.745135539
A102: ASFALTOS DILUÍDOS CM-30 | B102: 2016-08-01 | C102: 2.935243919 | D102: 2.623917329 | E102: 2.970490854 | F102: 2.679486504 | G102: 2.727025649 | H102: 2.781385962
A103: ASFALTOS DILUÍDOS CM-30 | B103: 2016-09-01 | C103: 2.649136821 | D103: 2.521054851 | E103: 2.781583925 | F103: 2.51393313 | G103: 2.371271501 | H103: 2.595617128
A104: ASFALTOS DILUÍDOS CM-30 | B104: 2016-10-01 | C104: 2.626109257 | D104: 2.444469093 | E104: 2.781617873 | F104: 2.507383127 | G104: 2.38325399 | H104: 2.566999037
A105: ASFALTOS DILUÍDOS CM-30 | B105: 2016-11-01 | C105: 2.535087408 | D105: 2.374145527 | E105: 2.952768674 | F105: 2.481263765 | G105: 2.382206771 | H105: 2.542842366
A106: ASFALTOS DILUÍDOS CM-30 | B106: 2016-12-01 | C106: 2.50039107 | D106: 2.253413483 | E106: 3.038519458 | F106: 2.589438892 | G106: 2.395593424 | H106: 2.476439295
A107: ASFALTOS DILUÍDOS CM-30 | B107: 2017-01-01 | C107: 2.392875504 | D107: 2.232695674 | E107: 3.089080971 | F107: 2.535744039 | G107: 2.378694833 | H107: 2.374216192
A108: ASFALTOS DILUÍDOS CM-30 | B108: 2017-02-01 | C108: 2.68039414 | D108: 2.271897225 | E108: 2.764408032 | F108: 2.573933685 | G108: 2.384644398 | H108: 2.470721466
A109: ASFALTOS DILUÍDOS CM-30 | B109: 2017-03-01 | C109: 2.23884121 | D109: 2.386958079 | E109: 2.667220252 | F109: 2.372165947 | G109: 2.30121887 | H109: 2.378796986
A110: ASFALTOS DILUÍDOS CM-30 | B110: 2017-04-01 | C110: 2.420191398 | D110: 2.307969596 | E110: 2.794093014 | F110: 2.258409912 | G110: 2.256434297 | H110: 2.380268484
A111: ASFALTOS DILUÍDOS CM-30 | B111: 2017-05-01 | C111: 2.432106692 | D111: 2.167919128 | E111: 2.699836936 | F111: 2.255387192 | G111: 2.204026958 | H111: 2.361515909
A112: ASFALTOS DILUÍDOS CM-30 | B112: 2017-06-01 | C112: 2.428301776 | D112: 2.181938689 | E112: 2.756672055 | F112: 2.234549022 | G112: 2.305778546 | H112: 2.44553453
A113: ASFALTOS DILUÍDOS CM-30 | B113: 2017-07-01 | C113: 2.453752061 | D113: 2.218075334 | E113: 2.694625022 | F113: 2.414329247 | G113: 2.269601102 | H113: 2.473436106
A114: ASFALTOS DILUÍDOS CM-30 | B114: 2017-08-01 | C114: 2.447930976 | D114: 2.153112031 | E114: 2.595349952 | F114: 2.302919065 | G114: 2.170148667 | H114: 2.380876423
A115: ASFALTOS DILUÍDOS CM-30 | B115: 2017-09-01 | C115: 2.494551504 | D115: 2.14243989 | E115: 2.623166503 | F115: 2.371308095 | G115: 2.303698507 | H115: 2.393542204
A116: ASFALTOS DILUÍDOS CM-30 | B116: 2017-10-01 | C116: 2.349953944 | D116: 2.18056004 | E116: 2.614160957 | F116: 2.415254962 | G116: 2.20079573 | H116: 2.367947121
A117: ASFALTOS DILUÍDOS CM-30 | B117: 2017-11-01 | C117: 2.670126991 | D117: 2.433169195 | E117: 2.908627464 | F117: 2.58469482 | G117: 2.415192709 | H117: 2.602101348
A118: ASFALTOS DILUÍDOS CM-30 | B118: 2017-12-01 | C118: 2.587352645 | D118: 2.425358882 | E118: 2.906633765 | F118: 2.602890298 | G118: 2.42288976 | H118: 2.531764464
A119: ASFALTOS DILUÍDOS CM-30 | B119: 2018-01-01 | C119: 2.950360755 | D119: 2.662862923 | E119: 2.875953993 | F119: 2.620738484 | G119: 2.646955252 | H119: 2.735956369
A120: ASFALTOS DILUÍDOS CM-30 | B120: 2018-02-01 | C120: 2.677899567 | D120: 2.672498164 | E120: 2.942595474 | F120: 2.62043113 | G120: 2.567885662 | H120: 2.668369933
A121: ASFALTOS DILUÍDOS CM-30 | B121: 2018-03-01 | C121: 2.733363025 | D121: 2.589050022 | E121: 2.809172556 | F121: 2.561928393 | G121: 2.575946067 | H121: 2.634876584
A122: ASFALTOS DILUÍDOS CM-30 | B122: 2018-04-01 | C122: 2.75780112 | D122: 2.669553602 | E122: 2.773908242 | F122: 2.59547006 | G122: 2.556042394 | H122: 2.6643302
A123: ASFALTOS DILUÍDOS CM-30 | B123: 2018-05-01 | C123: 2.841213362 | D123: 2.672025877 | E123: 2.884501482 | F123: 2.686718021 | G123: 2.736485103 | H123: 2.77737896
A124: ASFALTOS DILUÍDOS CM-30 | B124: 2018-06-01 | C124: 3.008444789 | D124: 2.919605178 | E124: 3.158454886 | F124: 2.84673108 | G124: 2.953523993 | H124: 2.982291635
A125: ASFALTOS DILUÍDOS CM-30 | B125: 2018-07-01 | C125: 3.268237549 | D125: 3.036524094 | E125: 3.399360399 | F125: 3.026467598 | G125: 3.19779631 | H125: 3.164126546
A126: ASFALTOS DILUÍDOS CM-30 | B126: 2018-08-01 | C126: 3.56441315 | D126: 3.415193769 | E126: 3.707706206 | F126: 3.425079349 | G126: 3.356722461 | H126: 3.515558112
A127: ASFALTOS DILUÍDOS CM-30 | B127: 2018-09-01 | C127: 3.173913778 | D127: 3.445064118 | E127: 3.73526324 | F127: 3.385816186 | G127: 3.607309454 | H127: 3.483238429
A128: ASFALTOS DILUÍDOS CM-30 | B128: 2018-10-01 | C128: 3.487778119 | D128: 3.460508804 | E128: 3.721444057 | F128: 3.432525565 | G128: 3.60602088 | H128: 3.545390344
A129: ASFALTOS DILUÍDOS CM-30 | B129: 2018-11-01 | C129: 4.047272484 | D129: 3.814893312 | E129: 4.280131586 | F129: 4.178126777 | G129: 3.967681367 | H129: 3.990147183
A130: ASFALTOS DILUÍDOS CM-30 | B130: 2018-12-01 | C130: 3.951491146 | D130: 3.967113195 | E130: 4.341144202 | F130: 3.916766066 | G130: 3.911993357 | H130: 3.999742654
A131: ASFALTOS DILUÍDOS CM-30 | B131: 2019-01-01 | C131: 3.796855325 | D131: 3.870018889 | E131: 4.201901762 | F131: 3.954196997 | G131: 3.976786028 | H131: 3.933951911
A132: ASFALTOS DILUÍDOS CM-30 | B132: 2019-02-01 | C132: 3.516584073 | D132: 4.090361178 | E132: 4.498422953 | F132: 4.469942475 | G132: 4.254590254 | H132: 4.188544679
A133: ASFALTOS DILUÍDOS CM-30 | B133: 2019-03-01 | C133: 4.216758117 | D133: 4.361910728 | E133: 4.907194889 | F133: 4.398717729 | G133: 4.290823922 | H133: 4.360295279
A134: ASFALTOS DILUÍDOS CM-30 | B134: 2019-04-01 | C134: 4.281648205 | D134: 4.234661428 | E134: 4.531627215 | F134: 4.43722653 | G134: 4.466881471 | H134: 4.38082044
A135: ASFALTOS DILUÍDOS CM-30 | B135: 2019-05-01 | C135: 4.287644659 | D135: 4.190699738 | E135: 4.857910872 | F135: 4.267461963 | G135: 4.633806379 | H135: 4.366402151
A136: ASFALTOS DILUÍDOS CM-30 | B136: 2019-06-01 | C136: 4.475609892 | D136: 3.965052934 | E136: 4.66272934 | F136: 4.350600604 | G136: 4.211229921 | H136: 4.319323669
A137: ASFALTOS DILUÍDOS CM-30 | B137: 2019-07-01 | C137: 4.394498989 | D137: 4.058039305 | E137: 4.834221945 | F137: 4.094659414 | G137: 4.233003281 | H137: 4.346977757
A138: ASFALTOS DILUÍDOS CM-30 | B138: 2019-08-01 | C138: 4.48173504 | D138: 3.910662496 | E138: 4.576329081 | F138: 4.11161654 | G138: 4.255419985 | H138: 4.258345083
A139: ASFALTOS DILUÍDOS CM-30 | B139: 2019-09-01 | C139: 4.439578796 | D139: 3.859904896 | E139: 4.495256968 | F139: 4.111321475 | G139: 4.117359152 | H139: 4.251607085
A140: ASFALTOS DILUÍDOS CM-30 | B140: 2019-10-01 | C140: 4.335888631 | D140: 3.772324962 | E140: 4.459242357 | F140: 4.056084115 | G140: 3.942458011 | H140: 4.07740702
A141: ASFALTOS DILUÍDOS CM-30 | B141: 2019-11-01 | C141: 4.316238692 | D141: 3.910245509 | E141: 4.581841077 | F141: 4.07902404 | G141: 4.106621274 | H141: 4.094561212
A142: ASFALTOS DILUÍDOS CM-30 | B142: 2019-12-01 | C142: 4.199435972 | D142: 3.980119663 | E142: 4.673774805 | F142: 4.434268142 | G142: 3.986410312 | H142: 4.164691616
A143: ASFALTOS DILUÍDOS CM-30 | B143: 2020-01-01 | C143: 3.59298003 | D143: 3.895320617 | E143: 4.685420623 | F143: 4.387074674 | G143: 4.124467668 | H143: 4.053338937
A144: ASFALTOS DILUÍDOS CM-30 | B144: 2020-02-01 | C144: 3.642667016 | D144: 3.877395187 | E144: 4.438194543 | F144: 3.699944607 | G144: 3.778164011 | H144: 3.839010438
A145: ASFALTOS DILUÍDOS CM-30 | B145: 2020-03-01 | C145: 4.676668339 | D145: 3.791138977 | E145: 4.289222343 | F145: 3.718402734 | G145: 3.60908619 | H145: 3.93117068
A146: ASFALTOS DILUÍDOS CM-30 | B146: 2020-04-01 | C146: 4.313362837 | D146: 3.6957655 | E146: 4.255395321 | F146: 3.865895531 | G146: 3.732253382 | H146: 3.964125211
A147: ASFALTOS DILUÍDOS CM-30 | B147: 2020-05-01 | C147: 3.249134658 | D147: 3.637769912 | E147: 4.113544882 | F147: 3.760550026 | G147: 3.710618099 | H147: 3.65617504
A148: ASFALTOS DILUÍDOS CM-30 | B148: 2020-06-01 | C148: 4.017903076 | D148: 3.567031492 | E148: 4.277369171 | F148: 3.937886485 | G148: 3.625830069 | H148: 3.924524506
A149: ASFALTOS DILUÍDOS CM-30 | B149: 2020-07-01 | C149: 3.840497509 | D149: 3.51327048 | E149: 4.21549069 | F149: 3.954223886 | G149: 3.688841275 | H149: 3.843774448
A150: ASFALTOS DILUÍDOS CM-30 | B150: 2020-08-01 | C150: 4.174467203 | D150: 3.465394219 | E150: 4.277710211 | F150: 4.06746494 | G150: 3.62858863 | H150: 3.947166917
A151: ASFALTOS DILUÍDOS CM-30 | B151: 2020-09-01 | C151: 4.167371331 | D151: 3.746360816 | E151: 4.167424356 | F151: 3.795621791 | G151: 3.627729935 | H151: 3.973129945
A152: ASFALTOS DILUÍDOS CM-30 | B152: 2020-10-01 | C152: 4.408099527 | D152: 3.718989878 | E152: 4.278979192 | F152: 4.008746906 | G152: 3.591048183 | H152: 4.03964377
A153: ASFALTOS DILUÍDOS CM-30 | B153: 2020-11-01 | C153: 4.056306006 | D153: 3.969209281 | E153: 4.547900893 | F153: 4.27945542 | G153: 3.973347244 | H153: 4.175826149
A154: ASFALTOS DILUÍDOS CM-30 | B154: 2020-12-01 | C154: 4.132064138 | D154: 3.851632751 | E154: 4.426704386 | F154: 3.906236422 | G154: 3.8709398 | H154: 4.035347374
A155: ASFALTOS DILUÍDOS CM-30 | B155: 2021-01-01 | C155: 3.489836333 | D155: 3.951525937 | E155: 4.628269702 | F155: 4.011577011 | G155: 3.935136638 | H155: 3.917092391
A156: ASFALTOS DILUÍDOS CM-30 | B156: 2021-02-01 | C156: 4.099318116 | D156: 4.267109523 | E156: 4.832061615 | F156: 4.414202706 | G156: 4.149048932 | H156: 4.26819704
A157: ASFALTOS DILUÍDOS CM-30 | B157: 2021-03-01 | C157: 4.528355792 | D157: 4.239831731 | E157: 4.926314562 | F157: 4.269697839 | G157: 4.130655409 | H157: 4.377833785
A158: ASFALTOS DILUÍDOS CM-30 | B158: 2021-04-01 | C158: 4.349271867 | D158: 4.086995154 | E158: 4.477597522 | F158: 4.156113398 | G158: 4.044189822 | H158: 4.253361798
A159: ASFALTOS DILUÍDOS CM-30 | B159: 2021-05-01 | C159: 4.488889413 | D159: 4.707945815 | E159: 5.101489686 | F159: 4.784034896 | G159: 4.523986615 | H159: 4.790548085
A160: ASFALTOS DILUÍDOS CM-30 | B160: 2021-06-01 | C160: 4.010467711 | D160: 4.479592126 | E160: 5.113041212 | F160: 4.779739905 | G160: 4.721214307 | H160: 4.764890884
A161: ASFALTOS DILUÍDOS CM-30 | B161: 2021-07-01 | C161: 4.752234128 | D161: 4.559350506 | E161: 5.004758283 | F161: 4.80272972 | G161: 4.748550678 | H161: 4.817586047
A162: ASFALTOS DILUÍDOS CM-30 | B162: 2021-08-01 | C162: 5.085284532 | D162: 4.772501255 | E162: 5.198537142 | F162: 5.244735259 | G162: 4.76131175 | H162: 5.0981692
A163: ASFALTOS DILUÍDOS CM-30 | B163: 2021-09-01 | C163: 5.110300267 | D163: 4.538072365 | E163: 5.241721185 | F163: 5.017144197 | G163: 4.862861245 | H163: 5.016958886
A164: ASFALTOS DILUÍDOS CM-30 | B164: 2021-10-01 | C164: 5.080697261 | D164: 4.66826742 | E164: 5.119544199 | F164: 5.384779065 | G164: 4.658516432 | H164: 5.021294312
A165: ASFALTOS DILUÍDOS CM-30 | B165: 2021-11-01 | C165: 5.436518753 | D165: 5.08776781 | E165: 5.150063985 | F165: 5.634257884 | G165: 5.174530131 | H165: 5.228141289
